Workbook

Sheet nn - ranked data - new (34)
A1: irány | B1: 0 | C1: 0 | D1: 0 | E1: 0 | F1: 0 | M1: súlyok | U1: 2. layer vektor | AK1: 2 layer súlyok | AS1: Futtat | AY1: 1 | AZ1: 2 | BA1: 3 | BB1: 4 | BC1: 5 | BD1: 6 | BE1: 7 | BF1: 8 | BG1: 9 | BH1: 10 | BI1: 11 | BJ1: 12 | BK1: 13 | BL1: 14 | BM1: 15 | BO1: Ranking | CE1: O2 - O1 | CF1: O3 - O2 | CG1: O4 - O3 | CH1: O5 - O4 | CI1: O6 - O5 | CJ1: O7 - O6 | CK1: O8 - O7 | CL1: O9 - O8 | CM1: O10 - O9 | CN1: O11 - O10 | CO1: O12 - O11 | CP1: O13 - 12 | CQ1: O14 - O13 | CR1: O15 - O14
A2: rnd(1-100) | B2: A1 | C2: A2 | D2: A3 | E2: A4 | F2: A5 | H2: rank = 0 | I2: =B2 -> A1 | J2: A2 | K2: A3 | L2: A4 | M2: A5 | O2: w1 | P2: w2 | Q2: w3 | R2: w4 | S2: w5 | U2: O1 | V2: O2 | W2: O3 | X2: O4 | Y2: O5 | Z2: O6 | AA2: O7 | AB2: O8 | AC2: O9 | AD2: O10 | AE2: O11 | AF2: O12 | AG2: O13 | AH2: O14 | AI2: O15 | AK2: w6 | AN2: Y0 | AO2: Ybecslés | AP2: eltérés | AQ2: MAE | AU2: O | AV2: 1 | AW2: A | AX2: 1 | AY2: 7.23674101 | AZ2: 7.79787161 | BA2: 8.35900221 | BB2: 8.92013281 | BC2: 9.48126341 | BD2: 9.94551675 | BE2: 9.95516852 | BF2: 9.96482029 | BG2: 9.97447206 | BH2: 9.98412383 | BI2: 9.9937756 | BJ2: 10.00342737 | BK2: 10.01307914 | BL2: 10.02273091 | BM2: 10.03238268 | BO2: =RANK(AY2,$AY2:$BM2, 1) -> 1 | BP2: =RANK(AZ2,$AY2:$BM2, 1) -> 2 | BQ2: 3 | BR2: 4 | BS2: 5 | BT2: 6 | BU2: 7 | BV2: =RANK(BF2,$AY2:$BM2, 1) -> 8 | BW2: 9 | BX2: 10 | BY2: 11 | BZ2: 12 | CA2: 13 | CB2: 14 | CC2: 15 | CE2: =AZ2-AY2 -> 0.5611306 | CF2: =BA2-AZ2 -> 0.5611306 | CG2: 0.5611306 | CH2: 0.5611306 | CI2: =BD2-BC2 -> 0.46425334 | CJ2: 0.00965177 | CK2: 0.00965177 | CL2: 0.00965177 | CM2: =BH2-BG2 -> 0.00965177 | CN2: 0.00965177 | CO2: 0.00965177 | CP2: 0.00965177 | CQ2: 0.00965177 | CR2: =BM2-BL2 -> 0.00965177 | CS2: =STDEV(CE2:CR2) -> 0.2656750111
A3: O1 | B3: 70 | C3: 10 | D3: 93 | E3: 33 | F3: 29 | H3: =A3 -> O1 | I3: 6 | J3: 13 | K3: 2 | L3: 11 | M3: 10 | O3: 0.17837822 | P3: 0.13921523 | Q3: 0.15091406 | R3: 0.15942907 | S3: 0.12971492 | U3: =$I$3*$O3+$J$3*$P3+$K$3*$Q3+$L$3*$R3+$M$3*$S3 -> 6.2327644 | V3: =$I$4*$O3+$J$4*$P3+$K$4*$Q3+$L$4*$R3+$M$4*$S3 -> 5.8927315 | W3: =$I$5*$O3+$J$5*$P3+$K$5*$Q3+$L$5*$R3+$M$5*$S3 -> 4.39990195 | X3: =$I$6*$O3+$J$6*$P3+$K$6*$Q3+$L$6*$R3+$M$6*$S3 -> 5.65393183 | Y3: =$I$7*$O3+$J$7*$P3+$K$7*$Q3+$L$7*$R3+$M$7*$S3 -> 6.98359906 | Z3: =$I$8*$O3+$J$8*$P3+$K$8*$Q3+$L$8*$R3+$M$8*$S3 -> 5.40091387 | AA3: =$I$9*$O3+$J$9*$P3+$K$9*$Q3+$L$9*$R3+$M$9*$S3 -> 7.75385879 | AB3: =$I$10*$O3+$J$10*$P3+$K$10*$Q3+$L$10*$R3+$M$10*$S3 -> 4.60574401 | AC3: =$I$11*$O3+$J$11*$P3+$K$11*$Q3+$L$11*$R3+$M$11*$S3 -> 7.22418237 | AD3: =$I$12*$O3+$J$12*$P3+$K$12*$Q3+$L$12*$R3+$M$12*$S3 -> 4.61667127 | AE3: =$I$13*$O3+$J$13*$P3+$K$13*$Q3+$L$13*$R3+$M$13*$S3 -> 6.2555413 | AF3: =$I$14*$O3+$J$14*$P3+$K$14*$Q3+$L$14*$R3+$M$14*$S3 -> 7.77044778 | AG3: =$I$15*$O3+$J$15*$P3+$K$15*$Q3+$L$15*$R3+$M$15*$S3 -> 4.27094175 | AH3: =$I$16*$O3+$J$16*$P3+$K$16*$Q3+$L$16*$R3+$M$16*$S3 -> 4.52515874 | AI3: =$I$17*$O3+$J$17*$P3+$K$17*$Q3+$L$17*$R3+$M$17*$S3 -> 8.33585771 | AK3: 100 | AM3: O1 | AN3: 1000 | AO3: =U30 -> 9.94551675 | AP3: =AN3-AO3 -> 990.0544832 | AQ3: =ABS(AP3) -> 990.0544832 | AU3: O | AV3: 1 | AW3: A | AX3: 2 | AY3: 4.56218164 | AZ3: 4.83009149 | BA3: 5.29513015 | BB3: 5.76016881 | BC3: 6.22520747 | BD3: 6.69024613 | BE3: 7.15528479 | BF3: 7.62032345 | BG3: 8.08536211 | BH3: 8.55040077 | BI3: 9.01543943 | BJ3: 9.48047809 | BK3: 9.94551675 | BL3: 10.05331706 | BM3: 10.06424011 | BO3: =RANK(AY3,$AY3:$BM3, 1) -> 1 | BP3: 2 | BQ3: 3 | BR3: 4 | BS3: 5 | BT3: 6 | BU3: 7 | BV3: 8 | BW3: 9 | BX3: 10 | BY3: 11 | BZ3: 12 | CA3: 13 | CB3: 14 | CC3: 15 | CE3: =AZ3-AY3 -> 0.26790985 | CF3: 0.46503866 | CG3: 0.46503866 | CH3: 0.46503866 | CI3: 0.46503866 | CJ3: 0.46503866 | CK3: 0.46503866 | CL3: 0.46503866 | CM3: 0.46503866 | CN3: 0.46503866 | CO3: 0.46503866 | CP3: 0.46503866 | CQ3: 0.10780031 | CR3: 0.01092305 | CS3: =STDEV(CE3:CR3) -> 0.1519246924
A4: O2 | B4: 17 | C4: 74 | D4: 84 | E4: 78 | F4: 23 | H4: =A4 -> O2 | I4: 13 | J4: 6 | K4: 4 | L4: 2 | M4: 14 | O4: 0.00965177 | P4: 0.46503866 | Q4: 0.43478802 | R4: 0.19912481 | S4: 0.07821546 | U4: =$I$3*$O4+$J$3*$P4+$K$3*$Q4+$L$3*$R4+$M$3*$S4 -> 9.94551675 | V4: =$I$4*$O4+$J$4*$P4+$K$4*$Q4+$L$4*$R4+$M$4*$S4 -> 6.14812311 | W4: =$I$5*$O4+$J$5*$P4+$K$5*$Q4+$L$5*$R4+$M$5*$S4 -> 6.69666063 | X4: =$I$6*$O4+$J$6*$P4+$K$6*$Q4+$L$6*$R4+$M$6*$S4 -> 6.55256175 | Y4: =$I$7*$O4+$J$7*$P4+$K$7*$Q4+$L$7*$R4+$M$7*$S4 -> 12.74828404 | Z4: =$I$8*$O4+$J$8*$P4+$K$8*$Q4+$L$8*$R4+$M$8*$S4 -> 11.44258963 | AA4: =$I$9*$O4+$J$9*$P4+$K$9*$Q4+$L$9*$R4+$M$9*$S4 -> 12.76418608 | AB4: =$I$10*$O4+$J$10*$P4+$K$10*$Q4+$L$10*$R4+$M$10*$S4 -> 5.54747122 | AC4: =$I$11*$O4+$J$11*$P4+$K$11*$Q4+$L$11*$R4+$M$11*$S4 -> 14.28672195 | AD4: =$I$12*$O4+$J$12*$P4+$K$12*$Q4+$L$12*$R4+$M$12*$S4 -> 7.46881641 | AE4: =$I$13*$O4+$J$13*$P4+$K$13*$Q4+$L$13*$R4+$M$13*$S4 -> 8.3924881 | AF4: =$I$14*$O4+$J$14*$P4+$K$14*$Q4+$L$14*$R4+$M$14*$S4 -> 13.77494278 | AG4: =$I$15*$O4+$J$15*$P4+$K$15*$Q4+$L$15*$R4+$M$15*$S4 -> 5.69732035 | AH4: =$I$16*$O4+$J$16*$P4+$K$16*$Q4+$L$16*$R4+$M$16*$S4 -> 4.00386112 | AI4: =$I$17*$O4+$J$17*$P4+$K$17*$Q4+$L$17*$R4+$M$17*$S4 -> 14.99890596 | AK4: 100 | AM4: O2 | AN4: 1000 | AO4: =V30 -> 6.14812311 | AP4: =AN4-AO4 -> 993.8518769 | AQ4: =ABS(AP4) -> 993.8518769 | AU4: O | AV4: 1 | AW4: A | AX4: 3 | AY4: 9.51072873 | AZ4: 9.94551675 | BA4: 10.38030477 | BB4: 10.81509279 | BC4: 11.22629415 | BD4: 11.62092753 | BE4: 12.01556091 | BF4: 12.41019429 | BG4: 12.80482767 | BH4: 13.19946105 | BI4: 13.59409443 | BJ4: 13.98872781 | BK4: 14.38336119 | BL4: 14.77799457 | BM4: 15.17262795 | BO4: =RANK(AY4,$AY4:$BM4, 1) -> 1 | BP4: 2 | BQ4: 3 | BR4: 4 | BS4: 5 | BT4: 6 | BU4: 7 | BV4: 8 | BW4: 9 | BX4: 10 | BY4: 11 | BZ4: 12 | CA4: 13 | CB4: 14 | CC4: 15 | CE4: 0.43478802 | CF4: 0.43478802 | CG4: 0.43478802 | CH4: 0.41120136 | CI4: 0.39463338 | CJ4: 0.39463338 | CK4: 0.39463338 | CL4: 0.39463338 | CM4: 0.39463338 | CN4: 0.39463338 | CO4: 0.39463338 | CP4: 0.39463338 | CQ4: 0.39463338 | CR4: 0.39463338 | CS4: 0.01703032599
A5: O3 | B5: 57 | C5: 57 | D5: 89 | E5: 37 | F5: 85 | H5: O3 | I5: 7 | J5: 7 | K5: 3 | L5: 10 | M5: 1 | O5: 0.07721187 | P5: 0.09975174 | Q5: 0.10348205 | R5: 0.06843713 | S5: 0.02211944 | U5: =$I$3*$O5+$J$3*$P5+$K$3*$Q5+$L$3*$R5+$M$3*$S5 -> 2.94101077 | V5: =$I$4*$O5+$J$4*$P5+$K$4*$Q5+$L$4*$R5+$M$4*$S5 -> 2.46273937 | W5: =$I$5*$O5+$J$5*$P5+$K$5*$Q5+$L$5*$R5+$M$5*$S5 -> 2.25568216 | X5: 2.76103849 | Y5: 3.48587511 | Z5: 3.00592839 | AA5: 4.15324843 | AB5: 2.19882738 | AC5: 3.7065225 | AD5: 2.09501632 | AE5: 2.95536045 | AF5: 3.86154404 | AG5: 1.91251856 | AH5: 1.78544173 | AI5: 4.45914554 | AK5: 100 | AM5: O3 | AN5: 1000 | AO5: =W30 -> 6.69666063 | AP5: 993.3033394 | AQ5: =ABS(AP5) -> 993.3033394 | AU5: O | AV5: 1 | AW5: A | AX5: 4 | AY5: 7.95426865 | AZ5: 8.15339346 | BA5: 8.35251827 | BB5: 8.55164308 | BC5: 8.75076789 | BD5: 8.9498927 | BE5: 9.14901751 | BF5: 9.34814232 | BG5: 9.54726713 | BH5: 9.74639194 | BI5: 9.94551675 | BJ5: 10.14464156 | BK5: 10.31148081 | BL5: 10.44602421 | BM5: 10.58056761 | BO5: 1 | BP5: 2 | BQ5: 3 | BR5: 4 | BS5: 5 | BT5: 6 | BU5: 7 | BV5: 8 | BW5: 9 | BX5: 10 | BY5: 11 | BZ5: 12 | CA5: 13 | CB5: 14 | CC5: 15 | CE5: 0.19912481 | CF5: 0.19912481 | CG5: 0.19912481 | CH5: 0.19912481 | CI5: 0.19912481 | CJ5: 0.19912481 | CK5: 0.19912481 | CL5: 0.19912481 | CM5: 0.19912481 | CN5: 0.19912481 | CO5: 0.19912481 | CP5: 0.16683925 | CQ5: 0.1345434 | CR5: 0.1345434 | CS5: 0.02405450113
A6: O4 | B6: 13 | C6: 88 | D6: 62 | E6: 44 | F6: 75 | H6: O4 | I6: 14 | J6: 4 | K6: 6 | L6: 9 | M6: 2 | O6: 0.09920991 | P6: 0.63917863 | Q6: 0.17624931 | R6: 0.23694727 | S6: 0.61001223 | U6: 17.96362254 | V6: =$I$4*$O6+$J$4*$P6+$K$4*$Q6+$L$4*$R6+$M$4*$S6 -> 14.84386361 | W6: 8.67695264 | X6: 8.35569901 | Y6: 17.95915757 | Z6: 12.78915588 | AA6: 15.68433074 | AB6: 6.90300475 | AC6: 17.91294131 | AD6: 14.4225038 | AE6: 10.21119812 | AF6: 21.95514435 | AG6: 8.53463712 | AH6: 12.0205455 | AI6: 19.54747017 | AK6: 100 | AM6: O4 | AN6: 1000 | AO6: =X30 -> 6.55256175 | AP6: 993.4474383 | AQ6: 993.4474383 | AU6: O | AV6: 1 | AW6: A | AX6: 5 | AY6: 6.20446407 | AZ6: 6.63090073 | BA6: 7.05733739 | BB6: 7.48377405 | BC6: 7.91021071 | BD6: 8.33664737 | BE6: 8.76308403 | BF6: 9.18952069 | BG6: 9.61595735 | BH6: 9.94551675 | BI6: 10.02373221 | BJ6: 10.10194767 | BK6: 10.18016313 | BL6: 10.25837859 | BM6: 10.33659405 | BO6: 1 | BP6: 2 | BQ6: 3 | BR6: 4 | BS6: 5 | BT6: 6 | BU6: 7 | BV6: 8 | BW6: 9 | BX6: 10 | BY6: 11 | BZ6: 12 | CA6: 13 | CB6: 14 | CC6: 15 | CE6: 0.42643666 | CF6: =BA6-AZ6 -> 0.42643666 | CG6: 0.42643666 | CH6: 0.42643666 | CI6: 0.42643666 | CJ6: 0.42643666 | CK6: 0.42643666 | CL6: 0.42643666 | CM6: 0.3295594 | CN6: 0.07821546 | CO6: 0.07821546 | CP6: 0.07821546 | CQ6: 0.07821546 | CR6: 0.07821546 | CS6: 0.1697002962
A7: O5 | B7: 76 | C7: 25 | D7: 28 | E7: 1 | F7: 33 | H7: O5 | I7: 3 | J7: 11 | K7: 9 | L7: 15 | M7: 9 | O7: 0.5611306 | P7: 0.01092305 | Q7: 0.39463338 | R7: 0.1345434 | S7: 0.42643666 | U7: 10.04239401 | V7: 15.17796966 | W7: 6.96014635 | X7: 12.3310848 | Y7: 11.21132671 | Z7: 7.93711288 | AA7: 16.48316984 | AB7: 11.29230313 | AC7: 12.72691295 | AD7: 9.82594382 | AE7: 13.70974979 | AF7: 16.31229156 | AG7: 9.64041353 | AH7: 11.87346855 | AI7: 16.64103395 | AK7: 100 | AM7: O5 | AN7: 1000 | AO7: =Y30 -> 11.21132671 | AP7: 988.7886733 | AQ7: 988.7886733 | AU7: O | AV7: 2 | AW7: A | AX7: 1 | AY7: 6.03230187 | AZ7: 6.04195364 | BA7: 6.05160541 | BB7: 6.06125718 | BC7: 6.07090895 | BD7: 6.08056072 | BE7: 6.09021249 | BF7: 6.09986426 | BG7: 6.10951603 | BH7: 6.1191678 | BI7: 6.12881957 | BJ7: 6.13847134 | BK7: 6.14812311 | BL7: 6.15777488 | BM7: 6.24948794 | BO7: 1 | BP7: 2 | BQ7: 3 | BR7: 4 | BS7: 5 | BT7: 6 | BU7: 7 | BV7: 8 | BW7: 9 | BX7: 10 | BY7: 11 | BZ7: 12 | CA7: 13 | CB7: 14 | CC7: 15 | CE7: 0.00965177 | CF7: 0.00965177 | CG7: 0.00965177 | CH7: 0.00965177 | CI7: 0.00965177 | CJ7: 0.00965177 | CK7: 0.00965177 | CL7: 0.00965177 | CM7: 0.00965177 | CN7: 0.00965177 | CO7: 0.00965177 | CP7: 0.00965177 | CQ7: 0.00965177 | CR7: 0.09171306 | CS7: 0.02193180228
A8: O6 | B8: 82 | C8: 33 | D8: 24 | E8: 33 | F8: 73 | H8: O6 | I8: 2 | J8: 10 | K8: 10 | L8: 11 | M8: 3 | AM8: O6 | AN8: 1000 | AO8: =Z30 -> 7.93711288 | AP8: 992.0628871 | AQ8: 992.0628871 | AU8: O | AV8: 2 | AW8: A | AX8: 2 | AY8: 5.19665535 | AZ8: 5.33587058 | BA8: 5.47508581 | BB8: 5.61430104 | BC8: 5.75351627 | BD8: 6.14812311 | BE8: 6.61316177 | BF8: 7.07820043 | BG8: 7.54323909 | BH8: 8.00827775 | BI8: 8.47331641 | BJ8: 8.93835507 | BK8: 9.40339373 | BL8: 9.86843239 | BM8: 10.33347105 | BO8: 1 | BP8: 2 | BQ8: 3 | BR8: 4 | BS8: 5 | BT8: 6 | BU8: 7 | BV8: 8 | BW8: 9 | BX8: 10 | BY8: 11 | BZ8: 12 | CA8: 13 | CB8: 14 | CC8: 15 | CE8: 0.13921523 | CF8: 0.13921523 | CG8: 0.13921523 | CH8: 0.13921523 | CI8: 0.39460684 | CJ8: 0.46503866 | CK8: 0.46503866 | CL8: 0.46503866 | CM8: 0.46503866 | CN8: 0.46503866 | CO8: 0.46503866 | CP8: 0.46503866 | CQ8: 0.46503866 | CR8: 0.46503866 | CS8: 0.1505911053
A9: O7 | B9: 12 | C9: 19 | D9: 11 | E9: 69 | F9: 55 | H9: O7 | I9: 15 | J9: 12 | K9: 13 | L9: 5 | M9: 5 | AM9: O7 | AN9: 1000 | AO9: =AA30 -> 12.76418608 | AP9: 987.2358139 | AQ9: 987.2358139 | AU9: O | AV9: 2 | AW9: A | AX9: 3 | AY9: 5.43998932 | AZ9: 5.59090338 | BA9: 5.74181744 | BB9: 6.14812311 | BC9: 6.58291113 | BD9: 7.01769915 | BE9: 7.45248717 | BF9: 7.88727519 | BG9: 8.32206321 | BH9: 8.75685123 | BI9: 9.19163925 | BJ9: 9.62642727 | BK9: 10.06121529 | BL9: 10.49600331 | BM9: 10.93079133 | BO9: 1 | BP9: 2 | BQ9: 3 | BR9: 4 | BS9: 5 | BT9: 6 | BU9: 7 | BV9: 8 | BW9: 9 | BX9: 10 | BY9: 11 | BZ9: 12 | CA9: 13 | CB9: 14 | CC9: 15 | CE9: 0.15091406 | CF9: 0.15091406 | CG9: 0.40630567 | CH9: 0.43478802 | CI9: 0.43478802 | CJ9: 0.43478802 | CK9: 0.43478802 | CL9: 0.43478802 | CM9: 0.43478802 | CN9: 0.43478802 | CO9: 0.43478802 | CP9: 0.43478802 | CQ9: 0.43478802 | CR9: 0.43478802 | CS9: 0.1025025004
A10: O8 | B10: 39 | C10: 97 | D10: 57 | E10: 56 | F10: 67 | H10: O8 | I10: 10 | J10: 1 | K10: 8 | L10: 6 | M10: 4 | AM10: O8 | AN10: 1000 | AO10: =AB30 -> 5.54747122 | AP10: 994.4525288 | AQ10: 994.4525288 | AU10: O | AV10: 2 | AW10: A | AX10: 4 | AY10: 5.9489983 | AZ10: 6.14812311 | BA10: 6.34724792 | BB10: 6.54637273 | BC10: 6.74549754 | BD10: 6.94462235 | BE10: 7.14374716 | BF10: 7.34287197 | BG10: 7.54199678 | BH10: 7.74112159 | BI10: 7.9402464 | BJ10: 8.13937121 | BK10: 8.33849602 | BL10: 8.53762083 | BM10: 8.73674564 | BO10: 1 | BP10: 2 | BQ10: 3 | BR10: 4 | BS10: 5 | BT10: 6 | BU10: 7 | BV10: 8 | BW10: 9 | BX10: 10 | BY10: 11 | BZ10: 12 | CA10: 13 | CB10: 14 | CC10: 15 | CE10: 0.19912481 | CF10: 0.19912481 | CG10: 0.19912481 | CH10: 0.19912481 | CI10: 0.19912481 | CJ10: 0.19912481 | CK10: 0.19912481 | CL10: 0.19912481 | CM10: 0.19912481 | CN10: 0.19912481 | CO10: 0.19912481 | CP10: 0.19912481 | CQ10: 0.19912481 | CR10: 0.19912481 | CS10: 5.42914515e-16
A11: O9 | B11: 90 | C11: 37 | D11: 1 | E11: 6 | F11: 29 | H11: O9 | I11: 1 | J11: 9 | K11: 15 | L11: 14 | M11: 10 | AM11: O9 | AN11: 1000 | AO11: =AC30 -> 12.72691295 | AP11: 987.273087 | AQ11: 987.273087 | AU11: O | AV11: 2 | AW11: A | AX11: 5 | AY11: 5.13132213 | AZ11: 5.20953759 | BA11: 5.28775305 | BB11: 5.36596851 | BC11: 5.44418397 | BD11: 5.52239943 | BE11: 5.60061489 | BF11: 5.67883035 | BG11: 5.75704581 | BH11: 5.83526127 | BI11: 5.91347673 | BJ11: 5.99169219 | BK11: 6.06990765 | BL11: 6.14812311 | BM11: 6.22633857 | BO11: 1 | BP11: 2 | BQ11: 3 | BR11: 4 | BS11: 5 | BT11: 6 | BU11: 7 | BV11: 8 | BW11: 9 | BX11: 10 | BY11: 11 | BZ11: 12 | CA11: 13 | CB11: 14 | CC11: 15 | CE11: 0.07821546 | CF11: 0.07821546 | CG11: 0.07821546 | CH11: 0.07821546 | CI11: 0.07821546 | CJ11: 0.07821546 | CK11: 0.07821546 | CL11: 0.07821546 | CM11: 0.07821546 | CN11: 0.07821546 | CO11: 0.07821546 | CP11: 0.07821546 | CQ11: 0.07821546 | CR11: 0.07821546 | CS11: 0
A12: O10 | B12: 74 | C12: 47 | D12: 82 | E12: 76 | F12: 24 | H12: O10 | I12: 4 | J12: 8 | K12: 5 | L12: 3 | M12: 12 | AM12: O10 | AN12: 1000 | AO12: =AD30 -> 7.46881641 | AP12: 992.5311836 | AQ12: 992.5311836 | AU12: O | AV12: 3 | AW12: A | AX12: 1 | AY12: 3.59336275 | AZ12: 4.15449335 | BA12: 4.71562395 | BB12: 5.27675455 | BC12: 5.83788515 | BD12: 6.39901575 | BE12: 6.69666063 | BF12: 6.7063124 | BG12: 6.71596417 | BH12: 6.72561594 | BI12: 6.73526771 | BJ12: 6.74491948 | BK12: 6.75457125 | BL12: 6.76422302 | BM12: 6.77387479 | BO12: 1 | BP12: 2 | BQ12: 3 | BR12: 4 | BS12: 5 | BT12: 6 | BU12: 7 | BV12: 8 | BW12: 9 | BX12: 10 | BY12: 11 | BZ12: 12 | CA12: 13 | CB12: 14 | CC12: 15 | CE12: 0.5611306 | CF12: 0.5611306 | CG12: 0.5611306 | CH12: 0.5611306 | CI12: 0.5611306 | CJ12: 0.29764488 | CK12: 0.00965177 | CL12: 0.00965177 | CM12: 0.00965177 | CN12: 0.00965177 | CO12: 0.00965177 | CP12: 0.00965177 | CQ12: 0.00965177 | CR12: 0.00965177 | CS12: 0.2690622694
A13: O11 | B13: 43 | C13: 97 | D13: 15 | E13: 28 | F13: 46 | H13: O11 | I13: 9 | J13: 1 | K13: 11 | L13: 13 | M13: 6 | AM13: O11 | AN13: 1000 | AO13: =AE30 -> 8.3924881 | AP13: 991.6075119 | AQ13: 991.6075119 | AU13: O | AV13: 3 | AW13: A | AX13: 2 | AY13: 3.90642867 | AZ13: 4.37146733 | BA13: 4.83650599 | BB13: 5.30154465 | BC13: 5.76658331 | BD13: 6.23162197 | BE13: 6.69666063 | BF13: 6.9710694 | BG13: 6.98199245 | BH13: 6.9929155 | BI13: 7.00383855 | BJ13: 7.0147616 | BK13: 7.02568465 | BL13: 7.0366077 | BM13: 7.04753075 | BO13: 1 | BP13: 2 | BQ13: 3 | BR13: 4 | BS13: 5 | BT13: 6 | BU13: 7 | BV13: 8 | BW13: 9 | BX13: 10 | BY13: 11 | BZ13: 12 | CA13: 13 | CB13: 14 | CC13: 15 | CE13: 0.46503866 | CF13: 0.46503866 | CG13: 0.46503866 | CH13: 0.46503866 | CI13: 0.46503866 | CJ13: 0.46503866 | CK13: 0.27440877 | CL13: 0.01092305 | CM13: 0.01092305 | CN13: 0.01092305 | CO13: 0.01092305 | CP13: 0.01092305 | CQ13: 0.01092305 | CR13: 0.01092305 | CS13: 0.2268427963
A14: O12 | B14: 49 | C14: 9 | D14: 13 | E14: 72 | F14: 7 | H14: O12 | I14: 8 | J14: 14 | K14: 12 | L14: 4 | M14: 15 | AM14: O12 | AN14: 1000 | AO14: =AF30 -> 13.77494278 | AP14: 986.2250572 | AQ14: 986.2250572 | AU14: O | AV14: 3 | AW14: A | AX14: 3 | AY14: 5.82708459 | AZ14: 6.26187261 | BA14: 6.69666063 | BB14: 7.13144865 | BC14: 7.56623667 | BD14: 8.00102469 | BE14: 8.43581271 | BF14: 8.87060073 | BG14: 9.30538875 | BH14: 9.72258001 | BI14: 10.08694712 | BJ14: 10.26319643 | BK14: 10.43944574 | BL14: 10.61569505 | BM14: 10.79194436 | BO14: 1 | BP14: 2 | BQ14: 3 | BR14: 4 | BS14: 5 | BT14: 6 | BU14: 7 | BV14: 8 | BW14: 9 | BX14: 10 | BY14: 11 | BZ14: 12 | CA14: 13 | CB14: 14 | CC14: 15 | CE14: 0.43478802 | CF14: 0.43478802 | CG14: 0.43478802 | CH14: 0.43478802 | CI14: 0.43478802 | CJ14: 0.43478802 | CK14: 0.43478802 | CL14: 0.43478802 | CM14: 0.41719126 | CN14: 0.36436711 | CO14: 0.17624931 | CP14: 0.17624931 | CQ14: 0.17624931 | CR14: 0.17624931 | CS14: 0.1185456323
A15: O13 | B15: 72 | C15: 97 | D15: 60 | E15: 49 | F15: 38 | H15: O13 | I15: 5 | J15: 1 | K15: 7 | L15: 8 | M15: 7 | AM15: O13 | AN15: 1000 | AO15: =AG30 -> 5.69732035 | AP15: 994.3026796 | AQ15: 994.3026796 | AU15: O | AV15: 3 | AW15: A | AX15: 4 | AY15: 4.90453734 | AZ15: 5.10366215 | BA15: 5.30278696 | BB15: 5.50191177 | BC15: 5.70103658 | BD15: 5.90016139 | BE15: 6.0992862 | BF15: 6.29841101 | BG15: 6.49753582 | BH15: 6.69666063 | BI15: 6.89578544 | BJ15: 7.09491025 | BK15: 7.29403506 | BL15: 7.49315987 | BM15: 7.63286335 | BO15: 1 | BP15: 2 | BQ15: 3 | BR15: 4 | BS15: 5 | BT15: 6 | BU15: 7 | BV15: 8 | BW15: 9 | BX15: 10 | BY15: 11 | BZ15: 12 | CA15: 13 | CB15: 14 | CC15: 15 | CE15: 0.19912481 | CF15: 0.19912481 | CG15: 0.19912481 | CH15: 0.19912481 | CI15: 0.19912481 | CJ15: 0.19912481 | CK15: 0.19912481 | CL15: 0.19912481 | CM15: 0.19912481 | CN15: 0.19912481 | CO15: 0.19912481 | CP15: 0.19912481 | CQ15: 0.19912481 | CR15: 0.13970348 | CS15: 0.01588101845
A16: O14 | B16: 38 | C16: 80 | D16: 96 | E16: 89 | F16: 24 | H16: O14 | I16: 11 | J16: 5 | K16: 1 | L16: 1 | M16: 12 | AM16: O14 | AN16: 1000 | AO16: =AH30 -> 4.52515874 | AP16: 995.4748413 | AQ16: 995.4748413 | AU16: O | AV16: 3 | AW16: A | AX16: 5 | AY16: 6.69666063 | AZ16: 6.77487609 | BA16: 6.85309155 | BB16: 6.93130701 | BC16: 7.00952247 | BD16: 7.08773793 | BE16: 7.16595339 | BF16: 7.24416885 | BG16: 7.32238431 | BH16: 7.40059977 | BI16: 7.47881523 | BJ16: 7.55703069 | BK16: 7.63524615 | BL16: 7.71346161 | BM16: 7.79167707 | BO16: 1 | BP16: 2 | BQ16: 3 | BR16: 4 | BS16: 5 | BT16: 6 | BU16: 7 | BV16: 8 | BW16: 9 | BX16: 10 | BY16: 11 | BZ16: 12 | CA16: 13 | CB16: 14 | CC16: 15 | CE16: 0.07821546 | CF16: 0.07821546 | CG16: 0.07821546 | CH16: 0.07821546 | CI16: 0.07821546 | CJ16: 0.07821546 | CK16: 0.07821546 | CL16: 0.07821546 | CM16: 0.07821546 | CN16: 0.07821546 | CO16: 0.07821546 | CP16: 0.07821546 | CQ16: 0.07821546 | CR16: 0.07821546 | CS16: 0
A17: O15 | B17: 34 | C17: 7 | D17: 4 | E17: 56 | F17: 34 | H17: O15 | I17: 12 | J17: 15 | K17: 14 | L17: 6 | M17: 8 | AM17: O15 | AN17: 1000 | AO17: =AI30 -> 14.99890596 | AP17: 985.001094 | AQ17: 985.001094 | AU17: O | AV17: 4 | AW17: A | AX17: 1 | AY17: 5.036387 | AZ17: 5.5975176 | BA17: 6.1586482 | BB17: 6.45604405 | BC17: 6.46569582 | BD17: 6.47534759 | BE17: 6.48499936 | BF17: 6.49465113 | BG17: 6.5043029 | BH17: 6.51395467 | BI17: 6.52360644 | BJ17: 6.53325821 | BK17: 6.54290998 | BL17: 6.55256175 | BM17: 6.56221352 | BO17: 1 | BP17: 2 | BQ17: 3 | BR17: 4 | BS17: 5 | BT17: 6 | BU17: 7 | BV17: 8 | BW17: 9 | BX17: 10 | BY17: 11 | BZ17: 12 | CA17: 13 | CB17: 14 | CC17: 15 | CE17: 0.5611306 | CF17: 0.5611306 | CG17: 0.29739585 | CH17: 0.00965177 | CI17: 0.00965177 | CJ17: 0.00965177 | CK17: 0.00965177 | CL17: 0.00965177 | CM17: 0.00965177 | CN17: 0.00965177 | CO17: 0.00965177 | CP17: 0.00965177 | CQ17: 0.00965177 | CR17: 0.00965177 | CS17: 0.2062313734
AN18: szum | AO18: szum | AP18: hiba | AU18: O | AV18: 4 | AW18: A | AX18: 2 | AY18: 5.23628614 | AZ18: 5.62248443 | BA18: 6.08752309 | BB18: 6.55256175 | BC18: 7.01760041 | BD18: 7.48263907 | BE18: 7.94767773 | BF18: 8.41271639 | BG18: 8.87775505 | BH18: 9.34279371 | BI18: 9.80783237 | BJ18: 10.27287103 | BK18: 10.73790969 | BL18: 11.20294835 | BM18: 11.66798701 | BO18: 1 | BP18: 2 | BQ18: 3 | BR18: 4 | BS18: 5 | BT18: 6 | BU18: 7 | BV18: 8 | BW18: 9 | BX18: 10 | BY18: 11 | BZ18: 12 | CA18: 13 | CB18: 14 | CC18: 15 | CE18: 0.38619829 | CF18: 0.46503866 | CG18: 0.46503866 | CH18: 0.46503866 | CI18: 0.46503866 | CJ18: 0.46503866 | CK18: 0.46503866 | CL18: 0.46503866 | CM18: 0.46503866 | CN18: 0.46503866 | CO18: 0.46503866 | CP18: 0.46503866 | CQ18: 0.46503866 | CR18: 0.46503866 | CS18: 0.0210709752
U19: Activation - linear | AK19: Szórás | AN19: =SUM(AN3:AN17) -> 15000 | AO19: =SUM(AO3:AO17) -> 134.3875044 | AP19: =SUMSQ(AP3:AP17) -> 14732587.72 | AQ19: =SUM(AQ3:AQ17)/15 -> 991.040833 | AU19: O | AV19: 4 | AW19: A | AX19: 3 | AY19: 4.89936153 | AZ19: 5.05027559 | BA19: 5.24819769 | BB19: 5.68298571 | BC19: 6.11777373 | BD19: 6.55256175 | BE19: 6.98734977 | BF19: 7.42213779 | BG19: 7.85692581 | BH19: 8.29171383 | BI19: 8.72650185 | BJ19: 9.16128987 | BK19: 9.58944418 | BL19: 9.76569349 | BM19: 9.9419428 | BO19: 1 | BP19: 2 | BQ19: 3 | BR19: 4 | BS19: 5 | BT19: 6 | BU19: 7 | BV19: 8 | BW19: 9 | BX19: 10 | BY19: 11 | BZ19: 12 | CA19: 13 | CB19: 14 | CC19: 15 | CE19: 0.15091406 | CF19: 0.1979221 | CG19: 0.43478802 | CH19: 0.43478802 | CI19: 0.43478802 | CJ19: 0.43478802 | CK19: 0.43478802 | CL19: 0.43478802 | CM19: 0.43478802 | CN19: 0.43478802 | CO19: 0.43478802 | CP19: 0.42815431 | CQ19: 0.17624931 | CR19: 0.17624931 | CS19: 0.1216864108
P20: -1 | T20: A | U20: =IF(U3>0,U3,U3*$P$20) -> 6.2327644 | V20: =IF(V3>0,V3,V3*$P$20) -> 5.8927315 | W20: 4.39990195 | X20: 5.65393183 | Y20: 6.98359906 | Z20: 5.40091387 | AA20: 7.75385879 | AB20: 4.60574401 | AC20: 7.22418237 | AD20: 4.61667127 | AE20: 6.2555413 | AF20: 7.77044778 | AG20: 4.27094175 | AH20: 4.52515874 | AI20: 8.33585771 | AK20: =STDEV(U20:AI20) -> 1.371254363 | AP20: hiba2 | AU20: O | AV20: 4 | AW20: A | AX20: 4 | AY20: 4.95956327 | AZ20: 5.15868808 | BA20: 5.35781289 | BB20: 5.5569377 | BC20: 5.75606251 | BD20: 5.95518732 | BE20: 6.15431213 | BF20: 6.35343694 | BG20: 6.55256175 | BH20: 6.75168656 | BI20: 6.95081137 | BJ20: 7.14993618 | BK20: 7.34906099 | BL20: 7.5481858 | BM20: 7.74731061 | BO20: 1 | BP20: 2 | BQ20: 3 | BR20: 4 | BS20: 5 | BT20: 6 | BU20: 7 | BV20: 8 | BW20: 9 | BX20: 10 | BY20: 11 | BZ20: 12 | CA20: 13 | CB20: 14 | CC20: 15 | CE20: 0.19912481 | CF20: 0.19912481 | CG20: 0.19912481 | CH20: 0.19912481 | CI20: 0.19912481 | CJ20: 0.19912481 | CK20: 0.19912481 | CL20: 0.19912481 | CM20: 0.19912481 | CN20: 0.19912481 | CO20: 0.19912481 | CP20: 0.19912481 | CQ20: 0.19912481 | CR20: 0.19912481 | CS20: 5.142133473e-16
T21: A | U21: =IF(U4>0,U4,U4*$P$20) -> 9.94551675 | V21: 6.14812311 | W21: 6.69666063 | X21: 6.55256175 | Y21: 12.74828404 | Z21: 11.44258963 | AA21: 12.76418608 | AB21: 5.54747122 | AC21: 14.28672195 | AD21: 7.46881641 | AE21: 8.3924881 | AF21: 13.77494278 | AG21: 5.69732035 | AH21: 4.00386112 | AI21: 14.99890596 | AK21: =STDEV(U21:AI21) -> 3.681546003 | AP21: =ABS(AN19-AO19) -> 14865.6125 | AU21: O | AV21: 4 | AW21: A | AX21: 5 | AY21: 6.47434629 | AZ21: 6.55256175 | BA21: 6.63077721 | BB21: 6.70899267 | BC21: 6.78720813 | BD21: 6.86542359 | BE21: 6.94363905 | BF21: 7.02185451 | BG21: 7.10006997 | BH21: 7.17828543 | BI21: 7.25650089 | BJ21: 7.33471635 | BK21: 7.41293181 | BL21: 7.49114727 | BM21: 7.56936273 | BO21: 1 | BP21: 2 | BQ21: 3 | BR21: 4 | BS21: 5 | BT21: 6 | BU21: 7 | BV21: 8 | BW21: 9 | BX21: 10 | BY21: 11 | BZ21: 12 | CA21: 13 | CB21: 14 | CC21: 15 | CE21: 0.07821546 | CF21: 0.07821546 | CG21: 0.07821546 | CH21: 0.07821546 | CI21: 0.07821546 | CJ21: 0.07821546 | CK21: 0.07821546 | CL21: 0.07821546 | CM21: 0.07821546 | CN21: 0.07821546 | CO21: 0.07821546 | CP21: 0.07821546 | CQ21: 0.07821546 | CR21: 0.07821546 | CS21: 0
T22: B | U22: 2.94101077 | V22: 2.46273937 | W22: 2.25568216 | X22: 2.76103849 | Y22: 3.48587511 | Z22: 3.00592839 | AA22: 4.15324843 | AB22: 2.19882738 | AC22: 3.7065225 | AD22: 2.09501632 | AE22: 2.95536045 | AF22: 3.86154404 | AG22: 1.91251856 | AH22: 1.78544173 | AI22: 4.45914554 | AK22: 0.8408775369 | AP22: hiba3 | AU22: O | AV22: 5 | AW22: A | AX22: 1 | AY22: 10.08906551 | AZ22: 10.65019611 | BA22: 11.21132671 | BB22: 11.77245731 | BC22: 12.33358791 | BD22: 12.77723935 | BE22: 12.78689112 | BF22: 12.79654289 | BG22: 12.80619466 | BH22: 12.81584643 | BI22: 12.8254982 | BJ22: 12.83514997 | BK22: 12.84480174 | BL22: 12.85445351 | BM22: 12.86410528 | BO22: 1 | BP22: 2 | BQ22: 3 | BR22: 4 | BS22: 5 | BT22: 6 | BU22: 7 | BV22: 8 | BW22: 9 | BX22: 10 | BY22: 11 | BZ22: 12 | CA22: 13 | CB22: 14 | CC22: 15 | CE22: 0.5611306 | CF22: 0.5611306 | CG22: 0.5611306 | CH22: 0.5611306 | CI22: 0.44365144 | CJ22: 0.00965177 | CK22: 0.00965177 | CL22: 0.00965177 | CM22: 0.00965177 | CN22: 0.00965177 | CO22: 0.00965177 | CP22: 0.00965177 | CQ22: 0.00965177 | CR22: 0.00965177 | CS22: 0.26414955
T23: B | U23: 17.96362254 | V23: 14.84386361 | W23: 8.67695264 | X23: 8.35569901 | Y23: 17.95915757 | Z23: 12.78915588 | AA23: 15.68433074 | AB23: 6.90300475 | AC23: 17.91294131 | AD23: 14.4225038 | AE23: 10.21119812 | AF23: 21.95514435 | AG23: 8.53463712 | AH23: 12.0205455 | AI23: 19.54747017 | AK23: 4.662342181 | AP23: =AP19*AP21 -> 2.190089401e+11 | AU23: O | AV23: 5 | AW23: A | AX23: 2 | AY23: 8.09789744 | AZ23: 8.5629361 | BA23: 9.02797476 | BB23: 9.49301342 | BC23: 9.95805208 | BD23: 10.42309074 | BE23: 10.8881294 | BF23: 11.17855756 | BG23: 11.18948061 | BH23: 11.20040366 | BI23: 11.21132671 | BJ23: 11.22224976 | BK23: 11.23317281 | BL23: 11.24409586 | BM23: 11.25501891 | BO23: 1 | BP23: 2 | BQ23: 3 | BR23: 4 | BS23: 5 | BT23: 6 | BU23: 7 | BV23: 8 | BW23: 9 | BX23: 10 | BY23: 11 | BZ23: 12 | CA23: 13 | CB23: 14 | CC23: 15 | CE23: 0.46503866 | CF23: 0.46503866 | CG23: 0.46503866 | CH23: 0.46503866 | CI23: 0.46503866 | CJ23: 0.46503866 | CK23: 0.29042816 | CL23: 0.01092305 | CM23: 0.01092305 | CN23: 0.01092305 | CO23: 0.01092305 | CP23: 0.01092305 | CQ23: 0.01092305 | CR23: 0.01092305 | CS23: 0.2271548362
T24: C | U24: 10.04239401 | V24: 15.17796966 | W24: 6.96014635 | X24: 12.3310848 | Y24: 11.21132671 | Z24: 7.93711288 | AA24: 16.48316984 | AB24: 11.29230313 | AC24: 12.72691295 | AD24: 9.82594382 | AE24: 13.70974979 | AF24: 16.31229156 | AG24: 9.64041353 | AH24: 11.87346855 | AI24: 16.64103395 | AK24: 3.056076663 | AN24: szórás | AO24: szórás | AU24: O | AV24: 5 | AW24: A | AX24: 3 | AY24: 8.05425967 | AZ24: 8.44889305 | BA24: 8.84352643 | BB24: 9.23815981 | BC24: 9.63279319 | BD24: 10.02742657 | BE24: 10.42205995 | BF24: 10.81669333 | BG24: 11.21132671 | BH24: 11.60596009 | BI24: 12.00059347 | BJ24: 12.39522685 | BK24: 12.78986023 | BL24: 13.18449361 | BM24: 13.57912699 | BO24: 1 | BP24: 2 | BQ24: 3 | BR24: 4 | BS24: 5 | BT24: 6 | BU24: 7 | BV24: 8 | BW24: 9 | BX24: 10 | BY24: 11 | BZ24: 12 | CA24: 13 | CB24: 14 | CC24: 15 | CE24: 0.39463338 | CF24: 0.39463338 | CG24: 0.39463338 | CH24: 0.39463338 | CI24: 0.39463338 | CJ24: 0.39463338 | CK24: 0.39463338 | CL24: 0.39463338 | CM24: 0.39463338 | CN24: 0.39463338 | CO24: 0.39463338 | CP24: 0.39463338 | CQ24: 0.39463338 | CR24: 0.39463338 | CS24: 4.750365566e-16
AN25: =STDEV(AN3:AN17) -> 0 | AO25: =STDEV(AO3:AO17) -> 3.367158499 | AU25: O | AV25: 5 | AW25: A | AX25: 4 | AY25: 9.32771911 | AZ25: 9.46226251 | BA25: 9.59680591 | BB25: 9.73134931 | BC25: 9.86589271 | BD25: 10.00043611 | BE25: 10.13497951 | BF25: 10.26952291 | BG25: 10.40406631 | BH25: 10.53860971 | BI25: 10.67315311 | BJ25: 10.80769651 | BK25: 10.94223991 | BL25: 11.07678331 | BM25: 11.21132671 | BO25: 1 | BP25: 2 | BQ25: 3 | BR25: 4 | BS25: 5 | BT25: 6 | BU25: 7 | BV25: 8 | BW25: 9 | BX25: 10 | BY25: 11 | BZ25: 12 | CA25: 13 | CB25: 14 | CC25: 15 | CE25: 0.1345434 | CF25: 0.1345434 | CG25: 0.1345434 | CH25: 0.1345434 | CI25: 0.1345434 | CJ25: 0.1345434 | CK25: 0.1345434 | CL25: 0.1345434 | CM25: 0.1345434 | CN25: 0.1345434 | CO25: 0.1345434 | CP25: 0.1345434 | CQ25: 0.1345434 | CR25: 0.1345434 | CS25: 1.296880799e-15
T26: A | U26: =MAX(U20:U21) -> 9.94551675 | V26: =MAX(V20:V21) -> 6.14812311 | W26: 6.69666063 | X26: 6.55256175 | Y26: 12.74828404 | Z26: 11.44258963 | AA26: 12.76418608 | AB26: 5.54747122 | AC26: 14.28672195 | AD26: 7.46881641 | AE26: 8.3924881 | AF26: 13.77494278 | AG26: 5.69732035 | AH26: 4.52515874 | AI26: 14.99890596 | AU26: O | AV26: 5 | AW26: A | AX26: 5 | AY26: 7.79983343 | AZ26: 8.22627009 | BA26: 8.65270675 | BB26: 9.07914341 | BC26: 9.50558007 | BD26: 9.93201673 | BE26: 10.35845339 | BF26: 10.78489005 | BG26: 11.21132671 | BH26: 11.63776337 | BI26: 12.06420003 | BJ26: 12.49063669 | BK26: 12.91707335 | BL26: 13.13936134 | BM26: 13.2175768 | BO26: 1 | BP26: 2 | BQ26: 3 | BR26: 4 | BS26: 5 | BT26: 6 | BU26: 7 | BV26: 8 | BW26: 9 | BX26: 10 | BY26: 11 | BZ26: 12 | CA26: 13 | CB26: 14 | CC26: 15 | CE26: 0.42643666 | CF26: 0.42643666 | CG26: 0.42643666 | CH26: 0.42643666 | CI26: 0.42643666 | CJ26: 0.42643666 | CK26: 0.42643666 | CL26: 0.42643666 | CM26: 0.42643666 | CN26: 0.42643666 | CO26: 0.42643666 | CP26: 0.42643666 | CQ26: 0.22228799 | CR26: 0.07821546 | CS26: 0.1041969051
T27: B | U27: =MAX(U22:U23) -> 17.96362254 | V27: =MAX(V22:V23) -> 14.84386361 | W27: 8.67695264 | X27: 8.35569901 | Y27: 17.95915757 | Z27: 12.78915588 | AA27: 15.68433074 | AB27: 6.90300475 | AC27: 17.91294131 | AD27: 14.4225038 | AE27: 10.21119812 | AF27: 21.95514435 | AG27: 8.53463712 | AH27: 12.0205455 | AI27: 19.54747017 | AU27: O | AV27: 6 | AW27: A | AX27: 1 | AY27: 7.37598228 | AZ27: 7.93711288 | BA27: 8.49824348 | BB27: 9.05937408 | BC27: 9.62050468 | BD27: 10.18163528 | BE27: 10.74276588 | BF27: 11.30389648 | BG27: 11.51015202 | BH27: 11.51980379 | BI27: 11.52945556 | BJ27: 11.53910733 | BK27: 11.5487591 | BL27: 11.55841087 | BM27: 11.56806264 | BO27: 1 | BP27: 2 | BQ27: 3 | BR27: 4 | BS27: 5 | BT27: 6 | BU27: 7 | BV27: 8 | BW27: 9 | BX27: 10 | BY27: 11 | BZ27: 12 | CA27: 13 | CB27: 14 | CC27: 15 | CE27: 0.5611306 | CF27: 0.5611306 | CG27: 0.5611306 | CH27: 0.5611306 | CI27: 0.5611306 | CJ27: 0.5611306 | CK27: 0.5611306 | CL27: 0.20625554 | CM27: 0.00965177 | CN27: 0.00965177 | CO27: 0.00965177 | CP27: 0.00965177 | CQ27: 0.00965177 | CR27: 0.00965177 | CS27: 0.2762273929
T28: C | U28: =MAX(U24) -> 10.04239401 | V28: =MAX(V24) -> 15.17796966 | W28: 6.96014635 | X28: 12.3310848 | Y28: 11.21132671 | Z28: 7.93711288 | AA28: 16.48316984 | AB28: 11.29230313 | AC28: 12.72691295 | AD28: 9.82594382 | AE28: 13.70974979 | AF28: 16.31229156 | AG28: 9.64041353 | AH28: 11.87346855 | AI28: 16.64103395 | AU28: O | AV28: 6 | AW28: A | AX28: 2 | AY28: 7.03654821 | AZ28: 7.67572684 | BA28: 7.86065153 | BB28: 7.87157458 | BC28: 7.88249763 | BD28: 7.89342068 | BE28: 7.90434373 | BF28: 7.91526678 | BG28: 7.92618983 | BH28: 7.93711288 | BI28: 7.94803593 | BJ28: 7.95895898 | BK28: 7.96988203 | BL28: 7.98080508 | BM28: 7.99172813 | BO28: 1 | BP28: 2 | BQ28: 3 | BR28: 4 | BS28: 5 | BT28: 6 | BU28: 7 | BV28: 8 | BW28: 9 | BX28: 10 | BY28: 11 | BZ28: 12 | CA28: 13 | CB28: 14 | CC28: 15 | CE28: 0.63917863 | CF28: 0.18492469 | CG28: 0.01092305 | CH28: 0.01092305 | CI28: 0.01092305 | CJ28: 0.01092305 | CK28: 0.01092305 | CL28: 0.01092305 | CM28: 0.01092305 | CN28: 0.01092305 | CO28: 0.01092305 | CP28: 0.01092305 | CQ28: 0.01092305 | CR28: 0.01092305 | CS28: 0.1707470074
AU29: O | AV29: 6 | AW29: A | AX29: 3 | AY29: 4.38541246 | AZ29: 4.78004584 | BA29: 5.17467922 | BB29: 5.5693126 | BC29: 5.96394598 | BD29: 6.35857936 | BE29: 6.75321274 | BF29: 7.14784612 | BG29: 7.5424795 | BH29: 7.93711288 | BI29: 8.33174626 | BJ29: 8.72637964 | BK29: 9.12101302 | BL29: 9.5156464 | BM29: 9.91027978 | BO29: 1 | BP29: 2 | BQ29: 3 | BR29: 4 | BS29: 5 | BT29: 6 | BU29: 7 | BV29: 8 | BW29: 9 | BX29: 10 | BY29: 11 | BZ29: 12 | CA29: 13 | CB29: 14 | CC29: 15 | CE29: 0.39463338 | CF29: 0.39463338 | CG29: 0.39463338 | CH29: 0.39463338 | CI29: 0.39463338 | CJ29: 0.39463338 | CK29: 0.39463338 | CL29: 0.39463338 | CM29: 0.39463338 | CN29: 0.39463338 | CO29: 0.39463338 | CP29: 0.39463338 | CQ29: 0.39463338 | CR29: 0.39463338 | CS29: 6.215876258e-16
T30: min | U30: =MIN(U26:U28) -> 9.94551675 | V30: =MIN(V26:V28) -> 6.14812311 | W30: 6.69666063 | X30: 6.55256175 | Y30: 11.21132671 | Z30: 7.93711288 | AA30: 12.76418608 | AB30: 5.54747122 | AC30: 12.72691295 | AD30: 7.46881641 | AE30: 8.3924881 | AF30: 13.77494278 | AG30: 5.69732035 | AH30: 4.52515874 | AI30: 14.99890596 | AU30: O | AV30: 6 | AW30: A | AX30: 4 | AY30: 6.59167888 | AZ30: 6.72622228 | BA30: 6.86076568 | BB30: 6.99530908 | BC30: 7.12985248 | BD30: 7.26439588 | BE30: 7.39893928 | BF30: 7.53348268 | BG30: 7.66802608 | BH30: 7.80256948 | BI30: 7.93711288 | BJ30: 8.07165628 | BK30: 8.20619968 | BL30: 8.34074308 | BM30: 8.47528648 | BO30: 1 | BP30: 2 | BQ30: 3 | BR30: 4 | BS30: 5 | BT30: 6 | BU30: 7 | BV30: 8 | BW30: 9 | BX30: 10 | BY30: 11 | BZ30: 12 | CA30: 13 | CB30: 14 | CC30: 15 | CE30: 0.1345434 | CF30: 0.1345434 | CG30: 0.1345434 | CH30: 0.1345434 | CI30: 0.1345434 | CJ30: 0.1345434 | CK30: 0.1345434 | CL30: 0.1345434 | CM30: 0.1345434 | CN30: 0.1345434 | CO30: 0.1345434 | CP30: 0.1345434 | CQ30: 0.1345434 | CR30: 0.1345434 | CS30: 3.48372238e-16
AU31: O | AV31: 6 | AW31: A | AX31: 5 | AY31: 7.08423956 | AZ31: 7.51067622 | BA31: 7.93711288 | BB31: 8.36354954 | BC31: 8.7899862 | BD31: 9.21642286 | BE31: 9.64285952 | BF31: 10.06929618 | BG31: 10.49573284 | BH31: 10.9221695 | BI31: 11.34860616 | BJ31: 11.77504282 | BK31: 12.20147948 | BL31: 12.30295969 | BM31: 12.38117515 | BO31: 1 | BP31: 2 | BQ31: 3 | BR31: 4 | BS31: 5 | BT31: 6 | BU31: 7 | BV31: 8 | BW31: 9 | BX31: 10 | BY31: 11 | BZ31: 12 | CA31: 13 | CB31: 14 | CC31: 15 | CE31: 0.42643666 | CF31: 0.42643666 | CG31: 0.42643666 | CH31: 0.42643666 | CI31: 0.42643666 | CJ31: 0.42643666 | CK31: 0.42643666 | CL31: 0.42643666 | CM31: 0.42643666 | CN31: 0.42643666 | CO31: 0.42643666 | CP31: 0.42643666 | CQ31: 0.10148021 | CR31: 0.07821546 | CS31: 0.1223128225
AU32: O | AV32: 7 | AW32: A | AX32: 1 | AY32: 8.62734144 | AZ32: 9.18847204 | BA32: 9.74960264 | BB32: 10.31073324 | BC32: 10.87186384 | BD32: 11.43299444 | BE32: 11.99412504 | BF32: 12.55525564 | BG32: 12.70627546 | BH32: 12.71592723 | BI32: 12.725579 | BJ32: 12.73523077 | BK32: 12.74488254 | BL32: 12.75453431 | BM32: 12.76418608 | BO32: 1 | BP32: 2 | BQ32: 3 | BR32: 4 | BS32: 5 | BT32: 6 | BU32: 7 | BV32: 8 | BW32: 9 | BX32: 10 | BY32: 11 | BZ32: 12 | CA32: 13 | CB32: 14 | CC32: 15 | CE32: 0.5611306 | CF32: 0.5611306 | CG32: 0.5611306 | CH32: 0.5611306 | CI32: 0.5611306 | CJ32: 0.5611306 | CK32: 0.5611306 | CL32: 0.15101982 | CM32: 0.00965177 | CN32: 0.00965177 | CO32: 0.00965177 | CP32: 0.00965177 | CQ32: 0.00965177 | CR32: 0.00965177 | CS32: 0.2780491232
AU33: O | AV33: 7 | AW33: A | AX33: 2 | AY33: 7.64876082 | AZ33: 8.11379948 | BA33: 8.57883814 | BB33: 9.0438768 | BC33: 9.50891546 | BD33: 9.97395412 | BE33: 10.43899278 | BF33: 10.90403144 | BG33: 11.3690701 | BH33: 11.83410876 | BI33: 12.29914742 | BJ33: 12.76418608 | BK33: 13.22922474 | BL33: 13.6942634 | BM33: 14.15930206 | BO33: 1 | BP33: 2 | BQ33: 3 | BR33: 4 | BS33: 5 | BT33: 6 | BU33: 7 | BV33: 8 | BW33: 9 | BX33: 10 | BY33: 11 | BZ33: 12 | CA33: 13 | CB33: 14 | CC33: 15 | CE33: 0.46503866 | CF33: 0.46503866 | CG33: 0.46503866 | CH33: 0.46503866 | CI33: 0.46503866 | CJ33: 0.46503866 | CK33: 0.46503866 | CL33: 0.46503866 | CM33: 0.46503866 | CN33: 0.46503866 | CO33: 0.46503866 | CP33: 0.46503866 | CQ33: 0.46503866 | CR33: 0.46503866 | CS33: 8.328095926e-16
AU34: O | AV34: 7 | AW34: A | AX34: 3 | AY34: 7.54672984 | AZ34: 7.98151786 | BA34: 8.41630588 | BB34: 8.8510939 | BC34: 9.28588192 | BD34: 9.72066994 | BE34: 10.15545796 | BF34: 10.59024598 | BG34: 11.025034 | BH34: 11.45982202 | BI34: 11.89461004 | BJ34: 12.32939806 | BK34: 12.76418608 | BL34: 13.1989741 | BM34: 13.63376212 | BO34: =RANK(AY34,$AY34:$BM34, 1) -> 1 | BP34: 2 | BQ34: 3 | BR34: 4 | BS34: 5 | BT34: 6 | BU34: 7 | BV34: 8 | BW34: 9 | BX34: 10 | BY34: 11 | BZ34: 12 | CA34: 13 | CB34: 14 | CC34: 15 | CE34: 0.43478802 | CF34: 0.43478802 | CG34: 0.43478802 | CH34: 0.43478802 | CI34: 0.43478802 | CJ34: 0.43478802 | CK34: 0.43478802 | CL34: 0.43478802 | CM34: 0.43478802 | CN34: 0.43478802 | CO34: 0.43478802 | CP34: 0.43478802 | CQ34: 0.43478802 | CR34: 0.43478802 | CS34: 8.432749225e-16
AU35: O | AV35: 7 | AW35: A | AX35: 4 | AY35: 11.96768684 | AZ35: 12.16681165 | BA35: 12.36593646 | BB35: 12.56506127 | BC35: 12.76418608 | BD35: 12.96331089 | BE35: 13.1624357 | BF35: 13.36156051 | BG35: 13.56068532 | BH35: 13.75981013 | BI35: 13.95893494 | BJ35: 14.15805975 | BK35: 14.35718456 | BL35: 14.55630937 | BM35: 14.75543418 | BO35: 1 | BP35: 2 | BQ35: 3 | BR35: 4 | BS35: 5 | BT35: 6 | BU35: 7 | BV35: 8 | BW35: 9 | BX35: 10 | BY35: 11 | BZ35: 12 | CA35: 13 | CB35: 14 | CC35: 15 | CE35: 0.19912481 | CF35: 0.19912481 | CG35: =BB35-BA35 -> 0.19912481 | CH35: 0.19912481 | CI35: 0.19912481 | CJ35: 0.19912481 | CK35: 0.19912481 | CL35: 0.19912481 | CM35: 0.19912481 | CN35: 0.19912481 | CO35: 0.19912481 | CP35: 0.19912481 | CQ35: 0.19912481 | CR35: 0.19912481 | CS35: 9.123361728e-16
AU36: O | AV36: 7 | AW36: A | AX36: 5 | AY36: 12.45132424 | AZ36: 12.5295397 | BA36: 12.60775516 | BB36: 12.68597062 | BC36: 12.76418608 | BD36: 12.84240154 | BE36: 12.920617 | BF36: 12.99883246 | BG36: 13.07704792 | BH36: 13.15526338 | BI36: 13.23347884 | BJ36: 13.3116943 | BK36: 13.38990976 | BL36: 13.46812522 | BM36: 13.54634068 | BO36: 1 | BP36: 2 | BQ36: 3 | BR36: 4 | BS36: 5 | BT36: 6 | BU36: 7 | BV36: 8 | BW36: 9 | BX36: 10 | BY36: 11 | BZ36: 12 | CA36: 13 | CB36: 14 | CC36: 15 | CE36: =AZ36-AY36 -> 0.07821546 | CF36: 0.07821546 | CG36: 0.07821546 | CH36: 0.07821546 | CI36: 0.07821546 | CJ36: 0.07821546 | CK36: 0.07821546 | CL36: 0.07821546 | CM36: 0.07821546 | CN36: 0.07821546 | CO36: 0.07821546 | CP36: 0.07821546 | CQ36: 0.07821546 | CR36: 0.07821546 | CS36: 9.217063053e-16
AU37: O | AV37: 8 | AW37: A | AX37: 1 | AY37: 5.46060529 | AZ37: 5.47025706 | BA37: 5.47990883 | BB37: 5.4895606 | BC37: 5.49921237 | BD37: 5.50886414 | BE37: 5.51851591 | BF37: 5.52816768 | BG37: 5.53781945 | BH37: 5.54747122 | BI37: 5.55712299 | BJ37: 5.56677476 | BK37: 5.57642653 | BL37: 5.5860783 | BM37: 5.59573007 | BO37: 1 | BP37: 2 | BQ37: 3 | BR37: 4 | BS37: 5 | BT37: 6 | BU37: 7 | BV37: 8 | BW37: 9 | BX37: 10 | BY37: 11 | BZ37: 12 | CA37: 13 | CB37: 14 | CC37: 15 | CE37: 0.00965177 | CF37: 0.00965177 | CG37: 0.00965177 | CH37: 0.00965177 | CI37: 0.00965177 | CJ37: 0.00965177 | CK37: 0.00965177 | CL37: 0.00965177 | CM37: 0.00965177 | CN37: 0.00965177 | CO37: 0.00965177 | CP37: 0.00965177 | CQ37: 0.00965177 | CR37: 0.00965177 | CS37: 4.561269812e-16
AU38: O | AV38: 8 | AW38: A | AX38: 2 | AY38: 5.54747122 | AZ38: 6.01250988 | BA38: 6.47754854 | BB38: 6.9425872 | BC38: 7.40762586 | BD38: 7.87266452 | BE38: 8.33770318 | BF38: 8.80274184 | BG38: 9.2677805 | BH38: 9.73281916 | BI38: 10.19785782 | BJ38: 10.66289648 | BK38: 11.12793514 | BL38: 11.43430278 | BM38: 11.44522583 | BO38: 1 | BP38: 2 | BQ38: 3 | BR38: 4 | BS38: 5 | BT38: 6 | BU38: 7 | BV38: 8 | BW38: 9 | BX38: 10 | BY38: 11 | BZ38: 12 | CA38: 13 | CB38: 14 | CC38: 15 | CE38: 0.46503866 | CF38: 0.46503866 | CG38: 0.46503866 | CH38: 0.46503866 | CI38: 0.46503866 | CJ38: 0.46503866 | CK38: 0.46503866 | CL38: 0.46503866 | CM38: 0.46503866 | CN38: 0.46503866 | CO38: 0.46503866 | CP38: 0.46503866 | CQ38: 0.30636764 | CR38: 0.01092305 | CS38: 0.1254455195
AU39: O | AV39: 8 | AW39: A | AX39: 3 | AY39: 3.54934559 | AZ39: 3.70025965 | BA39: 3.85117371 | BB39: 4.00208777 | BC39: 4.24310716 | BD39: 4.67789518 | BE39: 5.1126832 | BF39: 5.54747122 | BG39: 5.98225924 | BH39: 6.41704726 | BI39: 6.85183528 | BJ39: 7.2866233 | BK39: 7.72141132 | BL39: 7.96050061 | BM39: 8.13674992 | BO39: 1 | BP39: 2 | BQ39: 3 | BR39: 4 | BS39: 5 | BT39: 6 | BU39: 7 | BV39: 8 | BW39: 9 | BX39: 10 | BY39: 11 | BZ39: 12 | CA39: 13 | CB39: 14 | CC39: 15 | CE39: 0.15091406 | CF39: 0.15091406 | CG39: 0.15091406 | CH39: 0.24101939 | CI39: 0.43478802 | CJ39: 0.43478802 | CK39: 0.43478802 | CL39: 0.43478802 | CM39: 0.43478802 | CN39: 0.43478802 | CO39: 0.43478802 | CP39: 0.43478802 | CQ39: 0.23908929 | CR39: 0.17624931 | CS39: 0.131208948
AU40: O | AV40: 8 | AW40: A | AX40: 4 | AY40: 4.55184717 | AZ40: 4.75097198 | BA40: 4.95009679 | BB40: 5.1492216 | BC40: 5.34834641 | BD40: 5.54747122 | BE40: 5.74659603 | BF40: 5.94572084 | BG40: 6.14484565 | BH40: 6.34397046 | BI40: 6.54309527 | BJ40: 6.74222008 | BK40: 6.94134489 | BL40: 7.1404697 | BM40: 7.33959451 | BO40: 1 | BP40: 2 | BQ40: 3 | BR40: 4 | BS40: 5 | BT40: 6 | BU40: 7 | BV40: 8 | BW40: 9 | BX40: 10 | BY40: 11 | BZ40: 12 | CA40: 13 | CB40: 14 | CC40: 15 | CE40: 0.19912481 | CF40: 0.19912481 | CG40: 0.19912481 | CH40: 0.19912481 | CI40: 0.19912481 | CJ40: 0.19912481 | CK40: 0.19912481 | CL40: 0.19912481 | CM40: 0.19912481 | CN40: 0.19912481 | CO40: 0.19912481 | CP40: 0.19912481 | CQ40: 0.19912481 | CR40: 0.19912481 | CS40: 5.142133473e-16
AU41: O | AV41: 8 | AW41: A | AX41: 5 | AY41: 5.07296806 | AZ41: 5.3910403 | BA41: 5.46925576 | BB41: 5.54747122 | BC41: 5.62568668 | BD41: 5.70390214 | BE41: 5.7821176 | BF41: 5.86033306 | BG41: 5.93854852 | BH41: 6.01676398 | BI41: 6.09497944 | BJ41: 6.1731949 | BK41: 6.25141036 | BL41: 6.32962582 | BM41: 6.40784128 | BO41: 1 | BP41: 2 | BQ41: 3 | BR41: 4 | BS41: 5 | BT41: 6 | BU41: 7 | BV41: 8 | BW41: 9 | BX41: 10 | BY41: 11 | BZ41: 12 | CA41: 13 | CB41: 14 | CC41: 15 | CE41: 0.31807224 | CF41: 0.07821546 | CG41: 0.07821546 | CH41: 0.07821546 | CI41: 0.07821546 | CJ41: 0.07821546 | CK41: 0.07821546 | CL41: 0.07821546 | CM41: 0.07821546 | CN41: 0.07821546 | CO41: 0.07821546 | CP41: 0.07821546 | CQ41: 0.07821546 | CR41: 0.07821546 | CS41: 0.0641044209
AU42: O | AV42: 9 | AW42: A | AX42: 1 | AY42: 12.72691295 | AZ42: 13.28804355 | BA42: 13.84917415 | BB42: 14.31567726 | BC42: 14.32532903 | BD42: 14.3349808 | BE42: 14.34463257 | BF42: 14.35428434 | BG42: 14.36393611 | BH42: 14.37358788 | BI42: 14.38323965 | BJ42: 14.39289142 | BK42: 14.40254319 | BL42: 14.41219496 | BM42: 14.42184673 | BO42: 1 | BP42: 2 | BQ42: 3 | BR42: 4 | BS42: 5 | BT42: 6 | BU42: 7 | BV42: 8 | BW42: 9 | BX42: 10 | BY42: 11 | BZ42: 12 | CA42: 13 | CB42: 14 | CC42: 15 | CE42: 0.5611306 | CF42: 0.5611306 | CG42: 0.46650311 | CH42: 0.00965177 | CI42: 0.00965177 | CJ42: 0.00965177 | CK42: 0.00965177 | CL42: 0.00965177 | CM42: 0.00965177 | CN42: 0.00965177 | CO42: 0.00965177 | CP42: 0.00965177 | CQ42: 0.00965177 | CR42: 0.00965177 | CS42: 0.2224314827
AU43: O | AV43: 9 | AW43: A | AX43: 2 | AY43: 10.56641267 | AZ43: 11.03145133 | BA43: 11.49648999 | BB43: 11.96152865 | BC43: 12.42656731 | BD43: 12.6941438 | BE43: 12.70506685 | BF43: 12.7159899 | BG43: 12.72691295 | BH43: 12.737836 | BI43: 12.74875905 | BJ43: 12.7596821 | BK43: 12.77060515 | BL43: 12.7815282 | BM43: 12.79245125 | BO43: 1 | BP43: 2 | BQ43: 3 | BR43: 4 | BS43: 5 | BT43: 6 | BU43: 7 | BV43: 8 | BW43: 9 | BX43: 10 | BY43: 11 | BZ43: 12 | CA43: 13 | CB43: 14 | CC43: 15 | CE43: 0.46503866 | CF43: 0.46503866 | CG43: 0.46503866 | CH43: 0.46503866 | CI43: 0.26757649 | CJ43: 0.01092305 | CK43: 0.01092305 | CL43: 0.01092305 | CM43: 0.01092305 | CN43: 0.01092305 | CO43: 0.01092305 | CP43: 0.01092305 | CQ43: 0.01092305 | CR43: 0.01092305 | CS43: 0.2119086428
AU44: O | AV44: 9 | AW44: A | AX44: 3 | AY44: 7.20204563 | AZ44: 7.59667901 | BA44: 7.99131239 | BB44: 8.38594577 | BC44: 8.78057915 | BD44: 9.17521253 | BE44: 9.56984591 | BF44: 9.96447929 | BG44: 10.35911267 | BH44: 10.75374605 | BI44: 11.14837943 | BJ44: 11.54301281 | BK44: 11.93764619 | BL44: 12.33227957 | BM44: 12.72691295 | BO44: 1 | BP44: 2 | BQ44: 3 | BR44: 4 | BS44: 5 | BT44: 6 | BU44: 7 | BV44: 8 | BW44: 9 | BX44: 10 | BY44: 11 | BZ44: 12 | CA44: 13 | CB44: 14 | CC44: 15 | CE44: 0.39463338 | CF44: 0.39463338 | CG44: 0.39463338 | CH44: 0.39463338 | CI44: 0.39463338 | CJ44: 0.39463338 | CK44: 0.39463338 | CL44: 0.39463338 | CM44: 0.39463338 | CN44: 0.39463338 | CO44: 0.39463338 | CP44: 0.39463338 | CQ44: 0.39463338 | CR44: 0.39463338 | CS44: 1.472233402e-15
AU45: O | AV45: 9 | AW45: A | AX45: 4 | AY45: 10.97784875 | AZ45: 11.11239215 | BA45: 11.24693555 | BB45: 11.38147895 | BC45: 11.51602235 | BD45: 11.65056575 | BE45: 11.78510915 | BF45: 11.91965255 | BG45: 12.05419595 | BH45: 12.18873935 | BI45: 12.32328275 | BJ45: 12.45782615 | BK45: 12.59236955 | BL45: 12.72691295 | BM45: 12.86145635 | BO45: 1 | BP45: 2 | BQ45: 3 | BR45: 4 | BS45: 5 | BT45: 6 | BU45: 7 | BV45: 8 | BW45: 9 | BX45: 10 | BY45: 11 | BZ45: 12 | CA45: 13 | CB45: 14 | CC45: 15 | CE45: 0.1345434 | CF45: 0.1345434 | CG45: 0.1345434 | CH45: 0.1345434 | CI45: 0.1345434 | CJ45: 0.1345434 | CK45: 0.1345434 | CL45: 0.1345434 | CM45: 0.1345434 | CN45: 0.1345434 | CO45: 0.1345434 | CP45: 0.1345434 | CQ45: 0.1345434 | CR45: 0.1345434 | CS45: 9.853454874e-16
AU46: O | AV46: 9 | AW46: A | AX46: 5 | AY46: 8.88898301 | AZ46: 9.31541967 | BA46: 9.74185633 | BB46: 10.16829299 | BC46: 10.59472965 | BD46: 11.02116631 | BE46: 11.44760297 | BF46: 11.87403963 | BG46: 12.30047629 | BH46: 12.72691295 | BI46: 13.15334961 | BJ46: 13.57978627 | BK46: 14.00622293 | BL46: 14.43265959 | BM46: 14.67779925 | BO46: 1 | BP46: 2 | BQ46: 3 | BR46: 4 | BS46: 5 | BT46: 6 | BU46: 7 | BV46: 8 | BW46: 9 | BX46: 10 | BY46: 11 | BZ46: 12 | CA46: 13 | CB46: 14 | CC46: 15 | CE46: 0.42643666 | CF46: 0.42643666 | CG46: 0.42643666 | CH46: 0.42643666 | CI46: 0.42643666 | CJ46: 0.42643666 | CK46: 0.42643666 | CL46: 0.42643666 | CM46: 0.42643666 | CN46: 0.42643666 | CO46: 0.42643666 | CP46: 0.42643666 | CQ46: 0.42643666 | CR46: 0.24513966 | CS46: 0.04845366137
AU47: O | AV47: 10 | AW47: A | AX47: 1 | AY47: 7.4398611 | AZ47: 7.44951287 | BA47: 7.45916464 | BB47: 7.46881641 | BC47: 7.47846818 | BD47: 7.48811995 | BE47: 7.49777172 | BF47: 7.50742349 | BG47: 7.51707526 | BH47: 7.52672703 | BI47: 7.5363788 | BJ47: 7.54603057 | BK47: 7.55568234 | BL47: 7.56533411 | BM47: 7.57498588 | BO47: 1 | BP47: 2 | BQ47: 3 | BR47: 4 | BS47: 5 | BT47: 6 | BU47: 7 | BV47: 8 | BW47: 9 | BX47: 10 | BY47: 11 | BZ47: 12 | CA47: 13 | CB47: 14 | CC47: 15 | CE47: 0.00965177 | CF47: 0.00965177 | CG47: 0.00965177 | CH47: 0.00965177 | CI47: 0.00965177 | CJ47: 0.00965177 | CK47: 0.00965177 | CL47: 0.00965177 | CM47: 0.00965177 | CN47: 0.00965177 | CO47: 0.00965177 | CP47: 0.00965177 | CQ47: 0.00965177 | CR47: 0.00965177 | CS47: 4.561269812e-16
AU48: O | AV48: 10 | AW48: A | AX48: 2 | AY48: 4.21354579 | AZ48: 4.67858445 | BA48: 5.14362311 | BB48: 5.60866177 | BC48: 6.07370043 | BD48: 6.53873909 | BE48: 7.00377775 | BF48: 7.46881641 | BG48: 7.93385507 | BH48: 8.39889373 | BI48: 8.86393239 | BJ48: 9.32897105 | BK48: 9.79400971 | BL48: 9.89148212 | BM48: 9.90240517 | BO48: 1 | BP48: 2 | BQ48: 3 | BR48: 4 | BS48: 5 | BT48: 6 | BU48: 7 | BV48: 8 | BW48: 9 | BX48: 10 | BY48: 11 | BZ48: 12 | CA48: 13 | CB48: 14 | CC48: 15 | CE48: 0.46503866 | CF48: 0.46503866 | CG48: 0.46503866 | CH48: 0.46503866 | CI48: 0.46503866 | CJ48: 0.46503866 | CK48: 0.46503866 | CL48: 0.46503866 | CM48: 0.46503866 | CN48: 0.46503866 | CO48: 0.46503866 | CP48: 0.46503866 | CQ48: 0.09747241 | CR48: 0.01092305 | CS48: 0.1501538042
AU49: O | AV49: 10 | AW49: A | AX49: 3 | AY49: 5.72966433 | AZ49: 6.16445235 | BA49: 6.59924037 | BB49: 7.03402839 | BC49: 7.46881641 | BD49: 7.90360443 | BE49: 8.33839245 | BF49: 8.77318047 | BG49: 9.20796849 | BH49: 9.64275651 | BI49: 10.07754453 | BJ49: 10.51233255 | BK49: 10.94712057 | BL49: 11.38190859 | BM49: 11.81669661 | BO49: 1 | BP49: 2 | BQ49: 3 | BR49: 4 | BS49: 5 | BT49: 6 | BU49: 7 | BV49: 8 | BW49: 9 | BX49: 10 | BY49: 11 | BZ49: 12 | CA49: 13 | CB49: 14 | CC49: 15 | CE49: 0.43478802 | CF49: 0.43478802 | CG49: 0.43478802 | CH49: 0.43478802 | CI49: 0.43478802 | CJ49: 0.43478802 | CK49: 0.43478802 | CL49: 0.43478802 | CM49: 0.43478802 | CN49: 0.43478802 | CO49: 0.43478802 | CP49: 0.43478802 | CQ49: 0.43478802 | CR49: 0.43478802 | CS49: 7.679514169e-16
AU50: O | AV50: 10 | AW50: A | AX50: 4 | AY50: 7.07056679 | AZ50: 7.2696916 | BA50: 7.46881641 | BB50: 7.66794122 | BC50: 7.86706603 | BD50: 8.06619084 | BE50: 8.26531565 | BF50: 8.46444046 | BG50: 8.66356527 | BH50: 8.86269008 | BI50: 9.06181489 | BJ50: 9.2609397 | BK50: 9.46006451 | BL50: 9.65918932 | BM50: 9.85831413 | BO50: 1 | BP50: 2 | BQ50: 3 | BR50: 4 | BS50: 5 | BT50: 6 | BU50: 7 | BV50: 8 | BW50: 9 | BX50: 10 | BY50: 11 | BZ50: 12 | CA50: 13 | CB50: 14 | CC50: 15 | CE50: 0.19912481 | CF50: 0.19912481 | CG50: 0.19912481 | CH50: 0.19912481 | CI50: 0.19912481 | CJ50: 0.19912481 | CK50: 0.19912481 | CL50: 0.19912481 | CM50: 0.19912481 | CN50: 0.19912481 | CO50: 0.19912481 | CP50: 0.19912481 | CQ50: 0.19912481 | CR50: 0.19912481 | CS50: 7.92783082e-16
AU51: O | AV51: 10 | AW51: A | AX51: 5 | AY51: 5.13514056 | AZ51: 5.56157722 | BA51: 5.98801388 | BB51: 6.41445054 | BC51: 6.8408872 | BD51: 6.99952365 | BE51: 7.07773911 | BF51: 7.15595457 | BG51: 7.23417003 | BH51: 7.31238549 | BI51: 7.39060095 | BJ51: 7.46881641 | BK51: 7.54703187 | BL51: 7.62524733 | BM51: 7.70346279 | BO51: =RANK(AY51,$AY51:$BM51, 1) -> 1 | BP51: 2 | BQ51: 3 | BR51: 4 | BS51: 5 | BT51: 6 | BU51: 7 | BV51: 8 | BW51: 9 | BX51: 10 | BY51: 11 | BZ51: 12 | CA51: 13 | CB51: 14 | CC51: 15 | CE51: 0.42643666 | CF51: 0.42643666 | CG51: 0.42643666 | CH51: 0.42643666 | CI51: 0.15863645 | CJ51: 0.07821546 | CK51: 0.07821546 | CL51: 0.07821546 | CM51: 0.07821546 | CN51: 0.07821546 | CO51: 0.07821546 | CP51: 0.07821546 | CQ51: 0.07821546 | CR51: 0.07821546 | CS51: 0.1608761004
AU52: O | AV52: 11 | AW52: A | AX52: 1 | AY52: 8.31527394 | AZ52: 8.32492571 | BA52: 8.33457748 | BB52: 8.34422925 | BC52: 8.35388102 | BD52: 8.36353279 | BE52: 8.37318456 | BF52: 8.38283633 | BG52: 8.3924881 | BH52: 8.40213987 | BI52: 8.41179164 | BJ52: 8.42144341 | BK52: 8.43109518 | BL52: 8.44074695 | BM52: 8.45039872 | BO52: 1 | BP52: 2 | BQ52: 3 | BR52: 4 | BS52: 5 | BT52: 6 | BU52: 7 | BV52: 8 | BW52: 9 | BX52: 10 | BY52: 11 | BZ52: 12 | CA52: 13 | CB52: 14 | CC52: 15 | CE52: 0.00965177 | CF52: 0.00965177 | CG52: 0.00965177 | CH52: 0.00965177 | CI52: 0.00965177 | CJ52: 0.00965177 | CK52: 0.00965177 | CL52: 0.00965177 | CM52: 0.00965177 | CN52: 0.00965177 | CO52: 0.00965177 | CP52: 0.00965177 | CQ52: 0.00965177 | CR52: 0.00965177 | CS52: 7.564003382e-16
AU53: O | AV53: 11 | AW53: A | AX53: 2 | AY53: 8.3924881 | AZ53: 8.85752676 | BA53: 9.32256542 | BB53: 9.78760408 | BC53: 10.25264274 | BD53: 10.7176814 | BE53: 11.18272006 | BF53: 11.64775872 | BG53: 12.11279738 | BH53: 12.57783604 | BI53: 13.0428747 | BJ53: 13.50791336 | BK53: 13.84082639 | BL53: 13.85174944 | BM53: 13.86267249 | BO53: 1 | BP53: 2 | BQ53: 3 | BR53: 4 | BS53: 5 | BT53: 6 | BU53: 7 | BV53: 8 | BW53: 9 | BX53: 10 | BY53: 11 | BZ53: 12 | CA53: 13 | CB53: 14 | CC53: 15 | CE53: 0.46503866 | CF53: 0.46503866 | CG53: 0.46503866 | CH53: 0.46503866 | CI53: 0.46503866 | CJ53: 0.46503866 | CK53: 0.46503866 | CL53: 0.46503866 | CM53: 0.46503866 | CN53: 0.46503866 | CO53: 0.46503866 | CP53: 0.33291303 | CQ53: 0.01092305 | CR53: 0.01092305 | CS53: 0.1646882806
AU54: O | AV54: 11 | AW54: A | AX54: 3 | AY54: 4.7464007 | AZ54: 4.89731476 | BA54: 5.04822882 | BB54: 5.34897196 | BC54: 5.78375998 | BD54: 6.218548 | BE54: 6.65333602 | BF54: 7.08812404 | BG54: 7.52291206 | BH54: 7.95770008 | BI54: 8.3924881 | BJ54: 8.82727612 | BK54: 9.26206414 | BL54: 9.69685216 | BM54: 10.13164018 | BO54: 1 | BP54: 2 | BQ54: 3 | BR54: 4 | BS54: 5 | BT54: 6 | BU54: 7 | BV54: 8 | BW54: 9 | BX54: 10 | BY54: 11 | BZ54: 12 | CA54: 13 | CB54: 14 | CC54: 15 | CE54: 0.15091406 | CF54: 0.15091406 | CG54: 0.30074314 | CH54: 0.43478802 | CI54: 0.43478802 | CJ54: 0.43478802 | CK54: 0.43478802 | CL54: 0.43478802 | CM54: 0.43478802 | CN54: 0.43478802 | CO54: 0.43478802 | CP54: 0.43478802 | CQ54: 0.43478802 | CR54: 0.43478802 | CS54: 0.1052313826
AU55: O | AV55: 11 | AW55: A | AX55: 4 | AY55: 6.00299038 | AZ55: 6.20211519 | BA55: 6.40124 | BB55: 6.60036481 | BC55: 6.79948962 | BD55: 6.99861443 | BE55: 7.19773924 | BF55: 7.39686405 | BG55: 7.59598886 | BH55: 7.79511367 | BI55: 7.99423848 | BJ55: 8.19336329 | BK55: 8.3924881 | BL55: 8.59161291 | BM55: 8.79073772 | BO55: 1 | BP55: 2 | BQ55: 3 | BR55: 4 | BS55: 5 | BT55: 6 | BU55: 7 | BV55: 8 | BW55: 9 | BX55: 10 | BY55: 11 | BZ55: 12 | CA55: 13 | CB55: 14 | CC55: 15 | CE55: 0.19912481 | CF55: 0.19912481 | CG55: 0.19912481 | CH55: 0.19912481 | CI55: 0.19912481 | CJ55: 0.19912481 | CK55: 0.19912481 | CL55: 0.19912481 | CM55: 0.19912481 | CN55: 0.19912481 | CO55: 0.19912481 | CP55: 0.19912481 | CQ55: 0.19912481 | CR55: 0.19912481 | CS55: 5.42914515e-16
AU56: O | AV56: 11 | AW56: A | AX56: 5 | AY56: 7.16113697 | AZ56: 7.7711492 | BA56: 8.15784172 | BB56: 8.23605718 | BC56: 8.31427264 | BD56: 8.3924881 | BE56: 8.47070356 | BF56: 8.54891902 | BG56: 8.62713448 | BH56: 8.70534994 | BI56: 8.7835654 | BJ56: 8.86178086 | BK56: 8.93999632 | BL56: 9.01821178 | BM56: 9.09642724 | BO56: 1 | BP56: 2 | BQ56: 3 | BR56: 4 | BS56: 5 | BT56: 6 | BU56: 7 | BV56: 8 | BW56: 9 | BX56: 10 | BY56: 11 | BZ56: 12 | CA56: 13 | CB56: 14 | CC56: 15 | CE56: 0.61001223 | CF56: 0.38669252 | CG56: 0.07821546 | CH56: 0.07821546 | CI56: 0.07821546 | CJ56: =BE56-BD56 -> 0.07821546 | CK56: 0.07821546 | CL56: 0.07821546 | CM56: 0.07821546 | CN56: 0.07821546 | CO56: 0.07821546 | CP56: 0.07821546 | CQ56: 0.07821546 | CR56: 0.07821546 | CS56: 0.1587288535
AU57: O | AV57: 12 | AW57: A | AX57: 1 | AY57: 12.38437736 | AZ57: 12.94550796 | BA57: 13.50663856 | BB57: 13.7363357 | BC57: 13.74598747 | BD57: 13.75563924 | BE57: 13.76529101 | BF57: 13.77494278 | BG57: 13.78459455 | BH57: 13.79424632 | BI57: 13.80389809 | BJ57: 13.81354986 | BK57: 13.82320163 | BL57: 13.8328534 | BM57: 13.84250517 | BO57: 1 | BP57: 2 | BQ57: 3 | BR57: 4 | BS57: 5 | BT57: 6 | BU57: 7 | BV57: 8 | BW57: 9 | BX57: 10 | BY57: 11 | BZ57: 12 | CA57: 13 | CB57: 14 | CC57: 15 | CE57: 0.5611306 | CF57: 0.5611306 | CG57: 0.22969714 | CH57: 0.00965177 | CI57: 0.00965177 | CJ57: 0.00965177 | CK57: 0.00965177 | CL57: 0.00965177 | CM57: 0.00965177 | CN57: 0.00965177 | CO57: 0.00965177 | CP57: 0.00965177 | CQ57: 0.00965177 | CR57: 0.00965177 | CS57: 0.2022286771
AU58: O | AV58: 12 | AW58: A | AX58: 2 | AY58: 7.7294402 | AZ58: 8.19447886 | BA58: 8.65951752 | BB58: 9.12455618 | BC58: 9.58959484 | BD58: 10.0546335 | BE58: 10.51967216 | BF58: 10.98471082 | BG58: 11.44974948 | BH58: 11.91478814 | BI58: 12.3798268 | BJ58: 12.84486546 | BK58: 13.30990412 | BL58: 13.77494278 | BM58: 14.23998144 | BO58: 1 | BP58: 2 | BQ58: 3 | BR58: 4 | BS58: 5 | BT58: 6 | BU58: 7 | BV58: 8 | BW58: 9 | BX58: 10 | BY58: 11 | BZ58: 12 | CA58: 13 | CB58: 14 | CC58: 15 | CE58: 0.46503866 | CF58: 0.46503866 | CG58: 0.46503866 | CH58: 0.46503866 | CI58: 0.46503866 | CJ58: 0.46503866 | CK58: 0.46503866 | CL58: 0.46503866 | CM58: 0.46503866 | CN58: 0.46503866 | CO58: 0.46503866 | CP58: 0.46503866 | CQ58: 0.46503866 | CR58: 0.46503866 | CS58: 7.5925969e-16
AU59: O | AV59: 12 | AW59: A | AX59: 3 | AY59: 8.99227456 | AZ59: 9.42706258 | BA59: 9.8618506 | BB59: 10.29663862 | BC59: 10.73142664 | BD59: 11.16621466 | BE59: 11.60100268 | BF59: 12.0357907 | BG59: 12.47057872 | BH59: 12.90536674 | BI59: 13.34015476 | BJ59: 13.77494278 | BK59: 14.2097308 | BL59: 14.64451882 | BM59: 15.07930684 | BO59: 1 | BP59: 2 | BQ59: 3 | BR59: 4 | BS59: 5 | BT59: 6 | BU59: 7 | BV59: 8 | BW59: 9 | BX59: 10 | BY59: 11 | BZ59: 12 | CA59: 13 | CB59: 14 | CC59: 15 | CE59: 0.43478802 | CF59: 0.43478802 | CG59: 0.43478802 | CH59: 0.43478802 | CI59: 0.43478802 | CJ59: 0.43478802 | CK59: 0.43478802 | CL59: 0.43478802 | CM59: 0.43478802 | CN59: 0.43478802 | CO59: 0.43478802 | CP59: 0.43478802 | CQ59: 0.43478802 | CR59: 0.43478802 | CS59: 9.12401124e-16
AU60: O | AV60: 12 | AW60: A | AX60: 4 | AY60: 13.17756835 | AZ60: 13.37669316 | BA60: 13.57581797 | BB60: 13.77494278 | BC60: 13.97406759 | BD60: 14.1731924 | BE60: 14.37231721 | BF60: 14.57144202 | BG60: 14.77056683 | BH60: 14.96969164 | BI60: 15.16881645 | BJ60: 15.36794126 | BK60: 15.56706607 | BL60: 15.76619088 | BM60: 15.96531569 | BO60: 1 | BP60: 2 | BQ60: 3 | BR60: 4 | BS60: 5 | BT60: 6 | BU60: 7 | BV60: 8 | BW60: 9 | BX60: 10 | BY60: 11 | BZ60: 12 | CA60: 13 | CB60: 14 | CC60: 15 | CE60: 0.19912481 | CF60: 0.19912481 | CG60: 0.19912481 | CH60: 0.19912481 | CI60: 0.19912481 | CJ60: 0.19912481 | CK60: 0.19912481 | CL60: 0.19912481 | CM60: 0.19912481 | CN60: 0.19912481 | CO60: 0.19912481 | CP60: 0.19912481 | CQ60: 0.19912481 | CR60: 0.19912481 | CS60: 9.123361728e-16
AU61: O | AV61: 12 | AW61: A | AX61: 5 | AY61: 10.34217832 | AZ61: 10.76861498 | BA61: 11.19505164 | BB61: 11.6214883 | BC61: 12.04792496 | BD61: 12.47436162 | BE61: 12.90079828 | BF61: 13.22743456 | BG61: 13.30565002 | BH61: 13.38386548 | BI61: 13.46208094 | BJ61: 13.5402964 | BK61: 13.61851186 | BL61: 13.69672732 | BM61: 13.77494278 | BO61: 1 | BP61: 2 | BQ61: 3 | BR61: 4 | BS61: 5 | BT61: 6 | BU61: 7 | BV61: 8 | BW61: 9 | BX61: 10 | BY61: 11 | BZ61: 12 | CA61: 13 | CB61: 14 | CC61: 15 | CE61: 0.42643666 | CF61: 0.42643666 | CG61: 0.42643666 | CH61: 0.42643666 | CI61: 0.42643666 | CJ61: 0.42643666 | CK61: 0.32663628 | CL61: 0.07821546 | CM61: 0.07821546 | CN61: 0.07821546 | CO61: 0.07821546 | CP61: 0.07821546 | CQ61: 0.07821546 | CR61: 0.07821546 | CS61: 0.175170046
AU62: O | AV62: 13 | AW62: A | AX62: 1 | AY62: 5.65871327 | AZ62: 5.66836504 | BA62: 5.67801681 | BB62: 5.68766858 | BC62: 5.69732035 | BD62: 5.70697212 | BE62: 5.71662389 | BF62: 5.72627566 | BG62: 5.73592743 | BH62: 5.7455792 | BI62: 5.75523097 | BJ62: 5.76488274 | BK62: 5.77453451 | BL62: 5.87634573 | BM62: 6.05472395 | BO62: 1 | BP62: 2 | BQ62: 3 | BR62: 4 | BS62: 5 | BT62: 6 | BU62: 7 | BV62: 8 | BW62: 9 | BX62: 10 | BY62: 11 | BZ62: 12 | CA62: 13 | CB62: 14 | CC62: 15 | CE62: 0.00965177 | CF62: 0.00965177 | CG62: 0.00965177 | CH62: 0.00965177 | CI62: 0.00965177 | CJ62: 0.00965177 | CK62: 0.00965177 | CL62: 0.00965177 | CM62: 0.00965177 | CN62: 0.00965177 | CO62: 0.00965177 | CP62: 0.00965177 | CQ62: 0.10181122 | CR62: 0.17837822 | CS62: 0.04969170091
AU63: O | AV63: 13 | AW63: A | AX63: 2 | AY63: 5.69732035 | AZ63: 6.16235901 | BA63: 6.62739767 | BB63: 7.09243633 | BC63: 7.55747499 | BD63: 8.02251365 | BE63: 8.48755231 | BF63: 8.95259097 | BG63: 9.41762963 | BH63: 9.73872098 | BI63: 9.74964403 | BJ63: 9.76056708 | BK63: 9.77149013 | BL63: 9.78241318 | BM63: 9.79333623 | BO63: 1 | BP63: 2 | BQ63: 3 | BR63: 4 | BS63: 5 | BT63: 6 | BU63: 7 | BV63: 8 | BW63: 9 | BX63: 10 | BY63: 11 | BZ63: 12 | CA63: 13 | CB63: 14 | CC63: 15 | CE63: 0.46503866 | CF63: 0.46503866 | CG63: 0.46503866 | CH63: 0.46503866 | CI63: 0.46503866 | CJ63: 0.46503866 | CK63: 0.46503866 | CL63: 0.46503866 | CM63: 0.32109135 | CN63: 0.01092305 | CO63: 0.01092305 | CP63: 0.01092305 | CQ63: 0.01092305 | CR63: 0.01092305 | CS63: 0.2210816068
AU64: O | AV64: 13 | AW64: A | AX64: 3 | AY64: 3.36545739 | AZ64: 3.52338025 | BA64: 3.95816827 | BB64: 4.39295629 | BC64: 4.82774431 | BD64: 5.26253233 | BE64: 5.69732035 | BF64: 6.13210837 | BG64: 6.56689639 | BH64: 7.00168441 | BI64: 7.43647243 | BJ64: 7.87126045 | BK64: 8.30604847 | BL64: 8.74083649 | BM64: 9.17562451 | BO64: 1 | BP64: 2 | BQ64: 3 | BR64: 4 | BS64: 5 | BT64: 6 | BU64: 7 | BV64: 8 | BW64: 9 | BX64: 10 | BY64: 11 | BZ64: 12 | CA64: 13 | CB64: 14 | CC64: 15 | CE64: 0.15792286 | CF64: 0.43478802 | CG64: 0.43478802 | CH64: 0.43478802 | CI64: 0.43478802 | CJ64: 0.43478802 | CK64: 0.43478802 | CL64: 0.43478802 | CM64: 0.43478802 | CN64: 0.43478802 | CO64: 0.43478802 | CP64: 0.43478802 | CQ64: 0.43478802 | CR64: 0.43478802 | CS64: 0.0739953265
AU65: O | AV65: 13 | AW65: A | AX65: 4 | AY65: 4.30344668 | AZ65: 4.50257149 | BA65: 4.7016963 | BB65: 4.90082111 | BC65: 5.09994592 | BD65: 5.29907073 | BE65: 5.49819554 | BF65: 5.69732035 | BG65: 5.89644516 | BH65: 6.09556997 | BI65: 6.29469478 | BJ65: 6.49381959 | BK65: 6.6929444 | BL65: 6.89206921 | BM65: 7.09119402 | BO65: 1 | BP65: 2 | BQ65: 3 | BR65: 4 | BS65: 5 | BT65: 6 | BU65: 7 | BV65: 8 | BW65: 9 | BX65: 10 | BY65: 11 | BZ65: 12 | CA65: 13 | CB65: 14 | CC65: 15 | CE65: 0.19912481 | CF65: 0.19912481 | CG65: 0.19912481 | CH65: 0.19912481 | CI65: 0.19912481 | CJ65: 0.19912481 | CK65: 0.19912481 | CL65: 0.19912481 | CM65: 0.19912481 | CN65: 0.19912481 | CO65: 0.19912481 | CP65: 0.19912481 | CQ65: 0.19912481 | CR65: 0.19912481 | CS65: 5.42914515e-16
AU66: O | AV66: 13 | AW66: A | AX66: 5 | AY66: 4.87456374 | AZ66: 5.30624305 | BA66: 5.38445851 | BB66: 5.46267397 | BC66: 5.54088943 | BD66: 5.61910489 | BE66: 5.69732035 | BF66: 5.77553581 | BG66: 5.85375127 | BH66: 5.93196673 | BI66: 6.01018219 | BJ66: 6.08839765 | BK66: 6.16661311 | BL66: 6.24482857 | BM66: 6.32304403 | BO66: 1 | BP66: 2 | BQ66: 3 | BR66: 4 | BS66: 5 | BT66: 6 | BU66: 7 | BV66: 8 | BW66: 9 | BX66: 10 | BY66: 11 | BZ66: 12 | CA66: 13 | CB66: 14 | CC66: 15 | CE66: 0.43167931 | CF66: 0.07821546 | CG66: 0.07821546 | CH66: 0.07821546 | CI66: 0.07821546 | CJ66: 0.07821546 | CK66: 0.07821546 | CL66: 0.07821546 | CM66: 0.07821546 | CN66: 0.07821546 | CO66: 0.07821546 | CP66: 0.07821546 | CQ66: 0.07821546 | CR66: 0.07821546 | CS66: 0.09446718752
AU67: O | AV67: 14 | AW67: A | AX67: 1 | AY67: 3.90734342 | AZ67: 3.91699519 | BA67: 3.92664696 | BB67: 3.93629873 | BC67: 3.9459505 | BD67: 3.95560227 | BE67: 3.96525404 | BF67: 3.99002408 | BG67: 4.1684023 | BH67: 4.34678052 | BI67: 4.52515874 | BJ67: 4.70353696 | BK67: 4.88191518 | BL67: 5.0602934 | BM67: 5.23867162 | BO67: 1 | BP67: 2 | BQ67: 3 | BR67: 4 | BS67: 5 | BT67: 6 | BU67: 7 | BV67: 8 | BW67: 9 | BX67: 10 | BY67: 11 | BZ67: 12 | CA67: 13 | CB67: 14 | CC67: 15 | CE67: 0.00965177 | CF67: 0.00965177 | CG67: 0.00965177 | CH67: 0.00965177 | CI67: 0.00965177 | CJ67: 0.00965177 | CK67: 0.02477004 | CL67: 0.17837822 | CM67: 0.17837822 | CN67: 0.17837822 | CO67: 0.17837822 | CP67: 0.17837822 | CQ67: 0.17837822 | CR67: 0.17837822 | CS67: =STDEV(CE67:CR67) -> 0.08651435472
AU68: O | AV68: 14 | AW68: A | AX68: 2 | AY68: 3.96829782 | AZ68: 4.10751305 | BA68: 4.24672828 | BB68: 4.38594351 | BC68: 4.52515874 | BD68: 4.66437397 | BE68: 4.93393844 | BF68: 5.3989771 | BG68: 5.86401576 | BH68: 6.32905442 | BI68: 6.79409308 | BJ68: 7.25913174 | BK68: 7.7241704 | BL68: 8.18920906 | BM68: 8.65424772 | BO68: =RANK(AY68,$AY68:$BM68, 1) -> 1 | BP68: 2 | BQ68: 3 | BR68: 4 | BS68: 5 | BT68: 6 | BU68: 7 | BV68: 8 | BW68: 9 | BX68: 10 | BY68: 11 | BZ68: 12 | CA68: 13 | CB68: 14 | CC68: 15 | CE68: 0.13921523 | CF68: 0.13921523 | CG68: 0.13921523 | CH68: 0.13921523 | CI68: 0.13921523 | CJ68: 0.26956447 | CK68: 0.46503866 | CL68: 0.46503866 | CM68: 0.46503866 | CN68: 0.46503866 | CO68: 0.46503866 | CP68: 0.46503866 | CQ68: 0.46503866 | CR68: 0.46503866 | CS68: 0.1596196061
AU69: O | AV69: 14 | AW69: A | AX69: 3 | AY69: 4.52515874 | AZ69: 4.6760728 | BA69: 4.87343716 | BB69: 5.30822518 | BC69: 5.7430132 | BD69: 6.17780122 | BE69: 6.61258924 | BF69: 7.04737726 | BG69: 7.48216528 | BH69: 7.9169533 | BI69: 8.35174132 | BJ69: 8.78652934 | BK69: 9.22131736 | BL69: 9.65610538 | BM69: 10.0908934 | BO69: 1 | BP69: 2 | BQ69: 3 | BR69: 4 | BS69: 5 | BT69: 6 | BU69: 7 | BV69: 8 | BW69: 9 | BX69: 10 | BY69: 11 | BZ69: 12 | CA69: 13 | CB69: 14 | CC69: 15 | CE69: 0.15091406 | CF69: 0.19736436 | CG69: 0.43478802 | CH69: 0.43478802 | CI69: 0.43478802 | CJ69: 0.43478802 | CK69: 0.43478802 | CL69: 0.43478802 | CM69: 0.43478802 | CN69: 0.43478802 | CO69: 0.43478802 | CP69: 0.43478802 | CQ69: 0.43478802 | CR69: 0.43478802 | CS69: 0.09508846847
AU70: O | AV70: 14 | AW70: A | AX70: 4 | AY70: 4.52515874 | AZ70: 4.68458781 | BA70: 4.84401688 | BB70: 5.00344595 | BC70: 5.16287502 | BD70: 5.32230409 | BE70: 5.48173316 | BF70: 5.64116223 | BG70: 5.8005913 | BH70: 5.96002037 | BI70: 6.11944944 | BJ70: 6.27887851 | BK70: 6.43830758 | BL70: 6.59773665 | BM70: 6.79160846 | BO70: 1 | BP70: 2 | BQ70: 3 | BR70: 4 | BS70: 5 | BT70: 6 | BU70: 7 | BV70: 8 | BW70: 9 | BX70: 10 | BY70: 11 | BZ70: 12 | CA70: 13 | CB70: 14 | CC70: 15 | CE70: 0.15942907 | CF70: 0.15942907 | CG70: 0.15942907 | CH70: 0.15942907 | CI70: 0.15942907 | CJ70: 0.15942907 | CK70: 0.15942907 | CL70: 0.15942907 | CM70: 0.15942907 | CN70: 0.15942907 | CO70: 0.15942907 | CP70: 0.15942907 | CQ70: 0.15942907 | CR70: 0.19387181 | CS70: 0.009205209467
AU71: O | AV71: 14 | AW71: A | AX71: 5 | AY71: 3.14349106 | AZ71: 3.22800954 | BA71: 3.35772446 | BB71: 3.48743938 | BC71: 3.6171543 | BD71: 3.74686922 | BE71: 3.87658414 | BF71: 4.00629906 | BG71: 4.13601398 | BH71: 4.2657289 | BI71: 4.39544382 | BJ71: 4.52515874 | BK71: 4.65487366 | BL71: 4.78458858 | BM71: 4.9143035 | BO71: 1 | BP71: 2 | BQ71: 3 | BR71: 4 | BS71: 5 | BT71: 6 | BU71: 7 | BV71: 8 | BW71: 9 | BX71: 10 | BY71: 11 | BZ71: 12 | CA71: 13 | CB71: 14 | CC71: 15 | CE71: 0.08451848 | CF71: 0.12971492 | CG71: 0.12971492 | CH71: 0.12971492 | CI71: 0.12971492 | CJ71: 0.12971492 | CK71: 0.12971492 | CL71: 0.12971492 | CM71: 0.12971492 | CN71: 0.12971492 | CO71: 0.12971492 | CP71: 0.12971492 | CQ71: 0.12971492 | CR71: 0.12971492 | CS71: 0.01207925668
AU72: O | AV72: 15 | AW72: A | AX72: 1 | AY72: 10.46859735 | AZ72: 11.02972795 | BA72: 11.59085855 | BB72: 12.15198915 | BC72: 12.71311975 | BD72: 13.27425035 | BE72: 13.83538095 | BF72: 14.39651155 | BG72: 14.95764215 | BH72: 14.97960242 | BI72: 14.98925419 | BJ72: 14.99890596 | BK72: 15.00855773 | BL72: 15.0182095 | BM72: 15.02786127 | BO72: 1 | BP72: 2 | BQ72: 3 | BR72: 4 | BS72: 5 | BT72: 6 | BU72: 7 | BV72: 8 | BW72: 9 | BX72: 10 | BY72: 11 | BZ72: 12 | CA72: 13 | CB72: 14 | CC72: 15 | CE72: 0.5611306 | CF72: 0.5611306 | CG72: 0.5611306 | CH72: 0.5611306 | CI72: 0.5611306 | CJ72: 0.5611306 | CK72: 0.5611306 | CL72: 0.5611306 | CM72: 0.02196027 | CN72: 0.00965177 | CO72: 0.00965177 | CP72: 0.00965177 | CQ72: 0.00965177 | CR72: 0.00965177 | CS72: 0.2821770804
AU73: O | AV73: 15 | AW73: A | AX73: 2 | AY73: 8.48836472 | AZ73: 8.95340338 | BA73: 9.41844204 | BB73: 9.8834807 | BC73: 10.34851936 | BD73: 10.81355802 | BE73: 11.27859668 | BF73: 11.74363534 | BG73: 12.208674 | BH73: 12.67371266 | BI73: 13.13875132 | BJ73: 13.60378998 | BK73: 14.06882864 | BL73: 14.5338673 | BM73: 14.99890596 | BO73: 1 | BP73: 2 | BQ73: 3 | BR73: 4 | BS73: 5 | BT73: 6 | BU73: 7 | BV73: 8 | BW73: 9 | BX73: 10 | BY73: 11 | BZ73: 12 | CA73: 13 | CB73: 14 | CC73: 15 | CE73: 0.46503866 | CF73: 0.46503866 | CG73: 0.46503866 | CH73: 0.46503866 | CI73: 0.46503866 | CJ73: 0.46503866 | CK73: 0.46503866 | CL73: 0.46503866 | CM73: 0.46503866 | CN73: 0.46503866 | CO73: 0.46503866 | CP73: 0.46503866 | CQ73: 0.46503866 | CR73: 0.46503866 | CS73: 8.836298032e-16
AU74: O | AV74: 15 | AW74: A | AX74: 3 | AY74: 9.3466617 | AZ74: 9.78144972 | BA74: 10.21623774 | BB74: 10.65102576 | BC74: 11.08581378 | BD74: 11.5206018 | BE74: 11.95538982 | BF74: 12.39017784 | BG74: 12.82496586 | BH74: 13.25975388 | BI74: 13.6945419 | BJ74: 14.12932992 | BK74: 14.56411794 | BL74: 14.99890596 | BM74: 15.43369398 | BO74: 1 | BP74: 2 | BQ74: 3 | BR74: 4 | BS74: 5 | BT74: 6 | BU74: 7 | BV74: 8 | BW74: 9 | BX74: 10 | BY74: 11 | BZ74: 12 | CA74: 13 | CB74: 14 | CC74: 15 | CE74: 0.43478802 | CF74: 0.43478802 | CG74: 0.43478802 | CH74: 0.43478802 | CI74: 0.43478802 | CJ74: 0.43478802 | CK74: 0.43478802 | CL74: 0.43478802 | CM74: 0.43478802 | CN74: 0.43478802 | CO74: 0.43478802 | CP74: 0.43478802 | CQ74: 0.43478802 | CR74: 0.43478802 | CS74: 9.217063053e-16
AU75: O | AV75: 15 | AW75: A | AX75: 4 | AY75: 14.00328191 | AZ75: 14.20240672 | BA75: 14.40153153 | BB75: 14.60065634 | BC75: 14.79978115 | BD75: 14.99890596 | BE75: 15.19803077 | BF75: 15.39715558 | BG75: 15.59628039 | BH75: 15.7954052 | BI75: 15.99453001 | BJ75: 16.19365482 | BK75: 16.39277963 | BL75: 16.59190444 | BM75: 16.79102925 | BO75: 1 | BP75: 2 | BQ75: 3 | BR75: 4 | BS75: 5 | BT75: 6 | BU75: 7 | BV75: 8 | BW75: 9 | BX75: 10 | BY75: 11 | BZ75: 12 | CA75: 13 | CB75: 14 | CC75: 15 | CE75: 0.19912481 | CF75: 0.19912481 | CG75: 0.19912481 | CH75: 0.19912481 | CI75: 0.19912481 | CJ75: 0.19912481 | CK75: 0.19912481 | CL75: 0.19912481 | CM75: 0.19912481 | CN75: 0.19912481 | CO75: 0.19912481 | CP75: 0.19912481 | CQ75: 0.19912481 | CR75: 0.19912481 | CS75: 8.832944216e-16
AU76: O | AV76: 15 | AW76: A | AX76: 5 | AY76: 13.65597733 | AZ76: 14.08241399 | BA76: 14.50885065 | BB76: 14.68604412 | BC76: 14.76425958 | BD76: 14.84247504 | BE76: 14.9206905 | BF76: 14.99890596 | BG76: 15.07712142 | BH76: 15.15533688 | BI76: 15.23355234 | BJ76: 15.3117678 | BK76: 15.38998326 | BL76: 15.46819872 | BM76: 15.54641418 | BO76: 1 | BP76: 2 | BQ76: 3 | BR76: 4 | BS76: 5 | BT76: 6 | BU76: 7 | BV76: 8 | BW76: 9 | BX76: 10 | BY76: 11 | BZ76: 12 | CA76: 13 | CB76: 14 | CC76: 15 | CE76: 0.42643666 | CF76: 0.42643666 | CG76: 0.17719347 | CH76: 0.07821546 | CI76: 0.07821546 | CJ76: 0.07821546 | CK76: 0.07821546 | CL76: 0.07821546 | CM76: 0.07821546 | CN76: 0.07821546 | CO76: 0.07821546 | CP76: 0.07821546 | CQ76: 0.07821546 | CR76: 0.07821546 | CS76: 0.1262233224
BO77: =AVERAGE(BO2:BO76) -> 1 | BP77: =AVERAGE(BP2:BP76) -> 2 | BQ77: 3 | BR77: 4 | BS77: 5 | BT77: 6 | BU77: 7 | BV77: 8 | BW77: 9 | BX77: 10 | BY77: 11 | BZ77: 12 | CA77: 13 | CB77: 14 | CC77: 15
BO78: =STDEV(BO2:BO76) -> 0 | BP78: =STDEV(BP2:BP76) -> 0 | BQ78: 0 | BR78: 0 | BS78: 0 | BT78: 0 | BU78: 0 | BV78: 0 | BW78: 0 | BX78: 0 | BY78: 0 | BZ78: 0 | CA78: 0 | CB78: 0 | CC78: 0

Sheet nn - ranked data - new (35)
A1: irány | B1: 0 | C1: 0 | D1: 0 | E1: 0 | F1: 0 | M1: súlyok | U1: 2. layer vektor | AK1: 2 layer súlyok | AS1: Futtat | AY1: 1 | AZ1: 2 | BA1: 3 | BB1: 4 | BC1: 5 | BD1: 6 | BE1: 7 | BF1: 8 | BG1: 9 | BH1: 10 | BI1: 11 | BJ1: 12 | BK1: 13 | BL1: 14 | BM1: 15 | BO1: Ranking | CE1: O2 - O1 | CF1: O3 - O2 | CG1: O4 - O3 | CH1: O5 - O4 | CI1: O6 - O5 | CJ1: O7 - O6 | CK1: O8 - O7 | CL1: O9 - O8 | CM1: O10 - O9 | CN1: O11 - O10 | CO1: O12 - O11 | CP1: O13 - 12 | CQ1: O14 - O13 | CR1: O15 - O14
A2: rnd(1-100) | B2: A1 | C2: A2 | D2: A3 | E2: A4 | F2: A5 | H2: rank = 0 | I2: =B2 -> A1 | J2: A2 | K2: A3 | L2: A4 | M2: A5 | O2: w1 | P2: w2 | Q2: w3 | R2: w4 | S2: w5 | U2: O1 | V2: O2 | W2: O3 | X2: O4 | Y2: O5 | Z2: O6 | AA2: O7 | AB2: O8 | AC2: O9 | AD2: O10 | AE2: O11 | AF2: O12 | AG2: O13 | AH2: O14 | AI2: O15 | AK2: w6 | AN2: Y0 | AO2: Ybecslés | AP2: eltérés | AQ2: MAE | AU2: O | AV2: 1 | AW2: A | AX2: 1 | AY2: 922.6327581 | AZ2: 962.2670241 | BA2: 1001.90129 | BB2: 1041.535556 | BC2: 1081.169822 | BD2: 1120.804088 | BE2: 1160.438354 | BF2: 1200.07262 | BG2: 1239.706886 | BH2: 1279.341152 | BI2: 1318.975418 | BJ2: 1358.609684 | BK2: 1398.24395 | BL2: 1437.878216 | BM2: 1477.512482 | BO2: =RANK(AY2,$AY2:$BM2, 1) -> 1 | BP2: =RANK(AZ2,$AY2:$BM2, 1) -> 2 | BQ2: 3 | BR2: 4 | BS2: 5 | BT2: 6 | BU2: 7 | BV2: =RANK(BF2,$AY2:$BM2, 1) -> 8 | BW2: 9 | BX2: 10 | BY2: 11 | BZ2: 12 | CA2: 13 | CB2: 14 | CC2: 15 | CE2: =AZ2-AY2 -> 39.634266 | CF2: =BA2-AZ2 -> 39.634266 | CG2: 39.634266 | CH2: 39.634266 | CI2: =BD2-BC2 -> 39.634266 | CJ2: 39.634266 | CK2: 39.634266 | CL2: 39.634266 | CM2: =BH2-BG2 -> 39.634266 | CN2: 39.634266 | CO2: 39.634266 | CP2: 39.634266 | CQ2: 39.634266 | CR2: =BM2-BL2 -> 39.634266 | CS2: =STDEV(CE2:CR2) -> 8.47167938e-14
A3: O1 | B3: 70 | C3: 10 | D3: 93 | E3: 33 | F3: 29 | H3: =A3 -> O1 | I3: 6 | J3: 13 | K3: 2 | L3: 11 | M3: 10 | O3: 39.634384 | P3: 2.2018464 | Q3: 0.9451806 | R3: 46.669975 | S3: 33.91167 | U3: =$I$3*$O3+$J$3*$P3+$K$3*$Q3+$L$3*$R3+$M$3*$S3 -> 1120.807093 | V3: =$I$4*$O3+$J$4*$P3+$K$4*$Q3+$L$4*$R3+$M$4*$S3 -> 1100.342123 | W3: =$I$5*$O3+$J$5*$P3+$K$5*$Q3+$L$5*$R3+$M$5*$S3 -> 796.3005746 | X3: =$I$6*$O3+$J$6*$P3+$K$6*$Q3+$L$6*$R3+$M$6*$S3 -> 1057.21296 | Y3: =$I$7*$O3+$J$7*$P3+$K$7*$Q3+$L$7*$R3+$M$7*$S3 -> 1156.884743 | Z3: =$I$8*$O3+$J$8*$P3+$K$8*$Q3+$L$8*$R3+$M$8*$S3 -> 725.843773 | AA3: =$I$9*$O3+$J$9*$P3+$K$9*$Q3+$L$9*$R3+$M$9*$S3 -> 1036.13349 | AB3: =$I$10*$O3+$J$10*$P3+$K$10*$Q3+$L$10*$R3+$M$10*$S3 -> 821.7736612 | AC3: =$I$11*$O3+$J$11*$P3+$K$11*$Q3+$L$11*$R3+$M$11*$S3 -> 1066.125061 | AD3: =$I$12*$O3+$J$12*$P3+$K$12*$Q3+$L$12*$R3+$M$12*$S3 -> 727.8281752 | AE3: =$I$13*$O3+$J$13*$P3+$K$13*$Q3+$L$13*$R3+$M$13*$S3 -> 1179.487984 | AF3: =$I$14*$O3+$J$14*$P3+$K$14*$Q3+$L$14*$R3+$M$14*$S3 -> 1054.598039 | AG3: =$I$15*$O3+$J$15*$P3+$K$15*$Q3+$L$15*$R3+$M$15*$S3 -> 817.7315206 | AH3: =$I$16*$O3+$J$16*$P3+$K$16*$Q3+$L$16*$R3+$M$16*$S3 -> 901.5426516 | AI3: =$I$17*$O3+$J$17*$P3+$K$17*$Q3+$L$17*$R3+$M$17*$S3 -> 1073.186042 | AK3: 100 | AM3: O1 | AN3: 1000 | AO3: =U30 -> 1120.804088 | AP3: =AN3-AO3 -> -120.8040881 | AQ3: =ABS(AP3) -> 120.8040881 | AU3: O | AV3: 1 | AW3: A | AX3: 2 | AY3: 1094.383208 | AZ3: 1096.584948 | BA3: 1098.786688 | BB3: 1100.988428 | BC3: 1103.190168 | BD3: 1105.391908 | BE3: 1107.593648 | BF3: 1109.795388 | BG3: 1111.997128 | BH3: 1114.198868 | BI3: 1116.400608 | BJ3: 1118.602348 | BK3: 1120.804088 | BL3: 1123.005828 | BM3: 1125.207568 | BO3: =RANK(AY3,$AY3:$BM3, 1) -> 1 | BP3: 2 | BQ3: 3 | BR3: 4 | BS3: 5 | BT3: 6 | BU3: 7 | BV3: 8 | BW3: 9 | BX3: 10 | BY3: 11 | BZ3: 12 | CA3: 13 | CB3: 14 | CC3: 15 | CE3: =AZ3-AY3 -> 2.20174 | CF3: 2.20174 | CG3: 2.20174 | CH3: 2.20174 | CI3: 2.20174 | CJ3: 2.20174 | CK3: 2.20174 | CL3: 2.20174 | CM3: 2.20174 | CN3: 2.20174 | CO3: 2.20174 | CP3: 2.20174 | CQ3: 2.20174 | CR3: 2.20174 | CS3: =STDEV(CE3:CR3) -> 6.076849185e-14
A4: O2 | B4: 17 | C4: 74 | D4: 84 | E4: 78 | F4: 23 | H4: =A4 -> O2 | I4: 13 | J4: 6 | K4: 4 | L4: 2 | M4: 14 | O4: 39.634243 | P4: 2.2016923 | Q4: 0.94561315 | R4: 46.66971 | S4: 33.911762 | U4: =$I$3*$O4+$J$3*$P4+$K$3*$Q4+$L$3*$R4+$M$3*$S4 -> 1120.803114 | V4: =$I$4*$O4+$J$4*$P4+$K$4*$Q4+$L$4*$R4+$M$4*$S4 -> 1100.341853 | W4: =$I$5*$O4+$J$5*$P4+$K$5*$Q4+$L$5*$R4+$M$5*$S4 -> 796.2972485 | X4: =$I$6*$O4+$J$6*$P4+$K$6*$Q4+$L$6*$R4+$M$6*$S4 -> 1057.210764 | Y4: =$I$7*$O4+$J$7*$P4+$K$7*$Q4+$L$7*$R4+$M$7*$S4 -> 1156.883371 | Z4: =$I$8*$O4+$J$8*$P4+$K$8*$Q4+$L$8*$R4+$M$8*$S4 -> 725.8436365 | AA4: =$I$9*$O4+$J$9*$P4+$K$9*$Q4+$L$9*$R4+$M$9*$S4 -> 1036.134284 | AB4: =$I$10*$O4+$J$10*$P4+$K$10*$Q4+$L$10*$R4+$M$10*$S4 -> 821.7743355 | AC4: =$I$11*$O4+$J$11*$P4+$K$11*$Q4+$L$11*$R4+$M$11*$S4 -> 1066.127231 | AD4: =$I$12*$O4+$J$12*$P4+$K$12*$Q4+$L$12*$R4+$M$12*$S4 -> 727.8288501 | AE4: =$I$13*$O4+$J$13*$P4+$K$13*$Q4+$L$13*$R4+$M$13*$S4 -> 1179.488426 | AF4: =$I$14*$O4+$J$14*$P4+$K$14*$Q4+$L$14*$R4+$M$14*$S4 -> 1054.600264 | AG4: =$I$15*$O4+$J$15*$P4+$K$15*$Q4+$L$15*$R4+$M$15*$S4 -> 817.7322134 | AH4: =$I$16*$O4+$J$16*$P4+$K$16*$Q4+$L$16*$R4+$M$16*$S4 -> 901.5416017 | AI4: =$I$17*$O4+$J$17*$P4+$K$17*$Q4+$L$17*$R4+$M$17*$S4 -> 1073.187241 | AK4: 100 | AM4: O2 | AN4: 1000 | AO4: =V30 -> 1100.341954 | AP4: =AN4-AO4 -> -100.3419538 | AQ4: =ABS(AP4) -> 100.3419538 | AU4: O | AV4: 1 | AW4: A | AX4: 3 | AY4: 1119.858575 | AZ4: 1120.804088 | BA4: 1121.749602 | BB4: 1122.695115 | BC4: 1123.640629 | BD4: 1124.586142 | BE4: 1125.531656 | BF4: 1126.477169 | BG4: 1127.422683 | BH4: 1128.368196 | BI4: 1129.31371 | BJ4: 1130.259085 | BK4: 1131.20442 | BL4: 1132.149754 | BM4: 1133.095088 | BO4: =RANK(AY4,$AY4:$BM4, 1) -> 1 | BP4: 2 | BQ4: 3 | BR4: 4 | BS4: 5 | BT4: 6 | BU4: 7 | BV4: 8 | BW4: 9 | BX4: 10 | BY4: 11 | BZ4: 12 | CA4: 13 | CB4: 14 | CC4: 15 | CE4: 0.94551355 | CF4: 0.94551355 | CG4: 0.94551355 | CH4: 0.94551355 | CI4: 0.94551355 | CJ4: 0.94551355 | CK4: 0.94551355 | CL4: 0.94551355 | CM4: 0.94551355 | CN4: 0.94551355 | CO4: 0.94537511 | CP4: 0.94533443 | CQ4: 0.94533443 | CR4: 0.94533443 | CS4: 7.980540049e-05
A5: O3 | B5: 57 | C5: 57 | D5: 89 | E5: 37 | F5: 85 | H5: O3 | I5: 7 | J5: 7 | K5: 3 | L5: 10 | M5: 1 | O5: 39.634266 | P5: 2.20174 | Q5: 0.94551355 | R5: 46.669765 | S5: 33.911743 | U5: =$I$3*$O5+$J$3*$P5+$K$3*$Q5+$L$3*$R5+$M$3*$S5 -> 1120.804088 | V5: =$I$4*$O5+$J$4*$P5+$K$4*$Q5+$L$4*$R5+$M$4*$S5 -> 1100.341884 | W5: =$I$5*$O5+$J$5*$P5+$K$5*$Q5+$L$5*$R5+$M$5*$S5 -> 796.2979756 | X5: 1057.211136 | Y5: 1156.883722 | Z5: 725.8437115 | AA5: 1036.134086 | AB5: 821.7740704 | AC5: 1066.126769 | AD5: 727.8287628 | AE5: 1179.488186 | AF5: 1054.599856 | AG5: 817.7319859 | AH5: 901.5418205 | AI5: 1073.187016 | AK5: 100 | AM5: O3 | AN5: 1000 | AO5: =W30 -> 796.2979756 | AP5: 203.7020244 | AQ5: =ABS(AP5) -> 203.7020244 | AU5: O | AV5: 1 | AW5: A | AX5: 4 | AY5: 654.1064381 | AZ5: 700.7762031 | BA5: 747.4459681 | BB5: 794.1157331 | BC5: 840.7854981 | BD5: 887.4552631 | BE5: 934.1250281 | BF5: 980.7947931 | BG5: 1027.464558 | BH5: 1074.134323 | BI5: 1120.804088 | BJ5: 1167.473853 | BK5: 1214.143618 | BL5: 1260.813383 | BM5: 1307.483148 | BO5: 1 | BP5: 2 | BQ5: 3 | BR5: 4 | BS5: 5 | BT5: 6 | BU5: 7 | BV5: 8 | BW5: 9 | BX5: 10 | BY5: 11 | BZ5: 12 | CA5: 13 | CB5: 14 | CC5: 15 | CE5: 46.669765 | CF5: 46.669765 | CG5: 46.669765 | CH5: 46.669765 | CI5: 46.669765 | CJ5: 46.669765 | CK5: 46.669765 | CL5: 46.669765 | CM5: 46.669765 | CN5: 46.669765 | CO5: 46.669765 | CP5: 46.669765 | CQ5: 46.669765 | CR5: 46.669765 | CS5: 9.829778136e-14
A6: O4 | B6: 13 | C6: 88 | D6: 62 | E6: 44 | F6: 75 | H6: O4 | I6: 14 | J6: 4 | K6: 6 | L6: 9 | M6: 2 | O6: 39.634274 | P6: 2.2017257 | Q6: 0.9455339 | R6: 46.66975 | S6: 33.911743 | U6: 1120.803826 | V6: =$I$4*$O6+$J$4*$P6+$K$4*$Q6+$L$4*$R6+$M$4*$S6 -> 1100.341954 | W6: 796.2978426 | X6: 1057.211178 | Y6: 1156.883547 | Z6: 725.843623 | AA6: 1036.134224 | AB6: 821.7742089 | AC6: 1066.126744 | AD6: 727.8287371 | AE6: 1179.488273 | AF6: 1054.599904 | AG6: 817.732034 | AH6: 901.5418424 | AI6: 1073.187092 | AK6: 100 | AM6: O4 | AN6: 1000 | AO6: =X30 -> 1057.211178 | AP6: -57.2111782 | AQ6: 57.2111782 | AU6: O | AV6: 1 | AW6: A | AX6: 5 | AY6: 815.5984011 | AZ6: 849.5101441 | BA6: 883.4218871 | BB6: 917.3336301 | BC6: 951.2453731 | BD6: 985.1571161 | BE6: 1019.068859 | BF6: 1052.980602 | BG6: 1086.892345 | BH6: 1120.804088 | BI6: 1154.715831 | BJ6: 1188.627574 | BK6: 1222.539317 | BL6: 1256.45106 | BM6: 1290.362803 | BO6: 1 | BP6: 2 | BQ6: 3 | BR6: 4 | BS6: 5 | BT6: 6 | BU6: 7 | BV6: 8 | BW6: 9 | BX6: 10 | BY6: 11 | BZ6: 12 | CA6: 13 | CB6: 14 | CC6: 15 | CE6: 33.911743 | CF6: =BA6-AZ6 -> 33.911743 | CG6: 33.911743 | CH6: 33.911743 | CI6: 33.911743 | CJ6: 33.911743 | CK6: 33.911743 | CL6: 33.911743 | CM6: 33.911743 | CN6: 33.911743 | CO6: 33.911743 | CP6: 33.911743 | CQ6: 33.911743 | CR6: 33.911743 | CS6: 8.300329546e-14
A7: O5 | B7: 76 | C7: 25 | D7: 28 | E7: 1 | F7: 33 | H7: O5 | I7: 3 | J7: 11 | K7: 9 | L7: 15 | M7: 9 | O7: 39.63433 | P7: 2.20181 | Q7: 0.94533443 | R7: 46.669872 | S7: 33.911697 | U7: 1120.805741 | V7: 1100.34199 | W7: 796.2994003 | X7: 1057.212109 | Y7: 1156.884263 | Z7: 725.8437873 | AA7: 1036.133863 | AB7: 821.7738054 | AC7: 1066.125814 | AD7: 727.8284521 | AE7: 1179.487977 | AF7: 1054.598936 | AG7: 817.731656 | AH7: 901.5422504 | AI7: 1073.1866 | AK7: 100 | AM7: O5 | AN7: 1000 | AO7: =Y30 -> 1156.883722 | AP7: -156.883722 | AQ7: 156.883722 | AU7: O | AV7: 2 | AW7: A | AX7: 1 | AY7: 624.7300297 | AZ7: 664.3643597 | BA7: 703.9986897 | BB7: 743.6330197 | BC7: 783.2673497 | BD7: 822.9016797 | BE7: 862.5360097 | BF7: 902.1703397 | BG7: 941.8046697 | BH7: 981.4389997 | BI7: 1021.07333 | BJ7: 1060.70766 | BK7: 1100.341954 | BL7: 1139.976228 | BM7: 1179.610502 | BO7: 1 | BP7: 2 | BQ7: 3 | BR7: 4 | BS7: 5 | BT7: 6 | BU7: 7 | BV7: 8 | BW7: 9 | BX7: 10 | BY7: 11 | BZ7: 12 | CA7: 13 | CB7: 14 | CC7: 15 | CE7: 39.63433 | CF7: 39.63433 | CG7: 39.63433 | CH7: 39.63433 | CI7: 39.63433 | CJ7: 39.63433 | CK7: 39.63433 | CL7: 39.63433 | CM7: 39.63433 | CN7: 39.63433 | CO7: 39.63433 | CP7: 39.63429408 | CQ7: 39.634274 | CR7: 39.634274 | CS7: 2.148231104e-05
A8: O6 | B8: 82 | C8: 33 | D8: 24 | E8: 33 | F8: 73 | H8: O6 | I8: 2 | J8: 10 | K8: 10 | L8: 11 | M8: 3 | AM8: O6 | AN8: 1000 | AO8: =Z30 -> 725.8437115 | AP8: 274.1562885 | AQ8: 274.1562885 | AU8: O | AV8: 2 | AW8: A | AX8: 2 | AY8: 1089.33294 | AZ8: 1091.53475 | BA8: 1093.73656 | BB8: 1095.93837 | BC8: 1098.14018 | BD8: 1100.341954 | BE8: 1102.54368 | BF8: 1104.745405 | BG8: 1106.947131 | BH8: 1109.148857 | BI8: 1111.350584 | BJ8: 1113.552324 | BK8: 1115.754064 | BL8: 1117.955804 | BM8: 1120.157544 | BO8: 1 | BP8: 2 | BQ8: 3 | BR8: 4 | BS8: 5 | BT8: 6 | BU8: 7 | BV8: 8 | BW8: 9 | BX8: 10 | BY8: 11 | BZ8: 12 | CA8: 13 | CB8: 14 | CC8: 15 | CE8: 2.20181 | CF8: 2.20181 | CG8: 2.20181 | CH8: 2.20181 | CI8: 2.20177408 | CJ8: 2.2017257 | CK8: 2.2017257 | CL8: 2.2017257 | CM8: 2.2017257 | CN8: 2.2017276 | CO8: 2.20174 | CP8: 2.20174 | CQ8: 2.20174 | CR8: 2.20174 | CS8: 3.665205112e-05
A9: O7 | B9: 12 | C9: 19 | D9: 11 | E9: 69 | F9: 55 | H9: O7 | I9: 15 | J9: 12 | K9: 13 | L9: 5 | M9: 5 | AM9: O7 | AN9: 1000 | AO9: =AA30 -> 1036.133863 | AP9: -36.13386259 | AQ9: 36.13386259 | AU9: O | AV9: 2 | AW9: A | AX9: 3 | AY9: 1097.505352 | AZ9: 1098.450886 | BA9: 1099.39642 | BB9: 1100.341954 | BC9: 1101.287324 | BD9: 1102.232659 | BE9: 1103.177993 | BF9: 1104.123327 | BG9: 1105.068662 | BH9: 1106.013996 | BI9: 1106.959331 | BJ9: 1107.904665 | BK9: 1108.85 | BL9: 1109.795334 | BM9: 1110.740668 | BO9: 1 | BP9: 2 | BQ9: 3 | BR9: 4 | BS9: 5 | BT9: 6 | BU9: 7 | BV9: 8 | BW9: 9 | BX9: 10 | BY9: 11 | BZ9: 12 | CA9: 13 | CB9: 14 | CC9: 15 | CE9: 0.9455339 | CF9: 0.9455339 | CG9: 0.9455339 | CH9: 0.94537035 | CI9: 0.94533443 | CJ9: 0.94533443 | CK9: 0.94533443 | CL9: 0.94533443 | CM9: 0.94533443 | CN9: 0.94533443 | CO9: 0.94533443 | CP9: 0.94533443 | CQ9: 0.94533443 | CR9: 0.94533443 | CS9: 8.40851445e-05
A10: O8 | B10: 39 | C10: 97 | D10: 57 | E10: 56 | F10: 67 | H10: O8 | I10: 10 | J10: 1 | K10: 8 | L10: 6 | M10: 4 | AM10: O8 | AN10: 1000 | AO10: =AB30 -> 821.7738054 | AP10: 178.2261946 | AQ10: 178.2261946 | AU10: O | AV10: 2 | AW10: A | AX10: 4 | AY10: 1053.672118 | AZ10: 1100.341954 | BA10: 1147.011704 | BB10: 1193.681454 | BC10: 1240.351204 | BD10: 1287.020954 | BE10: 1333.690709 | BF10: 1380.360474 | BG10: 1427.030239 | BH10: 1473.700004 | BI10: 1520.369769 | BJ10: 1567.039534 | BK10: 1613.709299 | BL10: 1660.379064 | BM10: 1707.048829 | BO10: 1 | BP10: 2 | BQ10: 3 | BR10: 4 | BS10: 5 | BT10: 6 | BU10: 7 | BV10: 8 | BW10: 9 | BX10: 10 | BY10: 11 | BZ10: 12 | CA10: 13 | CB10: 14 | CC10: 15 | CE10: 46.66983608 | CF10: 46.66975 | CG10: 46.66975 | CH10: 46.66975 | CI10: 46.66975 | CJ10: 46.6697554 | CK10: 46.669765 | CL10: 46.669765 | CM10: 46.669765 | CN10: 46.669765 | CO10: 46.669765 | CP10: 46.669765 | CQ10: 46.669765 | CR10: 46.669765 | CS10: 2.156273487e-05
A11: O9 | B11: 90 | C11: 37 | D11: 1 | E11: 6 | F11: 29 | H11: O9 | I11: 1 | J11: 9 | K11: 15 | L11: 14 | M11: 10 | AM11: O9 | AN11: 1000 | AO11: =AC30 -> 1066.125814 | AP11: -66.12581445 | AQ11: 66.12581445 | AU11: O | AV11: 2 | AW11: A | AX11: 5 | AY11: 659.4892948 | AZ11: 693.4010378 | BA11: 727.3127808 | BB11: 761.2245238 | BC11: 795.1362668 | BD11: 829.0480098 | BE11: 862.9597528 | BF11: 896.8714958 | BG11: 930.7832388 | BH11: 964.6949818 | BI11: 998.6067248 | BJ11: 1032.518468 | BK11: 1066.430211 | BL11: 1100.341954 | BM11: 1134.253687 | BO11: 1 | BP11: 2 | BQ11: 3 | BR11: 4 | BS11: 5 | BT11: 6 | BU11: 7 | BV11: 8 | BW11: 9 | BX11: 10 | BY11: 11 | BZ11: 12 | CA11: 13 | CB11: 14 | CC11: 15 | CE11: 33.911743 | CF11: 33.911743 | CG11: 33.911743 | CH11: 33.911743 | CI11: 33.911743 | CJ11: 33.911743 | CK11: 33.911743 | CL11: 33.911743 | CM11: 33.911743 | CN11: 33.911743 | CO11: 33.911743 | CP11: 33.911743 | CQ11: 33.911743 | CR11: 33.91173292 | CS11: 2.693993296e-06
A12: O10 | B12: 74 | C12: 47 | D12: 82 | E12: 76 | F12: 24 | H12: O10 | I12: 4 | J12: 8 | K12: 5 | L12: 3 | M12: 12 | AM12: O10 | AN12: 1000 | AO12: =AD30 -> 727.8284521 | AP12: 272.1715479 | AQ12: 272.1715479 | AU12: O | AV12: 3 | AW12: A | AX12: 1 | AY12: 558.4923796 | AZ12: 598.1266457 | BA12: 637.7609116 | BB12: 677.3951776 | BC12: 717.0294436 | BD12: 756.6637096 | BE12: 796.2979756 | BF12: 835.9322416 | BG12: 875.5665076 | BH12: 915.2007736 | BI12: 954.8350396 | BJ12: 994.4693056 | BK12: 1034.103572 | BL12: 1073.737838 | BM12: 1113.372104 | BO12: 1 | BP12: 2 | BQ12: 3 | BR12: 4 | BS12: 5 | BT12: 6 | BU12: 7 | BV12: 8 | BW12: 9 | BX12: 10 | BY12: 11 | BZ12: 12 | CA12: 13 | CB12: 14 | CC12: 15 | CE12: 39.634266 | CF12: 39.634266 | CG12: 39.634266 | CH12: 39.634266 | CI12: 39.634266 | CJ12: 39.634266 | CK12: 39.634266 | CL12: 39.634266 | CM12: 39.634266 | CN12: 39.634266 | CO12: 39.634266 | CP12: 39.634266 | CQ12: 39.634266 | CR12: 39.634266 | CS12: 6.080467924e-14
A13: O11 | B13: 43 | C13: 97 | D13: 15 | E13: 28 | F13: 46 | H13: O11 | I13: 9 | J13: 1 | K13: 11 | L13: 13 | M13: 6 | AM13: O11 | AN13: 1000 | AO13: =AE30 -> 1179.487977 | AP13: -179.4879767 | AQ13: 179.4879767 | AU13: O | AV13: 3 | AW13: A | AX13: 2 | AY13: 783.0875356 | AZ13: 785.2892756 | BA13: 787.4910156 | BB13: 789.6927556 | BC13: 791.8944956 | BD13: 794.0962356 | BE13: 796.2979756 | BF13: 798.4997156 | BG13: 800.7014556 | BH13: 802.9031956 | BI13: 805.1049356 | BJ13: 807.3066756 | BK13: 809.5084156 | BL13: 811.7101556 | BM13: 813.9118956 | BO13: 1 | BP13: 2 | BQ13: 3 | BR13: 4 | BS13: 5 | BT13: 6 | BU13: 7 | BV13: 8 | BW13: 9 | BX13: 10 | BY13: 11 | BZ13: 12 | CA13: 13 | CB13: 14 | CC13: 15 | CE13: 2.20174 | CF13: 2.20174 | CG13: 2.20174 | CH13: 2.20174 | CI13: 2.20174 | CJ13: 2.20174 | CK13: 2.20174 | CL13: 2.20174 | CM13: 2.20174 | CN13: 2.20174 | CO13: 2.20174 | CP13: 2.20174 | CQ13: 2.20174 | CR13: 2.20174 | CS13: 4.840964123e-14
A14: O12 | B14: 49 | C14: 9 | D14: 13 | E14: 72 | F14: 7 | H14: O12 | I14: 8 | J14: 14 | K14: 12 | L14: 4 | M14: 15 | AM14: O12 | AN14: 1000 | AO14: =AF30 -> 1054.598936 | AP14: -54.59893616 | AQ14: 54.59893616 | AU14: O | AV14: 3 | AW14: A | AX14: 3 | AY14: 794.4069485 | AZ14: 795.3524621 | BA14: 796.2979756 | BB14: 797.2434892 | BC14: 798.1890027 | BD14: 799.1345163 | BE14: 800.0800298 | BF14: 801.0255434 | BG14: 801.9710569 | BH14: 802.9165799 | BI14: 803.8620757 | BJ14: 804.8074102 | BK14: 805.7527446 | BL14: 806.698079 | BM14: 807.6434135 | BO14: 1 | BP14: 2 | BQ14: 3 | BR14: 4 | BS14: 5 | BT14: 6 | BU14: 7 | BV14: 8 | BW14: 9 | BX14: 10 | BY14: 11 | BZ14: 12 | CA14: 13 | CB14: 14 | CC14: 15 | CE14: 0.94551355 | CF14: 0.94551355 | CG14: 0.94551355 | CH14: 0.94551355 | CI14: 0.94551355 | CJ14: 0.94551355 | CK14: 0.94551355 | CL14: 0.94551355 | CM14: 0.94552295 | CN14: 0.94549583 | CO14: 0.94533443 | CP14: 0.94533443 | CQ14: 0.94533443 | CR14: 0.94533443 | CS14: 8.376447043e-05
A15: O13 | B15: 72 | C15: 97 | D15: 60 | E15: 49 | F15: 38 | H15: O13 | I15: 5 | J15: 1 | K15: 7 | L15: 8 | M15: 7 | AM15: O13 | AN15: 1000 | AO15: =AG30 -> 817.731656 | AP15: 182.268344 | AQ15: 182.268344 | AU15: O | AV15: 3 | AW15: A | AX15: 4 | AY15: 376.2700926 | AZ15: 422.9398556 | BA15: 469.6096206 | BB15: 516.2793856 | BC15: 562.9491506 | BD15: 609.6189156 | BE15: 656.2886806 | BF15: 702.9584456 | BG15: 749.6282106 | BH15: 796.2979756 | BI15: 842.9677406 | BJ15: 889.6375056 | BK15: 936.3072706 | BL15: 982.9770356 | BM15: 1029.646801 | BO15: 1 | BP15: 2 | BQ15: 3 | BR15: 4 | BS15: 5 | BT15: 6 | BU15: 7 | BV15: 8 | BW15: 9 | BX15: 10 | BY15: 11 | BZ15: 12 | CA15: 13 | CB15: 14 | CC15: 15 | CE15: 46.66976305 | CF15: 46.669765 | CG15: 46.669765 | CH15: 46.669765 | CI15: 46.669765 | CJ15: 46.669765 | CK15: 46.669765 | CL15: 46.669765 | CM15: 46.669765 | CN15: 46.669765 | CO15: 46.669765 | CP15: 46.669765 | CQ15: 46.669765 | CR15: 46.669765 | CS15: 5.211594448e-07
A16: O14 | B16: 38 | C16: 80 | D16: 96 | E16: 89 | F16: 24 | H16: O14 | I16: 11 | J16: 5 | K16: 1 | L16: 1 | M16: 12 | AM16: O14 | AN16: 1000 | AO16: =AH30 -> 901.5418424 | AP16: 98.4581576 | AQ16: 98.4581576 | AU16: O | AV16: 3 | AW16: A | AX16: 5 | AY16: 796.2979756 | AZ16: 830.2097186 | BA16: 864.1214616 | BB16: 898.0332046 | BC16: 931.9449476 | BD16: 965.8566906 | BE16: 999.7684336 | BF16: 1033.680177 | BG16: 1067.59192 | BH16: 1101.503663 | BI16: 1135.415406 | BJ16: 1169.327149 | BK16: 1203.238892 | BL16: 1237.150635 | BM16: 1271.062378 | BO16: 1 | BP16: 2 | BQ16: 3 | BR16: 4 | BS16: 5 | BT16: 6 | BU16: 7 | BV16: 8 | BW16: 9 | BX16: 10 | BY16: 11 | BZ16: 12 | CA16: 13 | CB16: 14 | CC16: 15 | CE16: 33.911743 | CF16: 33.911743 | CG16: 33.911743 | CH16: 33.911743 | CI16: 33.911743 | CJ16: 33.911743 | CK16: 33.911743 | CL16: 33.911743 | CM16: 33.911743 | CN16: 33.911743 | CO16: 33.911743 | CP16: 33.911743 | CQ16: 33.911743 | CR16: 33.911743 | CS16: 8.918329292e-14
A17: O15 | B17: 34 | C17: 7 | D17: 4 | E17: 56 | F17: 34 | H17: O15 | I17: 12 | J17: 15 | K17: 14 | L17: 6 | M17: 8 | AM17: O15 | AN17: 1000 | AO17: =AI30 -> 1073.1866 | AP17: -73.18660002 | AQ17: 73.18660002 | AU17: O | AV17: 4 | AW17: A | AX17: 1 | AY17: 541.9656783 | AZ17: 581.5999443 | BA17: 621.2342103 | BB17: 660.8684763 | BC17: 700.5027423 | BD17: 740.1370083 | BE17: 779.7712743 | BF17: 819.4055403 | BG17: 859.0398082 | BH17: 898.6740822 | BI17: 938.3083562 | BJ17: 977.9426302 | BK17: 1017.576904 | BL17: 1057.211178 | BM17: 1096.845452 | BO17: 1 | BP17: 2 | BQ17: 3 | BR17: 4 | BS17: 5 | BT17: 6 | BU17: 7 | BV17: 8 | BW17: 9 | BX17: 10 | BY17: 11 | BZ17: 12 | CA17: 13 | CB17: 14 | CC17: 15 | CE17: 39.634266 | CF17: 39.634266 | CG17: 39.634266 | CH17: 39.634266 | CI17: 39.634266 | CJ17: 39.634266 | CK17: 39.634266 | CL17: 39.6342679 | CM17: 39.634274 | CN17: 39.634274 | CO17: 39.634274 | CP17: 39.634274 | CQ17: 39.634274 | CR17: 39.634274 | CS17: 4.016812204e-06
AN18: szum | AO18: szum | AP18: hiba | AU18: O | AV18: 4 | AW18: A | AX18: 2 | AY18: 1050.606001 | AZ18: 1052.807727 | BA18: 1055.009452 | BB18: 1057.211178 | BC18: 1059.412904 | BD18: 1061.61463 | BE18: 1063.816356 | BF18: 1066.018096 | BG18: 1068.219836 | BH18: 1070.421576 | BI18: 1072.623316 | BJ18: 1074.825056 | BK18: 1077.026796 | BL18: 1079.228536 | BM18: 1081.430276 | BO18: 1 | BP18: 2 | BQ18: 3 | BR18: 4 | BS18: 5 | BT18: 6 | BU18: 7 | BV18: 8 | BW18: 9 | BX18: 10 | BY18: 11 | BZ18: 12 | CA18: 13 | CB18: 14 | CC18: 15 | CE18: 2.2017257 | CF18: 2.2017257 | CG18: 2.2017257 | CH18: 2.2017257 | CI18: 2.2017257 | CJ18: 2.2017267 | CK18: 2.20174 | CL18: 2.20174 | CM18: 2.20174 | CN18: 2.20174 | CO18: 2.20174 | CP18: 2.20174 | CQ18: 2.20174 | CR18: 2.20174 | CS18: 7.262624502e-06
U19: Activation - linear | AK19: Szórás | AN19: =SUM(AN3:AN17) -> 15000 | AO19: =SUM(AO3:AO17) -> 14635.79158 | AP19: =SUMSQ(AP3:AP17) -> 364193.1631 | AQ19: =SUM(AQ3:AQ17)/15 -> 136.9171126 | AU19: O | AV19: 4 | AW19: A | AX19: 3 | AY19: 1052.483569 | AZ19: 1053.429082 | BA19: 1054.374596 | BB19: 1055.32011 | BC19: 1056.265644 | BD19: 1057.211178 | BE19: 1058.156712 | BF19: 1059.102246 | BG19: 1060.04778 | BH19: 1060.993314 | BI19: 1061.938781 | BJ19: 1062.884115 | BK19: 1063.82945 | BL19: 1064.774784 | BM19: 1065.720118 | BO19: 1 | BP19: 2 | BQ19: 3 | BR19: 4 | BS19: 5 | BT19: 6 | BU19: 7 | BV19: 8 | BW19: 9 | BX19: 10 | BY19: 11 | BZ19: 12 | CA19: 13 | CB19: 14 | CC19: 15 | CE19: 0.94551355 | CF19: 0.94551355 | CG19: 0.94551475 | CH19: 0.9455339 | CI19: 0.9455339 | CJ19: 0.9455339 | CK19: 0.9455339 | CL19: 0.9455339 | CM19: 0.9455339 | CN19: 0.94546693 | CO19: 0.94533443 | CP19: 0.94533443 | CQ19: 0.94533443 | CR19: 0.94533443 | CS19: 8.933800854e-05
T20: A | U20: =IF(U3>0,U3,U3*$T$15) -> 1120.807093 | V20: 1100.342123 | W20: 796.3005746 | X20: 1057.21296 | Y20: 1156.884743 | Z20: 725.843773 | AA20: 1036.13349 | AB20: 821.7736612 | AC20: 1066.125061 | AD20: 727.8281752 | AE20: 1179.487984 | AF20: 1054.598039 | AG20: 817.7315206 | AH20: 901.5426516 | AI20: 1073.186042 | AK20: =STDEV(U20:AI20) -> 159.3178012 | AP20: hiba2 | AU20: O | AV20: 4 | AW20: A | AX20: 4 | AY20: 683.8531326 | AZ20: 730.5229282 | BA20: 777.1926782 | BB20: 823.8624282 | BC20: 870.5321782 | BD20: 917.2019282 | BE20: 963.8716782 | BF20: 1010.541428 | BG20: 1057.211178 | BH20: 1103.880928 | BI20: 1150.550678 | BJ20: 1197.220431 | BK20: 1243.890196 | BL20: 1290.559961 | BM20: 1337.229726 | BO20: 1 | BP20: 2 | BQ20: 3 | BR20: 4 | BS20: 5 | BT20: 6 | BU20: 7 | BV20: 8 | BW20: 9 | BX20: 10 | BY20: 11 | BZ20: 12 | CA20: 13 | CB20: 14 | CC20: 15 | CE20: 46.66979562 | CF20: 46.66975 | CG20: 46.66975 | CH20: 46.66975 | CI20: 46.66975 | CJ20: 46.66975 | CK20: 46.66975 | CL20: 46.66975 | CM20: 46.66975 | CN20: 46.66975 | CO20: 46.6697531 | CP20: 46.669765 | CQ20: 46.669765 | CR20: 46.669765 | CS20: 1.282547329e-05
T21: A | U21: =IF(U4>0,U4,U4*$T$15) -> 1120.803114 | V21: 1100.341853 | W21: 796.2972485 | X21: 1057.210764 | Y21: 1156.883371 | Z21: 725.8436365 | AA21: 1036.134284 | AB21: 821.7743355 | AC21: 1066.127231 | AD21: 727.8288501 | AE21: 1179.488426 | AF21: 1054.600264 | AG21: 817.7322134 | AH21: 901.5416017 | AI21: 1073.187241 | AK21: =STDEV(U21:AI21) -> 159.3177637 | AP21: =ABS(AN19-AO19) -> 364.2084248 | AU21: O | AV21: 4 | AW21: A | AX21: 5 | AY21: 1023.299435 | AZ21: 1057.211178 | BA21: 1091.122921 | BB21: 1125.034664 | BC21: 1158.946407 | BD21: 1192.85815 | BE21: 1226.769893 | BF21: 1260.681636 | BG21: 1294.593379 | BH21: 1328.505122 | BI21: 1362.416865 | BJ21: 1396.328608 | BK21: 1430.240351 | BL21: 1464.152094 | BM21: 1498.063837 | BO21: 1 | BP21: 2 | BQ21: 3 | BR21: 4 | BS21: 5 | BT21: 6 | BU21: 7 | BV21: 8 | BW21: 9 | BX21: 10 | BY21: 11 | BZ21: 12 | CA21: 13 | CB21: 14 | CC21: 15 | CE21: 33.911743 | CF21: 33.911743 | CG21: 33.911743 | CH21: 33.911743 | CI21: 33.911743 | CJ21: 33.911743 | CK21: 33.911743 | CL21: 33.911743 | CM21: 33.911743 | CN21: 33.911743 | CO21: 33.911743 | CP21: 33.911743 | CQ21: 33.911743 | CR21: 33.911743 | CS21: 1.133789745e-13
T22: B | U22: =IF(U5>0,U5,U5*$T$15) -> 1120.804088 | V22: 1100.341884 | W22: 796.2979756 | X22: 1057.211136 | Y22: 1156.883722 | Z22: 725.8437115 | AA22: 1036.134086 | AB22: 821.7740704 | AC22: 1066.126769 | AD22: 727.8287628 | AE22: 1179.488186 | AF22: 1054.599856 | AG22: 817.7319859 | AH22: 901.5418205 | AI22: 1073.187016 | AK22: 159.3177706 | AP22: hiba3 | AU22: O | AV22: 5 | AW22: A | AX22: 1 | AY22: 1077.61519 | AZ22: 1117.249456 | BA22: 1156.883722 | BB22: 1196.517988 | BC22: 1236.152254 | BD22: 1275.78652 | BE22: 1315.420786 | BF22: 1355.055052 | BG22: 1394.689318 | BH22: 1434.323584 | BI22: 1473.95785 | BJ22: 1513.592116 | BK22: 1553.226382 | BL22: 1592.860648 | BM22: 1632.494914 | BO22: 1 | BP22: 2 | BQ22: 3 | BR22: 4 | BS22: 5 | BT22: 6 | BU22: 7 | BV22: 8 | BW22: 9 | BX22: 10 | BY22: 11 | BZ22: 12 | CA22: 13 | CB22: 14 | CC22: 15 | CE22: 39.634266 | CF22: 39.634266 | CG22: 39.634266 | CH22: 39.634266 | CI22: 39.634266 | CJ22: 39.634266 | CK22: 39.634266 | CL22: 39.634266 | CM22: 39.634266 | CN22: 39.634266 | CO22: 39.634266 | CP22: 39.634266 | CQ22: 39.634266 | CR22: 39.634266 | CS22: 8.26281374e-14
T23: B | U23: =IF(U6>0,U6,U6*$T$15) -> 1120.803826 | V23: 1100.341954 | W23: 796.2978426 | X23: 1057.211178 | Y23: 1156.883547 | Z23: 725.843623 | AA23: 1036.134224 | AB23: 821.7742089 | AC23: 1066.126744 | AD23: 727.8287371 | AE23: 1179.488273 | AF23: 1054.599904 | AG23: 817.732034 | AH23: 901.5418424 | AI23: 1073.187092 | AK23: 159.3177701 | AP23: =AP19*AP21 -> 132642218.3 | AU23: O | AV23: 5 | AW23: A | AX23: 2 | AY23: 1134.866163 | AZ23: 1137.067973 | BA23: 1139.269783 | BB23: 1141.471542 | BC23: 1143.673282 | BD23: 1145.875022 | BE23: 1148.076762 | BF23: 1150.278502 | BG23: 1152.480242 | BH23: 1154.681982 | BI23: 1156.883722 | BJ23: 1159.085462 | BK23: 1161.287202 | BL23: 1163.488942 | BM23: 1165.690682 | BO23: 1 | BP23: 2 | BQ23: 3 | BR23: 4 | BS23: 5 | BT23: 6 | BU23: 7 | BV23: 8 | BW23: 9 | BX23: 10 | BY23: 11 | BZ23: 12 | CA23: 13 | CB23: 14 | CC23: 15 | CE23: 2.20181 | CF23: 2.20181 | CG23: 2.20175908 | CH23: 2.20174 | CI23: 2.20174 | CJ23: 2.20174 | CK23: 2.20174 | CL23: 2.20174 | CM23: 2.20174 | CN23: 2.20174 | CO23: 2.20174 | CP23: 2.20174 | CQ23: 2.20174 | CR23: 2.20174 | CS23: 2.535356611e-05
T24: C | U24: =IF(U7>0,U7,U7*$T$15) -> 1120.805741 | V24: 1100.34199 | W24: 796.2994003 | X24: 1057.212109 | Y24: 1156.884263 | Z24: 725.8437873 | AA24: 1036.133863 | AB24: 821.7738054 | AC24: 1066.125814 | AD24: 727.8284521 | AE24: 1179.487977 | AF24: 1054.598936 | AG24: 817.731656 | AH24: 901.5422504 | AI24: 1073.1866 | AK24: 159.3177877 | AN24: szórás | AO24: szórás | AU24: O | AV24: 5 | AW24: A | AX24: 3 | AY24: 1149.319614 | AZ24: 1150.265127 | BA24: 1151.210641 | BB24: 1152.156154 | BC24: 1153.101668 | BD24: 1154.047181 | BE24: 1154.992695 | BF24: 1155.938208 | BG24: 1156.883722 | BH24: 1157.829235 | BI24: 1158.774749 | BJ24: 1159.720263 | BK24: 1160.665601 | BL24: 1161.610935 | BM24: 1162.556269 | BO24: 1 | BP24: 2 | BQ24: 3 | BR24: 4 | BS24: 5 | BT24: 6 | BU24: 7 | BV24: 8 | BW24: 9 | BX24: 10 | BY24: 11 | BZ24: 12 | CA24: 13 | CB24: 14 | CC24: 15 | CE24: 0.94551355 | CF24: 0.94551355 | CG24: 0.94551355 | CH24: 0.94551355 | CI24: 0.94551355 | CJ24: 0.94551355 | CK24: 0.94551355 | CL24: 0.94551355 | CM24: 0.94551355 | CN24: 0.94551355 | CO24: 0.94551355 | CP24: 0.94533799 | CQ24: 0.94533443 | CR24: 0.94533443 | CS24: 7.5771027e-05
AN25: =STDEV(AN3:AN17) -> 0 | AO25: =STDEV(AO3:AO17) -> 159.3177369 | AU25: O | AV25: 5 | AW25: A | AX25: 4 | AY25: 503.5060549 | AZ25: 550.1759269 | BA25: 596.8457989 | BB25: 643.5156709 | BC25: 690.1855429 | BD25: 736.8554149 | BE25: 783.5252869 | BF25: 830.1951589 | BG25: 876.8650309 | BH25: 923.5348678 | BI25: 970.2046619 | BJ25: 1016.874427 | BK25: 1063.544192 | BL25: 1110.213957 | BM25: 1156.883722 | BO25: 1 | BP25: 2 | BQ25: 3 | BR25: 4 | BS25: 5 | BT25: 6 | BU25: 7 | BV25: 8 | BW25: 9 | BX25: 10 | BY25: 11 | BZ25: 12 | CA25: 13 | CB25: 14 | CC25: 15 | CE25: 46.669872 | CF25: 46.669872 | CG25: 46.669872 | CH25: 46.669872 | CI25: 46.669872 | CJ25: 46.669872 | CK25: 46.669872 | CL25: 46.669872 | CM25: 46.66983693 | CN25: 46.66979415 | CO25: 46.669765 | CP25: 46.669765 | CQ25: 46.669765 | CR25: 46.669765 | CS25: 4.975858958e-05
T26: A | U26: =MAX(U20:U21) -> 1120.807093 | V26: =MAX(V20:V21) -> 1100.342123 | W26: 796.3005746 | X26: 1057.21296 | Y26: 1156.884743 | Z26: 725.843773 | AA26: 1036.134284 | AB26: 821.7743355 | AC26: 1066.127231 | AD26: 727.8288501 | AE26: 1179.488426 | AF26: 1054.600264 | AG26: 817.7322134 | AH26: 901.5426516 | AI26: 1073.187241 | AU26: O | AV26: 5 | AW26: A | AX26: 5 | AY26: 885.5897779 | AZ26: 919.5015209 | BA26: 953.4132639 | BB26: 987.3250069 | BC26: 1021.23675 | BD26: 1055.148493 | BE26: 1089.060236 | BF26: 1122.971979 | BG26: 1156.883722 | BH26: 1190.795465 | BI26: 1224.707208 | BJ26: 1258.618951 | BK26: 1292.530694 | BL26: 1326.442437 | BM26: 1360.35418 | BO26: 1 | BP26: 2 | BQ26: 3 | BR26: 4 | BS26: 5 | BT26: 6 | BU26: 7 | BV26: 8 | BW26: 9 | BX26: 10 | BY26: 11 | BZ26: 12 | CA26: 13 | CB26: 14 | CC26: 15 | CE26: 33.911743 | CF26: 33.911743 | CG26: 33.911743 | CH26: 33.911743 | CI26: 33.911743 | CJ26: 33.911743 | CK26: 33.911743 | CL26: 33.911743 | CM26: 33.911743 | CN26: 33.911743 | CO26: 33.911743 | CP26: 33.911743 | CQ26: 33.911743 | CR26: 33.911743 | CS26: 9.422293771e-14
T27: B | U27: =MAX(U22:U23) -> 1120.804088 | V27: =MAX(V22:V23) -> 1100.341954 | W27: 796.2979756 | X27: 1057.211178 | Y27: 1156.883722 | Z27: 725.8437115 | AA27: 1036.134224 | AB27: 821.7742089 | AC27: 1066.126769 | AD27: 727.8287628 | AE27: 1179.488273 | AF27: 1054.599904 | AG27: 817.732034 | AH27: 901.5418424 | AI27: 1073.187092 | AU27: O | AV27: 6 | AW27: A | AX27: 1 | AY27: 686.2093935 | AZ27: 725.8437115 | BA27: 765.4779775 | BB27: 805.1122435 | BC27: 844.7465095 | BD27: 884.3807755 | BE27: 924.0150415 | BF27: 963.6493075 | BG27: 1003.283573 | BH27: 1042.917839 | BI27: 1082.552105 | BJ27: 1122.186371 | BK27: 1161.820637 | BL27: 1201.454911 | BM27: 1241.089185 | BO27: 1 | BP27: 2 | BQ27: 3 | BR27: 4 | BS27: 5 | BT27: 6 | BU27: 7 | BV27: 8 | BW27: 9 | BX27: 10 | BY27: 11 | BZ27: 12 | CA27: 13 | CB27: 14 | CC27: 15 | CE27: 39.634318 | CF27: 39.634266 | CG27: 39.634266 | CH27: 39.634266 | CI27: 39.634266 | CJ27: 39.634266 | CK27: 39.634266 | CL27: 39.634266 | CM27: 39.634266 | CN27: 39.634266 | CO27: 39.634266 | CP27: 39.634266 | CQ27: 39.6342735 | CR27: 39.634274 | CS27: 1.386418621e-05
T28: C | U28: =MAX(U24) -> 1120.805741 | V28: =MAX(V24) -> 1100.34199 | W28: 796.2994003 | X28: 1057.212109 | Y28: 1156.884263 | Z28: 725.8437873 | AA28: 1036.133863 | AB28: 821.7738054 | AC28: 1066.125814 | AD28: 727.8284521 | AE28: 1179.487977 | AF28: 1054.598936 | AG28: 817.731656 | AH28: 901.5422504 | AI28: 1073.1866 | AU28: O | AV28: 6 | AW28: A | AX28: 2 | AY28: 706.0274973 | AZ28: 708.2293073 | BA28: 710.4311173 | BB28: 712.6329273 | BC28: 714.8347373 | BD28: 717.0365473 | BE28: 719.2383573 | BF28: 721.4401673 | BG28: 723.6419442 | BH28: 725.8437115 | BI28: 728.0454515 | BJ28: 730.2471915 | BK28: 732.4489315 | BL28: 734.6506715 | BM28: 736.8524115 | BO28: 1 | BP28: 2 | BQ28: 3 | BR28: 4 | BS28: 5 | BT28: 6 | BU28: 7 | BV28: 8 | BW28: 9 | BX28: 10 | BY28: 11 | BZ28: 12 | CA28: 13 | CB28: 14 | CC28: 15 | CE28: 2.20181 | CF28: 2.20181 | CG28: 2.20181 | CH28: 2.20181 | CI28: 2.20181 | CJ28: 2.20181 | CK28: 2.20181 | CL28: 2.2017769 | CM28: 2.2017673 | CN28: 2.20174 | CO28: 2.20174 | CP28: 2.20174 | CQ28: 2.20174 | CR28: 2.20174 | CS28: 3.33610749e-05
AU29: O | AV29: 6 | AW29: A | AX29: 3 | AY29: 717.3340895 | AZ29: 718.2796031 | BA29: 719.2251166 | BB29: 720.1706302 | BC29: 721.1161437 | BD29: 722.0616573 | BE29: 723.0071708 | BF29: 723.9526844 | BG29: 724.8981979 | BH29: 725.8437115 | BI29: 726.7891217 | BJ29: 727.7344562 | BK29: 728.6797906 | BL29: 729.625125 | BM29: 730.5704595 | BO29: 1 | BP29: 2 | BQ29: 3 | BR29: 4 | BS29: 5 | BT29: 6 | BU29: 7 | BV29: 8 | BW29: 9 | BX29: 10 | BY29: 11 | BZ29: 12 | CA29: 13 | CB29: 14 | CC29: 15 | CE29: 0.94551355 | CF29: 0.94551355 | CG29: 0.94551355 | CH29: 0.94551355 | CI29: 0.94551355 | CJ29: 0.94551355 | CK29: 0.94551355 | CL29: 0.94551355 | CM29: 0.94551355 | CN29: 0.94541023 | CO29: 0.94533443 | CP29: 0.94533443 | CQ29: 0.94533443 | CR29: 0.94533443 | CS29: 8.366865706e-05
T30: min | U30: =MIN(U26:U28) -> 1120.804088 | V30: =MIN(V26:V28) -> 1100.341954 | W30: 796.2979756 | X30: 1057.211178 | Y30: 1156.883722 | Z30: 725.8437115 | AA30: 1036.133863 | AB30: 821.7738054 | AC30: 1066.125814 | AD30: 727.8284521 | AE30: 1179.487977 | AF30: 1054.598936 | AG30: 817.731656 | AH30: 901.5418424 | AI30: 1073.1866 | AU30: O | AV30: 6 | AW30: A | AX30: 4 | AY30: 259.1450673 | AZ30: 305.8149393 | BA30: 352.4848113 | BB30: 399.1546833 | BC30: 445.8245553 | BD30: 492.4944273 | BE30: 539.1642993 | BF30: 585.8341713 | BG30: 632.5040433 | BH30: 679.1739153 | BI30: 725.8437115 | BJ30: 772.5134765 | BK30: 819.1832415 | BL30: 865.8530065 | BM30: 912.5227715 | BO30: 1 | BP30: 2 | BQ30: 3 | BR30: 4 | BS30: 5 | BT30: 6 | BU30: 7 | BV30: 8 | BW30: 9 | BX30: 10 | BY30: 11 | BZ30: 12 | CA30: 13 | CB30: 14 | CC30: 15 | CE30: 46.669872 | CF30: 46.669872 | CG30: 46.669872 | CH30: 46.669872 | CI30: 46.669872 | CJ30: 46.669872 | CK30: 46.669872 | CL30: 46.669872 | CM30: 46.669872 | CN30: 46.6697962 | CO30: 46.669765 | CP30: 46.669765 | CQ30: 46.669765 | CR30: 46.669765 | CS30: 5.069671294e-05
AU31: O | AV31: 6 | AW31: A | AX31: 5 | AY31: 658.0202255 | AZ31: 691.9319685 | BA31: 725.8437115 | BB31: 759.755443 | BC31: 793.6671605 | BD31: 827.5788783 | BE31: 861.4905753 | BF31: 895.4022723 | BG31: 929.3139693 | BH31: 963.2256663 | BI31: 997.1373633 | BJ31: 1031.04906 | BK31: 1064.960757 | BL31: 1098.872454 | BM31: 1132.784151 | BO31: 1 | BP31: 2 | BQ31: 3 | BR31: 4 | BS31: 5 | BT31: 6 | BU31: 7 | BV31: 8 | BW31: 9 | BX31: 10 | BY31: 11 | BZ31: 12 | CA31: 13 | CB31: 14 | CC31: 15 | CE31: 33.911743 | CF31: 33.911743 | CG31: 33.9117315 | CH31: 33.9117175 | CI31: 33.9117178 | CJ31: 33.911697 | CK31: 33.911697 | CL31: 33.911697 | CM31: 33.911697 | CN31: 33.911697 | CO31: 33.911697 | CP31: 33.911697 | CQ31: 33.911697 | CR31: 33.911697 | CS31: 1.811063681e-05
AU32: O | AV32: 7 | AW32: A | AX32: 1 | AY32: 481.2532426 | AZ32: 520.8875726 | BA32: 560.5219026 | BB32: 600.1562326 | BC32: 639.7905626 | BD32: 679.4248926 | BE32: 719.0592226 | BF32: 758.6935526 | BG32: 798.3278826 | BH32: 837.9622126 | BI32: 877.5965426 | BJ32: 917.2308726 | BK32: 956.8652026 | BL32: 996.4995326 | BM32: 1036.133863 | BO32: 1 | BP32: 2 | BQ32: 3 | BR32: 4 | BS32: 5 | BT32: 6 | BU32: 7 | BV32: 8 | BW32: 9 | BX32: 10 | BY32: 11 | BZ32: 12 | CA32: 13 | CB32: 14 | CC32: 15 | CE32: 39.63433 | CF32: 39.63433 | CG32: 39.63433 | CH32: 39.63433 | CI32: 39.63433 | CJ32: 39.63433 | CK32: 39.63433 | CL32: 39.63433 | CM32: 39.63433 | CN32: 39.63433 | CO32: 39.63433 | CP32: 39.63433 | CQ32: 39.63433 | CR32: 39.63433 | CS32: 9.120701887e-14
AU33: O | AV33: 7 | AW33: A | AX33: 2 | AY33: 1011.913953 | AZ33: 1014.115763 | BA33: 1016.317573 | BB33: 1018.519383 | BC33: 1020.721193 | BD33: 1022.923003 | BE33: 1025.124813 | BF33: 1027.326623 | BG33: 1029.528433 | BH33: 1031.730243 | BI33: 1033.932053 | BJ33: 1036.133863 | BK33: 1038.335673 | BL33: 1040.537483 | BM33: 1042.739293 | BO33: 1 | BP33: 2 | BQ33: 3 | BR33: 4 | BS33: 5 | BT33: 6 | BU33: 7 | BV33: 8 | BW33: 9 | BX33: 10 | BY33: 11 | BZ33: 12 | CA33: 13 | CB33: 14 | CC33: 15 | CE33: 2.20181 | CF33: 2.20181 | CG33: 2.20181 | CH33: 2.20181 | CI33: 2.20181 | CJ33: 2.20181 | CK33: 2.20181 | CL33: 2.20181 | CM33: 2.20181 | CN33: 2.20181 | CO33: 2.20181 | CP33: 2.20181 | CQ33: 2.20181 | CR33: 2.20181 | CS33: 6.076849185e-14
AU34: O | AV34: 7 | AW34: A | AX34: 3 | AY34: 1024.787924 | AZ34: 1025.733437 | BA34: 1026.678951 | BB34: 1027.624464 | BC34: 1028.569978 | BD34: 1029.515491 | BE34: 1030.461021 | BF34: 1031.406555 | BG34: 1032.352088 | BH34: 1033.297622 | BI34: 1034.243128 | BJ34: 1035.188528 | BK34: 1036.133863 | BL34: 1037.079197 | BM34: 1038.024531 | BO34: =RANK(AY34,$AY34:$BM34, 1) -> 1 | BP34: 2 | BQ34: 3 | BR34: 4 | BS34: 5 | BT34: 6 | BU34: 7 | BV34: 8 | BW34: 9 | BX34: 10 | BY34: 11 | BZ34: 12 | CA34: 13 | CB34: 14 | CC34: 15 | CE34: 0.94551355 | CF34: 0.94551355 | CG34: 0.94551355 | CH34: 0.94551355 | CI34: 0.94551355 | CJ34: 0.9455294 | CK34: 0.9455339 | CL34: 0.9455339 | CM34: 0.9455339 | CN34: 0.945506 | CO34: 0.94539976 | CP34: 0.94533443 | CQ34: 0.94533443 | CR34: 0.94533443 | CS34: 8.16053986e-05
AU35: O | AV35: 7 | AW35: A | AX35: 4 | AY35: 849.4543746 | AZ35: 896.1242466 | BA35: 942.7941186 | BB35: 989.4639906 | BC35: 1036.133863 | BD35: 1082.803735 | BE35: 1129.473607 | BF35: 1176.143415 | BG35: 1222.813224 | BH35: 1269.482974 | BI35: 1316.152724 | BJ35: 1362.822474 | BK35: 1409.492224 | BL35: 1456.161974 | BM35: 1502.831736 | BO35: 1 | BP35: 2 | BQ35: 3 | BR35: 4 | BS35: 5 | BT35: 6 | BU35: 7 | BV35: 8 | BW35: 9 | BX35: 10 | BY35: 11 | BZ35: 12 | CA35: 13 | CB35: 14 | CC35: 15 | CE35: 46.669872 | CF35: 46.669872 | CG35: =BB35-BA35 -> 46.669872 | CH35: 46.669872 | CI35: 46.669872 | CJ35: 46.669872 | CK35: 46.66980801 | CL35: 46.6698095 | CM35: 46.66975 | CN35: 46.66975 | CO35: 46.66975 | CP35: 46.66975 | CQ35: 46.66975 | CR35: 46.66976205 | CS35: 5.773561107e-05
AU36: O | AV36: 7 | AW36: A | AX36: 5 | AY36: 900.4870746 | AZ36: 934.3987716 | BA36: 968.3104686 | BB36: 1002.222166 | BC36: 1036.133863 | BD36: 1070.04556 | BE36: 1103.957257 | BF36: 1137.868954 | BG36: 1171.780651 | BH36: 1205.692348 | BI36: 1239.604045 | BJ36: 1273.515742 | BK36: 1307.427439 | BL36: 1341.339136 | BM36: 1375.250833 | BO36: 1 | BP36: 2 | BQ36: 3 | BR36: 4 | BS36: 5 | BT36: 6 | BU36: 7 | BV36: 8 | BW36: 9 | BX36: 10 | BY36: 11 | BZ36: 12 | CA36: 13 | CB36: 14 | CC36: 15 | CE36: =AZ36-AY36 -> 33.911697 | CF36: 33.911697 | CG36: 33.911697 | CH36: 33.911697 | CI36: 33.911697 | CJ36: 33.911697 | CK36: 33.911697 | CL36: 33.911697 | CM36: 33.911697 | CN36: 33.911697 | CO36: 33.911697 | CP36: 33.911697 | CQ36: 33.911697 | CR36: 33.911697 | CS36: 6.080467924e-14
AU37: O | AV37: 8 | AW37: A | AX37: 1 | AY37: 465.0648354 | AZ37: 504.6991654 | BA37: 544.3334954 | BB37: 583.9678254 | BC37: 623.6021554 | BD37: 663.2364854 | BE37: 702.8708154 | BF37: 742.5051454 | BG37: 782.1394754 | BH37: 821.7738054 | BI37: 861.4081354 | BJ37: 901.0424654 | BK37: 940.6767954 | BL37: 980.3111254 | BM37: 1019.945455 | BO37: 1 | BP37: 2 | BQ37: 3 | BR37: 4 | BS37: 5 | BT37: 6 | BU37: 7 | BV37: 8 | BW37: 9 | BX37: 10 | BY37: 11 | BZ37: 12 | CA37: 13 | CB37: 14 | CC37: 15 | CE37: 39.63433 | CF37: 39.63433 | CG37: 39.63433 | CH37: 39.63433 | CI37: 39.63433 | CJ37: 39.63433 | CK37: 39.63433 | CL37: 39.63433 | CM37: 39.63433 | CN37: 39.63433 | CO37: 39.63433 | CP37: 39.63433 | CQ37: 39.63433 | CR37: 39.63433 | CS37: 6.589302256e-14
AU38: O | AV38: 8 | AW38: A | AX38: 2 | AY38: 821.7738054 | AZ38: 823.9756154 | BA38: 826.1774254 | BB38: 828.3792354 | BC38: 830.5810454 | BD38: 832.7828374 | BE38: 834.9845631 | BF38: 837.1862888 | BG38: 839.3880145 | BH38: 841.5897402 | BI38: 843.7914704 | BJ38: 845.9932104 | BK38: 848.1949504 | BL38: 850.3966904 | BM38: 852.5984304 | BO38: 1 | BP38: 2 | BQ38: 3 | BR38: 4 | BS38: 5 | BT38: 6 | BU38: 7 | BV38: 8 | BW38: 9 | BX38: 10 | BY38: 11 | BZ38: 12 | CA38: 13 | CB38: 14 | CC38: 15 | CE38: 2.20181 | CF38: 2.20181 | CG38: 2.20181 | CH38: 2.20181 | CI38: 2.20179196 | CJ38: 2.2017257 | CK38: 2.2017257 | CL38: 2.2017257 | CM38: 2.2017257 | CN38: 2.2017302 | CO38: 2.20174 | CP38: 2.20174 | CQ38: 2.20174 | CR38: 2.20174 | CS38: 3.741583822e-05
AU39: O | AV39: 8 | AW39: A | AX39: 3 | AY39: 815.1554755 | AZ39: 816.1010055 | BA39: 817.0465394 | BB39: 817.9920733 | BC39: 818.9376072 | BD39: 819.8831366 | BE39: 820.828471 | BF39: 821.7738054 | BG39: 822.7191399 | BH39: 823.6644743 | BI39: 824.6098087 | BJ39: 825.5551432 | BK39: 826.5004776 | BL39: 827.445812 | BM39: 828.3911464 | BO39: 1 | BP39: 2 | BQ39: 3 | BR39: 4 | BS39: 5 | BT39: 6 | BU39: 7 | BV39: 8 | BW39: 9 | BX39: 10 | BY39: 11 | BZ39: 12 | CA39: 13 | CB39: 14 | CC39: 15 | CE39: 0.94552995 | CF39: 0.9455339 | CG39: 0.9455339 | CH39: 0.9455339 | CI39: 0.94552938 | CJ39: 0.94533443 | CK39: 0.94533443 | CL39: 0.94533443 | CM39: 0.94533443 | CN39: 0.94533443 | CO39: 0.94533443 | CP39: 0.94533443 | CQ39: 0.94533443 | CR39: 0.94533443 | CS39: 9.835163883e-05
AU40: O | AV40: 8 | AW40: A | AX40: 4 | AY40: 588.4244454 | AZ40: 635.0943174 | BA40: 681.7641894 | BB40: 728.4340614 | BC40: 775.1039334 | BD40: 821.7738054 | BE40: 868.4436774 | BF40: 915.1135494 | BG40: 961.7834214 | BH40: 1008.453209 | BI40: 1055.122959 | BJ40: 1101.792709 | BK40: 1148.462459 | BL40: 1195.132209 | BM40: 1241.801959 | BO40: 1 | BP40: 2 | BQ40: 3 | BR40: 4 | BS40: 5 | BT40: 6 | BU40: 7 | BV40: 8 | BW40: 9 | BX40: 10 | BY40: 11 | BZ40: 12 | CA40: 13 | CB40: 14 | CC40: 15 | CE40: 46.669872 | CF40: 46.669872 | CG40: 46.669872 | CH40: 46.669872 | CI40: 46.669872 | CJ40: 46.669872 | CK40: 46.669872 | CL40: 46.669872 | CM40: 46.66978746 | CN40: 46.66975 | CO40: 46.66975 | CP40: 46.66975 | CQ40: 46.66975 | CR40: 46.66975 | CS40: 6.01989536e-05
AU41: O | AV41: 8 | AW41: A | AX41: 5 | AY41: 720.0387144 | AZ41: 753.9504114 | BA41: 787.8621084 | BB41: 821.7738054 | BC41: 855.6855024 | BD41: 889.5971994 | BE41: 923.5088964 | BF41: 957.4205934 | BG41: 991.3322904 | BH41: 1025.243987 | BI41: 1059.155684 | BJ41: 1093.067381 | BK41: 1126.979078 | BL41: 1160.890775 | BM41: 1194.802472 | BO41: 1 | BP41: 2 | BQ41: 3 | BR41: 4 | BS41: 5 | BT41: 6 | BU41: 7 | BV41: 8 | BW41: 9 | BX41: 10 | BY41: 11 | BZ41: 12 | CA41: 13 | CB41: 14 | CC41: 15 | CE41: 33.911697 | CF41: 33.911697 | CG41: 33.911697 | CH41: 33.911697 | CI41: 33.911697 | CJ41: 33.911697 | CK41: 33.911697 | CL41: 33.911697 | CM41: 33.911697 | CN41: 33.911697 | CO41: 33.911697 | CP41: 33.911697 | CQ41: 33.911697 | CR41: 33.911697 | CS41: 3.040233962e-14
AU42: O | AV42: 9 | AW42: A | AX42: 1 | AY42: 1066.125814 | AZ42: 1105.760144 | BA42: 1145.394474 | BB42: 1185.028804 | BC42: 1224.663134 | BD42: 1264.297464 | BE42: 1303.931794 | BF42: 1343.566124 | BG42: 1383.200454 | BH42: 1422.834784 | BI42: 1462.469114 | BJ42: 1502.103444 | BK42: 1541.737774 | BL42: 1581.372104 | BM42: 1621.006434 | BO42: 1 | BP42: 2 | BQ42: 3 | BR42: 4 | BS42: 5 | BT42: 6 | BU42: 7 | BV42: 8 | BW42: 9 | BX42: 10 | BY42: 11 | BZ42: 12 | CA42: 13 | CB42: 14 | CC42: 15 | CE42: 39.63433 | CF42: 39.63433 | CG42: 39.63433 | CH42: 39.63433 | CI42: 39.63433 | CJ42: 39.63433 | CK42: 39.63433 | CL42: 39.63433 | CM42: 39.63433 | CN42: 39.63433 | CO42: 39.63433 | CP42: 39.63433 | CQ42: 39.63433 | CR42: 39.63433 | CS42: 1.131046148e-13
AU43: O | AV43: 9 | AW43: A | AX43: 2 | AY43: 1048.511334 | AZ43: 1050.713144 | BA43: 1052.914954 | BB43: 1055.116764 | BC43: 1057.318574 | BD43: 1059.520384 | BE43: 1061.722194 | BF43: 1063.924004 | BG43: 1066.125814 | BH43: 1068.327624 | BI43: 1070.529434 | BJ43: 1072.731244 | BK43: 1074.933054 | BL43: 1077.134864 | BM43: 1079.336674 | BO43: 1 | BP43: 2 | BQ43: 3 | BR43: 4 | BS43: 5 | BT43: 6 | BU43: 7 | BV43: 8 | BW43: 9 | BX43: 10 | BY43: 11 | BZ43: 12 | CA43: 13 | CB43: 14 | CC43: 15 | CE43: 2.20181 | CF43: 2.20181 | CG43: 2.20181 | CH43: 2.20181 | CI43: 2.20181 | CJ43: 2.20181 | CK43: 2.20181 | CL43: 2.20181 | CM43: 2.20181 | CN43: 2.20181 | CO43: 2.20181 | CP43: 2.20181 | CQ43: 2.20181 | CR43: 2.20181 | CS43: 8.25677114e-14
AU44: O | AV44: 9 | AW44: A | AX44: 3 | AY44: 1052.88958 | AZ44: 1053.835093 | BA44: 1054.780607 | BB44: 1055.72612 | BC44: 1056.671634 | BD44: 1057.617147 | BE44: 1058.562661 | BF44: 1059.508174 | BG44: 1060.453688 | BH44: 1061.399142 | BI44: 1062.344477 | BJ44: 1063.289811 | BK44: 1064.235146 | BL44: 1065.18048 | BM44: 1066.125814 | BO44: 1 | BP44: 2 | BQ44: 3 | BR44: 4 | BS44: 5 | BT44: 6 | BU44: 7 | BV44: 8 | BW44: 9 | BX44: 10 | BY44: 11 | BZ44: 12 | CA44: 13 | CB44: 14 | CC44: 15 | CE44: 0.94551355 | CF44: 0.94551355 | CG44: 0.94551355 | CH44: 0.94551355 | CI44: 0.94551355 | CJ44: 0.94551355 | CK44: 0.94551355 | CL44: 0.94551355 | CM44: 0.94545435 | CN44: 0.94533443 | CO44: 0.94533443 | CP44: 0.94533443 | CQ44: 0.94533443 | CR44: 0.94533443 | CS44: 8.718113417e-05
AU45: O | AV45: 9 | AW45: A | AX45: 4 | AY45: 459.4174784 | AZ45: 506.0873504 | BA45: 552.7572224 | BB45: 599.4270944 | BC45: 646.0969664 | BD45: 692.7668385 | BE45: 739.4367104 | BF45: 786.1065824 | BG45: 832.7764544 | BH45: 879.4463265 | BI45: 926.1161984 | BJ45: 972.7860704 | BK45: 1019.455942 | BL45: 1066.125814 | BM45: 1112.795686 | BO45: 1 | BP45: 2 | BQ45: 3 | BR45: 4 | BS45: 5 | BT45: 6 | BU45: 7 | BV45: 8 | BW45: 9 | BX45: 10 | BY45: 11 | BZ45: 12 | CA45: 13 | CB45: 14 | CC45: 15 | CE45: 46.669872 | CF45: 46.669872 | CG45: 46.669872 | CH45: 46.669872 | CI45: 46.669872 | CJ45: 46.669872 | CK45: 46.669872 | CL45: 46.669872 | CM45: 46.669872 | CN45: 46.669872 | CO45: 46.669872 | CP45: 46.669872 | CQ45: 46.669872 | CR45: 46.669872 | CS45: 7.050558372e-14
AU46: O | AV46: 9 | AW46: A | AX46: 5 | AY46: 760.9205414 | AZ46: 794.8322384 | BA46: 828.7439354 | BB46: 862.6556324 | BC46: 896.5673294 | BD46: 930.4790264 | BE46: 964.3907234 | BF46: 998.3024204 | BG46: 1032.214117 | BH46: 1066.125814 | BI46: 1100.037511 | BJ46: 1133.949208 | BK46: 1167.860905 | BL46: 1201.772602 | BM46: 1235.684299 | BO46: 1 | BP46: 2 | BQ46: 3 | BR46: 4 | BS46: 5 | BT46: 6 | BU46: 7 | BV46: 8 | BW46: 9 | BX46: 10 | BY46: 11 | BZ46: 12 | CA46: 13 | CB46: 14 | CC46: 15 | CE46: 33.911697 | CF46: 33.911697 | CG46: 33.911697 | CH46: 33.911697 | CI46: 33.911697 | CJ46: 33.911697 | CK46: 33.911697 | CL46: 33.911697 | CM46: 33.911697 | CN46: 33.911697 | CO46: 33.911697 | CP46: 33.911697 | CQ46: 33.911697 | CR46: 33.911697 | CS46: 6.080467924e-14
AU47: O | AV47: 10 | AW47: A | AX47: 1 | AY47: 608.9254621 | AZ47: 648.5597921 | BA47: 688.1941221 | BB47: 727.8284521 | BC47: 767.4627821 | BD47: 807.0971121 | BE47: 846.7314422 | BF47: 886.3657721 | BG47: 926.0000952 | BH47: 965.6343811 | BI47: 1005.268655 | BJ47: 1044.902929 | BK47: 1084.537203 | BL47: 1124.171477 | BM47: 1163.805751 | BO47: 1 | BP47: 2 | BQ47: 3 | BR47: 4 | BS47: 5 | BT47: 6 | BU47: 7 | BV47: 8 | BW47: 9 | BX47: 10 | BY47: 11 | BZ47: 12 | CA47: 13 | CB47: 14 | CC47: 15 | CE47: 39.63433 | CF47: 39.63433 | CG47: 39.63433 | CH47: 39.63433 | CI47: 39.63433 | CJ47: 39.63433 | CK47: 39.63433 | CL47: 39.63432305 | CM47: 39.6342859 | CN47: 39.634274 | CO47: 39.634274 | CP47: 39.634274 | CQ47: 39.634274 | CR47: 39.634274 | CS47: 2.75191714e-05
AU48: O | AV48: 10 | AW48: A | AX48: 2 | AY48: 712.4157821 | AZ48: 714.6175921 | BA48: 716.8194021 | BB48: 719.0212121 | BC48: 721.2230221 | BD48: 723.4248321 | BE48: 725.6266421 | BF48: 727.8284521 | BG48: 730.0302621 | BH48: 732.2320721 | BI48: 734.4338821 | BJ48: 736.6356194 | BK48: 738.8374072 | BL48: 741.0392027 | BM48: 743.2409427 | BO48: 1 | BP48: 2 | BQ48: 3 | BR48: 4 | BS48: 5 | BT48: 6 | BU48: 7 | BV48: 8 | BW48: 9 | BX48: 10 | BY48: 11 | BZ48: 12 | CA48: 13 | CB48: 14 | CC48: 15 | CE48: 2.20181 | CF48: 2.20181 | CG48: 2.20181 | CH48: 2.20181 | CI48: 2.20181 | CJ48: 2.20181 | CK48: 2.20181 | CL48: 2.20181 | CM48: 2.20181 | CN48: 2.20181 | CO48: 2.2017372 | CP48: 2.20178785 | CQ48: 2.20179555 | CR48: 2.20174 | CS48: 2.572096142e-05
AU49: O | AV49: 10 | AW49: A | AX49: 3 | AY49: 724.0467085 | AZ49: 724.9922221 | BA49: 725.9377357 | BB49: 726.8831177 | BC49: 727.8284521 | BD49: 728.7737866 | BE49: 729.719121 | BF49: 730.6644554 | BG49: 731.6097899 | BH49: 732.5551243 | BI49: 733.5004587 | BJ49: 734.4457932 | BK49: 735.3911276 | BL49: 736.336462 | BM49: 737.2817964 | BO49: 1 | BP49: 2 | BQ49: 3 | BR49: 4 | BS49: 5 | BT49: 6 | BU49: 7 | BV49: 8 | BW49: 9 | BX49: 10 | BY49: 11 | BZ49: 12 | CA49: 13 | CB49: 14 | CC49: 15 | CE49: 0.94551355 | CF49: 0.94551355 | CG49: 0.94538207 | CH49: 0.94533443 | CI49: 0.94533443 | CJ49: 0.94533443 | CK49: 0.94533443 | CL49: 0.94533443 | CM49: 0.94533443 | CN49: 0.94533443 | CO49: 0.94533443 | CP49: 0.94533443 | CQ49: 0.94533443 | CR49: 0.94533443 | CS49: 6.484922003e-05
AU50: O | AV50: 10 | AW50: A | AX50: 4 | AY50: 634.4887081 | AZ50: 681.1585801 | BA50: 727.8284521 | BB50: 774.4983241 | BC50: 821.1681961 | BD50: 867.8380577 | BE50: 914.5078228 | BF50: 961.1775877 | BG50: 1007.847353 | BH50: 1054.517118 | BI50: 1101.186883 | BJ50: 1147.856648 | BK50: 1194.526413 | BL50: 1241.196178 | BM50: 1287.865943 | BO50: 1 | BP50: 2 | BQ50: 3 | BR50: 4 | BS50: 5 | BT50: 6 | BU50: 7 | BV50: 8 | BW50: 9 | BX50: 10 | BY50: 11 | BZ50: 12 | CA50: 13 | CB50: 14 | CC50: 15 | CE50: 46.669872 | CF50: 46.669872 | CG50: 46.669872 | CH50: 46.669872 | CI50: 46.6698616 | CJ50: 46.669765 | CK50: 46.669765 | CL50: 46.669765 | CM50: 46.669765 | CN50: 46.669765 | CO50: 46.669765 | CP50: 46.669765 | CQ50: 46.669765 | CR50: 46.669765 | CS50: 5.223471332e-05
AU51: O | AV51: 10 | AW51: A | AX51: 5 | AY51: 354.7995897 | AZ51: 388.7113327 | BA51: 422.6230757 | BB51: 456.5348152 | BC51: 490.4465161 | BD51: 524.3582701 | BE51: 558.2699671 | BF51: 592.1816641 | BG51: 626.0933611 | BH51: 660.0050581 | BI51: 693.9167551 | BJ51: 727.8284521 | BK51: 761.7401491 | BL51: 795.6518461 | BM51: 829.5635431 | BO51: =RANK(AY51,$AY51:$BM51, 1) -> 1 | BP51: 2 | BQ51: 3 | BR51: 4 | BS51: 5 | BT51: 6 | BU51: 7 | BV51: 8 | BW51: 9 | BX51: 10 | BY51: 11 | BZ51: 12 | CA51: 13 | CB51: 14 | CC51: 15 | CE51: 33.911743 | CF51: 33.911743 | CG51: 33.91173945 | CH51: 33.91170095 | CI51: 33.911754 | CJ51: 33.911697 | CK51: 33.911697 | CL51: 33.911697 | CM51: 33.911697 | CN51: 33.911697 | CO51: 33.911697 | CP51: 33.911697 | CQ51: 33.911697 | CR51: 33.911697 | CS51: 2.248312064e-05
AU52: O | AV52: 11 | AW52: A | AX52: 1 | AY52: 862.4133367 | AZ52: 902.0476667 | BA52: 941.6819967 | BB52: 981.3163267 | BC52: 1020.950657 | BD52: 1060.584987 | BE52: 1100.219317 | BF52: 1139.853647 | BG52: 1179.487977 | BH52: 1219.122307 | BI52: 1258.756637 | BJ52: 1298.390967 | BK52: 1338.025297 | BL52: 1377.659627 | BM52: 1417.293917 | BO52: 1 | BP52: 2 | BQ52: 3 | BR52: 4 | BS52: 5 | BT52: 6 | BU52: 7 | BV52: 8 | BW52: 9 | BX52: 10 | BY52: 11 | BZ52: 12 | CA52: 13 | CB52: 14 | CC52: 15 | CE52: 39.63433 | CF52: 39.63433 | CG52: 39.63433 | CH52: 39.63433 | CI52: 39.63433 | CJ52: 39.63433 | CK52: 39.63433 | CL52: 39.63433 | CM52: 39.63433 | CN52: 39.63433 | CO52: 39.63433 | CP52: 39.63433 | CQ52: 39.63433 | CR52: 39.63428987 | CS52: 1.072519371e-05
AU53: O | AV53: 11 | AW53: A | AX53: 2 | AY53: 1179.487977 | AZ53: 1181.689787 | BA53: 1183.891597 | BB53: 1186.093407 | BC53: 1188.295175 | BD53: 1190.496901 | BE53: 1192.698627 | BF53: 1194.900366 | BG53: 1197.102106 | BH53: 1199.303846 | BI53: 1201.505586 | BJ53: 1203.707326 | BK53: 1205.909066 | BL53: 1208.110806 | BM53: 1210.312546 | BO53: 1 | BP53: 2 | BQ53: 3 | BR53: 4 | BS53: 5 | BT53: 6 | BU53: 7 | BV53: 8 | BW53: 9 | BX53: 10 | BY53: 11 | BZ53: 12 | CA53: 13 | CB53: 14 | CC53: 15 | CE53: 2.20181 | CF53: 2.20181 | CG53: 2.20181 | CH53: 2.20176867 | CI53: 2.2017257 | CJ53: 2.2017257 | CK53: 2.20173925 | CL53: 2.20174 | CM53: 2.20174 | CN53: 2.20174 | CO53: 2.20174 | CP53: 2.20174 | CQ53: 2.20174 | CR53: 2.20174 | CS53: 3.13808839e-05
AU54: O | AV54: 11 | AW54: A | AX54: 3 | AY54: 1170.033051 | AZ54: 1170.978564 | BA54: 1171.924078 | BB54: 1172.869591 | BC54: 1173.815105 | BD54: 1174.760618 | BE54: 1175.706137 | BF54: 1176.651671 | BG54: 1177.597205 | BH54: 1178.542642 | BI54: 1179.487977 | BJ54: 1180.433311 | BK54: 1181.378646 | BL54: 1182.32398 | BM54: 1183.269314 | BO54: 1 | BP54: 2 | BQ54: 3 | BR54: 4 | BS54: 5 | BT54: 6 | BU54: 7 | BV54: 8 | BW54: 9 | BX54: 10 | BY54: 11 | BZ54: 12 | CA54: 13 | CB54: 14 | CC54: 15 | CE54: 0.94551355 | CF54: 0.94551355 | CG54: 0.94551355 | CH54: 0.94551355 | CI54: 0.94551355 | CJ54: 0.9455187 | CK54: 0.9455339 | CL54: 0.9455339 | CM54: 0.9454375 | CN54: 0.94533443 | CO54: 0.94533443 | CP54: 0.94533443 | CQ54: 0.94533443 | CR54: 0.94533443 | CS54: 9.022894409e-05
AU55: O | AV55: 11 | AW55: A | AX55: 4 | AY55: 619.4495127 | AZ55: 666.1193847 | BA55: 712.7892567 | BB55: 759.4591287 | BC55: 806.1290007 | BD55: 852.7988727 | BE55: 899.4687447 | BF55: 946.1386167 | BG55: 992.8084887 | BH55: 1039.478361 | BI55: 1086.148233 | BJ55: 1132.818105 | BK55: 1179.487977 | BL55: 1226.157849 | BM55: 1272.827721 | BO55: 1 | BP55: 2 | BQ55: 3 | BR55: 4 | BS55: 5 | BT55: 6 | BU55: 7 | BV55: 8 | BW55: 9 | BX55: 10 | BY55: 11 | BZ55: 12 | CA55: 13 | CB55: 14 | CC55: 15 | CE55: 46.669872 | CF55: 46.669872 | CG55: 46.669872 | CH55: 46.669872 | CI55: 46.669872 | CJ55: 46.669872 | CK55: 46.669872 | CL55: 46.669872 | CM55: 46.669872 | CN55: 46.669872 | CO55: 46.669872 | CP55: 46.669872 | CQ55: 46.669872 | CR55: 46.669872 | CS55: 9.682492305e-14
AU56: O | AV56: 11 | AW56: A | AX56: 5 | AY56: 1009.929492 | AZ56: 1043.841189 | BA56: 1077.752886 | BB56: 1111.664583 | BC56: 1145.57628 | BD56: 1179.487977 | BE56: 1213.399674 | BF56: 1247.311371 | BG56: 1281.223068 | BH56: 1315.134765 | BI56: 1349.046462 | BJ56: 1382.958159 | BK56: 1416.869856 | BL56: 1450.781553 | BM56: 1484.69325 | BO56: 1 | BP56: 2 | BQ56: 3 | BR56: 4 | BS56: 5 | BT56: 6 | BU56: 7 | BV56: 8 | BW56: 9 | BX56: 10 | BY56: 11 | BZ56: 12 | CA56: 13 | CB56: 14 | CC56: 15 | CE56: 33.911697 | CF56: 33.911697 | CG56: 33.911697 | CH56: 33.911697 | CI56: 33.911697 | CJ56: =BE56-BD56 -> 33.911697 | CK56: 33.911697 | CL56: 33.911697 | CM56: 33.911697 | CN56: 33.911697 | CO56: 33.911697 | CP56: 33.911697 | CQ56: 33.911697 | CR56: 33.911697 | CS56: 0
AU57: O | AV57: 12 | AW57: A | AX57: 1 | AY57: 777.1586262 | AZ57: 816.7929562 | BA57: 856.4272862 | BB57: 896.0616162 | BC57: 935.6959462 | BD57: 975.3302762 | BE57: 1014.964606 | BF57: 1054.598936 | BG57: 1094.233266 | BH57: 1133.867596 | BI57: 1173.501926 | BJ57: 1213.136256 | BK57: 1252.770586 | BL57: 1292.404916 | BM57: 1332.039246 | BO57: 1 | BP57: 2 | BQ57: 3 | BR57: 4 | BS57: 5 | BT57: 6 | BU57: 7 | BV57: 8 | BW57: 9 | BX57: 10 | BY57: 11 | BZ57: 12 | CA57: 13 | CB57: 14 | CC57: 15 | CE57: 39.63433 | CF57: 39.63433 | CG57: 39.63433 | CH57: 39.63433 | CI57: 39.63433 | CJ57: 39.63433 | CK57: 39.63433 | CL57: 39.63433 | CM57: 39.63433 | CN57: 39.63433 | CO57: 39.63433 | CP57: 39.63433 | CQ57: 39.63433 | CR57: 39.63433 | CS57: 1.619087851e-13
AU58: O | AV58: 12 | AW58: A | AX58: 2 | AY58: 1025.975406 | AZ58: 1028.177216 | BA58: 1030.379026 | BB58: 1032.580836 | BC58: 1034.782646 | BD58: 1036.984456 | BE58: 1039.186266 | BF58: 1041.388076 | BG58: 1043.589886 | BH58: 1045.791696 | BI58: 1047.993506 | BJ58: 1050.195316 | BK58: 1052.397126 | BL58: 1054.598936 | BM58: 1056.800746 | BO58: 1 | BP58: 2 | BQ58: 3 | BR58: 4 | BS58: 5 | BT58: 6 | BU58: 7 | BV58: 8 | BW58: 9 | BX58: 10 | BY58: 11 | BZ58: 12 | CA58: 13 | CB58: 14 | CC58: 15 | CE58: 2.20181 | CF58: 2.20181 | CG58: 2.20181 | CH58: 2.20181 | CI58: 2.20181 | CJ58: 2.20181 | CK58: 2.20181 | CL58: 2.20181 | CM58: 2.20181 | CN58: 2.20181 | CO58: 2.20181 | CP58: 2.20181 | CQ58: 2.20181 | CR58: 2.20181 | CS58: 6.076849185e-14
AU59: O | AV59: 12 | AW59: A | AX59: 3 | AY59: 1044.199207 | AZ59: 1045.14472 | BA59: 1046.090234 | BB59: 1047.035747 | BC59: 1047.981261 | BD59: 1048.926774 | BE59: 1049.872198 | BF59: 1050.817598 | BG59: 1051.762933 | BH59: 1052.708267 | BI59: 1053.653602 | BJ59: 1054.598936 | BK59: 1055.544271 | BL59: 1056.489605 | BM59: 1057.434939 | BO59: 1 | BP59: 2 | BQ59: 3 | BR59: 4 | BS59: 5 | BT59: 6 | BU59: 7 | BV59: 8 | BW59: 9 | BX59: 10 | BY59: 11 | BZ59: 12 | CA59: 13 | CB59: 14 | CC59: 15 | CE59: 0.94551355 | CF59: 0.94551355 | CG59: 0.94551355 | CH59: 0.94551355 | CI59: 0.94551355 | CJ59: 0.94542395 | CK59: 0.94540019 | CL59: 0.94533443 | CM59: 0.94533443 | CN59: 0.94533443 | CO59: 0.94533443 | CP59: 0.94533443 | CQ59: 0.94533443 | CR59: 0.94533443 | CS59: 8.497783635e-05
AU60: O | AV60: 12 | AW60: A | AX60: 4 | AY60: 914.5893202 | AZ60: 961.2591922 | BA60: 1007.929064 | BB60: 1054.598936 | BC60: 1101.268808 | BD60: 1147.93868 | BE60: 1194.608552 | BF60: 1241.278424 | BG60: 1287.948296 | BH60: 1334.618168 | BI60: 1381.28804 | BJ60: 1427.957912 | BK60: 1474.627741 | BL60: 1521.297506 | BM60: 1567.967271 | BO60: 1 | BP60: 2 | BQ60: 3 | BR60: 4 | BS60: 5 | BT60: 6 | BU60: 7 | BV60: 8 | BW60: 9 | BX60: 10 | BY60: 11 | BZ60: 12 | CA60: 13 | CB60: 14 | CC60: 15 | CE60: 46.669872 | CF60: 46.669872 | CG60: 46.669872 | CH60: 46.669872 | CI60: 46.669872 | CJ60: 46.669872 | CK60: 46.669872 | CL60: 46.669872 | CM60: 46.669872 | CN60: 46.669872 | CO60: 46.669872 | CP60: 46.66982844 | CQ60: 46.669765 | CR60: 46.669765 | CS60: 3.927918362e-05
AU61: O | AV61: 12 | AW61: A | AX61: 5 | AY61: 579.8351782 | AZ61: 613.7468752 | BA61: 647.6585722 | BB61: 681.5702692 | BC61: 715.4819662 | BD61: 749.3936632 | BE61: 783.3053602 | BF61: 817.2170572 | BG61: 851.1287542 | BH61: 885.0404512 | BI61: 918.9521482 | BJ61: 952.8638452 | BK61: 986.7755422 | BL61: 1020.687239 | BM61: 1054.598936 | BO61: 1 | BP61: 2 | BQ61: 3 | BR61: 4 | BS61: 5 | BT61: 6 | BU61: 7 | BV61: 8 | BW61: 9 | BX61: 10 | BY61: 11 | BZ61: 12 | CA61: 13 | CB61: 14 | CC61: 15 | CE61: 33.911697 | CF61: 33.911697 | CG61: 33.911697 | CH61: 33.911697 | CI61: 33.911697 | CJ61: 33.911697 | CK61: 33.911697 | CL61: 33.911697 | CM61: 33.911697 | CN61: 33.911697 | CO61: 33.911697 | CP61: 33.911697 | CQ61: 33.911697 | CR61: 33.911697 | CS61: 4.459164646e-14
AU62: O | AV62: 13 | AW62: A | AX62: 1 | AY62: 659.194336 | AZ62: 698.828666 | BA62: 738.462996 | BB62: 778.097326 | BC62: 817.731656 | BD62: 857.365986 | BE62: 897.000316 | BF62: 936.634646 | BG62: 976.268976 | BH62: 1015.903306 | BI62: 1055.537636 | BJ62: 1095.171952 | BK62: 1134.806226 | BL62: 1174.4405 | BM62: 1214.074774 | BO62: 1 | BP62: 2 | BQ62: 3 | BR62: 4 | BS62: 5 | BT62: 6 | BU62: 7 | BV62: 8 | BW62: 9 | BX62: 10 | BY62: 11 | BZ62: 12 | CA62: 13 | CB62: 14 | CC62: 15 | CE62: 39.63433 | CF62: 39.63433 | CG62: 39.63433 | CH62: 39.63433 | CI62: 39.63433 | CJ62: 39.63433 | CK62: 39.63433 | CL62: 39.63433 | CM62: 39.63433 | CN62: 39.63433 | CO62: 39.63431599 | CP62: 39.634274 | CQ62: 39.634274 | CR62: 39.634274 | CS62: 2.359599068e-05
AU63: O | AV63: 13 | AW63: A | AX63: 2 | AY63: 817.731656 | AZ63: 819.933466 | BA63: 822.135276 | BB63: 824.337086 | BC63: 826.538896 | BD63: 828.7406858 | BE63: 830.9424258 | BF63: 833.1441658 | BG63: 835.3459059 | BH63: 837.5476458 | BI63: 839.7493858 | BJ63: 841.9511259 | BK63: 844.1528659 | BL63: 846.3546058 | BM63: 848.5563458 | BO63: 1 | BP63: 2 | BQ63: 3 | BR63: 4 | BS63: 5 | BT63: 6 | BU63: 7 | BV63: 8 | BW63: 9 | BX63: 10 | BY63: 11 | BZ63: 12 | CA63: 13 | CB63: 14 | CC63: 15 | CE63: 2.20181 | CF63: 2.20181 | CG63: 2.20181 | CH63: 2.20181 | CI63: 2.20178984 | CJ63: 2.20174 | CK63: 2.20174 | CL63: 2.20174 | CM63: 2.20174 | CN63: 2.20174 | CO63: 2.20174 | CP63: 2.20174 | CQ63: 2.20174 | CR63: 2.20174 | CS63: 3.318131447e-05
AU64: O | AV64: 13 | AW64: A | AX64: 3 | AY64: 812.0589045 | AZ64: 813.0044181 | BA64: 813.9499316 | BB64: 814.8954452 | BC64: 815.8409662 | BD64: 816.7863216 | BE64: 817.731656 | BF64: 818.6769904 | BG64: 819.6223249 | BH64: 820.5676593 | BI64: 821.5129937 | BJ64: 822.4583282 | BK64: 823.4036626 | BL64: 824.348997 | BM64: 825.2943315 | BO64: 1 | BP64: 2 | BQ64: 3 | BR64: 4 | BS64: 5 | BT64: 6 | BU64: 7 | BV64: 8 | BW64: 9 | BX64: 10 | BY64: 11 | BZ64: 12 | CA64: 13 | CB64: 14 | CC64: 15 | CE64: 0.94551355 | CF64: 0.94551355 | CG64: 0.94551355 | CH64: 0.945521 | CI64: 0.94535538 | CJ64: 0.94533443 | CK64: 0.94533443 | CL64: 0.94533443 | CM64: 0.94533443 | CN64: 0.94533443 | CO64: 0.94533443 | CP64: 0.94533443 | CQ64: 0.94533443 | CR64: 0.94533443 | CS64: 8.406376616e-05
AU65: O | AV65: 13 | AW65: A | AX65: 4 | AY65: 491.042552 | AZ65: 537.712424 | BA65: 584.382296 | BB65: 631.052168 | BC65: 677.72204 | BD65: 724.391912 | BE65: 771.061784 | BF65: 817.731656 | BG65: 864.401528 | BH65: 911.0714 | BI65: 957.741272 | BJ65: 1004.411046 | BK65: 1051.080811 | BL65: 1097.750576 | BM65: 1144.420341 | BO65: 1 | BP65: 2 | BQ65: 3 | BR65: 4 | BS65: 5 | BT65: 6 | BU65: 7 | BV65: 8 | BW65: 9 | BX65: 10 | BY65: 11 | BZ65: 12 | CA65: 13 | CB65: 14 | CC65: 15 | CE65: 46.669872 | CF65: 46.669872 | CG65: 46.669872 | CH65: 46.669872 | CI65: 46.669872 | CJ65: 46.669872 | CK65: 46.669872 | CL65: 46.669872 | CM65: 46.669872 | CN65: 46.669872 | CO65: 46.66977384 | CP65: 46.669765 | CQ65: 46.669765 | CR65: 46.669765 | CS65: 4.917217414e-05
AU66: O | AV66: 13 | AW66: A | AX66: 5 | AY66: 614.261474 | AZ66: 648.173171 | BA66: 682.084868 | BB66: 715.996565 | BC66: 749.908262 | BD66: 783.819959 | BE66: 817.731656 | BF66: 851.643353 | BG66: 885.55505 | BH66: 919.466747 | BI66: 953.378444 | BJ66: 987.290141 | BK66: 1021.201838 | BL66: 1055.113535 | BM66: 1089.025232 | BO66: 1 | BP66: 2 | BQ66: 3 | BR66: 4 | BS66: 5 | BT66: 6 | BU66: 7 | BV66: 8 | BW66: 9 | BX66: 10 | BY66: 11 | BZ66: 12 | CA66: 13 | CB66: 14 | CC66: 15 | CE66: 33.911697 | CF66: 33.911697 | CG66: 33.911697 | CH66: 33.911697 | CI66: 33.911697 | CJ66: 33.911697 | CK66: 33.911697 | CL66: 33.911697 | CM66: 33.911697 | CN66: 33.911697 | CO66: 33.911697 | CP66: 33.911697 | CQ66: 33.911697 | CR66: 33.911697 | CS66: 4.133756263e-14
AU67: O | AV67: 14 | AW67: A | AX67: 1 | AY67: 505.1989504 | AZ67: 544.8332804 | BA67: 584.4676104 | BB67: 624.1019404 | BC67: 663.7362245 | BD67: 703.3704905 | BE67: 743.0047565 | BF67: 782.6390225 | BG67: 822.2732944 | BH67: 861.9075684 | BI67: 901.5418424 | BJ67: 941.1761164 | BK67: 980.8103904 | BL67: 1020.444664 | BM67: 1060.078938 | BO67: 1 | BP67: 2 | BQ67: 3 | BR67: 4 | BS67: 5 | BT67: 6 | BU67: 7 | BV67: 8 | BW67: 9 | BX67: 10 | BY67: 11 | BZ67: 12 | CA67: 13 | CB67: 14 | CC67: 15 | CE67: 39.63433 | CF67: 39.63433 | CG67: 39.63433 | CH67: 39.63428412 | CI67: 39.634266 | CJ67: 39.634266 | CK67: 39.634266 | CL67: 39.63427185 | CM67: 39.634274 | CN67: 39.634274 | CO67: 39.634274 | CP67: 39.634274 | CQ67: 39.634274 | CR67: 39.634274 | CS67: =STDEV(CE67:CR67) -> 2.489578671e-05
AU68: O | AV68: 14 | AW68: A | AX68: 2 | AY68: 892.7349396 | AZ68: 894.9366653 | BA68: 897.138391 | BB68: 899.3401167 | BC68: 901.5418424 | BD68: 903.7435681 | BE68: 905.9453005 | BF68: 908.1470405 | BG68: 910.3487805 | BH68: 912.5505205 | BI68: 914.7522605 | BJ68: 916.9540005 | BK68: 919.1557405 | BL68: 921.3574805 | BM68: 923.5592205 | BO68: =RANK(AY68,$AY68:$BM68, 1) -> 1 | BP68: 2 | BQ68: 3 | BR68: 4 | BS68: 5 | BT68: 6 | BU68: 7 | BV68: 8 | BW68: 9 | BX68: 10 | BY68: 11 | BZ68: 12 | CA68: 13 | CB68: 14 | CC68: 15 | CE68: 2.2017257 | CF68: 2.2017257 | CG68: 2.2017257 | CH68: 2.2017257 | CI68: 2.2017257 | CJ68: 2.20173245 | CK68: 2.20174 | CL68: 2.20174 | CM68: 2.20174 | CN68: 2.20174 | CO68: 2.20174 | CP68: 2.20174 | CQ68: 2.20174 | CR68: 2.20174 | CS68: 6.978551325e-06
AU69: O | AV69: 14 | AW69: A | AX69: 3 | AY69: 901.5418424 | AZ69: 902.4873763 | BA69: 903.4329102 | BB69: 904.3782537 | BC69: 905.3235881 | BD69: 906.2689226 | BE69: 907.214257 | BF69: 908.1595914 | BG69: 909.1049259 | BH69: 910.0502603 | BI69: 910.9955947 | BJ69: 911.9409292 | BK69: 912.8862636 | BL69: 913.831598 | BM69: 914.7769324 | BO69: 1 | BP69: 2 | BQ69: 3 | BR69: 4 | BS69: 5 | BT69: 6 | BU69: 7 | BV69: 8 | BW69: 9 | BX69: 10 | BY69: 11 | BZ69: 12 | CA69: 13 | CB69: 14 | CC69: 15 | CE69: 0.9455339 | CF69: 0.9455339 | CG69: 0.94534352 | CH69: 0.94533443 | CI69: 0.94533443 | CJ69: 0.94533443 | CK69: 0.94533443 | CL69: 0.94533443 | CM69: 0.94533443 | CN69: 0.94533443 | CO69: 0.94533443 | CP69: 0.94533443 | CQ69: 0.94533443 | CR69: 0.94533443 | CS69: 7.22001255e-05
AU70: O | AV70: 14 | AW70: A | AX70: 4 | AY70: 901.5418424 | AZ70: 948.2115924 | BA70: 994.8813505 | BB70: 1041.551116 | BC70: 1088.220881 | BD70: 1134.890646 | BE70: 1181.560411 | BF70: 1228.230176 | BG70: 1274.899941 | BH70: 1321.569706 | BI70: 1368.239471 | BJ70: 1414.909236 | BK70: 1461.579001 | BL70: 1508.248766 | BM70: 1554.918531 | BO70: 1 | BP70: 2 | BQ70: 3 | BR70: 4 | BS70: 5 | BT70: 6 | BU70: 7 | BV70: 8 | BW70: 9 | BX70: 10 | BY70: 11 | BZ70: 12 | CA70: 13 | CB70: 14 | CC70: 15 | CE70: 46.66975 | CF70: 46.66975815 | CG70: 46.669765 | CH70: 46.669765 | CI70: 46.669765 | CJ70: 46.669765 | CK70: 46.669765 | CL70: 46.669765 | CM70: 46.669765 | CN70: 46.669765 | CO70: 46.669765 | CP70: 46.669765 | CQ70: 46.669765 | CR70: 46.669765 | CS70: 4.277138622e-06
AU71: O | AV71: 14 | AW71: A | AX71: 5 | AY71: 528.5126694 | AZ71: 562.4244124 | BA71: 596.3361554 | BB71: 630.2478984 | BC71: 664.1596414 | BD71: 698.0713844 | BE71: 731.9831274 | BF71: 765.8948704 | BG71: 799.8066134 | BH71: 833.7183564 | BI71: 867.6300994 | BJ71: 901.5418424 | BK71: 935.4535854 | BL71: 969.3653284 | BM71: 1003.277071 | BO71: 1 | BP71: 2 | BQ71: 3 | BR71: 4 | BS71: 5 | BT71: 6 | BU71: 7 | BV71: 8 | BW71: 9 | BX71: 10 | BY71: 11 | BZ71: 12 | CA71: 13 | CB71: 14 | CC71: 15 | CE71: 33.911743 | CF71: 33.911743 | CG71: 33.911743 | CH71: 33.911743 | CI71: 33.911743 | CJ71: 33.911743 | CK71: 33.911743 | CL71: 33.911743 | CM71: 33.911743 | CN71: 33.911743 | CO71: 33.911743 | CP71: 33.911743 | CQ71: 33.911743 | CR71: 33.911743 | CS71: 1.179784071e-13
AU72: O | AV72: 15 | AW72: A | AX72: 1 | AY72: 637.20897 | AZ72: 676.8433 | BA72: 716.47763 | BB72: 756.11196 | BC72: 795.74629 | BD72: 835.38062 | BE72: 875.01495 | BF72: 914.64928 | BG72: 954.28361 | BH72: 993.91794 | BI72: 1033.55227 | BJ72: 1073.1866 | BK72: 1112.82093 | BL72: 1152.45526 | BM72: 1192.08959 | BO72: 1 | BP72: 2 | BQ72: 3 | BR72: 4 | BS72: 5 | BT72: 6 | BU72: 7 | BV72: 8 | BW72: 9 | BX72: 10 | BY72: 11 | BZ72: 12 | CA72: 13 | CB72: 14 | CC72: 15 | CE72: 39.63433 | CF72: 39.63433 | CG72: 39.63433 | CH72: 39.63433 | CI72: 39.63433 | CJ72: 39.63433 | CK72: 39.63433 | CL72: 39.63433 | CM72: 39.63433 | CN72: 39.63433 | CO72: 39.63433 | CP72: 39.63433 | CQ72: 39.63433 | CR72: 39.63433 | CS72: 1.131046148e-13
AU73: O | AV73: 15 | AW73: A | AX73: 2 | AY73: 1042.36126 | AZ73: 1044.56307 | BA73: 1046.76488 | BB73: 1048.96669 | BC73: 1051.1685 | BD73: 1053.37031 | BE73: 1055.57212 | BF73: 1057.77393 | BG73: 1059.97574 | BH73: 1062.17755 | BI73: 1064.37936 | BJ73: 1066.58117 | BK73: 1068.78298 | BL73: 1070.98479 | BM73: 1073.1866 | BO73: 1 | BP73: 2 | BQ73: 3 | BR73: 4 | BS73: 5 | BT73: 6 | BU73: 7 | BV73: 8 | BW73: 9 | BX73: 10 | BY73: 11 | BZ73: 12 | CA73: 13 | CB73: 14 | CC73: 15 | CE73: 2.20181 | CF73: 2.20181 | CG73: 2.20181 | CH73: 2.20181 | CI73: 2.20181 | CJ73: 2.20181 | CK73: 2.20181 | CL73: 2.20181 | CM73: 2.20181 | CN73: 2.20181 | CO73: 2.20181 | CP73: 2.20181 | CQ73: 2.20181 | CR73: 2.20181 | CS73: 6.076849185e-14
AU74: O | AV74: 15 | AW74: A | AX74: 3 | AY74: 1060.89534 | AZ74: 1061.840853 | BA74: 1062.786367 | BB74: 1063.73188 | BC74: 1064.677394 | BD74: 1065.622907 | BE74: 1066.568421 | BF74: 1067.513934 | BG74: 1068.459448 | BH74: 1069.404961 | BI74: 1070.35049 | BJ74: 1071.295931 | BK74: 1072.241266 | BL74: 1073.1866 | BM74: 1074.131934 | BO74: 1 | BP74: 2 | BQ74: 3 | BR74: 4 | BS74: 5 | BT74: 6 | BU74: 7 | BV74: 8 | BW74: 9 | BX74: 10 | BY74: 11 | BZ74: 12 | CA74: 13 | CB74: 14 | CC74: 15 | CE74: 0.94551355 | CF74: 0.94551355 | CG74: 0.94551355 | CH74: 0.94551355 | CI74: 0.94551355 | CJ74: 0.94551355 | CK74: 0.94551355 | CL74: 0.94551355 | CM74: 0.94551355 | CN74: 0.9455289 | CO74: 0.94544076 | CP74: 0.94533443 | CQ74: 0.94533443 | CR74: 0.94533443 | CS74: 7.671898119e-05
AU75: O | AV75: 15 | AW75: A | AX75: 4 | AY75: 839.83724 | AZ75: 886.507112 | BA75: 933.176984 | BB75: 979.846856 | BC75: 1026.516728 | BD75: 1073.1866 | BE75: 1119.856472 | BF75: 1166.526344 | BG75: 1213.196216 | BH75: 1259.866081 | BI75: 1306.535842 | BJ75: 1353.205606 | BK75: 1399.875371 | BL75: 1446.545136 | BM75: 1493.214901 | BO75: 1 | BP75: 2 | BQ75: 3 | BR75: 4 | BS75: 5 | BT75: 6 | BU75: 7 | BV75: 8 | BW75: 9 | BX75: 10 | BY75: 11 | BZ75: 12 | CA75: 13 | CB75: 14 | CC75: 15 | CE75: 46.669872 | CF75: 46.669872 | CG75: 46.669872 | CH75: 46.669872 | CI75: 46.669872 | CJ75: 46.669872 | CK75: 46.669872 | CL75: 46.669872 | CM75: 46.66986458 | CN75: 46.6697615 | CO75: 46.6697636 | CP75: 46.669765 | CQ75: 46.669765 | CR75: 46.669765 | CS75: 5.332468181e-05
AU76: O | AV76: 15 | AW76: A | AX76: 5 | AY76: 835.804721 | AZ76: 869.716418 | BA76: 903.628115 | BB76: 937.539812 | BC76: 971.451509 | BD76: 1005.363206 | BE76: 1039.274903 | BF76: 1073.1866 | BG76: 1107.098297 | BH76: 1141.009994 | BI76: 1174.921691 | BJ76: 1208.833388 | BK76: 1242.745085 | BL76: 1276.656782 | BM76: 1310.568479 | BO76: 1 | BP76: 2 | BQ76: 3 | BR76: 4 | BS76: 5 | BT76: 6 | BU76: 7 | BV76: 8 | BW76: 9 | BX76: 10 | BY76: 11 | BZ76: 12 | CA76: 13 | CB76: 14 | CC76: 15 | CE76: 33.911697 | CF76: 33.911697 | CG76: 33.911697 | CH76: 33.911697 | CI76: 33.911697 | CJ76: 33.911697 | CK76: 33.911697 | CL76: 33.911697 | CM76: 33.911697 | CN76: 33.911697 | CO76: 33.911697 | CP76: 33.911697 | CQ76: 33.911697 | CR76: 33.911697 | CS76: 6.080467924e-14
BO77: =AVERAGE(BO2:BO76) -> 1 | BP77: =AVERAGE(BP2:BP76) -> 2 | BQ77: 3 | BR77: 4 | BS77: 5 | BT77: 6 | BU77: 7 | BV77: 8 | BW77: 9 | BX77: 10 | BY77: 11 | BZ77: 12 | CA77: 13 | CB77: 14 | CC77: 15
BO78: =STDEV(BO2:BO76) -> 0 | BP78: =STDEV(BP2:BP76) -> 0 | BQ78: 0 | BR78: 0 | BS78: 0 | BT78: 0 | BU78: 0 | BV78: 0 | BW78: 0 | BX78: 0 | BY78: 0 | BZ78: 0 | CA78: 0 | CB78: 0 | CC78: 0

Sheet nn - ranked data - new (36)
A1: irány | B1: 0 | C1: 0 | D1: 0 | E1: 0 | F1: 0 | M1: súlyok | U1: 2. layer vektor | AK1: 2 layer súlyok | AS1: Futtat | AY1: 1 | AZ1: 2 | BA1: 3 | BB1: 4 | BC1: 5 | BD1: 6 | BE1: 7 | BF1: 8 | BG1: 9 | BH1: 10 | BI1: 11 | BJ1: 12 | BK1: 13 | BL1: 14 | BM1: 15 | BO1: Ranking | CE1: O2 - O1 | CF1: O3 - O2 | CG1: O4 - O3 | CH1: O5 - O4 | CI1: O6 - O5 | CJ1: O7 - O6 | CK1: O8 - O7 | CL1: O9 - O8 | CM1: O10 - O9 | CN1: O11 - O10 | CO1: O12 - O11 | CP1: O13 - 12 | CQ1: O14 - O13 | CR1: O15 - O14
A2: rnd(1-100) | B2: A1 | C2: A2 | D2: A3 | E2: A4 | F2: A5 | H2: rank = 0 | I2: =B2 -> A1 | J2: A2 | K2: A3 | L2: A4 | M2: A5 | O2: w1 | P2: w2 | Q2: w3 | R2: w4 | S2: w5 | U2: O1 | V2: O2 | W2: O3 | X2: O4 | Y2: O5 | Z2: O6 | AA2: O7 | AB2: O8 | AC2: O9 | AD2: O10 | AE2: O11 | AF2: O12 | AG2: O13 | AH2: O14 | AI2: O15 | AK2: w6 | AN2: Y0 | AO2: Ybecslés | AP2: eltérés | AQ2: MAE | AU2: O | AV2: 1 | AW2: A | AX2: 1 | AY2: 45 | AZ2: 44 | BA2: 42 | BB2: 41 | BC2: 40 | BD2: 36 | BE2: 33 | BF2: 33 | BG2: 31 | BH2: 30 | BI2: 27 | BJ2: 26 | BK2: 25 | BL2: 24 | BM2: 22 | BO2: =RANK(AY2,$AY2:$BM2, 1) -> 15 | BP2: =RANK(AZ2,$AY2:$BM2, 1) -> 14 | BQ2: 13 | BR2: 12 | BS2: 11 | BT2: 10 | BU2: 8 | BV2: =RANK(BF2,$AY2:$BM2, 1) -> 8 | BW2: 7 | BX2: 6 | BY2: 5 | BZ2: 4 | CA2: 3 | CB2: 2 | CC2: 1 | CE2: =AZ2-AY2 -> -1 | CF2: =BA2-AZ2 -> -2 | CG2: -1 | CH2: -1 | CI2: =BD2-BC2 -> -4 | CJ2: -3 | CK2: 0 | CL2: -2 | CM2: =BH2-BG2 -> -1 | CN2: -3 | CO2: -1 | CP2: -1 | CQ2: -1 | CR2: =BM2-BL2 -> -2 | CS2: =STDEV(CE2:CR2) -> 1.081817762
A3: O1 | B3: 70 | C3: 10 | D3: 93 | E3: 33 | F3: 29 | H3: =A3 -> O1 | I3: 6 | J3: 13 | K3: 2 | L3: 11 | M3: 10 | O3: 0.17837822 | P3: 0.13921523 | Q3: 0.15091406 | R3: 0.15942907 | S3: 0.12971492 | U3: =$I$3*$O3+$J$3*$P3+$K$3*$Q3+$L$3*$R3+$M$3*$S3 -> 6.2327644 | V3: =$I$4*$O3+$J$4*$P3+$K$4*$Q3+$L$4*$R3+$M$4*$S3 -> 5.8927315 | W3: =$I$5*$O3+$J$5*$P3+$K$5*$Q3+$L$5*$R3+$M$5*$S3 -> 4.39990195 | X3: =$I$6*$O3+$J$6*$P3+$K$6*$Q3+$L$6*$R3+$M$6*$S3 -> 5.65393183 | Y3: =$I$7*$O3+$J$7*$P3+$K$7*$Q3+$L$7*$R3+$M$7*$S3 -> 6.98359906 | Z3: =$I$8*$O3+$J$8*$P3+$K$8*$Q3+$L$8*$R3+$M$8*$S3 -> 5.40091387 | AA3: =$I$9*$O3+$J$9*$P3+$K$9*$Q3+$L$9*$R3+$M$9*$S3 -> 7.75385879 | AB3: =$I$10*$O3+$J$10*$P3+$K$10*$Q3+$L$10*$R3+$M$10*$S3 -> 4.60574401 | AC3: =$I$11*$O3+$J$11*$P3+$K$11*$Q3+$L$11*$R3+$M$11*$S3 -> 7.22418237 | AD3: =$I$12*$O3+$J$12*$P3+$K$12*$Q3+$L$12*$R3+$M$12*$S3 -> 4.61667127 | AE3: =$I$13*$O3+$J$13*$P3+$K$13*$Q3+$L$13*$R3+$M$13*$S3 -> 6.2555413 | AF3: =$I$14*$O3+$J$14*$P3+$K$14*$Q3+$L$14*$R3+$M$14*$S3 -> 7.77044778 | AG3: =$I$15*$O3+$J$15*$P3+$K$15*$Q3+$L$15*$R3+$M$15*$S3 -> 4.27094175 | AH3: =$I$16*$O3+$J$16*$P3+$K$16*$Q3+$L$16*$R3+$M$16*$S3 -> 4.52515874 | AI3: =$I$17*$O3+$J$17*$P3+$K$17*$Q3+$L$17*$R3+$M$17*$S3 -> 8.33585771 | AK3: 100 | AM3: O1 | AN3: 1000 | AO3: =U33 -> 36 | AP3: =AN3-AO3 -> 964 | AQ3: =ABS(AP3) -> 964 | AU3: O | AV3: 1 | AW3: A | AX3: 2 | AY3: 62 | AZ3: 59 | BA3: 58 | BB3: 55 | BC3: 52 | BD3: 50 | BE3: 48 | BF3: 45 | BG3: 42 | BH3: 40 | BI3: 39 | BJ3: 38 | BK3: 36 | BL3: 33 | BM3: 33 | BO3: =RANK(AY3,$AY3:$BM3, 1) -> 15 | BP3: 14 | BQ3: 13 | BR3: 12 | BS3: 11 | BT3: 10 | BU3: 9 | BV3: 8 | BW3: 7 | BX3: 6 | BY3: 5 | BZ3: 4 | CA3: 3 | CB3: 1 | CC3: 1 | CE3: =AZ3-AY3 -> -3 | CF3: -1 | CG3: -3 | CH3: -3 | CI3: -2 | CJ3: -2 | CK3: -3 | CL3: -3 | CM3: -2 | CN3: -1 | CO3: -1 | CP3: -2 | CQ3: -3 | CR3: 0 | CS3: =STDEV(CE3:CR3) -> 0.9972489632
A4: O2 | B4: 17 | C4: 74 | D4: 84 | E4: 78 | F4: 23 | H4: =A4 -> O2 | I4: 13 | J4: 6 | K4: 4 | L4: 2 | M4: 14 | O4: 0.00965177 | P4: 0.46503866 | Q4: 0.43478802 | R4: 0.19912481 | S4: 0.07821546 | U4: =$I$3*$O4+$J$3*$P4+$K$3*$Q4+$L$3*$R4+$M$3*$S4 -> 9.94551675 | V4: =$I$4*$O4+$J$4*$P4+$K$4*$Q4+$L$4*$R4+$M$4*$S4 -> 6.14812311 | W4: =$I$5*$O4+$J$5*$P4+$K$5*$Q4+$L$5*$R4+$M$5*$S4 -> 6.69666063 | X4: =$I$6*$O4+$J$6*$P4+$K$6*$Q4+$L$6*$R4+$M$6*$S4 -> 6.55256175 | Y4: =$I$7*$O4+$J$7*$P4+$K$7*$Q4+$L$7*$R4+$M$7*$S4 -> 12.74828404 | Z4: =$I$8*$O4+$J$8*$P4+$K$8*$Q4+$L$8*$R4+$M$8*$S4 -> 11.44258963 | AA4: =$I$9*$O4+$J$9*$P4+$K$9*$Q4+$L$9*$R4+$M$9*$S4 -> 12.76418608 | AB4: =$I$10*$O4+$J$10*$P4+$K$10*$Q4+$L$10*$R4+$M$10*$S4 -> 5.54747122 | AC4: =$I$11*$O4+$J$11*$P4+$K$11*$Q4+$L$11*$R4+$M$11*$S4 -> 14.28672195 | AD4: =$I$12*$O4+$J$12*$P4+$K$12*$Q4+$L$12*$R4+$M$12*$S4 -> 7.46881641 | AE4: =$I$13*$O4+$J$13*$P4+$K$13*$Q4+$L$13*$R4+$M$13*$S4 -> 8.3924881 | AF4: =$I$14*$O4+$J$14*$P4+$K$14*$Q4+$L$14*$R4+$M$14*$S4 -> 13.77494278 | AG4: =$I$15*$O4+$J$15*$P4+$K$15*$Q4+$L$15*$R4+$M$15*$S4 -> 5.69732035 | AH4: =$I$16*$O4+$J$16*$P4+$K$16*$Q4+$L$16*$R4+$M$16*$S4 -> 4.00386112 | AI4: =$I$17*$O4+$J$17*$P4+$K$17*$Q4+$L$17*$R4+$M$17*$S4 -> 14.99890596 | AK4: 100 | AM4: O2 | AN4: 1000 | AO4: =V33 -> 41 | AP4: =AN4-AO4 -> 959 | AQ4: =ABS(AP4) -> 959 | AU4: O | AV4: 1 | AW4: A | AX4: 3 | AY4: 39 | AZ4: 36 | BA4: 33 | BB4: 33 | BC4: 32 | BD4: 30 | BE4: 28 | BF4: 26 | BG4: 22 | BH4: 21 | BI4: 18 | BJ4: 16 | BK4: 14 | BL4: 12 | BM4: 12 | BO4: =RANK(AY4,$AY4:$BM4, 1) -> 15 | BP4: 14 | BQ4: 12 | BR4: 12 | BS4: 11 | BT4: 10 | BU4: 9 | BV4: 8 | BW4: 7 | BX4: 6 | BY4: 5 | BZ4: 4 | CA4: 3 | CB4: 1 | CC4: 1 | CE4: -3 | CF4: -3 | CG4: 0 | CH4: -1 | CI4: -2 | CJ4: -2 | CK4: -2 | CL4: -4 | CM4: -1 | CN4: -3 | CO4: -2 | CP4: -2 | CQ4: -2 | CR4: 0 | CS4: 1.141138818
A5: O3 | B5: 57 | C5: 57 | D5: 89 | E5: 37 | F5: 85 | H5: O3 | I5: 7 | J5: 7 | K5: 3 | L5: 10 | M5: 1 | O5: 0.07721187 | P5: 0.09975174 | Q5: 0.10348205 | R5: 0.06843713 | S5: 0.02211944 | U5: =$I$3*$O5+$J$3*$P5+$K$3*$Q5+$L$3*$R5+$M$3*$S5 -> 2.94101077 | V5: =$I$4*$O5+$J$4*$P5+$K$4*$Q5+$L$4*$R5+$M$4*$S5 -> 2.46273937 | W5: =$I$5*$O5+$J$5*$P5+$K$5*$Q5+$L$5*$R5+$M$5*$S5 -> 2.25568216 | X5: 2.76103849 | Y5: 3.48587511 | Z5: 3.00592839 | AA5: 4.15324843 | AB5: 2.19882738 | AC5: 3.7065225 | AD5: 2.09501632 | AE5: 2.95536045 | AF5: 3.86154404 | AG5: 1.91251856 | AH5: 1.78544173 | AI5: 4.45914554 | AK5: 100 | AM5: O3 | AN5: 1000 | AO5: =W33 -> 62 | AP5: 938 | AQ5: =ABS(AP5) -> 938 | AU5: O | AV5: 1 | AW5: A | AX5: 4 | AY5: 47 | AZ5: 46 | BA5: 46 | BB5: 45 | BC5: 44 | BD5: 43 | BE5: 43 | BF5: 42 | BG5: 39 | BH5: 38 | BI5: 36 | BJ5: 33 | BK5: 33 | BL5: 33 | BM5: 33 | BO5: 15 | BP5: 13 | BQ5: 13 | BR5: 12 | BS5: 11 | BT5: 9 | BU5: 9 | BV5: 8 | BW5: 7 | BX5: 6 | BY5: 5 | BZ5: 1 | CA5: 1 | CB5: 1 | CC5: 1 | CE5: -1 | CF5: 0 | CG5: -1 | CH5: -1 | CI5: -1 | CJ5: 0 | CK5: -1 | CL5: -3 | CM5: -1 | CN5: -2 | CO5: -3 | CP5: 0 | CQ5: 0 | CR5: 0 | CS5: 1.037749043
A6: O4 | B6: 13 | C6: 88 | D6: 62 | E6: 44 | F6: 75 | H6: O4 | I6: 14 | J6: 4 | K6: 6 | L6: 9 | M6: 2 | O6: 0.09920991 | P6: 0.63917863 | Q6: 0.17624931 | R6: 0.23694727 | S6: 0.61001223 | U6: 17.96362254 | V6: =$I$4*$O6+$J$4*$P6+$K$4*$Q6+$L$4*$R6+$M$4*$S6 -> 14.84386361 | W6: 8.67695264 | X6: 8.35569901 | Y6: 17.95915757 | Z6: 12.78915588 | AA6: 15.68433074 | AB6: 6.90300475 | AC6: 17.91294131 | AD6: 14.4225038 | AE6: 10.21119812 | AF6: 21.95514435 | AG6: 8.53463712 | AH6: 12.0205455 | AI6: 19.54747017 | AK6: 100 | AM6: O4 | AN6: 1000 | AO6: =X33 -> 50 | AP6: 950 | AQ6: 950 | AU6: O | AV6: 1 | AW6: A | AX6: 5 | AY6: 50 | AZ6: 48 | BA6: 47 | BB6: 46 | BC6: 44 | BD6: 42 | BE6: 41 | BF6: 40 | BG6: 40 | BH6: 36 | BI6: 34 | BJ6: 34 | BK6: 30 | BL6: 30 | BM6: 29 | BO6: 15 | BP6: 14 | BQ6: 13 | BR6: 12 | BS6: 11 | BT6: 10 | BU6: 9 | BV6: 7 | BW6: 7 | BX6: 6 | BY6: 4 | BZ6: 4 | CA6: 2 | CB6: 2 | CC6: 1 | CE6: -2 | CF6: =BA6-AZ6 -> -1 | CG6: -1 | CH6: -2 | CI6: -2 | CJ6: -1 | CK6: -1 | CL6: 0 | CM6: -4 | CN6: -2 | CO6: 0 | CP6: -4 | CQ6: 0 | CR6: -1 | CS6: 1.2860195
A7: O5 | B7: 76 | C7: 25 | D7: 28 | E7: 1 | F7: 33 | H7: O5 | I7: 3 | J7: 11 | K7: 9 | L7: 15 | M7: 9 | O7: 0.5611306 | P7: 0.01092305 | Q7: 0.39463338 | R7: 0.1345434 | S7: 0.42643666 | U7: 10.04239401 | V7: 15.17796966 | W7: 6.96014635 | X7: 12.3310848 | Y7: 11.21132671 | Z7: 7.93711288 | AA7: 16.48316984 | AB7: 11.29230313 | AC7: 12.72691295 | AD7: 9.82594382 | AE7: 13.70974979 | AF7: 16.31229156 | AG7: 9.64041353 | AH7: 11.87346855 | AI7: 16.64103395 | AK7: 100 | AM7: O5 | AN7: 1000 | AO7: =Y33 -> 29 | AP7: 971 | AQ7: 971 | AU7: O | AV7: 2 | AW7: A | AX7: 1 | AY7: 63 | AZ7: 63 | BA7: 63 | BB7: 59 | BC7: 57 | BD7: 52 | BE7: 51 | BF7: 49 | BG7: 46 | BH7: 45 | BI7: 42 | BJ7: 41 | BK7: 41 | BL7: 41 | BM7: 40 | BO7: 13 | BP7: 13 | BQ7: 13 | BR7: 12 | BS7: 11 | BT7: 10 | BU7: 9 | BV7: 8 | BW7: 7 | BX7: 6 | BY7: 5 | BZ7: 2 | CA7: 2 | CB7: 2 | CC7: 1 | CE7: 0 | CF7: 0 | CG7: -4 | CH7: -2 | CI7: -5 | CJ7: -1 | CK7: -2 | CL7: -3 | CM7: -1 | CN7: -3 | CO7: -1 | CP7: 0 | CQ7: 0 | CR7: -1 | CS7: 1.598419549
A8: O6 | B8: 82 | C8: 33 | D8: 24 | E8: 33 | F8: 73 | H8: O6 | I8: 2 | J8: 10 | K8: 10 | L8: 11 | M8: 3 | AM8: O6 | AN8: 1000 | AO8: =Z33 -> 45 | AP8: 955 | AQ8: 955 | AU8: O | AV8: 2 | AW8: A | AX8: 2 | AY8: 52 | AZ8: 50 | BA8: 47 | BB8: 45 | BC8: 43 | BD8: 41 | BE8: 40 | BF8: 38 | BG8: 34 | BH8: 34 | BI8: 28 | BJ8: 27 | BK8: 27 | BL8: 25 | BM8: 24 | BO8: 15 | BP8: 14 | BQ8: 13 | BR8: 12 | BS8: 11 | BT8: 10 | BU8: 9 | BV8: 8 | BW8: 6 | BX8: 6 | BY8: 5 | BZ8: 3 | CA8: 3 | CB8: 2 | CC8: 1 | CE8: -2 | CF8: -3 | CG8: -2 | CH8: -2 | CI8: -2 | CJ8: -1 | CK8: -2 | CL8: -4 | CM8: 0 | CN8: -6 | CO8: -1 | CP8: 0 | CQ8: -2 | CR8: -1 | CS8: 1.568929081
A9: O7 | B9: 12 | C9: 19 | D9: 11 | E9: 69 | F9: 55 | H9: O7 | I9: 15 | J9: 12 | K9: 13 | L9: 5 | M9: 5 | AM9: O7 | AN9: 1000 | AO9: =AA33 -> 17 | AP9: 983 | AQ9: 983 | AU9: O | AV9: 2 | AW9: A | AX9: 3 | AY9: 47 | AZ9: 44 | BA9: 41 | BB9: 41 | BC9: 40 | BD9: 39 | BE9: 35 | BF9: 32 | BG9: 29 | BH9: 27 | BI9: 27 | BJ9: 26 | BK9: 24 | BL9: 23 | BM9: 23 | BO9: 15 | BP9: 14 | BQ9: 12 | BR9: 12 | BS9: 11 | BT9: 10 | BU9: 9 | BV9: 8 | BW9: 7 | BX9: 5 | BY9: 5 | BZ9: 4 | CA9: 3 | CB9: 1 | CC9: 1 | CE9: -3 | CF9: -3 | CG9: 0 | CH9: -1 | CI9: -1 | CJ9: -4 | CK9: -3 | CL9: -3 | CM9: -2 | CN9: 0 | CO9: -1 | CP9: -2 | CQ9: -1 | CR9: 0 | CS9: 1.325987088
A10: O8 | B10: 39 | C10: 97 | D10: 57 | E10: 56 | F10: 67 | H10: O8 | I10: 10 | J10: 1 | K10: 8 | L10: 6 | M10: 4 | AM10: O8 | AN10: 1000 | AO10: =AB33 -> 62 | AP10: 938 | AQ10: 938 | AU10: O | AV10: 2 | AW10: A | AX10: 4 | AY10: 41 | AZ10: 41 | BA10: 41 | BB10: 41 | BC10: 37 | BD10: 36 | BE10: 35 | BF10: 35 | BG10: 32 | BH10: 30 | BI10: 28 | BJ10: 27 | BK10: 26 | BL10: 23 | BM10: 22 | BO10: 12 | BP10: 12 | BQ10: 12 | BR10: 12 | BS10: 11 | BT10: 10 | BU10: 8 | BV10: 8 | BW10: 7 | BX10: 6 | BY10: 5 | BZ10: 4 | CA10: 3 | CB10: 2 | CC10: 1 | CE10: 0 | CF10: 0 | CG10: 0 | CH10: -4 | CI10: -1 | CJ10: -1 | CK10: 0 | CL10: -3 | CM10: -2 | CN10: -2 | CO10: -1 | CP10: -1 | CQ10: -3 | CR10: -1 | CS10: 1.277445941
A11: O9 | B11: 90 | C11: 37 | D11: 1 | E11: 6 | F11: 29 | H11: O9 | I11: 1 | J11: 9 | K11: 15 | L11: 14 | M11: 10 | AM11: O9 | AN11: 1000 | AO11: =AC33 -> 21 | AP11: 979 | AQ11: 979 | AU11: O | AV11: 2 | AW11: A | AX11: 5 | AY11: 68 | AZ11: 64 | BA11: 62 | BB11: 58 | BC11: 53 | BD11: 53 | BE11: 50 | BF11: 49 | BG11: 47 | BH11: 46 | BI11: 43 | BJ11: 43 | BK11: 42 | BL11: 41 | BM11: 41 | BO11: 15 | BP11: 14 | BQ11: 13 | BR11: 12 | BS11: 10 | BT11: 10 | BU11: 9 | BV11: 8 | BW11: 7 | BX11: 6 | BY11: 4 | BZ11: 4 | CA11: 3 | CB11: 1 | CC11: 1 | CE11: -4 | CF11: -2 | CG11: -4 | CH11: -5 | CI11: 0 | CJ11: -3 | CK11: -1 | CL11: -2 | CM11: -1 | CN11: -3 | CO11: 0 | CP11: -1 | CQ11: -1 | CR11: 0 | CS11: 1.639150142
A12: O10 | B12: 74 | C12: 47 | D12: 82 | E12: 76 | F12: 24 | H12: O10 | I12: 4 | J12: 8 | K12: 5 | L12: 3 | M12: 12 | AM12: O10 | AN12: 1000 | AO12: =AD33 -> 53 | AP12: 947 | AQ12: 947 | AU12: O | AV12: 3 | AW12: A | AX12: 1 | AY12: 68 | AZ12: 68 | BA12: 67 | BB12: 66 | BC12: 65 | BD12: 64 | BE12: 62 | BF12: 61 | BG12: 58 | BH12: 57 | BI12: 57 | BJ12: 56 | BK12: 53 | BL12: 52 | BM12: 49 | BO12: 14 | BP12: 14 | BQ12: 13 | BR12: 12 | BS12: 11 | BT12: 10 | BU12: 9 | BV12: 8 | BW12: 7 | BX12: 5 | BY12: 5 | BZ12: 4 | CA12: 3 | CB12: 2 | CC12: 1 | CE12: 0 | CF12: -1 | CG12: -1 | CH12: -1 | CI12: -1 | CJ12: -2 | CK12: -1 | CL12: -3 | CM12: -1 | CN12: 0 | CO12: -1 | CP12: -3 | CQ12: -1 | CR12: -3 | CS12: 1.008208072
A13: O11 | B13: 43 | C13: 97 | D13: 15 | E13: 28 | F13: 46 | H13: O11 | I13: 9 | J13: 1 | K13: 11 | L13: 13 | M13: 6 | AM13: O11 | AN13: 1000 | AO13: =AE33 -> 37 | AP13: 963 | AQ13: 963 | AU13: O | AV13: 3 | AW13: A | AX13: 2 | AY13: 75 | AZ13: 74 | BA13: 73 | BB13: 72 | BC13: 69 | BD13: 67 | BE13: 62 | BF13: 61 | BG13: 58 | BH13: 56 | BI13: 55 | BJ13: 55 | BK13: 53 | BL13: 50 | BM13: 47 | BO13: 15 | BP13: 14 | BQ13: 13 | BR13: 12 | BS13: 11 | BT13: 10 | BU13: 9 | BV13: 8 | BW13: 7 | BX13: 6 | BY13: 4 | BZ13: 4 | CA13: 3 | CB13: 2 | CC13: 1 | CE13: -1 | CF13: -1 | CG13: -1 | CH13: -3 | CI13: -2 | CJ13: -5 | CK13: -1 | CL13: -3 | CM13: -2 | CN13: -1 | CO13: 0 | CP13: -2 | CQ13: -3 | CR13: -3 | CS13: 1.300887271
A14: O12 | B14: 49 | C14: 9 | D14: 13 | E14: 72 | F14: 7 | H14: O12 | I14: 8 | J14: 14 | K14: 12 | L14: 4 | M14: 15 | AM14: O12 | AN14: 1000 | AO14: =AF33 -> 12 | AP14: 988 | AQ14: 988 | AU14: O | AV14: 3 | AW14: A | AX14: 3 | AY14: 69 | AZ14: 66 | BA14: 62 | BB14: 61 | BC14: 58 | BD14: 56 | BE14: 55 | BF14: 54 | BG14: 54 | BH14: 50 | BI14: 46 | BJ14: 44 | BK14: 43 | BL14: 40 | BM14: 39 | BO14: 15 | BP14: 14 | BQ14: 13 | BR14: 12 | BS14: 11 | BT14: 10 | BU14: 9 | BV14: 7 | BW14: 7 | BX14: 6 | BY14: 5 | BZ14: 4 | CA14: 3 | CB14: 2 | CC14: 1 | CE14: -3 | CF14: -4 | CG14: -1 | CH14: -3 | CI14: -2 | CJ14: -1 | CK14: -1 | CL14: 0 | CM14: -4 | CN14: -4 | CO14: -2 | CP14: -1 | CQ14: -3 | CR14: -1 | CS14: 1.350620533
A15: O13 | B15: 72 | C15: 97 | D15: 60 | E15: 49 | F15: 38 | H15: O13 | I15: 5 | J15: 1 | K15: 7 | L15: 8 | M15: 7 | AM15: O13 | AN15: 1000 | AO15: =AG33 -> 68 | AP15: 932 | AQ15: 932 | AU15: O | AV15: 3 | AW15: A | AX15: 4 | AY15: 74 | AZ15: 74 | BA15: 73 | BB15: 72 | BC15: 69 | BD15: 69 | BE15: 69 | BF15: 67 | BG15: 66 | BH15: 62 | BI15: 61 | BJ15: 59 | BK15: 59 | BL15: 57 | BM15: 57 | BO15: 14 | BP15: 14 | BQ15: 13 | BR15: 12 | BS15: 9 | BT15: 9 | BU15: 9 | BV15: 8 | BW15: 7 | BX15: 6 | BY15: 5 | BZ15: 3 | CA15: 3 | CB15: 1 | CC15: 1 | CE15: 0 | CF15: -1 | CG15: -1 | CH15: -3 | CI15: 0 | CJ15: 0 | CK15: -2 | CL15: -1 | CM15: -4 | CN15: -1 | CO15: -2 | CP15: 0 | CQ15: -2 | CR15: 0 | CS15: 1.251372872
A16: O14 | B16: 38 | C16: 80 | D16: 96 | E16: 89 | F16: 24 | H16: O14 | I16: 11 | J16: 5 | K16: 1 | L16: 1 | M16: 12 | AM16: O14 | AN16: 1000 | AO16: =AH33 -> 61 | AP16: 939 | AQ16: 939 | AU16: O | AV16: 3 | AW16: A | AX16: 5 | AY16: 62 | AZ16: 61 | BA16: 59 | BB16: 57 | BC16: 57 | BD16: 57 | BE16: 56 | BF16: 53 | BG16: 51 | BH16: 51 | BI16: 46 | BJ16: 44 | BK16: 41 | BL16: 40 | BM16: 39 | BO16: 15 | BP16: 14 | BQ16: 13 | BR16: 10 | BS16: 10 | BT16: 10 | BU16: 9 | BV16: 8 | BW16: 6 | BX16: 6 | BY16: 5 | BZ16: 4 | CA16: 3 | CB16: 2 | CC16: 1 | CE16: -1 | CF16: -2 | CG16: -2 | CH16: 0 | CI16: 0 | CJ16: -1 | CK16: -3 | CL16: -2 | CM16: 0 | CN16: -5 | CO16: -2 | CP16: -3 | CQ16: -1 | CR16: -1 | CS16: 1.392681026
A17: O15 | B17: 34 | C17: 7 | D17: 4 | E17: 56 | F17: 34 | H17: O15 | I17: 12 | J17: 15 | K17: 14 | L17: 6 | M17: 8 | AM17: O15 | AN17: 1000 | AO17: =AI33 -> 6 | AP17: 994 | AQ17: 994 | AU17: O | AV17: 4 | AW17: A | AX17: 1 | AY17: 70 | AZ17: 69 | BA17: 69 | BB17: 68 | BC17: 67 | BD17: 66 | BE17: 62 | BF17: 60 | BG17: 58 | BH17: 55 | BI17: 54 | BJ17: 54 | BK17: 51 | BL17: 50 | BM17: 49 | BO17: 15 | BP17: 13 | BQ17: 13 | BR17: 12 | BS17: 11 | BT17: 10 | BU17: 9 | BV17: 8 | BW17: 7 | BX17: 6 | BY17: 4 | BZ17: 4 | CA17: 3 | CB17: 2 | CC17: 1 | CE17: -1 | CF17: 0 | CG17: -1 | CH17: -1 | CI17: -1 | CJ17: -4 | CK17: -2 | CL17: -2 | CM17: -3 | CN17: -1 | CO17: 0 | CP17: -3 | CQ17: -1 | CR17: -1 | CS17: 1.160238702
AN18: szum | AO18: szum | AP18: hiba | AU18: O | AV18: 4 | AW18: A | AX18: 2 | AY18: 56 | AZ18: 53 | BA18: 51 | BB18: 50 | BC18: 47 | BD18: 43 | BE18: 41 | BF18: 40 | BG18: 38 | BH18: 37 | BI18: 36 | BJ18: 34 | BK18: 34 | BL18: 31 | BM18: 29 | BO18: 15 | BP18: 14 | BQ18: 13 | BR18: 12 | BS18: 11 | BT18: 10 | BU18: 9 | BV18: 8 | BW18: 7 | BX18: 6 | BY18: 5 | BZ18: 3 | CA18: 3 | CB18: 2 | CC18: 1 | CE18: -3 | CF18: -2 | CG18: -1 | CH18: -3 | CI18: -4 | CJ18: -2 | CK18: -1 | CL18: -2 | CM18: -1 | CN18: -1 | CO18: -2 | CP18: 0 | CQ18: -3 | CR18: -2 | CS18: 1.071611706
U19: Activation - linear | AK19: Szórás | AN19: =SUM(AN3:AN17) -> 15000 | AO19: =SUM(AO3:AO17) -> 600 | AP19: =SUMSQ(AP3:AP17) -> 13829464 | AQ19: =SUM(AQ3:AQ17)/15 -> 960 | AU19: O | AV19: 4 | AW19: A | AX19: 3 | AY19: 59 | AZ19: 58 | BA19: 58 | BB19: 54 | BC19: 51 | BD19: 50 | BE19: 49 | BF19: 43 | BG19: 41 | BH19: 38 | BI19: 37 | BJ19: 37 | BK19: 37 | BL19: 34 | BM19: 33 | BO19: 15 | BP19: 13 | BQ19: 13 | BR19: 12 | BS19: 11 | BT19: 10 | BU19: 9 | BV19: 8 | BW19: 7 | BX19: 6 | BY19: 3 | BZ19: 3 | CA19: 3 | CB19: 2 | CC19: 1 | CE19: -1 | CF19: 0 | CG19: -4 | CH19: -3 | CI19: -1 | CJ19: -1 | CK19: -6 | CL19: -2 | CM19: -3 | CN19: -1 | CO19: 0 | CP19: 0 | CQ19: -3 | CR19: -1 | CS19: 1.747840111
P20: -1 | U20: =IF(U3>0,U3,U3*$P$20) -> 6.2327644 | V20: =IF(V3>0,V3,V3*$P$20) -> 5.8927315 | W20: 4.39990195 | X20: 5.65393183 | Y20: 6.98359906 | Z20: 5.40091387 | AA20: 7.75385879 | AB20: 4.60574401 | AC20: 7.22418237 | AD20: 4.61667127 | AE20: 6.2555413 | AF20: 7.77044778 | AG20: 4.27094175 | AH20: 4.52515874 | AI20: 8.33585771 | AK20: =STDEV(U20:AI20) -> 1.371254363 | AP20: hiba2 | AU20: O | AV20: 4 | AW20: A | AX20: 4 | AY20: 63 | AZ20: 59 | BA20: 56 | BB20: 55 | BC20: 53 | BD20: 52 | BE20: 51 | BF20: 50 | BG20: 50 | BH20: 48 | BI20: 46 | BJ20: 43 | BK20: 40 | BL20: 39 | BM20: 39 | BO20: 15 | BP20: 14 | BQ20: 13 | BR20: 12 | BS20: 11 | BT20: 10 | BU20: 9 | BV20: 7 | BW20: 7 | BX20: 6 | BY20: 5 | BZ20: 4 | CA20: 3 | CB20: 1 | CC20: 1 | CE20: -4 | CF20: -3 | CG20: -1 | CH20: -2 | CI20: -1 | CJ20: -1 | CK20: -1 | CL20: 0 | CM20: -2 | CN20: -2 | CO20: -3 | CP20: -3 | CQ20: -1 | CR20: 0 | CS20: 1.204387583
U21: =IF(U4>0,U4,U4*$P$20) -> 9.94551675 | V21: 6.14812311 | W21: 6.69666063 | X21: 6.55256175 | Y21: 12.74828404 | Z21: 11.44258963 | AA21: 12.76418608 | AB21: 5.54747122 | AC21: 14.28672195 | AD21: 7.46881641 | AE21: 8.3924881 | AF21: 13.77494278 | AG21: 5.69732035 | AH21: 4.00386112 | AI21: 14.99890596 | AK21: =STDEV(U21:AI21) -> 3.681546003 | AP21: =ABS(AN19-AO19) -> 14400 | AU21: O | AV21: 4 | AW21: A | AX21: 5 | AY21: 50 | AZ21: 50 | BA21: 47 | BB21: 45 | BC21: 45 | BD21: 43 | BE21: 41 | BF21: 41 | BG21: 39 | BH21: 38 | BI21: 36 | BJ21: 33 | BK21: 30 | BL21: 28 | BM21: 26 | BO21: 14 | BP21: 14 | BQ21: 13 | BR21: 11 | BS21: 11 | BT21: 10 | BU21: 8 | BV21: 8 | BW21: 7 | BX21: 6 | BY21: 5 | BZ21: 4 | CA21: 3 | CB21: 2 | CC21: 1 | CE21: 0 | CF21: -3 | CG21: -2 | CH21: 0 | CI21: -2 | CJ21: -2 | CK21: 0 | CL21: -2 | CM21: -1 | CN21: -2 | CO21: -3 | CP21: -3 | CQ21: -2 | CR21: -2 | CS21: 1.069044968
U22: 2.94101077 | V22: 2.46273937 | W22: 2.25568216 | X22: 2.76103849 | Y22: 3.48587511 | Z22: 3.00592839 | AA22: 4.15324843 | AB22: 2.19882738 | AC22: 3.7065225 | AD22: 2.09501632 | AE22: 2.95536045 | AF22: 3.86154404 | AG22: 1.91251856 | AH22: 1.78544173 | AI22: 4.45914554 | AK22: 0.8408775369 | AP22: hiba3 | AU22: O | AV22: 5 | AW22: A | AX22: 1 | AY22: 30 | AZ22: 30 | BA22: 29 | BB22: 27 | BC22: 23 | BD22: 21 | BE22: 21 | BF22: 17 | BG22: 17 | BH22: 17 | BI22: 15 | BJ22: 14 | BK22: 11 | BL22: 11 | BM22: 11 | BO22: 14 | BP22: 14 | BQ22: 13 | BR22: 12 | BS22: 11 | BT22: 9 | BU22: 9 | BV22: 6 | BW22: 6 | BX22: 6 | BY22: 5 | BZ22: 4 | CA22: 1 | CB22: 1 | CC22: 1 | CE22: 0 | CF22: -1 | CG22: -2 | CH22: -4 | CI22: -2 | CJ22: 0 | CK22: -4 | CL22: 0 | CM22: 0 | CN22: -2 | CO22: -1 | CP22: -3 | CQ22: 0 | CR22: 0 | CS22: 1.499083969
U23: 17.96362254 | V23: 14.84386361 | W23: 8.67695264 | X23: 8.35569901 | Y23: 17.95915757 | Z23: 12.78915588 | AA23: 15.68433074 | AB23: 6.90300475 | AC23: 17.91294131 | AD23: 14.4225038 | AE23: 10.21119812 | AF23: 21.95514435 | AG23: 8.53463712 | AH23: 12.0205455 | AI23: 19.54747017 | AK23: 4.662342181 | AP23: =AP19*AP21 -> 199144281600 | AU23: O | AV23: 5 | AW23: A | AX23: 2 | AY23: 46 | AZ23: 43 | BA23: 42 | BB23: 40 | BC23: 39 | BD23: 34 | BE23: 32 | BF23: 31 | BG23: 30 | BH23: 30 | BI23: 29 | BJ23: 27 | BK23: 26 | BL23: 23 | BM23: 21 | BO23: 15 | BP23: 14 | BQ23: 13 | BR23: 12 | BS23: 11 | BT23: 10 | BU23: 9 | BV23: 8 | BW23: 6 | BX23: 6 | BY23: 5 | BZ23: 4 | CA23: 3 | CB23: 2 | CC23: 1 | CE23: -3 | CF23: -1 | CG23: -2 | CH23: -1 | CI23: -5 | CJ23: -2 | CK23: -1 | CL23: -1 | CM23: 0 | CN23: -1 | CO23: -2 | CP23: -1 | CQ23: -3 | CR23: -2 | CS23: 1.251372872
U24: 10.04239401 | V24: 15.17796966 | W24: 6.96014635 | X24: 12.3310848 | Y24: 11.21132671 | Z24: 7.93711288 | AA24: 16.48316984 | AB24: 11.29230313 | AC24: 12.72691295 | AD24: 9.82594382 | AE24: 13.70974979 | AF24: 16.31229156 | AG24: 9.64041353 | AH24: 11.87346855 | AI24: 16.64103395 | AK24: 3.056076663 | AN24: szórás | AO24: szórás | AU24: O | AV24: 5 | AW24: A | AX24: 3 | AY24: 42 | AZ24: 40 | BA24: 39 | BB24: 37 | BC24: 34 | BD24: 31 | BE24: 30 | BF24: 30 | BG24: 29 | BH24: 26 | BI24: 24 | BJ24: 21 | BK24: 18 | BL24: 18 | BM24: 15 | BO24: 15 | BP24: 14 | BQ24: 13 | BR24: 12 | BS24: 11 | BT24: 10 | BU24: 8 | BV24: 8 | BW24: 7 | BX24: 6 | BY24: 5 | BZ24: 4 | CA24: 2 | CB24: 2 | CC24: 1 | CE24: -2 | CF24: -1 | CG24: -2 | CH24: -3 | CI24: -3 | CJ24: -1 | CK24: 0 | CL24: -1 | CM24: -3 | CN24: -2 | CO24: -3 | CP24: -3 | CQ24: 0 | CR24: -3 | CS24: 1.141138818
AN25: =STDEV(AN3:AN17) -> 0 | AO25: =STDEV(AO3:AO17) -> 19.75565019 | AU25: O | AV25: 5 | AW25: A | AX25: 4 | AY25: 45 | AZ25: 44 | BA25: 44 | BB25: 43 | BC25: 41 | BD25: 39 | BE25: 37 | BF25: 34 | BG25: 32 | BH25: 32 | BI25: 30 | BJ25: 30 | BK25: 30 | BL25: 30 | BM25: 29 | BO25: 15 | BP25: 13 | BQ25: 13 | BR25: 12 | BS25: 11 | BT25: 10 | BU25: 9 | BV25: 8 | BW25: 6 | BX25: 6 | BY25: 2 | BZ25: 2 | CA25: 2 | CB25: 2 | CC25: 1 | CE25: -1 | CF25: 0 | CG25: -1 | CH25: -2 | CI25: -2 | CJ25: -2 | CK25: -3 | CL25: -2 | CM25: 0 | CN25: -2 | CO25: 0 | CP25: 0 | CQ25: 0 | CR25: -1 | CS25: 1.027105182
AU26: O | AV26: 5 | AW26: A | AX26: 5 | AY26: 39 | AZ26: 38 | BA26: 38 | BB26: 34 | BC26: 34 | BD26: 31 | BE26: 30 | BF26: 30 | BG26: 29 | BH26: 26 | BI26: 24 | BJ26: 22 | BK26: 21 | BL26: 21 | BM26: 19 | BO26: 15 | BP26: 13 | BQ26: 13 | BR26: 11 | BS26: 11 | BT26: 10 | BU26: 8 | BV26: 8 | BW26: 7 | BX26: 6 | BY26: 5 | BZ26: 4 | CA26: 2 | CB26: 2 | CC26: 1 | CE26: -1 | CF26: 0 | CG26: -4 | CH26: 0 | CI26: -3 | CJ26: -1 | CK26: 0 | CL26: -1 | CM26: -3 | CN26: -2 | CO26: -2 | CP26: -1 | CQ26: 0 | CR26: -2 | CS26: 1.283881478
U27: =RANK(U20,$U20:$AI20,0) -> 7 | V27: =RANK(V20,$U20:$AI20,0) -> 8 | W27: 14 | X27: 9 | Y27: 5 | Z27: 10 | AA27: 3 | AB27: 12 | AC27: 4 | AD27: 11 | AE27: 6 | AF27: 2 | AG27: 15 | AH27: 13 | AI27: 1 | AU27: O | AV27: 6 | AW27: A | AX27: 1 | AY27: 47 | AZ27: 45 | BA27: 45 | BB27: 44 | BC27: 43 | BD27: 40 | BE27: 38 | BF27: 36 | BG27: 35 | BH27: 33 | BI27: 31 | BJ27: 30 | BK27: 28 | BL27: 27 | BM27: 26 | BO27: 15 | BP27: 13 | BQ27: 13 | BR27: 12 | BS27: 11 | BT27: 10 | BU27: 9 | BV27: 8 | BW27: 7 | BX27: 6 | BY27: 5 | BZ27: 4 | CA27: 3 | CB27: 2 | CC27: 1 | CE27: -2 | CF27: 0 | CG27: -1 | CH27: -1 | CI27: -3 | CJ27: -2 | CK27: -2 | CL27: -1 | CM27: -2 | CN27: -2 | CO27: -1 | CP27: -2 | CQ27: -1 | CR27: -1 | CS27: 0.7595545253
U28: =RANK(U21,$U21:$AI21,0) -> 7 | V28: =RANK(V21,$U21:$AI21,0) -> 12 | W28: 10 | X28: 11 | Y28: 5 | Z28: 6 | AA28: 4 | AB28: 14 | AC28: 2 | AD28: 9 | AE28: 8 | AF28: 3 | AG28: 13 | AH28: 15 | AI28: 1 | AU28: O | AV28: 6 | AW28: A | AX28: 2 | AY28: 64 | AZ28: 61 | BA28: 59 | BB28: 54 | BC28: 51 | BD28: 50 | BE28: 49 | BF28: 48 | BG28: 47 | BH28: 45 | BI28: 45 | BJ28: 44 | BK28: 41 | BL28: 39 | BM28: 37 | BO28: 15 | BP28: 14 | BQ28: 13 | BR28: 12 | BS28: 11 | BT28: 10 | BU28: 9 | BV28: 8 | BW28: 7 | BX28: 5 | BY28: 5 | BZ28: 4 | CA28: 3 | CB28: 2 | CC28: 1 | CE28: -3 | CF28: -2 | CG28: -5 | CH28: -3 | CI28: -1 | CJ28: -1 | CK28: -1 | CL28: -1 | CM28: -2 | CN28: 0 | CO28: -1 | CP28: -3 | CQ28: -2 | CR28: -2 | CS28: 1.268814451
U29: =RANK(U22,$U22:$AI22,0) -> 8 | V29: 10 | W29: 11 | X29: 9 | Y29: 5 | Z29: 6 | AA29: 2 | AB29: 12 | AC29: 4 | AD29: 13 | AE29: 7 | AF29: 3 | AG29: 14 | AH29: 15 | AI29: 1 | AU29: O | AV29: 6 | AW29: A | AX29: 3 | AY29: 61 | AZ29: 60 | BA29: 56 | BB29: 55 | BC29: 51 | BD29: 50 | BE29: 49 | BF29: 47 | BG29: 47 | BH29: 45 | BI29: 45 | BJ29: 44 | BK29: 44 | BL29: 41 | BM29: 38 | BO29: 15 | BP29: 14 | BQ29: 13 | BR29: 12 | BS29: 11 | BT29: 10 | BU29: 9 | BV29: 7 | BW29: 7 | BX29: 5 | BY29: 5 | BZ29: 3 | CA29: 3 | CB29: 2 | CC29: 1 | CE29: -1 | CF29: -4 | CG29: -1 | CH29: -4 | CI29: -1 | CJ29: -1 | CK29: -2 | CL29: 0 | CM29: -2 | CN29: 0 | CO29: -1 | CP29: 0 | CQ29: -3 | CR29: -3 | CS29: 1.392681026
U30: 3 | V30: 7 | W30: 12 | X30: 14 | Y30: 4 | Z30: 9 | AA30: 6 | AB30: 15 | AC30: 5 | AD30: 8 | AE30: 11 | AF30: 1 | AG30: 13 | AH30: 10 | AI30: 2 | AU30: O | AV30: 6 | AW30: A | AX30: 4 | AY30: 57 | AZ30: 57 | BA30: 57 | BB30: 53 | BC30: 52 | BD30: 51 | BE30: 49 | BF30: 47 | BG30: 47 | BH30: 47 | BI30: 45 | BJ30: 45 | BK30: 44 | BL30: 44 | BM30: 43 | BO30: 13 | BP30: 13 | BQ30: 13 | BR30: 12 | BS30: 11 | BT30: 10 | BU30: 9 | BV30: 6 | BW30: 6 | BX30: 6 | BY30: 4 | BZ30: 4 | CA30: 2 | CB30: 2 | CC30: 1 | CE30: 0 | CF30: 0 | CG30: -4 | CH30: -1 | CI30: -1 | CJ30: -2 | CK30: -2 | CL30: 0 | CM30: 0 | CN30: -2 | CO30: 0 | CP30: -1 | CQ30: 0 | CR30: -1 | CS30: 1.176696811
U31: 11 | V31: 4 | W31: 15 | X31: 7 | Y31: 10 | Z31: 14 | AA31: 2 | AB31: 9 | AC31: 6 | AD31: 12 | AE31: 5 | AF31: 3 | AG31: 13 | AH31: 8 | AI31: 1 | AU31: O | AV31: 6 | AW31: A | AX31: 5 | AY31: 46 | AZ31: 45 | BA31: 45 | BB31: 45 | BC31: 44 | BD31: 43 | BE31: 40 | BF31: 37 | BG31: 37 | BH31: 35 | BI31: 33 | BJ31: 30 | BK31: 29 | BL31: 28 | BM31: 26 | BO31: 15 | BP31: 12 | BQ31: 12 | BR31: 12 | BS31: 11 | BT31: 10 | BU31: 9 | BV31: 7 | BW31: 7 | BX31: 6 | BY31: 5 | BZ31: 4 | CA31: 3 | CB31: 2 | CC31: 1 | CE31: -1 | CF31: 0 | CG31: 0 | CH31: -1 | CI31: -1 | CJ31: -3 | CK31: -3 | CL31: 0 | CM31: -2 | CN31: -2 | CO31: -3 | CP31: -1 | CQ31: -1 | CR31: -2 | CS31: 1.089409559
AU32: O | AV32: 7 | AW32: A | AX32: 1 | AY32: 41 | AZ32: 40 | BA32: 38 | BB32: 35 | BC32: 34 | BD32: 32 | BE32: 27 | BF32: 26 | BG32: 25 | BH32: 24 | BI32: 22 | BJ32: 21 | BK32: 19 | BL32: 18 | BM32: 17 | BO32: 15 | BP32: 14 | BQ32: 13 | BR32: 12 | BS32: 11 | BT32: 10 | BU32: 9 | BV32: 8 | BW32: 7 | BX32: 6 | BY32: 5 | BZ32: 4 | CA32: 3 | CB32: 2 | CC32: 1 | CE32: -1 | CF32: -2 | CG32: -3 | CH32: -1 | CI32: -2 | CJ32: -5 | CK32: -1 | CL32: -1 | CM32: -1 | CN32: -2 | CO32: -1 | CP32: -2 | CQ32: -1 | CR32: -1 | CS32: 1.138728807
U33: =SUM(U27:U31) -> 36 | V33: =SUM(V27:V31) -> 41 | W33: 62 | X33: 50 | Y33: 29 | Z33: 45 | AA33: 17 | AB33: 62 | AC33: 21 | AD33: 53 | AE33: 37 | AF33: 12 | AG33: 68 | AH33: 61 | AI33: 6 | AU33: O | AV33: 7 | AW33: A | AX33: 2 | AY33: 34 | AZ33: 31 | BA33: 30 | BB33: 29 | BC33: 29 | BD33: 27 | BE33: 25 | BF33: 23 | BG33: 22 | BH33: 20 | BI33: 18 | BJ33: 17 | BK33: 16 | BL33: 16 | BM33: 15 | BO33: 15 | BP33: 14 | BQ33: 13 | BR33: 11 | BS33: 11 | BT33: 10 | BU33: 9 | BV33: 8 | BW33: 7 | BX33: 6 | BY33: 5 | BZ33: 4 | CA33: 2 | CB33: 2 | CC33: 1 | CE33: -3 | CF33: -1 | CG33: -1 | CH33: 0 | CI33: -2 | CJ33: -2 | CK33: -2 | CL33: -1 | CM33: -2 | CN33: -2 | CO33: -1 | CP33: -1 | CQ33: 0 | CR33: -1 | CS33: 0.8418973861
AU34: O | AV34: 7 | AW34: A | AX34: 3 | AY34: 39 | AZ34: 35 | BA34: 32 | BB34: 30 | BC34: 30 | BD34: 28 | BE34: 26 | BF34: 25 | BG34: 23 | BH34: 20 | BI34: 19 | BJ34: 19 | BK34: 17 | BL34: 15 | BM34: 15 | BO34: =RANK(AY34,$AY34:$BM34, 1) -> 15 | BP34: 14 | BQ34: 13 | BR34: 11 | BS34: 11 | BT34: 10 | BU34: 9 | BV34: 8 | BW34: 7 | BX34: 6 | BY34: 4 | BZ34: 4 | CA34: 3 | CB34: 1 | CC34: 1 | CE34: -4 | CF34: -3 | CG34: -2 | CH34: 0 | CI34: -2 | CJ34: -2 | CK34: -1 | CL34: -2 | CM34: -3 | CN34: -1 | CO34: 0 | CP34: -2 | CQ34: -2 | CR34: 0 | CS34: 1.204387583
AU35: O | AV35: 7 | AW35: A | AX35: 4 | AY35: 21 | AZ35: 19 | BA35: 19 | BB35: 18 | BC35: 17 | BD35: 16 | BE35: 15 | BF35: 15 | BG35: 14 | BH35: 13 | BI35: 12 | BJ35: 12 | BK35: 11 | BL35: 11 | BM35: 8 | BO35: 15 | BP35: 13 | BQ35: 13 | BR35: 12 | BS35: 11 | BT35: 10 | BU35: 8 | BV35: 8 | BW35: 7 | BX35: 6 | BY35: 4 | BZ35: 4 | CA35: 2 | CB35: 2 | CC35: 1 | CE35: -2 | CF35: 0 | CG35: =BB35-BA35 -> -1 | CH35: -1 | CI35: -1 | CJ35: -1 | CK35: 0 | CL35: -1 | CM35: -1 | CN35: -1 | CO35: 0 | CP35: -1 | CQ35: 0 | CR35: -3 | CS35: 0.8287419302
AU36: O | AV36: 7 | AW36: A | AX36: 5 | AY36: 22 | AZ36: 21 | BA36: 20 | BB36: 19 | BC36: 17 | BD36: 15 | BE36: 15 | BF36: 15 | BG36: 12 | BH36: 11 | BI36: 11 | BJ36: 10 | BK36: 10 | BL36: 10 | BM36: 10 | BO36: 15 | BP36: 14 | BQ36: 13 | BR36: 12 | BS36: 11 | BT36: 8 | BU36: 8 | BV36: 8 | BW36: 7 | BX36: 5 | BY36: 5 | BZ36: 1 | CA36: 1 | CB36: 1 | CC36: 1 | CE36: =AZ36-AY36 -> -1 | CF36: -1 | CG36: -1 | CH36: -2 | CI36: -2 | CJ36: 0 | CK36: 0 | CL36: -3 | CM36: -1 | CN36: 0 | CO36: -1 | CP36: 0 | CQ36: 0 | CR36: 0 | CS36: 0.9492622931
AU37: O | AV37: 8 | AW37: A | AX37: 1 | AY37: 74 | AZ37: 74 | BA37: 73 | BB37: 73 | BC37: 71 | BD37: 71 | BE37: 70 | BF37: 67 | BG37: 64 | BH37: 62 | BI37: 60 | BJ37: 58 | BK37: 57 | BL37: 56 | BM37: 54 | BO37: 14 | BP37: 14 | BQ37: 12 | BR37: 12 | BS37: 10 | BT37: 10 | BU37: 9 | BV37: 8 | BW37: 7 | BX37: 6 | BY37: 5 | BZ37: 4 | CA37: 3 | CB37: 2 | CC37: 1 | CE37: 0 | CF37: -1 | CG37: 0 | CH37: -2 | CI37: 0 | CJ37: -1 | CK37: -3 | CL37: -3 | CM37: -2 | CN37: -2 | CO37: -2 | CP37: -1 | CQ37: -1 | CR37: -2 | CS37: 1.016349858
AU38: O | AV38: 8 | AW38: A | AX38: 2 | AY38: 62 | AZ38: 59 | BA38: 58 | BB38: 52 | BC38: 52 | BD38: 51 | BE38: 48 | BF38: 47 | BG38: 44 | BH38: 42 | BI38: 39 | BJ38: 39 | BK38: 36 | BL38: 33 | BM38: 32 | BO38: 15 | BP38: 14 | BQ38: 13 | BR38: 11 | BS38: 11 | BT38: 10 | BU38: 9 | BV38: 8 | BW38: 7 | BX38: 6 | BY38: 4 | BZ38: 4 | CA38: 3 | CB38: 2 | CC38: 1 | CE38: -3 | CF38: -1 | CG38: -6 | CH38: 0 | CI38: -1 | CJ38: -3 | CK38: -1 | CL38: -3 | CM38: -2 | CN38: -3 | CO38: 0 | CP38: -3 | CQ38: -3 | CR38: -1 | CS38: 1.610405723
AU39: O | AV39: 8 | AW39: A | AX39: 3 | AY39: 73 | AZ39: 73 | BA39: 73 | BB39: 72 | BC39: 68 | BD39: 66 | BE39: 64 | BF39: 62 | BG39: 59 | BH39: 57 | BI39: 53 | BJ39: 52 | BK39: 51 | BL39: 49 | BM39: 46 | BO39: 13 | BP39: 13 | BQ39: 13 | BR39: 12 | BS39: 11 | BT39: 10 | BU39: 9 | BV39: 8 | BW39: 7 | BX39: 6 | BY39: 5 | BZ39: 4 | CA39: 3 | CB39: 2 | CC39: 1 | CE39: 0 | CF39: 0 | CG39: -1 | CH39: -4 | CI39: -2 | CJ39: -2 | CK39: -2 | CL39: -3 | CM39: -2 | CN39: -4 | CO39: -1 | CP39: -1 | CQ39: -2 | CR39: -3 | CS39: 1.268814451
AU40: O | AV40: 8 | AW40: A | AX40: 4 | AY40: 68 | AZ40: 67 | BA40: 67 | BB40: 66 | BC40: 64 | BD40: 62 | BE40: 59 | BF40: 59 | BG40: 59 | BH40: 57 | BI40: 55 | BJ40: 53 | BK40: 50 | BL40: 48 | BM40: 46 | BO40: 15 | BP40: 13 | BQ40: 13 | BR40: 12 | BS40: 11 | BT40: 10 | BU40: 7 | BV40: 7 | BW40: 7 | BX40: 6 | BY40: 5 | BZ40: 4 | CA40: 3 | CB40: 2 | CC40: 1 | CE40: -1 | CF40: 0 | CG40: -1 | CH40: -2 | CI40: -2 | CJ40: -3 | CK40: 0 | CL40: 0 | CM40: -2 | CN40: -2 | CO40: -2 | CP40: -3 | CQ40: -2 | CR40: -2 | CS40: 1.016349858
AU41: O | AV41: 8 | AW41: A | AX41: 5 | AY41: 67 | AZ41: 65 | BA41: 64 | BB41: 62 | BC41: 61 | BD41: 59 | BE41: 54 | BF41: 53 | BG41: 53 | BH41: 51 | BI41: 50 | BJ41: 49 | BK41: 47 | BL41: 44 | BM41: 44 | BO41: 15 | BP41: 14 | BQ41: 13 | BR41: 12 | BS41: 11 | BT41: 10 | BU41: 9 | BV41: 7 | BW41: 7 | BX41: 6 | BY41: 5 | BZ41: 4 | CA41: 3 | CB41: 1 | CC41: 1 | CE41: -2 | CF41: -1 | CG41: -2 | CH41: -1 | CI41: -2 | CJ41: -5 | CK41: -1 | CL41: 0 | CM41: -2 | CN41: -1 | CO41: -1 | CP41: -2 | CQ41: -3 | CR41: 0 | CS41: 1.277445941
AU42: O | AV42: 9 | AW42: A | AX42: 1 | AY42: 21 | AZ42: 19 | BA42: 18 | BB42: 16 | BC42: 15 | BD42: 14 | BE42: 13 | BF42: 9 | BG42: 9 | BH42: 9 | BI42: 8 | BJ42: 8 | BK42: 8 | BL42: 8 | BM42: 8 | BO42: 15 | BP42: 14 | BQ42: 13 | BR42: 12 | BS42: 11 | BT42: 10 | BU42: 9 | BV42: 6 | BW42: 6 | BX42: 6 | BY42: 1 | BZ42: 1 | CA42: 1 | CB42: 1 | CC42: 1 | CE42: -2 | CF42: -1 | CG42: -2 | CH42: -1 | CI42: -1 | CJ42: -1 | CK42: -4 | CL42: 0 | CM42: 0 | CN42: -1 | CO42: 0 | CP42: 0 | CQ42: 0 | CR42: 0 | CS42: 1.141138818
AU43: O | AV43: 9 | AW43: A | AX43: 2 | AY43: 35 | AZ43: 31 | BA43: 29 | BB43: 28 | BC43: 27 | BD43: 24 | BE43: 23 | BF43: 21 | BG43: 21 | BH43: 19 | BI43: 17 | BJ43: 16 | BK43: 14 | BL43: 13 | BM43: 13 | BO43: 15 | BP43: 14 | BQ43: 13 | BR43: 12 | BS43: 11 | BT43: 10 | BU43: 9 | BV43: 7 | BW43: 7 | BX43: 6 | BY43: 5 | BZ43: 4 | CA43: 3 | CB43: 1 | CC43: 1 | CE43: -4 | CF43: -2 | CG43: -1 | CH43: -1 | CI43: -3 | CJ43: -1 | CK43: -2 | CL43: 0 | CM43: -2 | CN43: -2 | CO43: -1 | CP43: -2 | CQ43: -1 | CR43: 0 | CS43: 1.089409559
AU44: O | AV44: 9 | AW44: A | AX44: 3 | AY44: 48 | AZ44: 47 | BA44: 43 | BB44: 43 | BC44: 42 | BD44: 40 | BE44: 39 | BF44: 35 | BG44: 30 | BH44: 30 | BI44: 30 | BJ44: 26 | BK44: 24 | BL44: 21 | BM44: 21 | BO44: 15 | BP44: 14 | BQ44: 12 | BR44: 12 | BS44: 11 | BT44: 10 | BU44: 9 | BV44: 8 | BW44: 5 | BX44: 5 | BY44: 5 | BZ44: 4 | CA44: 3 | CB44: 1 | CC44: 1 | CE44: -1 | CF44: -4 | CG44: 0 | CH44: -1 | CI44: -2 | CJ44: -1 | CK44: -4 | CL44: -5 | CM44: 0 | CN44: 0 | CO44: -4 | CP44: -2 | CQ44: -3 | CR44: 0 | CS44: 1.774359504
AU45: O | AV45: 9 | AW45: A | AX45: 4 | AY45: 40 | AZ45: 39 | BA45: 36 | BB45: 33 | BC45: 31 | BD45: 30 | BE45: 28 | BF45: 25 | BG45: 25 | BH45: 25 | BI45: 24 | BJ45: 22 | BK45: 21 | BL45: 21 | BM45: 19 | BO45: 15 | BP45: 14 | BQ45: 13 | BR45: 12 | BS45: 11 | BT45: 10 | BU45: 9 | BV45: 6 | BW45: 6 | BX45: 6 | BY45: 5 | BZ45: 4 | CA45: 2 | CB45: 2 | CC45: 1 | CE45: -1 | CF45: -3 | CG45: -3 | CH45: -2 | CI45: -1 | CJ45: -2 | CK45: -3 | CL45: 0 | CM45: 0 | CN45: -1 | CO45: -2 | CP45: -1 | CQ45: 0 | CR45: -2 | CS45: 1.091928428
AU46: O | AV46: 9 | AW46: A | AX46: 5 | AY46: 36 | AZ46: 35 | BA46: 32 | BB46: 29 | BC46: 27 | BD46: 27 | BE46: 24 | BF46: 23 | BG46: 22 | BH46: 21 | BI46: 19 | BJ46: 19 | BK46: 17 | BL46: 17 | BM46: 15 | BO46: 15 | BP46: 14 | BQ46: 13 | BR46: 12 | BS46: 10 | BT46: 10 | BU46: 9 | BV46: 8 | BW46: 7 | BX46: 6 | BY46: 4 | BZ46: 4 | CA46: 2 | CB46: 2 | CC46: 1 | CE46: -1 | CF46: -3 | CG46: -3 | CH46: -2 | CI46: 0 | CJ46: -3 | CK46: -1 | CL46: -1 | CM46: -1 | CN46: -2 | CO46: 0 | CP46: -2 | CQ46: 0 | CR46: -2 | CS46: 1.091928428
AU47: O | AV47: 10 | AW47: A | AX47: 1 | AY47: 59 | AZ47: 58 | BA47: 56 | BB47: 53 | BC47: 52 | BD47: 51 | BE47: 48 | BF47: 47 | BG47: 43 | BH47: 41 | BI47: 40 | BJ47: 39 | BK47: 38 | BL47: 35 | BM47: 34 | BO47: 15 | BP47: 14 | BQ47: 13 | BR47: 12 | BS47: 11 | BT47: 10 | BU47: 9 | BV47: 8 | BW47: 7 | BX47: 6 | BY47: 5 | BZ47: 4 | CA47: 3 | CB47: 2 | CC47: 1 | CE47: -1 | CF47: -2 | CG47: -3 | CH47: -1 | CI47: -1 | CJ47: -3 | CK47: -1 | CL47: -4 | CM47: -2 | CN47: -1 | CO47: -1 | CP47: -1 | CQ47: -3 | CR47: -1 | CS47: 1.050902281
AU48: O | AV48: 10 | AW48: A | AX48: 2 | AY48: 67 | AZ48: 66 | BA48: 66 | BB48: 65 | BC48: 62 | BD48: 59 | BE48: 55 | BF48: 53 | BG48: 52 | BH48: 48 | BI48: 48 | BJ48: 47 | BK48: 47 | BL48: 42 | BM48: 41 | BO48: 15 | BP48: 13 | BQ48: 13 | BR48: 12 | BS48: 11 | BT48: 10 | BU48: 9 | BV48: 8 | BW48: 7 | BX48: 5 | BY48: 5 | BZ48: 3 | CA48: 3 | CB48: 2 | CC48: 1 | CE48: -1 | CF48: 0 | CG48: -1 | CH48: -3 | CI48: -3 | CJ48: -4 | CK48: -2 | CL48: -1 | CM48: -4 | CN48: 0 | CO48: -1 | CP48: 0 | CQ48: -5 | CR48: -1 | CS48: 1.65748386
AU49: O | AV49: 10 | AW49: A | AX49: 3 | AY49: 63 | AZ49: 62 | BA49: 59 | BB49: 56 | BC49: 53 | BD49: 52 | BE49: 50 | BF49: 48 | BG49: 45 | BH49: 45 | BI49: 42 | BJ49: 39 | BK49: 37 | BL49: 33 | BM49: 31 | BO49: 15 | BP49: 14 | BQ49: 13 | BR49: 12 | BS49: 11 | BT49: 10 | BU49: 9 | BV49: 8 | BW49: 6 | BX49: 6 | BY49: 5 | BZ49: 4 | CA49: 3 | CB49: 2 | CC49: 1 | CE49: -1 | CF49: -3 | CG49: -3 | CH49: -3 | CI49: -1 | CJ49: -2 | CK49: -2 | CL49: -3 | CM49: 0 | CN49: -3 | CO49: -3 | CP49: -2 | CQ49: -4 | CR49: -2 | CS49: 1.069044968
AU50: O | AV50: 10 | AW50: A | AX50: 4 | AY50: 57 | AZ50: 55 | BA50: 53 | BB50: 53 | BC50: 50 | BD50: 49 | BE50: 49 | BF50: 47 | BG50: 45 | BH50: 44 | BI50: 44 | BJ50: 43 | BK50: 42 | BL50: 38 | BM50: 38 | BO50: 15 | BP50: 14 | BQ50: 12 | BR50: 12 | BS50: 11 | BT50: 9 | BU50: 9 | BV50: 8 | BW50: 7 | BX50: 5 | BY50: 5 | BZ50: 4 | CA50: 3 | CB50: 1 | CC50: 1 | CE50: -2 | CF50: -2 | CG50: 0 | CH50: -3 | CI50: -1 | CJ50: 0 | CK50: -2 | CL50: -2 | CM50: -1 | CN50: 0 | CO50: -1 | CP50: -1 | CQ50: -4 | CR50: 0 | CS50: 1.215739272
AU51: O | AV51: 10 | AW51: A | AX51: 5 | AY51: 68 | AZ51: 68 | BA51: 64 | BB51: 63 | BC51: 63 | BD51: 61 | BE51: 61 | BF51: 60 | BG51: 59 | BH51: 57 | BI51: 56 | BJ51: 53 | BK51: 51 | BL51: 51 | BM51: 50 | BO51: =RANK(AY51,$AY51:$BM51, 1) -> 14 | BP51: 14 | BQ51: 13 | BR51: 11 | BS51: 11 | BT51: 9 | BU51: 9 | BV51: 8 | BW51: 7 | BX51: 6 | BY51: 5 | BZ51: 4 | CA51: 2 | CB51: 2 | CC51: 1 | CE51: 0 | CF51: -4 | CG51: -1 | CH51: 0 | CI51: -2 | CJ51: 0 | CK51: -1 | CL51: -1 | CM51: -2 | CN51: -1 | CO51: -3 | CP51: -2 | CQ51: 0 | CR51: -1 | CS51: 1.204387583
AU52: O | AV52: 11 | AW52: A | AX52: 1 | AY52: 52 | AZ52: 51 | BA52: 48 | BB52: 48 | BC52: 45 | BD52: 43 | BE52: 40 | BF52: 39 | BG52: 37 | BH52: 36 | BI52: 36 | BJ52: 35 | BK52: 35 | BL52: 32 | BM52: 30 | BO52: 15 | BP52: 14 | BQ52: 12 | BR52: 12 | BS52: 11 | BT52: 10 | BU52: 9 | BV52: 8 | BW52: 7 | BX52: 5 | BY52: 5 | BZ52: 3 | CA52: 3 | CB52: 2 | CC52: 1 | CE52: -1 | CF52: -3 | CG52: 0 | CH52: -3 | CI52: -2 | CJ52: -3 | CK52: -1 | CL52: -2 | CM52: -1 | CN52: 0 | CO52: -1 | CP52: 0 | CQ52: -3 | CR52: -2 | CS52: 1.157868447
AU53: O | AV53: 11 | AW53: A | AX53: 2 | AY53: 37 | AZ53: 36 | BA53: 36 | BB53: 35 | BC53: 34 | BD53: 33 | BE53: 31 | BF53: 28 | BG53: 26 | BH53: 25 | BI53: 22 | BJ53: 20 | BK53: 19 | BL53: 14 | BM53: 14 | BO53: 15 | BP53: 13 | BQ53: 13 | BR53: 12 | BS53: 11 | BT53: 10 | BU53: 9 | BV53: 8 | BW53: 7 | BX53: 6 | BY53: 5 | BZ53: 4 | CA53: 3 | CB53: 1 | CC53: 1 | CE53: -1 | CF53: 0 | CG53: -1 | CH53: -1 | CI53: -1 | CJ53: -2 | CK53: -3 | CL53: -2 | CM53: -1 | CN53: -3 | CO53: -2 | CP53: -1 | CQ53: -5 | CR53: 0 | CS53: 1.33630621
AU54: O | AV54: 11 | AW54: A | AX54: 3 | AY54: 62 | AZ54: 59 | BA54: 57 | BB54: 56 | BC54: 51 | BD54: 49 | BE54: 46 | BF54: 43 | BG54: 40 | BH54: 39 | BI54: 37 | BJ54: 36 | BK54: 36 | BL54: 36 | BM54: 34 | BO54: 15 | BP54: 14 | BQ54: 13 | BR54: 12 | BS54: 11 | BT54: 10 | BU54: 9 | BV54: 8 | BW54: 7 | BX54: 6 | BY54: 5 | BZ54: 2 | CA54: 2 | CB54: 2 | CC54: 1 | CE54: -3 | CF54: -2 | CG54: -1 | CH54: -5 | CI54: -2 | CJ54: -3 | CK54: -3 | CL54: -3 | CM54: -1 | CN54: -2 | CO54: -1 | CP54: 0 | CQ54: 0 | CR54: -2 | CS54: 1.358732441
AU55: O | AV55: 11 | AW55: A | AX55: 4 | AY55: 59 | AZ55: 56 | BA55: 51 | BB55: 50 | BC55: 49 | BD55: 45 | BE55: 44 | BF55: 43 | BG55: 42 | BH55: 41 | BI55: 39 | BJ55: 39 | BK55: 37 | BL55: 36 | BM55: 36 | BO55: 15 | BP55: 14 | BQ55: 13 | BR55: 12 | BS55: 11 | BT55: 10 | BU55: 9 | BV55: 8 | BW55: 7 | BX55: 6 | BY55: 4 | BZ55: 4 | CA55: 3 | CB55: 1 | CC55: 1 | CE55: -3 | CF55: -5 | CG55: -1 | CH55: -1 | CI55: -4 | CJ55: -1 | CK55: -1 | CL55: -1 | CM55: -1 | CN55: -2 | CO55: 0 | CP55: -2 | CQ55: -1 | CR55: 0 | CS55: 1.446860945
AU56: O | AV56: 11 | AW56: A | AX56: 5 | AY56: 47 | AZ56: 45 | BA56: 43 | BB56: 39 | BC56: 39 | BD56: 37 | BE56: 37 | BF56: 37 | BG56: 35 | BH56: 34 | BI56: 33 | BJ56: 32 | BK56: 28 | BL56: 26 | BM56: 25 | BO56: 15 | BP56: 14 | BQ56: 13 | BR56: 11 | BS56: 11 | BT56: 8 | BU56: 8 | BV56: 8 | BW56: 7 | BX56: 6 | BY56: 5 | BZ56: 4 | CA56: 3 | CB56: 2 | CC56: 1 | CE56: -2 | CF56: -2 | CG56: -4 | CH56: 0 | CI56: -2 | CJ56: =BE56-BD56 -> 0 | CK56: 0 | CL56: -2 | CM56: -1 | CN56: -1 | CO56: -1 | CP56: -4 | CQ56: -2 | CR56: -1 | CS56: 1.283881478
AU57: O | AV57: 12 | AW57: A | AX57: 1 | AY57: 20 | AZ57: 19 | BA57: 19 | BB57: 16 | BC57: 15 | BD57: 13 | BE57: 13 | BF57: 12 | BG57: 10 | BH57: 10 | BI57: 10 | BJ57: 8 | BK57: 8 | BL57: 8 | BM57: 8 | BO57: 15 | BP57: 13 | BQ57: 13 | BR57: 12 | BS57: 11 | BT57: 9 | BU57: 9 | BV57: 8 | BW57: 5 | BX57: 5 | BY57: 5 | BZ57: 1 | CA57: 1 | CB57: 1 | CC57: 1 | CE57: -1 | CF57: 0 | CG57: -3 | CH57: -1 | CI57: -2 | CJ57: 0 | CK57: -1 | CL57: -2 | CM57: 0 | CN57: 0 | CO57: -2 | CP57: 0 | CQ57: 0 | CR57: 0 | CS57: 1.027105182
AU58: O | AV58: 12 | AW58: A | AX58: 2 | AY58: 35 | AZ58: 35 | BA58: 30 | BB58: 29 | BC58: 26 | BD58: 24 | BE58: 24 | BF58: 21 | BG58: 19 | BH58: 19 | BI58: 16 | BJ58: 14 | BK58: 13 | BL58: 12 | BM58: 12 | BO58: 14 | BP58: 14 | BQ58: 13 | BR58: 12 | BS58: 11 | BT58: 9 | BU58: 9 | BV58: 8 | BW58: 6 | BX58: 6 | BY58: 5 | BZ58: 4 | CA58: 3 | CB58: 1 | CC58: 1 | CE58: 0 | CF58: -5 | CG58: -1 | CH58: -3 | CI58: -2 | CJ58: 0 | CK58: -3 | CL58: -2 | CM58: 0 | CN58: -3 | CO58: -2 | CP58: -1 | CQ58: -1 | CR58: 0 | CS58: 1.499083969
AU59: O | AV59: 12 | AW59: A | AX59: 3 | AY59: 31 | AZ59: 27 | BA59: 26 | BB59: 22 | BC59: 22 | BD59: 21 | BE59: 19 | BF59: 19 | BG59: 17 | BH59: 14 | BI59: 13 | BJ59: 12 | BK59: 10 | BL59: 9 | BM59: 7 | BO59: 15 | BP59: 14 | BQ59: 13 | BR59: 11 | BS59: 11 | BT59: 10 | BU59: 8 | BV59: 8 | BW59: 7 | BX59: 6 | BY59: 5 | BZ59: 4 | CA59: 3 | CB59: 2 | CC59: 1 | CE59: -4 | CF59: -1 | CG59: -4 | CH59: 0 | CI59: -1 | CJ59: -2 | CK59: 0 | CL59: -2 | CM59: -3 | CN59: -1 | CO59: -1 | CP59: -2 | CQ59: -1 | CR59: -2 | CS59: 1.266647388
AU60: O | AV60: 12 | AW60: A | AX60: 4 | AY60: 14 | AZ60: 13 | BA60: 13 | BB60: 12 | BC60: 12 | BD60: 11 | BE60: 9 | BF60: 8 | BG60: 7 | BH60: 7 | BI60: 6 | BJ60: 6 | BK60: 5 | BL60: 5 | BM60: 5 | BO60: 15 | BP60: 13 | BQ60: 13 | BR60: 11 | BS60: 11 | BT60: 10 | BU60: 9 | BV60: 8 | BW60: 6 | BX60: 6 | BY60: 4 | BZ60: 4 | CA60: 1 | CB60: 1 | CC60: 1 | CE60: -1 | CF60: 0 | CG60: -1 | CH60: 0 | CI60: -1 | CJ60: -2 | CK60: -1 | CL60: -1 | CM60: 0 | CN60: -1 | CO60: 0 | CP60: -1 | CQ60: 0 | CR60: 0 | CS60: 0.6333236938
AU61: O | AV61: 12 | AW61: A | AX61: 5 | AY61: 34 | AZ61: 33 | BA61: 31 | BB61: 26 | BC61: 24 | BD61: 23 | BE61: 22 | BF61: 21 | BG61: 16 | BH61: 16 | BI61: 15 | BJ61: 14 | BK61: 13 | BL61: 13 | BM61: 12 | BO61: 15 | BP61: 14 | BQ61: 13 | BR61: 12 | BS61: 11 | BT61: 10 | BU61: 9 | BV61: 8 | BW61: 6 | BX61: 6 | BY61: 5 | BZ61: 4 | CA61: 2 | CB61: 2 | CC61: 1 | CE61: -1 | CF61: -2 | CG61: -5 | CH61: -2 | CI61: -1 | CJ61: -1 | CK61: -1 | CL61: -5 | CM61: 0 | CN61: -1 | CO61: -1 | CP61: -1 | CQ61: 0 | CR61: -1 | CS61: 1.554857684
AU62: O | AV62: 13 | AW62: A | AX62: 1 | AY62: 71 | AZ62: 70 | BA62: 70 | BB62: 68 | BC62: 68 | BD62: 65 | BE62: 61 | BF62: 58 | BG62: 56 | BH62: 54 | BI62: 53 | BJ62: 52 | BK62: 49 | BL62: 49 | BM62: 47 | BO62: 15 | BP62: 13 | BQ62: 13 | BR62: 11 | BS62: 11 | BT62: 10 | BU62: 9 | BV62: 8 | BW62: 7 | BX62: 6 | BY62: 5 | BZ62: 4 | CA62: 2 | CB62: 2 | CC62: 1 | CE62: -1 | CF62: 0 | CG62: -2 | CH62: 0 | CI62: -3 | CJ62: -4 | CK62: -3 | CL62: -2 | CM62: -2 | CN62: -1 | CO62: -1 | CP62: -3 | CQ62: 0 | CR62: -2 | CS62: 1.266647388
AU63: O | AV63: 13 | AW63: A | AX63: 2 | AY63: 68 | AZ63: 65 | BA63: 62 | BB63: 57 | BC63: 55 | BD63: 55 | BE63: 52 | BF63: 51 | BG63: 51 | BH63: 49 | BI63: 45 | BJ63: 42 | BK63: 40 | BL63: 39 | BM63: 39 | BO63: 15 | BP63: 14 | BQ63: 13 | BR63: 12 | BS63: 10 | BT63: 10 | BU63: 9 | BV63: 7 | BW63: 7 | BX63: 6 | BY63: 5 | BZ63: 4 | CA63: 3 | CB63: 1 | CC63: 1 | CE63: -3 | CF63: -3 | CG63: -5 | CH63: -2 | CI63: 0 | CJ63: -3 | CK63: -1 | CL63: 0 | CM63: -2 | CN63: -4 | CO63: -3 | CP63: -2 | CQ63: -1 | CR63: 0 | CS63: 1.542439911
AU64: O | AV64: 13 | AW64: A | AX64: 3 | AY64: 73 | AZ64: 73 | BA64: 72 | BB64: 71 | BC64: 71 | BD64: 69 | BE64: 68 | BF64: 65 | BG64: 60 | BH64: 56 | BI64: 54 | BJ64: 52 | BK64: 50 | BL64: 48 | BM64: 46 | BO64: 14 | BP64: 14 | BQ64: 13 | BR64: 11 | BS64: 11 | BT64: 10 | BU64: 9 | BV64: 8 | BW64: 7 | BX64: 6 | BY64: 5 | BZ64: 4 | CA64: 3 | CB64: 2 | CC64: 1 | CE64: 0 | CF64: -1 | CG64: -1 | CH64: 0 | CI64: -2 | CJ64: -1 | CK64: -3 | CL64: -5 | CM64: -4 | CN64: -2 | CO64: -2 | CP64: -2 | CQ64: -2 | CR64: -2 | CS64: 1.384768001
AU65: O | AV65: 13 | AW65: A | AX65: 4 | AY65: 72 | AZ65: 71 | BA65: 71 | BB65: 71 | BC65: 71 | BD65: 71 | BE65: 70 | BF65: 68 | BG65: 66 | BH65: 64 | BI65: 59 | BJ65: 59 | BK65: 57 | BL65: 55 | BM65: 55 | BO65: 15 | BP65: 10 | BQ65: 10 | BR65: 10 | BS65: 10 | BT65: 10 | BU65: 9 | BV65: 8 | BW65: 7 | BX65: 6 | BY65: 4 | BZ65: 4 | CA65: 3 | CB65: 1 | CC65: 1 | CE65: -1 | CF65: 0 | CG65: 0 | CH65: 0 | CI65: 0 | CJ65: -1 | CK65: -2 | CL65: -2 | CM65: -2 | CN65: -5 | CO65: 0 | CP65: -2 | CQ65: -2 | CR65: 0 | CS65: 1.42389344
AU66: O | AV66: 13 | AW66: A | AX66: 5 | AY66: 73 | AZ66: 72 | BA66: 72 | BB66: 71 | BC66: 70 | BD66: 69 | BE66: 68 | BF66: 64 | BG66: 63 | BH66: 60 | BI66: 58 | BJ66: 58 | BK66: 55 | BL66: 53 | BM66: 52 | BO66: 15 | BP66: 13 | BQ66: 13 | BR66: 12 | BS66: 11 | BT66: 10 | BU66: 9 | BV66: 8 | BW66: 7 | BX66: 6 | BY66: 4 | BZ66: 4 | CA66: 3 | CB66: 2 | CC66: 1 | CE66: -1 | CF66: 0 | CG66: -1 | CH66: -1 | CI66: -1 | CJ66: -1 | CK66: -4 | CL66: -1 | CM66: -3 | CN66: -2 | CO66: 0 | CP66: -3 | CQ66: -2 | CR66: -1 | CS66: 1.160238702
AU67: O | AV67: 14 | AW67: A | AX67: 1 | AY67: 70 | AZ67: 70 | BA67: 69 | BB67: 68 | BC67: 68 | BD67: 68 | BE67: 68 | BF67: 65 | BG67: 65 | BH67: 62 | BI67: 61 | BJ67: 58 | BK67: 56 | BL67: 56 | BM67: 55 | BO67: 14 | BP67: 14 | BQ67: 13 | BR67: 9 | BS67: 9 | BT67: 9 | BU67: 9 | BV67: 7 | BW67: 7 | BX67: 6 | BY67: 5 | BZ67: 4 | CA67: 2 | CB67: 2 | CC67: 1 | CE67: 0 | CF67: -1 | CG67: -1 | CH67: 0 | CI67: 0 | CJ67: 0 | CK67: -3 | CL67: 0 | CM67: -3 | CN67: -1 | CO67: -3 | CP67: -2 | CQ67: 0 | CR67: -1 | CS67: =STDEV(CE67:CR67) -> 1.206666464
AU68: O | AV68: 14 | AW68: A | AX68: 2 | AY68: 64 | AZ68: 64 | BA68: 63 | BB68: 62 | BC68: 61 | BD68: 59 | BE68: 57 | BF68: 57 | BG68: 53 | BH68: 49 | BI68: 46 | BJ68: 44 | BK68: 43 | BL68: 42 | BM68: 36 | BO68: =RANK(AY68,$AY68:$BM68, 1) -> 14 | BP68: 14 | BQ68: 13 | BR68: 12 | BS68: 11 | BT68: 10 | BU68: 8 | BV68: 8 | BW68: 7 | BX68: 6 | BY68: 5 | BZ68: 4 | CA68: 3 | CB68: 2 | CC68: 1 | CE68: 0 | CF68: -1 | CG68: -1 | CH68: -1 | CI68: -2 | CJ68: -2 | CK68: 0 | CL68: -4 | CM68: -4 | CN68: -3 | CO68: -2 | CP68: -1 | CQ68: -1 | CR68: -6 | CS68: 1.709700829
AU69: O | AV69: 14 | AW69: A | AX69: 3 | AY69: 61 | AZ69: 59 | BA69: 57 | BB69: 55 | BC69: 52 | BD69: 48 | BE69: 46 | BF69: 44 | BG69: 42 | BH69: 41 | BI69: 39 | BJ69: 38 | BK69: 31 | BL69: 30 | BM69: 28 | BO69: 15 | BP69: 14 | BQ69: 13 | BR69: 12 | BS69: 11 | BT69: 10 | BU69: 9 | BV69: 8 | BW69: 7 | BX69: 6 | BY69: 5 | BZ69: 4 | CA69: 3 | CB69: 2 | CC69: 1 | CE69: -2 | CF69: -2 | CG69: -2 | CH69: -3 | CI69: -4 | CJ69: -2 | CK69: -2 | CL69: -2 | CM69: -1 | CN69: -2 | CO69: -1 | CP69: -7 | CQ69: -1 | CR69: -2 | CS69: 1.549547967
AU70: O | AV70: 14 | AW70: A | AX70: 4 | AY70: 61 | AZ70: 59 | BA70: 58 | BB70: 58 | BC70: 56 | BD70: 55 | BE70: 54 | BF70: 51 | BG70: 49 | BH70: 47 | BI70: 46 | BJ70: 42 | BK70: 41 | BL70: 40 | BM70: 38 | BO70: 15 | BP70: 14 | BQ70: 12 | BR70: 12 | BS70: 11 | BT70: 10 | BU70: 9 | BV70: 8 | BW70: 7 | BX70: 6 | BY70: 5 | BZ70: 4 | CA70: 3 | CB70: 2 | CC70: 1 | CE70: -2 | CF70: -1 | CG70: 0 | CH70: -2 | CI70: -1 | CJ70: -1 | CK70: -3 | CL70: -2 | CM70: -2 | CN70: -1 | CO70: -4 | CP70: -1 | CQ70: -1 | CR70: -2 | CS70: 1.008208072
AU71: O | AV71: 14 | AW71: A | AX71: 5 | AY71: 74 | AZ71: 74 | BA71: 73 | BB71: 72 | BC71: 72 | BD71: 71 | BE71: 68 | BF71: 66 | BG71: 66 | BH71: 65 | BI71: 62 | BJ71: 61 | BK71: 59 | BL71: 57 | BM71: 56 | BO71: 14 | BP71: 14 | BQ71: 13 | BR71: 11 | BS71: 11 | BT71: 10 | BU71: 9 | BV71: 7 | BW71: 7 | BX71: 6 | BY71: 5 | BZ71: 4 | CA71: 3 | CB71: 2 | CC71: 1 | CE71: 0 | CF71: -1 | CG71: -1 | CH71: 0 | CI71: -1 | CJ71: -3 | CK71: -2 | CL71: 0 | CM71: -1 | CN71: -3 | CO71: -1 | CP71: -2 | CQ71: -2 | CR71: -1 | CS71: 0.9944903162
AU72: O | AV72: 15 | AW72: A | AX72: 1 | AY72: 22 | AZ72: 22 | BA72: 19 | BB72: 18 | BC72: 15 | BD72: 13 | BE72: 12 | BF72: 12 | BG72: 9 | BH72: 8 | BI72: 8 | BJ72: 6 | BK72: 6 | BL72: 6 | BM72: 6 | BO72: 14 | BP72: 14 | BQ72: 13 | BR72: 12 | BS72: 11 | BT72: 10 | BU72: 8 | BV72: 8 | BW72: 7 | BX72: 5 | BY72: 5 | BZ72: 1 | CA72: 1 | CB72: 1 | CC72: 1 | CE72: 0 | CF72: -3 | CG72: -1 | CH72: -3 | CI72: -2 | CJ72: -1 | CK72: 0 | CL72: -3 | CM72: -1 | CN72: 0 | CO72: -2 | CP72: 0 | CQ72: 0 | CR72: 0 | CS72: 1.231455852
AU73: O | AV73: 15 | AW73: A | AX73: 2 | AY73: 28 | AZ73: 28 | BA73: 28 | BB73: 27 | BC73: 25 | BD73: 23 | BE73: 22 | BF73: 18 | BG73: 17 | BH73: 16 | BI73: 12 | BJ73: 11 | BK73: 7 | BL73: 6 | BM73: 6 | BO73: 13 | BP73: 13 | BQ73: 13 | BR73: 12 | BS73: 11 | BT73: 10 | BU73: 9 | BV73: 8 | BW73: 7 | BX73: 6 | BY73: 5 | BZ73: 4 | CA73: 3 | CB73: 1 | CC73: 1 | CE73: 0 | CF73: 0 | CG73: -1 | CH73: -2 | CI73: -2 | CJ73: -1 | CK73: -4 | CL73: -1 | CM73: -1 | CN73: -4 | CO73: -1 | CP73: -4 | CQ73: -1 | CR73: 0 | CS73: 1.452546078
AU74: O | AV74: 15 | AW74: A | AX74: 3 | AY74: 30 | AZ74: 29 | BA74: 28 | BB74: 27 | BC74: 23 | BD74: 20 | BE74: 17 | BF74: 17 | BG74: 14 | BH74: 14 | BI74: 11 | BJ74: 9 | BK74: 8 | BL74: 6 | BM74: 6 | BO74: 15 | BP74: 14 | BQ74: 13 | BR74: 12 | BS74: 11 | BT74: 10 | BU74: 8 | BV74: 8 | BW74: 6 | BX74: 6 | BY74: 5 | BZ74: 4 | CA74: 3 | CB74: 1 | CC74: 1 | CE74: -1 | CF74: -1 | CG74: -1 | CH74: -4 | CI74: -3 | CJ74: -3 | CK74: 0 | CL74: -3 | CM74: 0 | CN74: -3 | CO74: -2 | CP74: -1 | CQ74: -2 | CR74: 0 | CS74: 1.325987088
AU75: O | AV75: 15 | AW75: A | AX75: 4 | AY75: 12 | AZ75: 11 | BA75: 8 | BB75: 7 | BC75: 6 | BD75: 6 | BE75: 6 | BF75: 6 | BG75: 6 | BH75: 6 | BI75: 6 | BJ75: 6 | BK75: 6 | BL75: 6 | BM75: 6 | BO75: 15 | BP75: 14 | BQ75: 13 | BR75: 12 | BS75: 1 | BT75: 1 | BU75: 1 | BV75: 1 | BW75: 1 | BX75: 1 | BY75: 1 | BZ75: 1 | CA75: 1 | CB75: 1 | CC75: 1 | CE75: -1 | CF75: -3 | CG75: -1 | CH75: -1 | CI75: 0 | CJ75: 0 | CK75: 0 | CL75: 0 | CM75: 0 | CN75: 0 | CO75: 0 | CP75: 0 | CQ75: 0 | CR75: 0 | CS75: 0.8516306273
AU76: O | AV76: 15 | AW76: A | AX76: 5 | AY76: 16 | AZ76: 14 | BA76: 14 | BB76: 12 | BC76: 11 | BD76: 8 | BE76: 8 | BF76: 6 | BG76: 6 | BH76: 6 | BI76: 6 | BJ76: 5 | BK76: 5 | BL76: 5 | BM76: 5 | BO76: 15 | BP76: 13 | BQ76: 13 | BR76: 12 | BS76: 11 | BT76: 9 | BU76: 9 | BV76: 5 | BW76: 5 | BX76: 5 | BY76: 5 | BZ76: 1 | CA76: 1 | CB76: 1 | CC76: 1 | CE76: -2 | CF76: 0 | CG76: -2 | CH76: -1 | CI76: -3 | CJ76: 0 | CK76: -2 | CL76: 0 | CM76: 0 | CN76: 0 | CO76: -1 | CP76: 0 | CQ76: 0 | CR76: 0 | CS76: 1.050902281
BO77: =AVERAGE(BO2:BO76) -> 14.69333333 | BP77: =AVERAGE(BP2:BP76) -> 13.64 | BQ77: 12.84 | BR77: 11.74666667 | BS77: 10.73333333 | BT77: 9.706666667 | BU77: 8.706666667 | BV77: 7.613333333 | BW77: 6.666666667 | BX77: 5.773333333 | BY77: 4.653333333 | BZ77: 3.546666667 | CA77: 2.56 | CB77: 1.64 | CC77: 1
BO78: =STDEV(BO2:BO76) -> 0.6361483197 | BP78: =STDEV(BP2:BP76) -> 0.6706189154 | BQ78: 0.4661515819 | BR78: 0.5717052097 | BS78: 1.211803808 | BT78: 1.112257667 | BU78: 0.9969322313 | BV78: 0.9985575182 | BW78: 0.8436300799 | BX78: 0.6692741799 | BY78: 0.8136227516 | BZ78: 0.94858833 | CA78: 0.7021203408 | CB78: 0.4832323598 | CC78: 0

Sheet nn - ranked data - new (37)
A1: irány | B1: 0 | C1: 0 | D1: 0 | E1: 0 | F1: 0 | M1: súlyok | U1: 2. layer vektor | AK1: 2 layer súlyok | AS1: Futtat | AY1: 1 | AZ1: 2 | BA1: 3 | BB1: 4 | BC1: 5 | BD1: 6 | BE1: 7 | BF1: 8 | BG1: 9 | BH1: 10 | BI1: 11 | BJ1: 12 | BK1: 13 | BL1: 14 | BM1: 15 | BO1: Ranking | CE1: O2 - O1 | CF1: O3 - O2 | CG1: O4 - O3 | CH1: O5 - O4 | CI1: O6 - O5 | CJ1: O7 - O6 | CK1: O8 - O7 | CL1: O9 - O8 | CM1: O10 - O9 | CN1: O11 - O10 | CO1: O12 - O11 | CP1: O13 - 12 | CQ1: O14 - O13 | CR1: O15 - O14
A2: rnd(1-100) | B2: A1 | C2: A2 | D2: A3 | E2: A4 | F2: A5 | H2: rank = 0 | I2: =B2 -> A1 | J2: A2 | K2: A3 | L2: A4 | M2: A5 | N2: w0 | O2: w1 | P2: w2 | Q2: w3 | R2: w4 | S2: w5 | T2: =AK2 -> w6 | U2: O1 | V2: O2 | W2: O3 | X2: O4 | Y2: O5 | Z2: O6 | AA2: O7 | AB2: O8 | AC2: O9 | AD2: O10 | AE2: O11 | AF2: O12 | AG2: O13 | AH2: O14 | AI2: O15 | AK2: w6 | AN2: Y0 | AO2: Ybecslés | AP2: eltérés | AQ2: MAE | AU2: O | AV2: 1 | AW2: A | AX2: 1 | AY2: 1001.525195 | AZ2: 1001.525195 | BA2: 1001.525195 | BB2: 1001.525195 | BC2: 1001.525195 | BD2: 1001.525195 | BE2: 1001.525195 | BF2: 1001.525195 | BG2: 1001.525195 | BH2: 1001.525195 | BI2: 1001.525195 | BJ2: 1001.525195 | BK2: 1001.525195 | BL2: 1001.525195 | BM2: 993.0714062 | BO2: =RANK(AY2,$AY2:$BM2, 1) -> 2 | BP2: =RANK(AZ2,$AY2:$BM2, 1) -> 2 | BQ2: 2 | BR2: 2 | BS2: 2 | BT2: 2 | BU2: 2 | BV2: =RANK(BF2,$AY2:$BM2, 1) -> 2 | BW2: 2 | BX2: 2 | BY2: 2 | BZ2: 2 | CA2: 2 | CB2: 2 | CC2: 1 | CE2: =AZ2-AY2 -> 0 | CF2: =BA2-AZ2 -> 0 | CG2: 0 | CH2: 0 | CI2: =BD2-BC2 -> 0 | CJ2: 0 | CK2: 0 | CL2: 0 | CM2: =BH2-BG2 -> 0 | CN2: 0 | CO2: 0 | CP2: 0 | CQ2: 0 | CR2: =BM2-BL2 -> -8.453788859 | CS2: =STDEV(CE2:CR2) -> 2.259370109
A3: O1 | B3: 78 | C3: 50 | D3: 75 | E3: 79 | F3: 10 | H3: =A3 -> O1 | I3: 6 | J3: 8 | K3: 4 | L3: 3 | M3: 13 | N3: 0.001838774203 | O3: 0.17837822 | P3: 0.13921523 | Q3: 0.15091406 | R3: 0.15942907 | S3: 0.1297149213 | T3: 191.8811542 | U3: =$I$3*$O3+$J$3*$P3+$K$3*$Q3+$L$3*$R3+$M$3*$S3 -> 4.952228587 | V3: =$I$4*$O3+$J$4*$P3+$K$4*$Q3+$L$4*$R3+$M$4*$S3 -> 6.626330919 | W3: =$I$5*$O3+$J$5*$P3+$K$5*$Q3+$L$5*$R3+$M$5*$S3 -> 5.242739887 | X3: =$I$6*$O3+$J$6*$P3+$K$6*$Q3+$L$6*$R3+$M$6*$S3 -> 7.05292711 | Y3: =$I$7*$O3+$J$7*$P3+$K$7*$Q3+$L$7*$R3+$M$7*$S3 -> 4.928085173 | Z3: =$I$8*$O3+$J$8*$P3+$K$8*$Q3+$L$8*$R3+$M$8*$S3 -> 4.960241175 | AA3: =$I$9*$O3+$J$9*$P3+$K$9*$Q3+$L$9*$R3+$M$9*$S3 -> 5.3514932 | AB3: =$I$10*$O3+$J$10*$P3+$K$10*$Q3+$L$10*$R3+$M$10*$S3 -> 4.551539395 | AC3: =$I$11*$O3+$J$11*$P3+$K$11*$Q3+$L$11*$R3+$M$11*$S3 -> 6.019146921 | AD3: =$I$12*$O3+$J$12*$P3+$K$12*$Q3+$L$12*$R3+$M$12*$S3 -> 6.174940639 | AE3: =$I$13*$O3+$J$13*$P3+$K$13*$Q3+$L$13*$R3+$M$13*$S3 -> 7.275799826 | AF3: =$I$14*$O3+$J$14*$P3+$K$14*$Q3+$L$14*$R3+$M$14*$S3 -> 4.753346936 | AG3: =$I$15*$O3+$J$15*$P3+$K$15*$Q3+$L$15*$R3+$M$15*$S3 -> 5.962382284 | AH3: =$I$16*$O3+$J$16*$P3+$K$16*$Q3+$L$16*$R3+$M$16*$S3 -> 6.956108144 | AI3: =$I$17*$O3+$J$17*$P3+$K$17*$Q3+$L$17*$R3+$M$17*$S3 -> 6.267384933 | AK3: =T3 -> 191.8811542 | AM3: O1 | AN3: 1000 | AO3: =U33 -> 1001.525195 | AP3: =AN3-AO3 -> -1.525195014 | AQ3: =ABS(AP3) -> 1.525195014 | AU3: O | AV3: 1 | AW3: A | AX3: 2 | AY3: 997.8950146 | AZ3: 1001.525195 | BA3: 1001.525195 | BB3: 1001.525195 | BC3: 1001.525195 | BD3: 1001.525195 | BE3: 1001.525195 | BF3: 1001.525195 | BG3: 1001.525195 | BH3: 1001.525195 | BI3: 1001.525195 | BJ3: 1001.525195 | BK3: 1001.525195 | BL3: 1001.525195 | BM3: 1001.525195 | BO3: =RANK(AY3,$AY3:$BM3, 1) -> 1 | BP3: 2 | BQ3: 2 | BR3: 2 | BS3: 2 | BT3: 2 | BU3: 2 | BV3: 2 | BW3: 2 | BX3: 2 | BY3: 2 | BZ3: 2 | CA3: 2 | CB3: 2 | CC3: 2 | CE3: =AZ3-AY3 -> 3.630180412 | CF3: 0 | CG3: 0 | CH3: 0 | CI3: 0 | CJ3: 0 | CK3: 0 | CL3: 0 | CM3: 0 | CN3: 0 | CO3: 0 | CP3: 0 | CQ3: 0 | CR3: 0 | CS3: =STDEV(CE3:CR3) -> 0.9702065252
A4: O2 | B4: 45 | C4: 50 | D4: 83 | E4: 50 | F4: 6 | H4: =A4 -> O2 | I4: 12 | J4: 8 | K4: 1 | L4: 8 | M4: 15 | N4: 4.825447222 | O4: 0.00965177 | P4: 0.46503866 | Q4: 0.43478802 | R4: 0.19912481 | S4: 0.07821546077 | T4: 191.8811519 | U4: =$I$3*$O4+$J$3*$P4+$K$3*$Q4+$L$3*$R4+$M$3*$S4 -> 7.1315474 | V4: =$I$4*$O4+$J$4*$P4+$K$4*$Q4+$L$4*$R4+$M$4*$S4 -> 7.037148931 | W4: =$I$5*$O4+$J$5*$P4+$K$5*$Q4+$L$5*$R4+$M$5*$S4 -> 8.52498081 | X4: =$I$6*$O4+$J$6*$P4+$K$6*$Q4+$L$6*$R4+$M$6*$S4 -> 11.3915759 | Y4: =$I$7*$O4+$J$7*$P4+$K$7*$Q4+$L$7*$R4+$M$7*$S4 -> 9.287806842 | Z4: =$I$8*$O4+$J$8*$P4+$K$8*$Q4+$L$8*$R4+$M$8*$S4 -> 3.112390889 | AA4: =$I$9*$O4+$J$9*$P4+$K$9*$Q4+$L$9*$R4+$M$9*$S4 -> 9.226620256 | AB4: =$I$10*$O4+$J$10*$P4+$K$10*$Q4+$L$10*$R4+$M$10*$S4 -> 9.816509973 | AC4: =$I$11*$O4+$J$11*$P4+$K$11*$Q4+$L$11*$R4+$M$11*$S4 -> 11.51754982 | AD4: =$I$12*$O4+$J$12*$P4+$K$12*$Q4+$L$12*$R4+$M$12*$S4 -> 11.06608282 | AE4: =$I$13*$O4+$J$13*$P4+$K$13*$Q4+$L$13*$R4+$M$13*$S4 -> 11.23846992 | AF4: =$I$14*$O4+$J$14*$P4+$K$14*$Q4+$L$14*$R4+$M$14*$S4 -> 6.893179254 | AG4: =$I$15*$O4+$J$15*$P4+$K$15*$Q4+$L$15*$R4+$M$15*$S4 -> 9.442902242 | AH4: =$I$16*$O4+$J$16*$P4+$K$16*$Q4+$L$16*$R4+$M$16*$S4 -> 9.901434328 | AI4: =$I$17*$O4+$J$17*$P4+$K$17*$Q4+$L$17*$R4+$M$17*$S4 -> 8.609552578 | AK4: =T4 -> 191.8811519 | AM4: O2 | AN4: 1000 | AO4: =V33 -> 1001.525195 | AP4: =AN4-AO4 -> -1.525195014 | AQ4: =ABS(AP4) -> 1.525195014 | AU4: O | AV4: 1 | AW4: A | AX4: 3 | AY4: 1001.525195 | AZ4: 1001.525195 | BA4: 1001.525195 | BB4: 1001.525195 | BC4: 1001.525195 | BD4: 1001.525195 | BE4: 1001.525195 | BF4: 1001.525195 | BG4: 1001.525195 | BH4: 1001.525195 | BI4: 1001.525195 | BJ4: 1001.525195 | BK4: 1001.525195 | BL4: 1001.525195 | BM4: 1001.525195 | BO4: =RANK(AY4,$AY4:$BM4, 1) -> 1 | BP4: 1 | BQ4: 1 | BR4: 1 | BS4: 1 | BT4: 1 | BU4: 1 | BV4: 1 | BW4: 1 | BX4: 1 | BY4: 1 | BZ4: 1 | CA4: 1 | CB4: 1 | CC4: 1 | CE4: 0 | CF4: 0 | CG4: 0 | CH4: 0 | CI4: 0 | CJ4: 0 | CK4: 0 | CL4: 0 | CM4: 0 | CN4: 0 | CO4: 0 | CP4: 0 | CQ4: 0 | CR4: 0 | CS4: 0
A5: O3 | B5: 81 | C5: 60 | D5: 50 | E5: 74 | F5: 10 | H5: O3 | I5: 4 | J5: 5 | K5: 10 | L5: 4 | M5: 13 | N5: 0.002370318399 | O5: 0.07721187 | P5: 0.09975174 | Q5: 0.10348205 | R5: 0.06843713067 | S5: 0.02211944071 | T5: 191.8811519 | U5: =$I$3*$O5+$J$3*$P5+$K$3*$Q5+$L$3*$R5+$M$3*$S5 -> 2.168077461 | V5: =$I$4*$O5+$J$4*$P5+$K$4*$Q5+$L$4*$R5+$M$4*$S5 -> 2.707327066 | W5: =$I$5*$O5+$J$5*$P5+$K$5*$Q5+$L$5*$R5+$M$5*$S5 -> 2.403727932 | X5: 3.667828767 | Y5: 2.759742045 | Z5: 1.894785739 | AA5: 2.538902325 | AB5: 2.537458407 | AC5: 3.424197255 | AD5: 3.080090395 | AE5: 3.756477089 | AF5: 2.230589022 | AG5: 3.045024551 | AH5: 3.213417385 | AI5: 2.904886362 | AK5: 191.8811519 | AM5: O3 | AN5: 1000 | AO5: =W33 -> 1001.525195 | AP5: -1.525195014 | AQ5: =ABS(AP5) -> 1.525195014 | AU5: O | AV5: 1 | AW5: A | AX5: 4 | AY5: 1001.525195 | AZ5: 1001.525195 | BA5: 1001.525195 | BB5: 1001.525195 | BC5: 1001.525195 | BD5: 1001.525195 | BE5: 1001.525195 | BF5: 1001.525195 | BG5: 1001.525195 | BH5: 1001.525195 | BI5: 1001.525195 | BJ5: 1001.525195 | BK5: 1001.525195 | BL5: 1001.525195 | BM5: 1001.525195 | BO5: 1 | BP5: 1 | BQ5: 1 | BR5: 1 | BS5: 1 | BT5: 1 | BU5: 1 | BV5: 1 | BW5: 1 | BX5: 1 | BY5: 1 | BZ5: 1 | CA5: 1 | CB5: 1 | CC5: 1 | CE5: 0 | CF5: 0 | CG5: 0 | CH5: 0 | CI5: 0 | CJ5: 0 | CK5: 0 | CL5: 0 | CM5: 0 | CN5: 0 | CO5: 0 | CP5: 0 | CQ5: 0 | CR5: 0 | CS5: 0
A6: O4 | B6: 40 | C6: 50 | D6: 32 | E6: 80 | F6: 45 | H6: O4 | I6: 13 | J6: 8 | K6: 15 | L6: 2 | M6: 8 | N6: 0.01348897247 | O6: 0.09920991 | P6: 0.63917863 | Q6: 0.17624931 | R6: 0.2369472723 | S6: 0.6100153165 | T6: 191.8824263 | U6: 15.05472667 | V6: =$I$4*$O6+$J$4*$P6+$K$4*$Q6+$L$4*$R6+$M$4*$S6 -> 17.5260052 | W6: 14.23321409 | X6: 14.4009146 | Y6: 9.975158505 | Z6: 11.13906492 | AA6: 12.90248188 | AB6: 14.27580201 | AC6: 13.05710139 | AD6: 12.87069167 | AE6: 16.34059018 | AF6: 10.29038379 | AG6: 8.71149883 | AH6: 16.55665188 | AI6: 12.28196951 | AK6: 191.8824263 | AM6: O4 | AN6: 1000 | AO6: =X33 -> 993.0714062 | AP6: 6.928593845 | AQ6: 6.928593845 | AU6: O | AV6: 1 | AW6: A | AX6: 5 | AY6: 1005.167026 | AZ6: 1001.525195 | BA6: 1001.525195 | BB6: 1001.525195 | BC6: 1001.525195 | BD6: 1001.525195 | BE6: 1001.525195 | BF6: 1001.525195 | BG6: 1001.525195 | BH6: 1001.525195 | BI6: 1001.525195 | BJ6: 1001.525195 | BK6: 1001.525195 | BL6: 1001.525195 | BM6: 1001.525195 | BO6: 15 | BP6: 1 | BQ6: 1 | BR6: 1 | BS6: 1 | BT6: 1 | BU6: 1 | BV6: 1 | BW6: 1 | BX6: 1 | BY6: 1 | BZ6: 1 | CA6: 1 | CB6: 1 | CC6: 1 | CE6: -3.64183061 | CF6: =BA6-AZ6 -> 0 | CG6: 0 | CH6: 0 | CI6: 0 | CJ6: 0 | CK6: 0 | CL6: 0 | CM6: 0 | CN6: 0 | CO6: 0 | CP6: 0 | CQ6: 0 | CR6: 0 | CS6: 0.9733201716
A7: O5 | B7: 67 | C7: 50 | D7: 50 | E7: 72 | F7: 84 | H7: O5 | I7: 7 | J7: 8 | K7: 10 | L7: 5 | M7: 2 | N7: 8.467277832 | O7: 0.5611306 | P7: 0.01092305 | Q7: 0.39463338 | R7: 0.1345434012 | S7: 0.441996228 | T7: 202.5557178 | U7: 11.18228269 | V7: 14.92187561 | W7: 12.52959602 | X7: 17.10663953 | Y7: 9.518341862 | Z7: 14.28285967 | AA7: 9.192390332 | AB7: 5.60638301 | AC7: 10.12767551 | AD7: 11.40831195 | AE7: 13.66287973 | AF7: 8.263303725 | AG7: 12.53875747 | AH7: 14.24192938 | AI7: 15.30393155 | AK7: 202.5557178 | AM7: O5 | AN7: 1000 | AO7: =Y33 -> 1001.525195 | AP7: -1.525195014 | AQ7: 1.525195014 | AU7: O | AV7: 2 | AW7: A | AX7: 1 | AY7: 1001.525195 | AZ7: 1001.525195 | BA7: 1001.525195 | BB7: 1001.525195 | BC7: 1001.525195 | BD7: 1001.525195 | BE7: 1001.525195 | BF7: 1001.525195 | BG7: 1001.525195 | BH7: 1001.525195 | BI7: 1001.525195 | BJ7: 1001.525195 | BK7: 1001.525195 | BL7: 1001.525195 | BM7: 1006.348803 | BO7: 1 | BP7: 1 | BQ7: 1 | BR7: 1 | BS7: 1 | BT7: 1 | BU7: 1 | BV7: 1 | BW7: 1 | BX7: 1 | BY7: 1 | BZ7: 1 | CA7: 1 | CB7: 1 | CC7: 15 | CE7: 0 | CF7: 0 | CG7: 0 | CH7: 0 | CI7: 0 | CJ7: 0 | CK7: 0 | CL7: 0 | CM7: 0 | CN7: 0 | CO7: 0 | CP7: 0 | CQ7: 0 | CR7: 4.823608448 | CS7: 1.289163584
A8: O6 | B8: 26 | C8: 83 | D8: 83 | E8: 94 | F8: 29 | H8: O6 | I8: 15 | J8: 3 | K8: 1 | L8: 1 | M8: 12 | AM8: O6 | AN8: 1000 | AO8: =Z33 -> 997.8950146 | AP8: 2.104985397 | AQ8: 2.104985397 | AU8: O | AV8: 2 | AW8: A | AX8: 2 | AY8: 997.8950146 | AZ8: 997.8950146 | BA8: 997.8950146 | BB8: 1006.348803 | BC8: 1006.348803 | BD8: 1006.348803 | BE8: 1001.525195 | BF8: 1001.525195 | BG8: 1001.525195 | BH8: 1001.525195 | BI8: 1001.525195 | BJ8: 1001.525195 | BK8: 1001.525195 | BL8: 1001.525195 | BM8: 1001.525195 | BO8: 1 | BP8: 1 | BQ8: 1 | BR8: 13 | BS8: 13 | BT8: 13 | BU8: 4 | BV8: 4 | BW8: 4 | BX8: 4 | BY8: 4 | BZ8: 4 | CA8: 4 | CB8: 4 | CC8: 4 | CE8: 0 | CF8: 0 | CG8: 8.453788859 | CH8: 0 | CI8: 0 | CJ8: -4.823608448 | CK8: 0 | CL8: 0 | CM8: 0 | CN8: 0 | CO8: 0 | CP8: 0 | CQ8: 0 | CR8: 0 | CS8: 2.686038602
A9: O7 | B9: 97 | C9: 60 | D9: 70 | E9: 33 | F9: 45 | H9: O7 | I9: 1 | J9: 5 | K9: 8 | L9: 14 | M9: 8 | AM9: O7 | AN9: 1000 | AO9: =AA33 -> 1005.167026 | AP9: -5.167025624 | AQ9: 5.167025624 | AU9: O | AV9: 2 | AW9: A | AX9: 3 | AY9: 1001.525195 | AZ9: 1001.525195 | BA9: 1001.525195 | BB9: 1001.525195 | BC9: 1001.525195 | BD9: 1001.525195 | BE9: 1001.525195 | BF9: 1001.525195 | BG9: 1001.525195 | BH9: 1001.525195 | BI9: 1001.525195 | BJ9: 1001.525195 | BK9: 993.0714062 | BL9: 993.0714062 | BM9: 993.0714062 | BO9: 4 | BP9: 4 | BQ9: 4 | BR9: 4 | BS9: 4 | BT9: 4 | BU9: 4 | BV9: 4 | BW9: 4 | BX9: 4 | BY9: 4 | BZ9: 4 | CA9: 1 | CB9: 1 | CC9: 1 | CE9: 0 | CF9: 0 | CG9: 0 | CH9: 0 | CI9: 0 | CJ9: 0 | CK9: 0 | CL9: 0 | CM9: 0 | CN9: 0 | CO9: 0 | CP9: -8.453788859 | CQ9: 0 | CR9: 0 | CS9: 2.259370109
A10: O8 | B10: 95 | C10: 14 | D10: 76 | E10: 63 | F10: 66 | H10: O8 | I10: 3 | J10: 15 | K10: 3 | L10: 6 | M10: 4 | AM10: O8 | AN10: 1000 | AO10: =AB33 -> 1005.167026 | AP10: -5.167025624 | AQ10: 5.167025624 | AU10: O | AV10: 2 | AW10: A | AX10: 4 | AY10: 1001.525195 | AZ10: 1001.525195 | BA10: 1001.525195 | BB10: 1001.525195 | BC10: 1001.525195 | BD10: 1001.525195 | BE10: 1001.525195 | BF10: 1001.525195 | BG10: 1001.525195 | BH10: 1001.525195 | BI10: 1001.525195 | BJ10: 1001.525195 | BK10: 1001.525195 | BL10: 1001.525195 | BM10: 1001.525195 | BO10: 1 | BP10: 1 | BQ10: 1 | BR10: 1 | BS10: 1 | BT10: 1 | BU10: 1 | BV10: 1 | BW10: 1 | BX10: 1 | BY10: 1 | BZ10: 1 | CA10: 1 | CB10: 1 | CC10: 1 | CE10: 0 | CF10: 0 | CG10: 0 | CH10: 0 | CI10: 0 | CJ10: 0 | CK10: 0 | CL10: 0 | CM10: 0 | CN10: 0 | CO10: 0 | CP10: 0 | CQ10: 0 | CR10: 0 | CS10: 0
A11: O9 | B11: 50 | C11: 40 | D11: 58 | E11: 53 | F11: 90 | H11: O9 | I11: 9 | J11: 13 | K11: 9 | L11: 7 | M11: 1 | AM11: O9 | AN11: 1000 | AO11: =AC33 -> 1005.167026 | AP11: -5.167025624 | AQ11: 5.167025624 | AU11: O | AV11: 2 | AW11: A | AX11: 5 | AY11: 1001.525195 | AZ11: 1001.525195 | BA11: 1001.525195 | BB11: 1001.525195 | BC11: 1001.525195 | BD11: 1001.525195 | BE11: 1001.525195 | BF11: 1001.525195 | BG11: 1001.525195 | BH11: 1001.525195 | BI11: 1001.525195 | BJ11: 1001.525195 | BK11: 1001.525195 | BL11: 1001.525195 | BM11: 1001.525195 | BO11: 1 | BP11: 1 | BQ11: 1 | BR11: 1 | BS11: 1 | BT11: 1 | BU11: 1 | BV11: 1 | BW11: 1 | BX11: 1 | BY11: 1 | BZ11: 1 | CA11: 1 | CB11: 1 | CC11: 1 | CE11: 0 | CF11: 0 | CG11: 0 | CH11: 0 | CI11: 0 | CJ11: 0 | CK11: 0 | CL11: 0 | CM11: 0 | CN11: 0 | CO11: 0 | CP11: 0 | CQ11: 0 | CR11: 0 | CS11: 0
A12: O10 | B12: 96 | C12: 66 | D12: 44 | E12: 12 | F12: 47 | H12: O10 | I12: 2 | J12: 4 | K12: 13 | L12: 15 | M12: 7 | AM12: O10 | AN12: 1000 | AO12: =AD33 -> 1001.525195 | AP12: -1.525195014 | AQ12: 1.525195014 | AU12: O | AV12: 3 | AW12: A | AX12: 1 | AY12: 1001.525195 | AZ12: 1001.525195 | BA12: 1001.525195 | BB12: 1001.525195 | BC12: 1001.525195 | BD12: 1001.525195 | BE12: 1001.525195 | BF12: 993.0714062 | BG12: 993.0714062 | BH12: 993.0714062 | BI12: 993.0714062 | BJ12: 993.0714062 | BK12: 993.0714062 | BL12: 993.0714062 | BM12: 993.0714062 | BO12: 9 | BP12: 9 | BQ12: 9 | BR12: 9 | BS12: 9 | BT12: 9 | BU12: 9 | BV12: 1 | BW12: 1 | BX12: 1 | BY12: 1 | BZ12: 1 | CA12: 1 | CB12: 1 | CC12: 1 | CE12: 0 | CF12: 0 | CG12: 0 | CH12: 0 | CI12: 0 | CJ12: 0 | CK12: -8.453788859 | CL12: 0 | CM12: 0 | CN12: 0 | CO12: 0 | CP12: 0 | CQ12: 0 | CR12: 0 | CS12: 2.259370109
A13: O11 | B13: 37 | C13: 36 | D13: 74 | E13: 50 | F13: 50 | H13: O11 | I13: 14 | J13: 14 | K13: 6 | L13: 8 | M13: 5 | AM13: O11 | AN13: 1000 | AO13: =AE33 -> 1001.525195 | AP13: -1.525195014 | AQ13: 1.525195014 | AU13: O | AV13: 3 | AW13: A | AX13: 2 | AY13: 993.0714062 | AZ13: 993.0714062 | BA13: 1001.525195 | BB13: 1001.525195 | BC13: 1001.525195 | BD13: 1001.525195 | BE13: 1001.525195 | BF13: 1001.525195 | BG13: 1001.525195 | BH13: 1001.525195 | BI13: 1001.525195 | BJ13: 1001.525195 | BK13: 1001.525195 | BL13: 1005.167026 | BM13: 1005.167026 | BO13: 1 | BP13: 1 | BQ13: 3 | BR13: 3 | BS13: 3 | BT13: 3 | BU13: 3 | BV13: 3 | BW13: 3 | BX13: 3 | BY13: 3 | BZ13: 3 | CA13: 3 | CB13: 14 | CC13: 14 | CE13: 0 | CF13: 8.453788859 | CG13: 0 | CH13: 0 | CI13: 0 | CJ13: 0 | CK13: 0 | CL13: 0 | CM13: 0 | CN13: 0 | CO13: 0 | CP13: 0 | CQ13: 3.64183061 | CR13: 0 | CS13: 2.39035224
A14: O12 | B14: 79 | C14: 60 | D14: 75 | E14: 45 | F14: 50 | H14: O12 | I14: 5 | J14: 5 | K14: 4 | L14: 12 | M14: 5 | AM14: O12 | AN14: 1000 | AO14: =AF33 -> 1001.525195 | AP14: -1.525195014 | AQ14: 1.525195014 | AU14: O | AV14: 3 | AW14: A | AX14: 3 | AY14: 1001.525195 | AZ14: 1001.525195 | BA14: 1001.525195 | BB14: 1001.525195 | BC14: 1001.525195 | BD14: 1001.525195 | BE14: 1001.525195 | BF14: 1001.525195 | BG14: 1001.525195 | BH14: 1001.525195 | BI14: 1001.525195 | BJ14: 1001.525195 | BK14: 1001.525195 | BL14: 1001.525195 | BM14: 1001.525195 | BO14: 1 | BP14: 1 | BQ14: 1 | BR14: 1 | BS14: 1 | BT14: 1 | BU14: 1 | BV14: 1 | BW14: 1 | BX14: 1 | BY14: 1 | BZ14: 1 | CA14: 1 | CB14: 1 | CC14: 1 | CE14: 0 | CF14: 0 | CG14: 0 | CH14: 0 | CI14: 0 | CJ14: 0 | CK14: 0 | CL14: 0 | CM14: 0 | CN14: 0 | CO14: 0 | CP14: 0 | CQ14: 0 | CR14: 0 | CS14: 0
A15: O13 | B15: 67 | C15: 96 | D15: 38 | E15: 44 | F15: 72 | H15: O13 | I15: 7 | J15: 1 | K15: 14 | L15: 13 | M15: 3 | AM15: O13 | AN15: 1000 | AO15: =AG33 -> 988.2594479 | AP15: 11.74055209 | AQ15: 11.74055209 | AU15: O | AV15: 3 | AW15: A | AX15: 4 | AY15: 1001.525195 | AZ15: 1001.525195 | BA15: 1001.525195 | BB15: 1001.525195 | BC15: 1001.525195 | BD15: 1001.525195 | BE15: 1001.525195 | BF15: 1001.525195 | BG15: 1001.525195 | BH15: 1001.525195 | BI15: 1001.525195 | BJ15: 1001.525195 | BK15: 1001.525195 | BL15: 1001.525195 | BM15: 1001.525195 | BO15: 1 | BP15: 1 | BQ15: 1 | BR15: 1 | BS15: 1 | BT15: 1 | BU15: 1 | BV15: 1 | BW15: 1 | BX15: 1 | BY15: 1 | BZ15: 1 | CA15: 1 | CB15: 1 | CC15: 1 | CE15: 0 | CF15: 0 | CG15: 0 | CH15: 0 | CI15: 0 | CJ15: 0 | CK15: 0 | CL15: 0 | CM15: 0 | CN15: 0 | CO15: 0 | CP15: 0 | CQ15: 0 | CR15: 0 | CS15: 0
A16: O14 | B16: 50 | C16: 50 | D16: 71 | E16: 48 | F16: 31 | H16: O14 | I16: 9 | J16: 8 | K16: 7 | L16: 11 | M16: 11 | AM16: O14 | AN16: 1000 | AO16: =AH33 -> 1001.525195 | AP16: -1.525195014 | AQ16: 1.525195014 | AU16: O | AV16: 3 | AW16: A | AX16: 5 | AY16: 991.9012785 | AZ16: 988.2594479 | BA16: 1001.525195 | BB16: 1001.525195 | BC16: 1001.525195 | BD16: 1001.525195 | BE16: 1001.525195 | BF16: 1001.525195 | BG16: 1001.525195 | BH16: 1001.525195 | BI16: 1001.525195 | BJ16: 1001.525195 | BK16: 1001.525195 | BL16: 1001.525195 | BM16: 1001.525195 | BO16: 2 | BP16: 1 | BQ16: 3 | BR16: 3 | BS16: 3 | BT16: 3 | BU16: 3 | BV16: 3 | BW16: 3 | BX16: 3 | BY16: 3 | BZ16: 3 | CA16: 3 | CB16: 3 | CC16: 3 | CE16: -3.64183061 | CF16: 13.26574711 | CG16: 0 | CH16: 0 | CI16: 0 | CJ16: 0 | CK16: 0 | CL16: 0 | CM16: 0 | CN16: 0 | CO16: 0 | CP16: 0 | CQ16: 0 | CR16: 0 | CS16: 3.748099814
A17: O15 | B17: 50 | C17: 84 | D17: 46 | E17: 50 | F17: 43 | H17: O15 | I17: 9 | J17: 2 | K17: 12 | L17: 8 | M17: 10 | AM17: O15 | AN17: 1000 | AO17: =AI33 -> 993.0714062 | AP17: 6.928593845 | AQ17: 6.928593845 | AU17: O | AV17: 4 | AW17: A | AX17: 1 | AY17: 1005.167026 | AZ17: 1005.167026 | BA17: 1001.525195 | BB17: 1001.525195 | BC17: 1001.525195 | BD17: 1001.525195 | BE17: 1001.525195 | BF17: 993.0714062 | BG17: 993.0714062 | BH17: 993.0714062 | BI17: 993.0714062 | BJ17: 993.0714062 | BK17: 993.0714062 | BL17: 993.0714062 | BM17: 993.0714062 | BO17: 14 | BP17: 14 | BQ17: 9 | BR17: 9 | BS17: 9 | BT17: 9 | BU17: 9 | BV17: 1 | BW17: 1 | BX17: 1 | BY17: 1 | BZ17: 1 | CA17: 1 | CB17: 1 | CC17: 1 | CE17: 0 | CF17: -3.64183061 | CG17: 0 | CH17: 0 | CI17: 0 | CJ17: 0 | CK17: -8.453788859 | CL17: 0 | CM17: 0 | CN17: 0 | CO17: 0 | CP17: 0 | CQ17: 0 | CR17: 0 | CS17: 2.39035224
AN18: szum | AO18: szum | AP18: hiba | AU18: O | AV18: 4 | AW18: A | AX18: 2 | AY18: 993.0714062 | AZ18: 993.0714062 | BA18: 993.0714062 | BB18: 993.0714062 | BC18: 993.0714062 | BD18: 993.0714062 | BE18: 993.0714062 | BF18: 993.0714062 | BG18: 993.0714062 | BH18: 993.0714062 | BI18: 993.0714062 | BJ18: 993.0714062 | BK18: 1001.525195 | BL18: 1001.525195 | BM18: 1001.525195 | BO18: 1 | BP18: 1 | BQ18: 1 | BR18: 1 | BS18: 1 | BT18: 1 | BU18: 1 | BV18: 1 | BW18: 1 | BX18: 1 | BY18: 1 | BZ18: 1 | CA18: 13 | CB18: 13 | CC18: 13 | CE18: 0 | CF18: 0 | CG18: 0 | CH18: 0 | CI18: 0 | CJ18: 0 | CK18: 0 | CL18: 0 | CM18: 0 | CN18: 0 | CO18: 0 | CP18: 8.453788859 | CQ18: 0 | CR18: 0 | CS18: 2.259370109
U19: Activation - linear | AK19: Szórás | AN19: =SUM(AN3:AN17) -> 15000 | AO19: =SUM(AO3:AO17) -> 14999.99991 | AP19: =SUMSQ(AP3:AP17) -> 336.9865724 | AQ19: =SUM(AQ3:AQ17)/15 -> 3.693690811 | AU19: O | AV19: 4 | AW19: A | AX19: 3 | AY19: 1001.525195 | AZ19: 1001.525195 | BA19: 993.0714062 | BB19: 993.0714062 | BC19: 993.0714062 | BD19: 993.0714062 | BE19: 993.0714062 | BF19: 993.0714062 | BG19: 993.0714062 | BH19: 993.0714062 | BI19: 993.0714062 | BJ19: 993.0714062 | BK19: 993.0714062 | BL19: 993.0714062 | BM19: 993.0714062 | BO19: 14 | BP19: 14 | BQ19: 1 | BR19: 1 | BS19: 1 | BT19: 1 | BU19: 1 | BV19: 1 | BW19: 1 | BX19: 1 | BY19: 1 | BZ19: 1 | CA19: 1 | CB19: 1 | CC19: 1 | CE19: 0 | CF19: -8.453788859 | CG19: 0 | CH19: 0 | CI19: 0 | CJ19: 0 | CK19: 0 | CL19: 0 | CM19: 0 | CN19: 0 | CO19: 0 | CP19: 0 | CQ19: 0 | CR19: 0 | CS19: 2.259370109
P20: -1 | U20: =IF(U3>0,U3,U3*$P$20) -> 4.952228587 | V20: =IF(V3>0,V3,V3*$P$20) -> 6.626330919 | W20: 5.242739887 | X20: 7.05292711 | Y20: 4.928085173 | Z20: 4.960241175 | AA20: 5.3514932 | AB20: 4.551539395 | AC20: 6.019146921 | AD20: 6.174940639 | AE20: 7.275799826 | AF20: 4.753346936 | AG20: 5.962382284 | AH20: 6.956108144 | AI20: 6.267384933 | AK20: =STDEV(U20:AI20) -> 0.9083049873 | AP20: hiba2 | AU20: O | AV20: 4 | AW20: A | AX20: 4 | AY20: 993.0714062 | AZ20: 993.0714062 | BA20: 993.0714062 | BB20: 993.0714062 | BC20: 993.0714062 | BD20: 993.0714062 | BE20: 993.0714062 | BF20: 993.0714062 | BG20: 993.0714062 | BH20: 993.0714062 | BI20: 993.0714062 | BJ20: 993.0714062 | BK20: 993.0714062 | BL20: 993.0714062 | BM20: 993.0714062 | BO20: 1 | BP20: 1 | BQ20: 1 | BR20: 1 | BS20: 1 | BT20: 1 | BU20: 1 | BV20: 1 | BW20: 1 | BX20: 1 | BY20: 1 | BZ20: 1 | CA20: 1 | CB20: 1 | CC20: 1 | CE20: 0 | CF20: 0 | CG20: 0 | CH20: 0 | CI20: 0 | CJ20: 0 | CK20: 0 | CL20: 0 | CM20: 0 | CN20: 0 | CO20: 0 | CP20: 0 | CQ20: 0 | CR20: 0 | CS20: 0
U21: =IF(U4>0,U4,U4*$P$20) -> 7.1315474 | V21: 7.037148931 | W21: 8.52498081 | X21: 11.3915759 | Y21: 9.287806842 | Z21: 3.112390889 | AA21: 9.226620256 | AB21: 9.816509973 | AC21: 11.51754982 | AD21: 11.06608282 | AE21: 11.23846992 | AF21: 6.893179254 | AG21: 9.442902242 | AH21: 9.901434328 | AI21: 8.609552578 | AK21: =STDEV(U21:AI21) -> 2.23492541 | AP21: =ABS(AN19-AO19) -> 8.819410323e-05 | AQ21: =AQ19+AP21 -> 3.693779005 | AU21: O | AV21: 4 | AW21: A | AX21: 5 | AY21: 988.2594479 | AZ21: 988.2594479 | BA21: 993.0714062 | BB21: 993.0714062 | BC21: 993.0714062 | BD21: 993.0714062 | BE21: 993.0714062 | BF21: 993.0714062 | BG21: 993.0714062 | BH21: 993.0714062 | BI21: 993.0714062 | BJ21: 993.0714062 | BK21: 993.0714062 | BL21: 993.0714062 | BM21: 993.0714062 | BO21: 1 | BP21: 1 | BQ21: 3 | BR21: 3 | BS21: 3 | BT21: 3 | BU21: 3 | BV21: 3 | BW21: 3 | BX21: 3 | BY21: 3 | BZ21: 3 | CA21: 3 | CB21: 3 | CC21: 3 | CE21: 0 | CF21: 4.81195825 | CG21: 0 | CH21: 0 | CI21: 0 | CJ21: 0 | CK21: 0 | CL21: 0 | CM21: 0 | CN21: 0 | CO21: 0 | CP21: 0 | CQ21: 0 | CR21: 0 | CS21: 1.286049938
U22: 2.168077461 | V22: 2.707327066 | W22: 2.403727932 | X22: 3.667828767 | Y22: 2.759742045 | Z22: 1.894785739 | AA22: 2.538902325 | AB22: 2.537458407 | AC22: 3.424197255 | AD22: 3.080090395 | AE22: 3.756477089 | AF22: 2.230589022 | AG22: 3.045024551 | AH22: 3.213417385 | AI22: 2.904886362 | AK22: 0.5488908783 | AP22: hiba3 | AU22: O | AV22: 5 | AW22: A | AX22: 1 | AY22: 1005.167026 | AZ22: 1005.167026 | BA22: 1005.167026 | BB22: 1005.167026 | BC22: 1005.167026 | BD22: 1005.167026 | BE22: 1001.525195 | BF22: 993.0714062 | BG22: 993.0714062 | BH22: 993.0714062 | BI22: 993.0714062 | BJ22: 993.0714062 | BK22: 993.0714062 | BL22: 993.0714062 | BM22: 993.0714062 | BO22: 10 | BP22: 10 | BQ22: 10 | BR22: 10 | BS22: 10 | BT22: 10 | BU22: 9 | BV22: 1 | BW22: 1 | BX22: 1 | BY22: 1 | BZ22: 1 | CA22: 1 | CB22: 1 | CC22: 1 | CE22: 0 | CF22: 0 | CG22: 0 | CH22: 0 | CI22: 0 | CJ22: -3.64183061 | CK22: -8.453788859 | CL22: 0 | CM22: 0 | CN22: 0 | CO22: 0 | CP22: 0 | CQ22: 0 | CR22: 0 | CS22: 2.39035224
U23: 15.05472667 | V23: 17.5260052 | W23: 14.23321409 | X23: 14.4009146 | Y23: 9.975158505 | Z23: 11.13906492 | AA23: 12.90248188 | AB23: 14.27580201 | AC23: 13.05710139 | AD23: 12.87069167 | AE23: 16.34059018 | AF23: 10.29038379 | AG23: 8.71149883 | AH23: 16.55665188 | AI23: 12.28196951 | AK23: 2.550873827 | AP23: =AP19*AP21 -> 0.02972022855 | AU23: O | AV23: 5 | AW23: A | AX23: 2 | AY23: 988.2594479 | AZ23: 988.2594479 | BA23: 988.2594479 | BB23: 988.2594479 | BC23: 993.0714062 | BD23: 993.0714062 | BE23: 993.0714062 | BF23: 1001.525195 | BG23: 1005.167026 | BH23: 1005.167026 | BI23: 1005.167026 | BJ23: 1005.167026 | BK23: 1005.167026 | BL23: 1005.167026 | BM23: 1005.167026 | BO23: 1 | BP23: 1 | BQ23: 1 | BR23: 1 | BS23: 5 | BT23: 5 | BU23: 5 | BV23: 8 | BW23: 9 | BX23: 9 | BY23: 9 | BZ23: 9 | CA23: 9 | CB23: 9 | CC23: 9 | CE23: 0 | CF23: 0 | CG23: 0 | CH23: 4.81195825 | CI23: 0 | CJ23: 0 | CK23: 8.453788859 | CL23: 3.64183061 | CM23: 0 | CN23: 0 | CO23: 0 | CP23: 0 | CQ23: 0 | CR23: 0 | CS23: 2.593859692
U24: 11.18228269 | V24: 14.92187561 | W24: 12.52959602 | X24: 17.10663953 | Y24: 9.518341862 | Z24: 14.28285967 | AA24: 9.192390332 | AB24: 5.60638301 | AC24: 10.12767551 | AD24: 11.40831195 | AE24: 13.66287973 | AF24: 8.263303725 | AG24: 12.53875747 | AH24: 14.24192938 | AI24: 15.30393155 | AK24: 3.076532453 | AN24: szórás | AO24: szórás | AU24: O | AV24: 5 | AW24: A | AX24: 3 | AY24: 1001.525195 | AZ24: 1001.525195 | BA24: 1001.525195 | BB24: 1001.525195 | BC24: 1001.525195 | BD24: 1001.525195 | BE24: 1001.525195 | BF24: 1001.525195 | BG24: 1001.525195 | BH24: 1001.525195 | BI24: 1001.525195 | BJ24: 1001.525195 | BK24: 988.2594479 | BL24: 988.2594479 | BM24: 988.2594479 | BO24: 4 | BP24: 4 | BQ24: 4 | BR24: 4 | BS24: 4 | BT24: 4 | BU24: 4 | BV24: 4 | BW24: 4 | BX24: 4 | BY24: 4 | BZ24: 4 | CA24: 1 | CB24: 1 | CC24: 1 | CE24: 0 | CF24: 0 | CG24: 0 | CH24: 0 | CI24: 0 | CJ24: 0 | CK24: 0 | CL24: 0 | CM24: 0 | CN24: 0 | CO24: 0 | CP24: -13.26574711 | CQ24: 0 | CR24: 0 | CS24: 3.545420047
AN25: =STDEV(AN3:AN17) -> 0 | AO25: =STDEV(AO3:AO17) -> 4.906166473 | AU25: O | AV25: 5 | AW25: A | AX25: 4 | AY25: 1001.525195 | AZ25: 1001.525195 | BA25: 1001.525195 | BB25: 1001.525195 | BC25: 1001.525195 | BD25: 1001.525195 | BE25: 1001.525195 | BF25: 1001.525195 | BG25: 1005.167026 | BH25: 1005.167026 | BI25: 1005.167026 | BJ25: 1005.167026 | BK25: 1005.167026 | BL25: 1005.167026 | BM25: 1005.167026 | BO25: 1 | BP25: 1 | BQ25: 1 | BR25: 1 | BS25: 1 | BT25: 1 | BU25: 1 | BV25: 1 | BW25: 9 | BX25: 9 | BY25: 9 | BZ25: 9 | CA25: 9 | CB25: 9 | CC25: 9 | CE25: 0 | CF25: 0 | CG25: 0 | CH25: 0 | CI25: 0 | CJ25: 0 | CK25: 0 | CL25: 3.64183061 | CM25: 0 | CN25: 0 | CO25: 0 | CP25: 0 | CQ25: 0 | CR25: 0 | CS25: 0.9733201716
AU26: O | AV26: 5 | AW26: A | AX26: 5 | AY26: 1005.167026 | AZ26: 1001.525195 | BA26: 1001.525195 | BB26: 1001.525195 | BC26: 1001.525195 | BD26: 1001.525195 | BE26: 1001.525195 | BF26: 1001.525195 | BG26: 1001.525195 | BH26: 1001.525195 | BI26: 1001.525195 | BJ26: 1001.525195 | BK26: 1001.525195 | BL26: 1001.525195 | BM26: 1001.525195 | BO26: 15 | BP26: 1 | BQ26: 1 | BR26: 1 | BS26: 1 | BT26: 1 | BU26: 1 | BV26: 1 | BW26: 1 | BX26: 1 | BY26: 1 | BZ26: 1 | CA26: 1 | CB26: 1 | CC26: 1 | CE26: -3.64183061 | CF26: 0 | CG26: 0 | CH26: 0 | CI26: 0 | CJ26: 0 | CK26: 0 | CL26: 0 | CM26: 0 | CN26: 0 | CO26: 0 | CP26: 0 | CQ26: 0 | CR26: 0 | CS26: 0.9733201716
U27: =RANK(U20,U$20:U$24,0) -> 4 | V27: =RANK(V20,V$20:V$24,0) -> 4 | W27: 4 | X27: 4 | Y27: 4 | Z27: 3 | AA27: 4 | AB27: 4 | AC27: 4 | AD27: 4 | AE27: 4 | AF27: 4 | AG27: 4 | AH27: 4 | AI27: 4 | AU27: O | AV27: 6 | AW27: A | AX27: 1 | AY27: 1001.525195 | AZ27: 1001.525195 | BA27: 1001.525195 | BB27: 1001.525195 | BC27: 1006.348803 | BD27: 1006.348803 | BE27: 1006.348803 | BF27: 1006.348803 | BG27: 997.8950146 | BH27: 997.8950146 | BI27: 997.8950146 | BJ27: 997.8950146 | BK27: 997.8950146 | BL27: 997.8950146 | BM27: 997.8950146 | BO27: 8 | BP27: 8 | BQ27: 8 | BR27: 8 | BS27: 12 | BT27: 12 | BU27: 12 | BV27: 12 | BW27: 1 | BX27: 1 | BY27: 1 | BZ27: 1 | CA27: 1 | CB27: 1 | CC27: 1 | CE27: 0 | CF27: 0 | CG27: 0 | CH27: 4.823608448 | CI27: 0 | CJ27: 0 | CK27: 0 | CL27: -8.453788859 | CM27: 0 | CN27: 0 | CO27: 0 | CP27: 0 | CQ27: 0 | CR27: 0 | CS27: 2.686038602
U28: =RANK(U21,U$20:U$24,0) -> 3 | V28: 3 | W28: 3 | X28: 3 | Y28: 3 | Z28: 4 | AA28: 2 | AB28: 2 | AC28: 2 | AD28: 3 | AE28: 3 | AF28: 3 | AG28: 2 | AH28: 3 | AI28: 3 | AU28: O | AV28: 6 | AW28: A | AX28: 2 | AY28: 997.8950146 | AZ28: 997.8950146 | BA28: 997.8950146 | BB28: 997.8950146 | BC28: 997.8950146 | BD28: 997.8950146 | BE28: 997.8950146 | BF28: 997.8950146 | BG28: 1001.525195 | BH28: 1001.525195 | BI28: 1001.525195 | BJ28: 1001.525195 | BK28: 1001.525195 | BL28: 1001.525195 | BM28: 1001.525195 | BO28: 1 | BP28: 1 | BQ28: 1 | BR28: 1 | BS28: 1 | BT28: 1 | BU28: 1 | BV28: 1 | BW28: 9 | BX28: 9 | BY28: 9 | BZ28: 9 | CA28: 9 | CB28: 9 | CC28: 9 | CE28: 0 | CF28: 0 | CG28: 0 | CH28: 0 | CI28: 0 | CJ28: 0 | CK28: 0 | CL28: 3.630180412 | CM28: 0 | CN28: 0 | CO28: 0 | CP28: 0 | CQ28: 0 | CR28: 0 | CS28: 0.9702065252
U29: 5 | V29: 5 | W29: 5 | X29: 5 | Y29: 5 | Z29: 5 | AA29: 5 | AB29: 5 | AC29: 5 | AD29: 5 | AE29: 5 | AF29: 5 | AG29: 5 | AH29: 5 | AI29: 5 | AU29: O | AV29: 6 | AW29: A | AX29: 3 | AY29: 997.8950146 | AZ29: 997.8950146 | BA29: 997.8950146 | BB29: 997.8950146 | BC29: 997.8950146 | BD29: 997.8950146 | BE29: 997.8950146 | BF29: 993.0714062 | BG29: 993.0714062 | BH29: 993.0714062 | BI29: 993.0714062 | BJ29: 993.0714062 | BK29: 993.0714062 | BL29: 993.0714062 | BM29: 993.0714062 | BO29: 9 | BP29: 9 | BQ29: 9 | BR29: 9 | BS29: 9 | BT29: 9 | BU29: 9 | BV29: 1 | BW29: 1 | BX29: 1 | BY29: 1 | BZ29: 1 | CA29: 1 | CB29: 1 | CC29: 1 | CE29: 0 | CF29: 0 | CG29: 0 | CH29: 0 | CI29: 0 | CJ29: 0 | CK29: -4.823608448 | CL29: 0 | CM29: 0 | CN29: 0 | CO29: 0 | CP29: 0 | CQ29: 0 | CR29: 0 | CS29: 1.289163584
U30: 1 | V30: 1 | W30: 1 | X30: 2 | Y30: 1 | Z30: 2 | AA30: 1 | AB30: 1 | AC30: 1 | AD30: 1 | AE30: 1 | AF30: 1 | AG30: 3 | AH30: 1 | AI30: 2 | AU30: O | AV30: 6 | AW30: A | AX30: 4 | AY30: 997.8950146 | AZ30: 997.8950146 | BA30: 997.8950146 | BB30: 997.8950146 | BC30: 997.8950146 | BD30: 997.8950146 | BE30: 997.8950146 | BF30: 997.8950146 | BG30: 997.8950146 | BH30: 997.8950146 | BI30: 997.8950146 | BJ30: 997.8950146 | BK30: 997.8950146 | BL30: 997.8950146 | BM30: 997.8950146 | BO30: 1 | BP30: 1 | BQ30: 1 | BR30: 1 | BS30: 1 | BT30: 1 | BU30: 1 | BV30: 1 | BW30: 1 | BX30: 1 | BY30: 1 | BZ30: 1 | CA30: 1 | CB30: 1 | CC30: 1 | CE30: 0 | CF30: 0 | CG30: 0 | CH30: 0 | CI30: 0 | CJ30: 0 | CK30: 0 | CL30: 0 | CM30: 0 | CN30: 0 | CO30: 0 | CP30: 0 | CQ30: 0 | CR30: 0 | CS30: 0
U31: 2 | V31: 2 | W31: 2 | X31: 1 | Y31: 2 | Z31: 1 | AA31: 3 | AB31: 3 | AC31: 3 | AD31: 2 | AE31: 2 | AF31: 2 | AG31: 1 | AH31: 2 | AI31: 1 | AU31: O | AV31: 6 | AW31: A | AX31: 5 | AY31: 997.8950146 | AZ31: 997.8950146 | BA31: 997.8950146 | BB31: 997.8950146 | BC31: 997.8950146 | BD31: 997.8950146 | BE31: 997.8950146 | BF31: 997.8950146 | BG31: 997.8950146 | BH31: 997.8950146 | BI31: 997.8950146 | BJ31: 997.8950146 | BK31: 997.8950146 | BL31: 997.8950146 | BM31: 997.8950146 | BO31: 1 | BP31: 1 | BQ31: 1 | BR31: 1 | BS31: 1 | BT31: 1 | BU31: 1 | BV31: 1 | BW31: 1 | BX31: 1 | BY31: 1 | BZ31: 1 | CA31: 1 | CB31: 1 | CC31: 1 | CE31: 0 | CF31: 0 | CG31: 0 | CH31: 0 | CI31: 0 | CJ31: 0 | CK31: 0 | CL31: 0 | CM31: 0 | CN31: 0 | CO31: 0 | CP31: 0 | CQ31: 0 | CR31: 0 | CS31: 0
AU32: O | AV32: 7 | AW32: A | AX32: 1 | AY32: 1005.167026 | AZ32: 1001.525195 | BA32: 1001.525195 | BB32: 1001.525195 | BC32: 1001.525195 | BD32: 1001.525195 | BE32: 1001.525195 | BF32: 1001.525195 | BG32: 1001.525195 | BH32: 993.0714062 | BI32: 993.0714062 | BJ32: 993.0714062 | BK32: 993.0714062 | BL32: 993.0714062 | BM32: 993.0714062 | BO32: 15 | BP32: 7 | BQ32: 7 | BR32: 7 | BS32: 7 | BT32: 7 | BU32: 7 | BV32: 7 | BW32: 7 | BX32: 1 | BY32: 1 | BZ32: 1 | CA32: 1 | CB32: 1 | CC32: 1 | CE32: -3.64183061 | CF32: 0 | CG32: 0 | CH32: 0 | CI32: 0 | CJ32: 0 | CK32: 0 | CL32: 0 | CM32: -8.453788859 | CN32: 0 | CO32: 0 | CP32: 0 | CQ32: 0 | CR32: 0 | CS32: 2.39035224
U33: =SUMPRODUCT(U27:U31,$N$3:$N$7)+SUM($T$3:$T$7) -> 1001.525195 | V33: =SUMPRODUCT(V27:V31,$N$3:$N$7)+SUM($T$3:$T$7) -> 1001.525195 | W33: 1001.525195 | X33: 993.0714062 | Y33: 1001.525195 | Z33: 997.8950146 | AA33: 1005.167026 | AB33: 1005.167026 | AC33: 1005.167026 | AD33: 1001.525195 | AE33: 1001.525195 | AF33: 1001.525195 | AG33: 988.2594479 | AH33: 1001.525195 | AI33: 993.0714062 | AU33: O | AV33: 7 | AW33: A | AX33: 2 | AY33: 1001.525195 | AZ33: 1001.525195 | BA33: 1001.525195 | BB33: 1001.525195 | BC33: 1005.167026 | BD33: 1005.167026 | BE33: 1005.167026 | BF33: 1005.167026 | BG33: 1005.167026 | BH33: 1005.167026 | BI33: 1005.167026 | BJ33: 1005.167026 | BK33: 1005.167026 | BL33: 1005.167026 | BM33: 1005.167026 | BO33: 1 | BP33: 1 | BQ33: 1 | BR33: 1 | BS33: 5 | BT33: 5 | BU33: 5 | BV33: 5 | BW33: 5 | BX33: 5 | BY33: 5 | BZ33: 5 | CA33: 5 | CB33: 5 | CC33: 5 | CE33: 0 | CF33: 0 | CG33: 0 | CH33: 3.64183061 | CI33: 0 | CJ33: 0 | CK33: 0 | CL33: 0 | CM33: 0 | CN33: 0 | CO33: 0 | CP33: 0 | CQ33: 0 | CR33: 0 | CS33: 0.9733201716
AU34: O | AV34: 7 | AW34: A | AX34: 3 | AY34: 1001.525195 | AZ34: 1001.525195 | BA34: 1001.525195 | BB34: 1001.525195 | BC34: 1001.525195 | BD34: 1001.525195 | BE34: 1001.525195 | BF34: 1005.167026 | BG34: 1005.167026 | BH34: 1005.167026 | BI34: 1005.167026 | BJ34: 1005.167026 | BK34: 1005.167026 | BL34: 1005.167026 | BM34: 1005.167026 | BO34: =RANK(AY34,$AY34:$BM34, 1) -> 1 | BP34: 1 | BQ34: 1 | BR34: 1 | BS34: 1 | BT34: 1 | BU34: 1 | BV34: 8 | BW34: 8 | BX34: 8 | BY34: 8 | BZ34: 8 | CA34: 8 | CB34: 8 | CC34: 8 | CE34: 0 | CF34: 0 | CG34: 0 | CH34: 0 | CI34: 0 | CJ34: 0 | CK34: 3.64183061 | CL34: 0 | CM34: 0 | CN34: 0 | CO34: 0 | CP34: 0 | CQ34: 0 | CR34: 0 | CS34: 0.9733201716
AU35: O | AV35: 7 | AW35: A | AX35: 4 | AY35: 1001.525195 | AZ35: 1001.525195 | BA35: 1001.525195 | BB35: 1001.525195 | BC35: 1001.525195 | BD35: 1001.525195 | BE35: 1001.525195 | BF35: 1001.525195 | BG35: 1001.525195 | BH35: 1001.525195 | BI35: 1001.525195 | BJ35: 1001.525195 | BK35: 1001.525195 | BL35: 1005.167026 | BM35: 1005.167026 | BO35: 1 | BP35: 1 | BQ35: 1 | BR35: 1 | BS35: 1 | BT35: 1 | BU35: 1 | BV35: 1 | BW35: 1 | BX35: 1 | BY35: 1 | BZ35: 1 | CA35: 1 | CB35: 14 | CC35: 14 | CE35: 0 | CF35: 0 | CG35: =BB35-BA35 -> 0 | CH35: 0 | CI35: 0 | CJ35: 0 | CK35: 0 | CL35: 0 | CM35: 0 | CN35: 0 | CO35: 0 | CP35: 0 | CQ35: 3.64183061 | CR35: 0 | CS35: 0.9733201716
AU36: O | AV36: 7 | AW36: A | AX36: 5 | AY36: 1000.355067 | AZ36: 1005.167026 | BA36: 1005.167026 | BB36: 1005.167026 | BC36: 1005.167026 | BD36: 1005.167026 | BE36: 1005.167026 | BF36: 1005.167026 | BG36: 1001.525195 | BH36: 1001.525195 | BI36: 1001.525195 | BJ36: 1001.525195 | BK36: 1001.525195 | BL36: 1001.525195 | BM36: 1001.525195 | BO36: 1 | BP36: 9 | BQ36: 9 | BR36: 9 | BS36: 9 | BT36: 9 | BU36: 9 | BV36: 9 | BW36: 2 | BX36: 2 | BY36: 2 | BZ36: 2 | CA36: 2 | CB36: 2 | CC36: 2 | CE36: =AZ36-AY36 -> 4.81195825 | CF36: 0 | CG36: 0 | CH36: 0 | CI36: 0 | CJ36: 0 | CK36: 0 | CL36: -3.64183061 | CM36: 0 | CN36: 0 | CO36: 0 | CP36: 0 | CQ36: 0 | CR36: 0 | CS36: 1.671481896
AU37: O | AV37: 8 | AW37: A | AX37: 1 | AY37: 1005.167026 | AZ37: 1005.167026 | BA37: 1005.167026 | BB37: 1005.167026 | BC37: 1005.167026 | BD37: 1005.167026 | BE37: 1005.167026 | BF37: 1005.167026 | BG37: 1005.167026 | BH37: 1005.167026 | BI37: 1001.525195 | BJ37: 1001.525195 | BK37: 1001.525195 | BL37: 1001.525195 | BM37: 1001.525195 | BO37: 6 | BP37: 6 | BQ37: 6 | BR37: 6 | BS37: 6 | BT37: 6 | BU37: 6 | BV37: 6 | BW37: 6 | BX37: 6 | BY37: 1 | BZ37: 1 | CA37: 1 | CB37: 1 | CC37: 1 | CE37: 0 | CF37: 0 | CG37: 0 | CH37: 0 | CI37: 0 | CJ37: 0 | CK37: 0 | CL37: 0 | CM37: 0 | CN37: -3.64183061 | CO37: 0 | CP37: 0 | CQ37: 0 | CR37: 0 | CS37: 0.9733201716
AU38: O | AV38: 8 | AW38: A | AX38: 2 | AY38: 993.0714062 | AZ38: 1001.525195 | BA38: 1001.525195 | BB38: 1001.525195 | BC38: 1001.525195 | BD38: 1005.167026 | BE38: 1005.167026 | BF38: 1005.167026 | BG38: 1005.167026 | BH38: 1005.167026 | BI38: 1005.167026 | BJ38: 1005.167026 | BK38: 1005.167026 | BL38: 1005.167026 | BM38: 1005.167026 | BO38: 1 | BP38: 2 | BQ38: 2 | BR38: 2 | BS38: 2 | BT38: 6 | BU38: 6 | BV38: 6 | BW38: 6 | BX38: 6 | BY38: 6 | BZ38: 6 | CA38: 6 | CB38: 6 | CC38: 6 | CE38: 8.453788859 | CF38: 0 | CG38: 0 | CH38: 0 | CI38: 3.64183061 | CJ38: 0 | CK38: 0 | CL38: 0 | CM38: 0 | CN38: 0 | CO38: 0 | CP38: 0 | CQ38: 0 | CR38: 0 | CS38: 2.39035224
AU39: O | AV39: 8 | AW39: A | AX39: 3 | AY39: 1005.167026 | AZ39: 1005.167026 | BA39: 1005.167026 | BB39: 1005.167026 | BC39: 1005.167026 | BD39: 1005.167026 | BE39: 1005.167026 | BF39: 1005.167026 | BG39: 1005.167026 | BH39: 1005.167026 | BI39: 1005.167026 | BJ39: 1005.167026 | BK39: 1005.167026 | BL39: 1005.167026 | BM39: 1005.167026 | BO39: 1 | BP39: 1 | BQ39: 1 | BR39: 1 | BS39: 1 | BT39: 1 | BU39: 1 | BV39: 1 | BW39: 1 | BX39: 1 | BY39: 1 | BZ39: 1 | CA39: 1 | CB39: 1 | CC39: 1 | CE39: 0 | CF39: 0 | CG39: 0 | CH39: 0 | CI39: 0 | CJ39: 0 | CK39: 0 | CL39: 0 | CM39: 0 | CN39: 0 | CO39: 0 | CP39: 0 | CQ39: 0 | CR39: 0 | CS39: 0
AU40: O | AV40: 8 | AW40: A | AX40: 4 | AY40: 1005.167026 | AZ40: 1005.167026 | BA40: 1005.167026 | BB40: 1005.167026 | BC40: 1005.167026 | BD40: 1005.167026 | BE40: 1005.167026 | BF40: 1005.167026 | BG40: 1005.167026 | BH40: 1005.167026 | BI40: 1005.167026 | BJ40: 1005.167026 | BK40: 1005.167026 | BL40: 1005.167026 | BM40: 1005.167026 | BO40: 1 | BP40: 1 | BQ40: 1 | BR40: 1 | BS40: 1 | BT40: 1 | BU40: 1 | BV40: 1 | BW40: 1 | BX40: 1 | BY40: 1 | BZ40: 1 | CA40: 1 | CB40: 1 | CC40: 1 | CE40: 0 | CF40: 0 | CG40: 0 | CH40: 0 | CI40: 0 | CJ40: 0 | CK40: 0 | CL40: 0 | CM40: 0 | CN40: 0 | CO40: 0 | CP40: 0 | CQ40: 0 | CR40: 0 | CS40: 0
AU41: O | AV41: 8 | AW41: A | AX41: 5 | AY41: 1005.167026 | AZ41: 1005.167026 | BA41: 1005.167026 | BB41: 1005.167026 | BC41: 1005.167026 | BD41: 1005.167026 | BE41: 1005.167026 | BF41: 1005.167026 | BG41: 1005.167026 | BH41: 1005.167026 | BI41: 1005.167026 | BJ41: 1005.167026 | BK41: 1005.167026 | BL41: 1005.167026 | BM41: 1005.167026 | BO41: 1 | BP41: 1 | BQ41: 1 | BR41: 1 | BS41: 1 | BT41: 1 | BU41: 1 | BV41: 1 | BW41: 1 | BX41: 1 | BY41: 1 | BZ41: 1 | CA41: 1 | CB41: 1 | CC41: 1 | CE41: 0 | CF41: 0 | CG41: 0 | CH41: 0 | CI41: 0 | CJ41: 0 | CK41: 0 | CL41: 0 | CM41: 0 | CN41: 0 | CO41: 0 | CP41: 0 | CQ41: 0 | CR41: 0 | CS41: 0
AU42: O | AV42: 9 | AW42: A | AX42: 1 | AY42: 1005.167026 | AZ42: 1005.167026 | BA42: 1005.167026 | BB42: 1005.167026 | BC42: 1005.167026 | BD42: 1005.167026 | BE42: 1005.167026 | BF42: 1005.167026 | BG42: 1005.167026 | BH42: 1005.167026 | BI42: 1005.167026 | BJ42: 1001.525195 | BK42: 1001.525195 | BL42: 1001.525195 | BM42: 1001.525195 | BO42: 5 | BP42: 5 | BQ42: 5 | BR42: 5 | BS42: 5 | BT42: 5 | BU42: 5 | BV42: 5 | BW42: 5 | BX42: 5 | BY42: 5 | BZ42: 1 | CA42: 1 | CB42: 1 | CC42: 1 | CE42: 0 | CF42: 0 | CG42: 0 | CH42: 0 | CI42: 0 | CJ42: 0 | CK42: 0 | CL42: 0 | CM42: 0 | CN42: 0 | CO42: -3.64183061 | CP42: 0 | CQ42: 0 | CR42: 0 | CS42: 0.9733201716
AU43: O | AV43: 9 | AW43: A | AX43: 2 | AY43: 988.2594479 | AZ43: 988.2594479 | BA43: 988.2594479 | BB43: 988.2594479 | BC43: 993.0714062 | BD43: 993.0714062 | BE43: 993.0714062 | BF43: 993.0714062 | BG43: 1001.525195 | BH43: 1005.167026 | BI43: 1005.167026 | BJ43: 1005.167026 | BK43: 1005.167026 | BL43: 1005.167026 | BM43: 1005.167026 | BO43: 1 | BP43: 1 | BQ43: 1 | BR43: 1 | BS43: 5 | BT43: 5 | BU43: 5 | BV43: 5 | BW43: 9 | BX43: 10 | BY43: 10 | BZ43: 10 | CA43: 10 | CB43: 10 | CC43: 10 | CE43: 0 | CF43: 0 | CG43: 0 | CH43: 4.81195825 | CI43: 0 | CJ43: 0 | CK43: 0 | CL43: 8.453788859 | CM43: 3.64183061 | CN43: 0 | CO43: 0 | CP43: 0 | CQ43: 0 | CR43: 0 | CS43: 2.593859692
AU44: O | AV44: 9 | AW44: A | AX44: 3 | AY44: 1005.167026 | AZ44: 1005.167026 | BA44: 1005.167026 | BB44: 1005.167026 | BC44: 1005.167026 | BD44: 1005.167026 | BE44: 1005.167026 | BF44: 1005.167026 | BG44: 1005.167026 | BH44: 1005.167026 | BI44: 1005.167026 | BJ44: 1005.167026 | BK44: 1005.167026 | BL44: 1005.167026 | BM44: 1000.355067 | BO44: 2 | BP44: 2 | BQ44: 2 | BR44: 2 | BS44: 2 | BT44: 2 | BU44: 2 | BV44: 2 | BW44: 2 | BX44: 2 | BY44: 2 | BZ44: 2 | CA44: 2 | CB44: 2 | CC44: 1 | CE44: 0 | CF44: 0 | CG44: 0 | CH44: 0 | CI44: 0 | CJ44: 0 | CK44: 0 | CL44: 0 | CM44: 0 | CN44: 0 | CO44: 0 | CP44: 0 | CQ44: 0 | CR44: -4.81195825 | CS44: 1.286049938
AU45: O | AV45: 9 | AW45: A | AX45: 4 | AY45: 1005.167026 | AZ45: 1005.167026 | BA45: 1005.167026 | BB45: 1005.167026 | BC45: 1005.167026 | BD45: 1005.167026 | BE45: 1005.167026 | BF45: 1005.167026 | BG45: 1005.167026 | BH45: 1005.167026 | BI45: 1005.167026 | BJ45: 1005.167026 | BK45: 1005.167026 | BL45: 1005.167026 | BM45: 1005.167026 | BO45: 1 | BP45: 1 | BQ45: 1 | BR45: 1 | BS45: 1 | BT45: 1 | BU45: 1 | BV45: 1 | BW45: 1 | BX45: 1 | BY45: 1 | BZ45: 1 | CA45: 1 | CB45: 1 | CC45: 1 | CE45: 0 | CF45: 0 | CG45: 0 | CH45: 0 | CI45: 0 | CJ45: 0 | CK45: 0 | CL45: 0 | CM45: 0 | CN45: 0 | CO45: 0 | CP45: 0 | CQ45: 0 | CR45: 0 | CS45: 0
AU46: O | AV46: 9 | AW46: A | AX46: 5 | AY46: 1005.167026 | AZ46: 1005.167026 | BA46: 1005.167026 | BB46: 1005.167026 | BC46: 1001.525195 | BD46: 1001.525195 | BE46: 1001.525195 | BF46: 1001.525195 | BG46: 1001.525195 | BH46: 1001.525195 | BI46: 1001.525195 | BJ46: 1001.525195 | BK46: 1001.525195 | BL46: 1001.525195 | BM46: 1001.525195 | BO46: 12 | BP46: 12 | BQ46: 12 | BR46: 12 | BS46: 1 | BT46: 1 | BU46: 1 | BV46: 1 | BW46: 1 | BX46: 1 | BY46: 1 | BZ46: 1 | CA46: 1 | CB46: 1 | CC46: 1 | CE46: 0 | CF46: 0 | CG46: 0 | CH46: -3.64183061 | CI46: 0 | CJ46: 0 | CK46: 0 | CL46: 0 | CM46: 0 | CN46: 0 | CO46: 0 | CP46: 0 | CQ46: 0 | CR46: 0 | CS46: 0.9733201716
AU47: O | AV47: 10 | AW47: A | AX47: 1 | AY47: 1005.167026 | AZ47: 1001.525195 | BA47: 1001.525195 | BB47: 1001.525195 | BC47: 1001.525195 | BD47: 993.0714062 | BE47: 993.0714062 | BF47: 993.0714062 | BG47: 993.0714062 | BH47: 993.0714062 | BI47: 993.0714062 | BJ47: 993.0714062 | BK47: 993.0714062 | BL47: 993.0714062 | BM47: 993.0714062 | BO47: 15 | BP47: 11 | BQ47: 11 | BR47: 11 | BS47: 11 | BT47: 1 | BU47: 1 | BV47: 1 | BW47: 1 | BX47: 1 | BY47: 1 | BZ47: 1 | CA47: 1 | CB47: 1 | CC47: 1 | CE47: -3.64183061 | CF47: 0 | CG47: 0 | CH47: 0 | CI47: -8.453788859 | CJ47: 0 | CK47: 0 | CL47: 0 | CM47: 0 | CN47: 0 | CO47: 0 | CP47: 0 | CQ47: 0 | CR47: 0 | CS47: 2.39035224
AU48: O | AV48: 10 | AW48: A | AX48: 2 | AY48: 993.0714062 | AZ48: 1001.525195 | BA48: 1001.525195 | BB48: 1001.525195 | BC48: 1005.167026 | BD48: 1005.167026 | BE48: 1005.167026 | BF48: 1005.167026 | BG48: 1005.167026 | BH48: 1005.167026 | BI48: 1005.167026 | BJ48: 1005.167026 | BK48: 1005.167026 | BL48: 1005.167026 | BM48: 1005.167026 | BO48: 1 | BP48: 2 | BQ48: 2 | BR48: 2 | BS48: 5 | BT48: 5 | BU48: 5 | BV48: 5 | BW48: 5 | BX48: 5 | BY48: 5 | BZ48: 5 | CA48: 5 | CB48: 5 | CC48: 5 | CE48: 8.453788859 | CF48: 0 | CG48: 0 | CH48: 3.64183061 | CI48: 0 | CJ48: 0 | CK48: 0 | CL48: 0 | CM48: 0 | CN48: 0 | CO48: 0 | CP48: 0 | CQ48: 0 | CR48: 0 | CS48: 2.39035224
AU49: O | AV49: 10 | AW49: A | AX49: 3 | AY49: 1001.525195 | AZ49: 1001.525195 | BA49: 1001.525195 | BB49: 1001.525195 | BC49: 1001.525195 | BD49: 1001.525195 | BE49: 1001.525195 | BF49: 1001.525195 | BG49: 1001.525195 | BH49: 1001.525195 | BI49: 1001.525195 | BJ49: 1001.525195 | BK49: 1001.525195 | BL49: 1001.525195 | BM49: 1001.525195 | BO49: 1 | BP49: 1 | BQ49: 1 | BR49: 1 | BS49: 1 | BT49: 1 | BU49: 1 | BV49: 1 | BW49: 1 | BX49: 1 | BY49: 1 | BZ49: 1 | CA49: 1 | CB49: 1 | CC49: 1 | CE49: 0 | CF49: 0 | CG49: 0 | CH49: 0 | CI49: 0 | CJ49: 0 | CK49: 0 | CL49: 0 | CM49: 0 | CN49: 0 | CO49: 0 | CP49: 0 | CQ49: 0 | CR49: 0 | CS49: 0
AU50: O | AV50: 10 | AW50: A | AX50: 4 | AY50: 1001.525195 | AZ50: 1001.525195 | BA50: 1001.525195 | BB50: 1001.525195 | BC50: 1001.525195 | BD50: 1001.525195 | BE50: 1001.525195 | BF50: 1001.525195 | BG50: 1001.525195 | BH50: 1001.525195 | BI50: 1001.525195 | BJ50: 1001.525195 | BK50: 1001.525195 | BL50: 1001.525195 | BM50: 1001.525195 | BO50: 1 | BP50: 1 | BQ50: 1 | BR50: 1 | BS50: 1 | BT50: 1 | BU50: 1 | BV50: 1 | BW50: 1 | BX50: 1 | BY50: 1 | BZ50: 1 | CA50: 1 | CB50: 1 | CC50: 1 | CE50: 0 | CF50: 0 | CG50: 0 | CH50: 0 | CI50: 0 | CJ50: 0 | CK50: 0 | CL50: 0 | CM50: 0 | CN50: 0 | CO50: 0 | CP50: 0 | CQ50: 0 | CR50: 0 | CS50: 0
AU51: O | AV51: 10 | AW51: A | AX51: 5 | AY51: 1000.355067 | AZ51: 1000.355067 | BA51: 1000.355067 | BB51: 1005.167026 | BC51: 1005.167026 | BD51: 1005.167026 | BE51: 1001.525195 | BF51: 1001.525195 | BG51: 1001.525195 | BH51: 1001.525195 | BI51: 1001.525195 | BJ51: 1001.525195 | BK51: 1001.525195 | BL51: 1001.525195 | BM51: 1001.525195 | BO51: =RANK(AY51,$AY51:$BM51, 1) -> 1 | BP51: 1 | BQ51: 1 | BR51: 13 | BS51: 13 | BT51: 13 | BU51: 4 | BV51: 4 | BW51: 4 | BX51: 4 | BY51: 4 | BZ51: 4 | CA51: 4 | CB51: 4 | CC51: 4 | CE51: 0 | CF51: 0 | CG51: 4.81195825 | CH51: 0 | CI51: 0 | CJ51: -3.64183061 | CK51: 0 | CL51: 0 | CM51: 0 | CN51: 0 | CO51: 0 | CP51: 0 | CQ51: 0 | CR51: 0 | CS51: 1.671481896
AU52: O | AV52: 11 | AW52: A | AX52: 1 | AY52: 1005.167026 | AZ52: 1005.167026 | BA52: 1005.167026 | BB52: 1005.167026 | BC52: 1005.167026 | BD52: 1005.167026 | BE52: 1005.167026 | BF52: 1005.167026 | BG52: 1005.167026 | BH52: 1001.525195 | BI52: 1001.525195 | BJ52: 1001.525195 | BK52: 1001.525195 | BL52: 1001.525195 | BM52: 1001.525195 | BO52: 7 | BP52: 7 | BQ52: 7 | BR52: 7 | BS52: 7 | BT52: 7 | BU52: 7 | BV52: 7 | BW52: 7 | BX52: 1 | BY52: 1 | BZ52: 1 | CA52: 1 | CB52: 1 | CC52: 1 | CE52: 0 | CF52: 0 | CG52: 0 | CH52: 0 | CI52: 0 | CJ52: 0 | CK52: 0 | CL52: 0 | CM52: -3.64183061 | CN52: 0 | CO52: 0 | CP52: 0 | CQ52: 0 | CR52: 0 | CS52: 0.9733201716
AU53: O | AV53: 11 | AW53: A | AX53: 2 | AY53: 997.8950146 | AZ53: 993.0714062 | BA53: 993.0714062 | BB53: 993.0714062 | BC53: 993.0714062 | BD53: 993.0714062 | BE53: 993.0714062 | BF53: 993.0714062 | BG53: 993.0714062 | BH53: 1001.525195 | BI53: 1001.525195 | BJ53: 1001.525195 | BK53: 1001.525195 | BL53: 1001.525195 | BM53: 1001.525195 | BO53: 9 | BP53: 1 | BQ53: 1 | BR53: 1 | BS53: 1 | BT53: 1 | BU53: 1 | BV53: 1 | BW53: 1 | BX53: 10 | BY53: 10 | BZ53: 10 | CA53: 10 | CB53: 10 | CC53: 10 | CE53: -4.823608448 | CF53: 0 | CG53: 0 | CH53: 0 | CI53: 0 | CJ53: 0 | CK53: 0 | CL53: 0 | CM53: 8.453788859 | CN53: 0 | CO53: 0 | CP53: 0 | CQ53: 0 | CR53: 0 | CS53: 2.686038602
AU54: O | AV54: 11 | AW54: A | AX54: 3 | AY54: 1001.525195 | AZ54: 1001.525195 | BA54: 1001.525195 | BB54: 1001.525195 | BC54: 1001.525195 | BD54: 1001.525195 | BE54: 1001.525195 | BF54: 1001.525195 | BG54: 1001.525195 | BH54: 1001.525195 | BI54: 1001.525195 | BJ54: 1001.525195 | BK54: 1001.525195 | BL54: 1001.525195 | BM54: 1001.525195 | BO54: 1 | BP54: 1 | BQ54: 1 | BR54: 1 | BS54: 1 | BT54: 1 | BU54: 1 | BV54: 1 | BW54: 1 | BX54: 1 | BY54: 1 | BZ54: 1 | CA54: 1 | CB54: 1 | CC54: 1 | CE54: 0 | CF54: 0 | CG54: 0 | CH54: 0 | CI54: 0 | CJ54: 0 | CK54: 0 | CL54: 0 | CM54: 0 | CN54: 0 | CO54: 0 | CP54: 0 | CQ54: 0 | CR54: 0 | CS54: 0
AU55: O | AV55: 11 | AW55: A | AX55: 4 | AY55: 1001.525195 | AZ55: 1001.525195 | BA55: 1001.525195 | BB55: 1001.525195 | BC55: 1001.525195 | BD55: 1001.525195 | BE55: 1001.525195 | BF55: 1001.525195 | BG55: 1001.525195 | BH55: 1001.525195 | BI55: 1001.525195 | BJ55: 1001.525195 | BK55: 1001.525195 | BL55: 1001.525195 | BM55: 1001.525195 | BO55: 1 | BP55: 1 | BQ55: 1 | BR55: 1 | BS55: 1 | BT55: 1 | BU55: 1 | BV55: 1 | BW55: 1 | BX55: 1 | BY55: 1 | BZ55: 1 | CA55: 1 | CB55: 1 | CC55: 1 | CE55: 0 | CF55: 0 | CG55: 0 | CH55: 0 | CI55: 0 | CJ55: 0 | CK55: 0 | CL55: 0 | CM55: 0 | CN55: 0 | CO55: 0 | CP55: 0 | CQ55: 0 | CR55: 0 | CS55: 0
AU56: O | AV56: 11 | AW56: A | AX56: 5 | AY56: 1001.525195 | AZ56: 1001.525195 | BA56: 1001.525195 | BB56: 1001.525195 | BC56: 1001.525195 | BD56: 1001.525195 | BE56: 1001.525195 | BF56: 1001.525195 | BG56: 1001.525195 | BH56: 1001.525195 | BI56: 1001.525195 | BJ56: 1001.525195 | BK56: 1001.525195 | BL56: 1001.525195 | BM56: 1001.525195 | BO56: 1 | BP56: 1 | BQ56: 1 | BR56: 1 | BS56: 1 | BT56: 1 | BU56: 1 | BV56: 1 | BW56: 1 | BX56: 1 | BY56: 1 | BZ56: 1 | CA56: 1 | CB56: 1 | CC56: 1 | CE56: 0 | CF56: 0 | CG56: 0 | CH56: 0 | CI56: 0 | CJ56: =BE56-BD56 -> 0 | CK56: 0 | CL56: 0 | CM56: 0 | CN56: 0 | CO56: 0 | CP56: 0 | CQ56: 0 | CR56: 0 | CS56: 0
AU57: O | AV57: 12 | AW57: A | AX57: 1 | AY57: 1005.167026 | AZ57: 1005.167026 | BA57: 1001.525195 | BB57: 1001.525195 | BC57: 1001.525195 | BD57: 1001.525195 | BE57: 1001.525195 | BF57: 1001.525195 | BG57: 1001.525195 | BH57: 993.0714062 | BI57: 993.0714062 | BJ57: 993.0714062 | BK57: 993.0714062 | BL57: 993.0714062 | BM57: 993.0714062 | BO57: 14 | BP57: 14 | BQ57: 7 | BR57: 7 | BS57: 7 | BT57: 7 | BU57: 7 | BV57: 7 | BW57: 7 | BX57: 1 | BY57: 1 | BZ57: 1 | CA57: 1 | CB57: 1 | CC57: 1 | CE57: 0 | CF57: -3.64183061 | CG57: 0 | CH57: 0 | CI57: 0 | CJ57: 0 | CK57: 0 | CL57: 0 | CM57: -8.453788859 | CN57: 0 | CO57: 0 | CP57: 0 | CQ57: 0 | CR57: 0 | CS57: 2.39035224
AU58: O | AV58: 12 | AW58: A | AX58: 2 | AY58: 993.0714062 | AZ58: 1001.525195 | BA58: 1001.525195 | BB58: 1001.525195 | BC58: 1001.525195 | BD58: 1001.525195 | BE58: 1001.525195 | BF58: 1001.525195 | BG58: 1005.167026 | BH58: 1005.167026 | BI58: 1005.167026 | BJ58: 1005.167026 | BK58: 1005.167026 | BL58: 1005.167026 | BM58: 1005.167026 | BO58: 1 | BP58: 2 | BQ58: 2 | BR58: 2 | BS58: 2 | BT58: 2 | BU58: 2 | BV58: 2 | BW58: 9 | BX58: 9 | BY58: 9 | BZ58: 9 | CA58: 9 | CB58: 9 | CC58: 9 | CE58: 8.453788859 | CF58: 0 | CG58: 0 | CH58: 0 | CI58: 0 | CJ58: 0 | CK58: 0 | CL58: 3.64183061 | CM58: 0 | CN58: 0 | CO58: 0 | CP58: 0 | CQ58: 0 | CR58: 0 | CS58: 2.39035224
AU59: O | AV59: 12 | AW59: A | AX59: 3 | AY59: 1001.525195 | AZ59: 1001.525195 | BA59: 1001.525195 | BB59: 1001.525195 | BC59: 1001.525195 | BD59: 1001.525195 | BE59: 1001.525195 | BF59: 1001.525195 | BG59: 1001.525195 | BH59: 1001.525195 | BI59: 1001.525195 | BJ59: 1001.525195 | BK59: 1001.525195 | BL59: 993.0714062 | BM59: 993.0714062 | BO59: 3 | BP59: 3 | BQ59: 3 | BR59: 3 | BS59: 3 | BT59: 3 | BU59: 3 | BV59: 3 | BW59: 3 | BX59: 3 | BY59: 3 | BZ59: 3 | CA59: 3 | CB59: 1 | CC59: 1 | CE59: 0 | CF59: 0 | CG59: 0 | CH59: 0 | CI59: 0 | CJ59: 0 | CK59: 0 | CL59: 0 | CM59: 0 | CN59: 0 | CO59: 0 | CP59: 0 | CQ59: -8.453788859 | CR59: 0 | CS59: 2.259370109
AU60: O | AV60: 12 | AW60: A | AX60: 4 | AY60: 1001.525195 | AZ60: 1001.525195 | BA60: 1001.525195 | BB60: 1001.525195 | BC60: 1001.525195 | BD60: 1001.525195 | BE60: 1001.525195 | BF60: 1001.525195 | BG60: 1001.525195 | BH60: 1001.525195 | BI60: 1001.525195 | BJ60: 1001.525195 | BK60: 1001.525195 | BL60: 1001.525195 | BM60: 1001.525195 | BO60: 1 | BP60: 1 | BQ60: 1 | BR60: 1 | BS60: 1 | BT60: 1 | BU60: 1 | BV60: 1 | BW60: 1 | BX60: 1 | BY60: 1 | BZ60: 1 | CA60: 1 | CB60: 1 | CC60: 1 | CE60: 0 | CF60: 0 | CG60: 0 | CH60: 0 | CI60: 0 | CJ60: 0 | CK60: 0 | CL60: 0 | CM60: 0 | CN60: 0 | CO60: 0 | CP60: 0 | CQ60: 0 | CR60: 0 | CS60: 0
AU61: O | AV61: 12 | AW61: A | AX61: 5 | AY61: 1005.167026 | AZ61: 1001.525195 | BA61: 1001.525195 | BB61: 1001.525195 | BC61: 1001.525195 | BD61: 1001.525195 | BE61: 1001.525195 | BF61: 1001.525195 | BG61: 1001.525195 | BH61: 1001.525195 | BI61: 1001.525195 | BJ61: 1001.525195 | BK61: 1001.525195 | BL61: 1001.525195 | BM61: 1001.525195 | BO61: 15 | BP61: 1 | BQ61: 1 | BR61: 1 | BS61: 1 | BT61: 1 | BU61: 1 | BV61: 1 | BW61: 1 | BX61: 1 | BY61: 1 | BZ61: 1 | CA61: 1 | CB61: 1 | CC61: 1 | CE61: -3.64183061 | CF61: 0 | CG61: 0 | CH61: 0 | CI61: 0 | CJ61: 0 | CK61: 0 | CL61: 0 | CM61: 0 | CN61: 0 | CO61: 0 | CP61: 0 | CQ61: 0 | CR61: 0 | CS61: 0.9733201716
AU62: O | AV62: 13 | AW62: A | AX62: 1 | AY62: 991.9012785 | AZ62: 988.2594479 | BA62: 988.2594479 | BB62: 988.2594479 | BC62: 988.2594479 | BD62: 988.2594479 | BE62: 988.2594479 | BF62: 988.2594479 | BG62: 988.2594479 | BH62: 988.2594479 | BI62: 988.2594479 | BJ62: 988.2594479 | BK62: 988.2594479 | BL62: 988.2594479 | BM62: 988.2594479 | BO62: 15 | BP62: 1 | BQ62: 1 | BR62: 1 | BS62: 1 | BT62: 1 | BU62: 1 | BV62: 1 | BW62: 1 | BX62: 1 | BY62: 1 | BZ62: 1 | CA62: 1 | CB62: 1 | CC62: 1 | CE62: -3.64183061 | CF62: 0 | CG62: 0 | CH62: 0 | CI62: 0 | CJ62: 0 | CK62: 0 | CL62: 0 | CM62: 0 | CN62: 0 | CO62: 0 | CP62: 0 | CQ62: 0 | CR62: 0 | CS62: 0.9733201716
AU63: O | AV63: 13 | AW63: A | AX63: 2 | AY63: 988.2594479 | AZ63: 988.2594479 | BA63: 988.2594479 | BB63: 988.2594479 | BC63: 988.2594479 | BD63: 993.0714062 | BE63: 993.0714062 | BF63: 1005.167026 | BG63: 1005.167026 | BH63: 1005.167026 | BI63: 1005.167026 | BJ63: 1005.167026 | BK63: 1005.167026 | BL63: 1005.167026 | BM63: 1005.167026 | BO63: 1 | BP63: 1 | BQ63: 1 | BR63: 1 | BS63: 1 | BT63: 6 | BU63: 6 | BV63: 8 | BW63: 8 | BX63: 8 | BY63: 8 | BZ63: 8 | CA63: 8 | CB63: 8 | CC63: 8 | CE63: 0 | CF63: 0 | CG63: 0 | CH63: 0 | CI63: 4.81195825 | CJ63: 0 | CK63: 12.09561947 | CL63: 0 | CM63: 0 | CN63: 0 | CO63: 0 | CP63: 0 | CQ63: 0 | CR63: 0 | CS63: 3.385943107
AU64: O | AV64: 13 | AW64: A | AX64: 3 | AY64: 997.8950146 | AZ64: 993.0714062 | BA64: 993.0714062 | BB64: 993.0714062 | BC64: 993.0714062 | BD64: 993.0714062 | BE64: 993.0714062 | BF64: 993.0714062 | BG64: 993.0714062 | BH64: 993.0714062 | BI64: 993.0714062 | BJ64: 988.2594479 | BK64: 988.2594479 | BL64: 988.2594479 | BM64: 988.2594479 | BO64: 15 | BP64: 5 | BQ64: 5 | BR64: 5 | BS64: 5 | BT64: 5 | BU64: 5 | BV64: 5 | BW64: 5 | BX64: 5 | BY64: 5 | BZ64: 1 | CA64: 1 | CB64: 1 | CC64: 1 | CE64: -4.823608448 | CF64: 0 | CG64: 0 | CH64: 0 | CI64: 0 | CJ64: 0 | CK64: 0 | CL64: 0 | CM64: 0 | CN64: 0 | CO64: -4.81195825 | CP64: 0 | CQ64: 0 | CR64: 0 | CS64: 1.749514569
AU65: O | AV65: 13 | AW65: A | AX65: 4 | AY65: 988.2594479 | AZ65: 988.2594479 | BA65: 988.2594479 | BB65: 988.2594479 | BC65: 988.2594479 | BD65: 988.2594479 | BE65: 988.2594479 | BF65: 988.2594479 | BG65: 988.2594479 | BH65: 988.2594479 | BI65: 988.2594479 | BJ65: 988.2594479 | BK65: 988.2594479 | BL65: 988.2594479 | BM65: 988.2594479 | BO65: 1 | BP65: 1 | BQ65: 1 | BR65: 1 | BS65: 1 | BT65: 1 | BU65: 1 | BV65: 1 | BW65: 1 | BX65: 1 | BY65: 1 | BZ65: 1 | CA65: 1 | CB65: 1 | CC65: 1 | CE65: 0 | CF65: 0 | CG65: 0 | CH65: 0 | CI65: 0 | CJ65: 0 | CK65: 0 | CL65: 0 | CM65: 0 | CN65: 0 | CO65: 0 | CP65: 0 | CQ65: 0 | CR65: 0 | CS65: 0
AU66: O | AV66: 13 | AW66: A | AX66: 5 | AY66: 988.2594479 | AZ66: 988.2594479 | BA66: 988.2594479 | BB66: 988.2594479 | BC66: 993.0714062 | BD66: 993.0714062 | BE66: 993.0714062 | BF66: 993.0714062 | BG66: 993.0714062 | BH66: 993.0714062 | BI66: 993.0714062 | BJ66: 993.0714062 | BK66: 993.0714062 | BL66: 993.0714062 | BM66: 993.0714062 | BO66: 1 | BP66: 1 | BQ66: 1 | BR66: 1 | BS66: 5 | BT66: 5 | BU66: 5 | BV66: 5 | BW66: 5 | BX66: 5 | BY66: 5 | BZ66: 5 | CA66: 5 | CB66: 5 | CC66: 5 | CE66: 0 | CF66: 0 | CG66: 0 | CH66: 4.81195825 | CI66: 0 | CJ66: 0 | CK66: 0 | CL66: 0 | CM66: 0 | CN66: 0 | CO66: 0 | CP66: 0 | CQ66: 0 | CR66: 0 | CS66: 1.286049938
AU67: O | AV67: 14 | AW67: A | AX67: 1 | AY67: 1005.167026 | AZ67: 1001.525195 | BA67: 1001.525195 | BB67: 1001.525195 | BC67: 1001.525195 | BD67: 1001.525195 | BE67: 1001.525195 | BF67: 1001.525195 | BG67: 1001.525195 | BH67: 1001.525195 | BI67: 1001.525195 | BJ67: 1001.525195 | BK67: 1001.525195 | BL67: 1001.525195 | BM67: 993.0714062 | BO67: 15 | BP67: 2 | BQ67: 2 | BR67: 2 | BS67: 2 | BT67: 2 | BU67: 2 | BV67: 2 | BW67: 2 | BX67: 2 | BY67: 2 | BZ67: 2 | CA67: 2 | CB67: 2 | CC67: 1 | CE67: -3.64183061 | CF67: 0 | CG67: 0 | CH67: 0 | CI67: 0 | CJ67: 0 | CK67: 0 | CL67: 0 | CM67: 0 | CN67: 0 | CO67: 0 | CP67: 0 | CQ67: 0 | CR67: -8.453788859 | CS67: =STDEV(CE67:CR67) -> 2.39035224
AU68: O | AV68: 14 | AW68: A | AX68: 2 | AY68: 993.0714062 | AZ68: 993.0714062 | BA68: 993.0714062 | BB68: 993.0714062 | BC68: 1001.525195 | BD68: 1001.525195 | BE68: 1001.525195 | BF68: 1001.525195 | BG68: 1001.525195 | BH68: 1001.525195 | BI68: 1001.525195 | BJ68: 1001.525195 | BK68: 1001.525195 | BL68: 1001.525195 | BM68: 1001.525195 | BO68: =RANK(AY68,$AY68:$BM68, 1) -> 1 | BP68: 1 | BQ68: 1 | BR68: 1 | BS68: 5 | BT68: 5 | BU68: 5 | BV68: 5 | BW68: 5 | BX68: 5 | BY68: 5 | BZ68: 5 | CA68: 5 | CB68: 5 | CC68: 5 | CE68: 0 | CF68: 0 | CG68: 0 | CH68: 8.453788859 | CI68: 0 | CJ68: 0 | CK68: 0 | CL68: 0 | CM68: 0 | CN68: 0 | CO68: 0 | CP68: 0 | CQ68: 0 | CR68: 0 | CS68: 2.259370109
AU69: O | AV69: 14 | AW69: A | AX69: 3 | AY69: 1001.525195 | AZ69: 1001.525195 | BA69: 1001.525195 | BB69: 1001.525195 | BC69: 1001.525195 | BD69: 1001.525195 | BE69: 1001.525195 | BF69: 1001.525195 | BG69: 1001.525195 | BH69: 1001.525195 | BI69: 1001.525195 | BJ69: 1001.525195 | BK69: 1001.525195 | BL69: 1001.525195 | BM69: 1001.525195 | BO69: 1 | BP69: 1 | BQ69: 1 | BR69: 1 | BS69: 1 | BT69: 1 | BU69: 1 | BV69: 1 | BW69: 1 | BX69: 1 | BY69: 1 | BZ69: 1 | CA69: 1 | CB69: 1 | CC69: 1 | CE69: 0 | CF69: 0 | CG69: 0 | CH69: 0 | CI69: 0 | CJ69: 0 | CK69: 0 | CL69: 0 | CM69: 0 | CN69: 0 | CO69: 0 | CP69: 0 | CQ69: 0 | CR69: 0 | CS69: 0
AU70: O | AV70: 14 | AW70: A | AX70: 4 | AY70: 1001.525195 | AZ70: 1001.525195 | BA70: 1001.525195 | BB70: 1001.525195 | BC70: 1001.525195 | BD70: 1001.525195 | BE70: 1001.525195 | BF70: 1001.525195 | BG70: 1001.525195 | BH70: 1001.525195 | BI70: 1001.525195 | BJ70: 1001.525195 | BK70: 1001.525195 | BL70: 1001.525195 | BM70: 1001.525195 | BO70: 1 | BP70: 1 | BQ70: 1 | BR70: 1 | BS70: 1 | BT70: 1 | BU70: 1 | BV70: 1 | BW70: 1 | BX70: 1 | BY70: 1 | BZ70: 1 | CA70: 1 | CB70: 1 | CC70: 1 | CE70: 0 | CF70: 0 | CG70: 0 | CH70: 0 | CI70: 0 | CJ70: 0 | CK70: 0 | CL70: 0 | CM70: 0 | CN70: 0 | CO70: 0 | CP70: 0 | CQ70: 0 | CR70: 0 | CS70: 0
AU71: O | AV71: 14 | AW71: A | AX71: 5 | AY71: 1001.525195 | AZ71: 1001.525195 | BA71: 1001.525195 | BB71: 1001.525195 | BC71: 1001.525195 | BD71: 1001.525195 | BE71: 1001.525195 | BF71: 1001.525195 | BG71: 1001.525195 | BH71: 1001.525195 | BI71: 1001.525195 | BJ71: 1001.525195 | BK71: 1001.525195 | BL71: 1001.525195 | BM71: 1001.525195 | BO71: 1 | BP71: 1 | BQ71: 1 | BR71: 1 | BS71: 1 | BT71: 1 | BU71: 1 | BV71: 1 | BW71: 1 | BX71: 1 | BY71: 1 | BZ71: 1 | CA71: 1 | CB71: 1 | CC71: 1 | CE71: 0 | CF71: 0 | CG71: 0 | CH71: 0 | CI71: 0 | CJ71: 0 | CK71: 0 | CL71: 0 | CM71: 0 | CN71: 0 | CO71: 0 | CP71: 0 | CQ71: 0 | CR71: 0 | CS71: 0
AU72: O | AV72: 15 | AW72: A | AX72: 1 | AY72: 1001.525195 | AZ72: 1001.525195 | BA72: 993.0714062 | BB72: 993.0714062 | BC72: 993.0714062 | BD72: 993.0714062 | BE72: 993.0714062 | BF72: 993.0714062 | BG72: 993.0714062 | BH72: 993.0714062 | BI72: 993.0714062 | BJ72: 993.0714062 | BK72: 993.0714062 | BL72: 993.0714062 | BM72: 993.0714062 | BO72: 14 | BP72: 14 | BQ72: 1 | BR72: 1 | BS72: 1 | BT72: 1 | BU72: 1 | BV72: 1 | BW72: 1 | BX72: 1 | BY72: 1 | BZ72: 1 | CA72: 1 | CB72: 1 | CC72: 1 | CE72: 0 | CF72: -8.453788859 | CG72: 0 | CH72: 0 | CI72: 0 | CJ72: 0 | CK72: 0 | CL72: 0 | CM72: 0 | CN72: 0 | CO72: 0 | CP72: 0 | CQ72: 0 | CR72: 0 | CS72: 2.259370109
AU73: O | AV73: 15 | AW73: A | AX73: 2 | AY73: 993.0714062 | AZ73: 993.0714062 | BA73: 993.0714062 | BB73: 993.0714062 | BC73: 993.0714062 | BD73: 993.0714062 | BE73: 1001.525195 | BF73: 1001.525195 | BG73: 1001.525195 | BH73: 1001.525195 | BI73: 1001.525195 | BJ73: 1001.525195 | BK73: 1001.525195 | BL73: 1001.525195 | BM73: 1001.525195 | BO73: 1 | BP73: 1 | BQ73: 1 | BR73: 1 | BS73: 1 | BT73: 1 | BU73: 7 | BV73: 7 | BW73: 7 | BX73: 7 | BY73: 7 | BZ73: 7 | CA73: 7 | CB73: 7 | CC73: 7 | CE73: 0 | CF73: 0 | CG73: 0 | CH73: 0 | CI73: 0 | CJ73: 8.453788859 | CK73: 0 | CL73: 0 | CM73: 0 | CN73: 0 | CO73: 0 | CP73: 0 | CQ73: 0 | CR73: 0 | CS73: 2.259370109
AU74: O | AV74: 15 | AW74: A | AX74: 3 | AY74: 997.8950146 | AZ74: 997.8950146 | BA74: 997.8950146 | BB74: 993.0714062 | BC74: 993.0714062 | BD74: 993.0714062 | BE74: 993.0714062 | BF74: 993.0714062 | BG74: 993.0714062 | BH74: 993.0714062 | BI74: 993.0714062 | BJ74: 993.0714062 | BK74: 993.0714062 | BL74: 993.0714062 | BM74: 993.0714062 | BO74: 13 | BP74: 13 | BQ74: 13 | BR74: 1 | BS74: 1 | BT74: 1 | BU74: 1 | BV74: 1 | BW74: 1 | BX74: 1 | BY74: 1 | BZ74: 1 | CA74: 1 | CB74: 1 | CC74: 1 | CE74: 0 | CF74: 0 | CG74: -4.823608448 | CH74: 0 | CI74: 0 | CJ74: 0 | CK74: 0 | CL74: 0 | CM74: 0 | CN74: 0 | CO74: 0 | CP74: 0 | CQ74: 0 | CR74: 0 | CS74: 1.289163584
AU75: O | AV75: 15 | AW75: A | AX75: 4 | AY75: 993.0714062 | AZ75: 993.0714062 | BA75: 993.0714062 | BB75: 993.0714062 | BC75: 993.0714062 | BD75: 993.0714062 | BE75: 993.0714062 | BF75: 993.0714062 | BG75: 993.0714062 | BH75: 993.0714062 | BI75: 993.0714062 | BJ75: 993.0714062 | BK75: 993.0714062 | BL75: 993.0714062 | BM75: 993.0714062 | BO75: 1 | BP75: 1 | BQ75: 1 | BR75: 1 | BS75: 1 | BT75: 1 | BU75: 1 | BV75: 1 | BW75: 1 | BX75: 1 | BY75: 1 | BZ75: 1 | CA75: 1 | CB75: 1 | CC75: 1 | CE75: 0 | CF75: 0 | CG75: 0 | CH75: 0 | CI75: 0 | CJ75: 0 | CK75: 0 | CL75: 0 | CM75: 0 | CN75: 0 | CO75: 0 | CP75: 0 | CQ75: 0 | CR75: 0 | CS75: 0
AU76: O | AV76: 15 | AW76: A | AX76: 5 | AY76: 988.2594479 | AZ76: 988.2594479 | BA76: 988.2594479 | BB76: 993.0714062 | BC76: 993.0714062 | BD76: 993.0714062 | BE76: 993.0714062 | BF76: 993.0714062 | BG76: 993.0714062 | BH76: 993.0714062 | BI76: 993.0714062 | BJ76: 993.0714062 | BK76: 993.0714062 | BL76: 993.0714062 | BM76: 993.0714062 | BO76: 1 | BP76: 1 | BQ76: 1 | BR76: 4 | BS76: 4 | BT76: 4 | BU76: 4 | BV76: 4 | BW76: 4 | BX76: 4 | BY76: 4 | BZ76: 4 | CA76: 4 | CB76: 4 | CC76: 4 | CE76: 0 | CF76: 0 | CG76: 4.81195825 | CH76: 0 | CI76: 0 | CJ76: 0 | CK76: 0 | CL76: 0 | CM76: 0 | CN76: 0 | CO76: 0 | CP76: 0 | CQ76: 0 | CR76: 0 | CS76: 1.286049938
BO77: =AVERAGE(BO2:BO76) -> 4.373333333 | BP77: =AVERAGE(BP2:BP76) -> 3.2 | BQ77: 2.773333333 | BR77: 2.973333333 | BS77: 3.186666667 | BT77: 3.173333333 | BU77: 3 | BV77: 2.733333333 | BW77: 2.866666667 | BX77: 2.76 | BY77: 2.693333333 | BZ77: 2.586666667 | CA77: 2.666666667 | CB77: 2.96 | CC77: 3.106666667
BO78: =STDEV(BO2:BO76) -> 5.301130255 | BP78: =STDEV(BP2:BP76) -> 3.955837288 | BQ78: 3.12173433 | BR78: 3.324655371 | BS78: 3.282604986 | BT78: 3.185157017 | BU78: 2.736144456 | BV78: 2.543318397 | BW78: 2.632095729 | BX78: 2.680459823 | BY78: 2.660894654 | BZ78: 2.64622798 | CA78: 2.905415881 | CB78: 3.438415726 | CC78: 3.718374148

Sheet Munka1
A1: ='nn - ranked data - new (37)'!I3 -> 6 | B1: 8 | C1: 4 | D1: 3 | E1: 13 | F1: 1000
A2: 12 | B2: 8 | C2: 1 | D2: 8 | E2: 15 | F2: 1000
A3: 4 | B3: 5 | C3: 10 | D3: 4 | E3: 13 | F3: 1000
A4: 13 | B4: 8 | C4: 15 | D4: 2 | E4: 8 | F4: 1000
A5: 7 | B5: 8 | C5: 10 | D5: 5 | E5: 2 | F5: 1000 | I5: Azonos�t�: | J5: 3008349 | K5: Objektumok: | L5: 15 | M5: Attrib�tumok: | N5: 5 | O5: Lepcs�k: | P5: 15 | Q5: Eltol�s: | R5: 0 | S5: Le�r�s: | T5: COCO Y0: 3008349
A6: 15 | B6: 3 | C6: 1 | D6: 1 | E6: 12 | F6: 1000
A7: 1 | B7: 5 | C7: 8 | D7: 14 | E7: 8 | F7: 1000 | I7: Rangsor | J7: X(A1) | K7: X(A2) | L7: X(A3) | M7: X(A4) | N7: X(A5) | O7: Y(A6)
A8: 3 | B8: 15 | C8: 3 | D8: 6 | E8: 4 | F8: 1000 | I8: O1 | J8: 6 | K8: 8 | L8: 4 | M8: 3 | N8: 13 | O8: 1000
A9: 9 | B9: 13 | C9: 9 | D9: 7 | E9: 1 | F9: 1000 | I9: O2 | J9: 12 | K9: 8 | L9: 1 | M9: 8 | N9: 15 | O9: 1000
A10: 2 | B10: 4 | C10: 13 | D10: 15 | E10: 7 | F10: 1000 | I10: O3 | J10: 4 | K10: 5 | L10: 10 | M10: 4 | N10: 13 | O10: 1000
A11: 14 | B11: 14 | C11: 6 | D11: 8 | E11: 5 | F11: 1000 | I11: O4 | J11: 13 | K11: 8 | L11: 15 | M11: 2 | N11: 8 | O11: 1000
A12: 5 | B12: 5 | C12: 4 | D12: 12 | E12: 5 | F12: 1000 | I12: O5 | J12: 7 | K12: 8 | L12: 10 | M12: 5 | N12: 2 | O12: 1000
A13: 7 | B13: 1 | C13: 14 | D13: 13 | E13: 3 | F13: 1000 | I13: O6 | J13: 15 | K13: 3 | L13: 1 | M13: 1 | N13: 12 | O13: 1000
A14: 9 | B14: 8 | C14: 7 | D14: 11 | E14: 11 | F14: 1000 | I14: O7 | J14: 1 | K14: 5 | L14: 8 | M14: 14 | N14: 8 | O14: 1000
A15: 9 | B15: 2 | C15: 12 | D15: 8 | E15: 10 | F15: 1000 | I15: O8 | J15: 3 | K15: 15 | L15: 3 | M15: 6 | N15: 4 | O15: 1000
I16: O9 | J16: 9 | K16: 13 | L16: 9 | M16: 7 | N16: 1 | O16: 1000
I17: O10 | J17: 2 | K17: 4 | L17: 13 | M17: 15 | N17: 7 | O17: 1000
I18: O11 | J18: 14 | K18: 14 | L18: 6 | M18: 8 | N18: 5 | O18: 1000
I19: O12 | J19: 5 | K19: 5 | L19: 4 | M19: 12 | N19: 5 | O19: 1000
I20: O13 | J20: 7 | K20: 1 | L20: 14 | M20: 13 | N20: 3 | O20: 1000
I21: O14 | J21: 9 | K21: 8 | L21: 7 | M21: 11 | N21: 11 | O21: 1000
I22: O15 | J22: 9 | K22: 2 | L22: 12 | M22: 8 | N22: 10 | O22: 1000
I24: L�pcs�k(1) | J24: X(A1) | K24: X(A2) | L24: X(A3) | M24: X(A4) | N24: X(A5)
I25: S1 | J25: (0+644)/(1)=644 | K25: (0+355)/(1)=355 | L25: (0+325)/(1)=325 | M25: (0+331)/(1)=331 | N25: (0+34)/(1)=34
I26: S2 | J26: (0+639)/(1)=639 | K26: (0+341)/(1)=341 | L26: (0+324)/(1)=324 | M26: (0+330)/(1)=330 | N26: (0+26)/(1)=26
I27: S3 | J27: (0+638)/(1)=638 | K27: (0+340)/(1)=340 | L27: (0+313)/(1)=313 | M27: (0+28)/(1)=28 | N27: (0+25)/(1)=25
I28: S4 | J28: (0+637)/(1)=637 | K28: (0+339)/(1)=339 | L28: (0+312)/(1)=312 | M28: (0+27)/(1)=27 | N28: (0+24)/(1)=24
I29: S5 | J29: (0+619)/(1)=619 | K29: (0+43)/(1)=43 | L29: (0+311)/(1)=311 | M29: (0+26)/(1)=26 | N29: (0+23)/(1)=23
I30: S6 | J30: (0+618)/(1)=618 | K30: (0+42)/(1)=42 | L30: (0+310)/(1)=310 | M30: (0+25)/(1)=25 | N30: (0+21)/(1)=21
I31: S7 | J31: (0+617)/(1)=617 | K31: (0+41)/(1)=41 | L31: (0+309)/(1)=309 | M31: (0+24)/(1)=24 | N31: (0+20)/(1)=20
I32: S8 | J32: (0+616)/(1)=616 | K32: (0+40)/(1)=40 | L32: (0+293)/(1)=293 | M32: (0+23)/(1)=23 | N32: (0+19)/(1)=19
I33: S9 | J33: (0+615)/(1)=615 | K33: (0+39)/(1)=39 | L33: (0+292)/(1)=292 | M33: (0+22)/(1)=22 | N33: (0+18)/(1)=18
I34: S10 | J34: (0+614)/(1)=614 | K34: (0+38)/(1)=38 | L34: (0+291)/(1)=291 | M34: (0+21)/(1)=21 | N34: (0+17)/(1)=17
I35: S11 | J35: (0+613)/(1)=613 | K35: (0+37)/(1)=37 | L35: (0+5)/(1)=5 | M35: (0+20)/(1)=20 | N35: (0+16)/(1)=16
I36: S12 | J36: (0+612)/(1)=612 | K36: (0+36)/(1)=36 | L36: (0+4)/(1)=4 | M36: (0+3)/(1)=3 | N36: (0+3)/(1)=3
I37: S13 | J37: (0+611)/(1)=611 | K37: (0+35)/(1)=35 | L37: (0+2)/(1)=2 | M37: (0+2)/(1)=2 | N37: (0+2)/(1)=2
I38: S14 | J38: (0+610)/(1)=610 | K38: (0+34)/(1)=34 | L38: (0+1)/(1)=1 | M38: (0+1)/(1)=1 | N38: (0+1)/(1)=1
I39: S15 | J39: (0+0)/(1)=0 | K39: (0+0)/(1)=0 | L39: (0+0)/(1)=0 | M39: (0+0)/(1)=0 | N39: (0+0)/(1)=0
I41: L�pcs�k(2) | J41: X(A1) | K41: X(A2) | L41: X(A3) | M41: X(A4) | N41: X(A5)
I42: S1 | J42: 644 | K42: 355 | L42: 325 | M42: 331 | N42: 34
I43: S2 | J43: 639 | K43: 341 | L43: 324 | M43: 330 | N43: 26
I44: S3 | J44: 638 | K44: 340 | L44: 313 | M44: 28 | N44: 25
I45: S4 | J45: 637 | K45: 339 | L45: 312 | M45: 27 | N45: 24
I46: S5 | J46: 619 | K46: 43 | L46: 311 | M46: 26 | N46: 23
I47: S6 | J47: 618 | K47: 42 | L47: 310 | M47: 25 | N47: 21
I48: S7 | J48: 617 | K48: 41 | L48: 309 | M48: 24 | N48: 20
I49: S8 | J49: 616 | K49: 40 | L49: 293 | M49: 23 | N49: 19
I50: S9 | J50: 615 | K50: 39 | L50: 292 | M50: 22 | N50: 18
I51: S10 | J51: 614 | K51: 38 | L51: 291 | M51: 21 | N51: 17
I52: S11 | J52: 613 | K52: 37 | L52: 5 | M52: 20 | N52: 16
I53: S12 | J53: 612 | K53: 36 | L53: 4 | M53: 3 | N53: 3
I54: S13 | J54: 611 | K54: 35 | L54: 2 | M54: 2 | N54: 2
I55: S14 | J55: 610 | K55: 34 | L55: 1 | M55: 1 | N55: 1
I56: S15 | J56: 0 | K56: 0 | L56: 0 | M56: 0 | N56: 0
I58: COCO:Y0 | J58: X(A1) | K58: X(A2) | L58: X(A3) | M58: X(A4) | N58: X(A5) | O58: Becsl�s | P58: T�ny+0 | Q58: Delta | R58: Delta/T�ny
I59: O1 | J59: 618 | K59: 40 | L59: 312 | M59: 28 | N59: 2 | O59: 1000 | P59: 1000 | Q59: 0 | R59: 0
I60: O2 | J60: 612 | K60: 40 | L60: 325 | M60: 23 | N60: 0 | O60: 1000 | P60: 1000 | Q60: 0 | R60: 0
I61: O3 | J61: 637 | K61: 43 | L61: 291 | M61: 27 | N61: 2 | O61: 1000 | P61: 1000 | Q61: 0 | R61: 0
I62: O4 | J62: 611 | K62: 40 | L62: 0 | M62: 330 | N62: 19 | O62: 1000 | P62: 1000 | Q62: 0 | R62: 0
I63: O5 | J63: 617 | K63: 40 | L63: 291 | M63: 26 | N63: 26 | O63: 1000 | P63: 1000 | Q63: 0 | R63: 0
I64: O6 | J64: 0 | K64: 340 | L64: 325 | M64: 331 | N64: 3 | O64: 999 | P64: 1000 | Q64: 1 | R64: 0.1
I65: O7 | J65: 644 | K65: 43 | L65: 293 | M65: 1 | N65: 19 | O65: 1000 | P65: 1000 | Q65: 0 | R65: 0
I66: O8 | J66: 638 | K66: 0 | L66: 313 | M66: 25 | N66: 24 | O66: 1000 | P66: 1000 | Q66: 0 | R66: 0
I67: O9 | J67: 615 | K67: 35 | L67: 292 | M67: 24 | N67: 34 | O67: 1000 | P67: 1000 | Q67: 0 | R67: 0
I68: O10 | J68: 639 | K68: 339 | L68: 2 | M68: 0 | N68: 20 | O68: 1000 | P68: 1000 | Q68: 0 | R68: 0
I69: O11 | J69: 610 | K69: 34 | L69: 310 | M69: 23 | N69: 23 | O69: 1000 | P69: 1000 | Q69: 0 | R69: 0
I70: O12 | J70: 619 | K70: 43 | L70: 312 | M70: 3 | N70: 23 | O70: 1000 | P70: 1000 | Q70: 0 | R70: 0
I71: O13 | J71: 617 | K71: 355 | L71: 1 | M71: 2 | N71: 25 | O71: 1000 | P71: 1000 | Q71: 0 | R71: 0
I72: O14 | J72: 615 | K72: 40 | L72: 309 | M72: 20 | N72: 16 | O72: 1000 | P72: 1000 | Q72: 0 | R72: 0
I73: O15 | J73: 615 | K73: 341 | L73: 4 | M73: 23 | N73: 17 | O73: 1000 | P73: 1000 | Q73: 0 | R73: 0
I75: S1 �sszeg: | J75: 1689
I76: S15 �sszeg: | J76: 0
I77: Becsl�s �sszeg: | J77: 14999
I78: T�ny �sszeg: | J78: 15000
I79: T�ny-becsl�s elt�r�s: | J79: -1
I80: T�ny n�gyzet�sszeg:
I81: Becsl�s n�gyzet�sszeg:
I82: N�gyzet�sszeg hiba: | J82: 0
I84: Open url
I86: Maxim�lis mem�ria haszn�lat: 1.36 Mb
I87: A futtat�s id�tartama: 0.54 mp (0.01 p)
